Workbook

Sheet Cover
C2: Powercor
C3: Revised regulatory proposal 2026-31
C5: =REPLACE(LEFT(_xlfn.TEXTAFTER(CELL("filename")," - ",1),FIND("Dec2025",_xlfn.TEXTAFTER(CELL("filename")," - "),1)-4),1,1,UPPER(LEFT(LEFT(_xlfn.TEXTAFTER(CELL("filename")," - ",1),FIND("Dec2025",_xlfn.TEXTAFTER(CELL("filename")," - "),1)-4),1))) -> Connections
C6: Model number: | D6: =LEFT(_xlfn.TEXTAFTER(CELL("filename")," MOD "),FIND(" - ",_xlfn.TEXTAFTER(CELL("filename")," MOD "),1)-1) -> 6.01
C8: 2025-12-01

Sheet Assumptions
A1: =business -> Powercor
A2: =title -> Connections
A3: Assumptions
B5: Business: | C5: Powercor
B6: Title | C6: Connections
B8: Output dollars | C8: 2026-06-30
B12: Input
B13: Link/Calculated
B16: Forecast | D16: 2026 | G16: =AND(G$19>=$D16, G$19<$D$17) -> FALSE | H16: FALSE | I16: FALSE | J16: FALSE | K16: FALSE | L16: FALSE | M16: FALSE | N16: FALSE | O16: FALSE | P16: FALSE | Q16: FALSE | R16: FALSE | S16: FALSE | T16: FALSE | U16: TRUE | V16: FALSE | W16: FALSE | X16: FALSE | Y16: FALSE | Z16: FALSE
B17: 2026/27 - 2030/31 reg period | D17: 2027 | G17: =AND(G$19>=$D$17, SUM(F$17:F$17)<5) -> FALSE | H17: =AND(H19>=$D$17, SUM(G17:G17)<5) -> FALSE | I17: FALSE | J17: FALSE | K17: FALSE | L17: FALSE | M17: FALSE | N17: FALSE | O17: FALSE | P17: FALSE | Q17: FALSE | R17: FALSE | S17: FALSE | T17: FALSE | U17: FALSE | V17: TRUE | W17: TRUE | X17: TRUE | Y17: TRUE | Z17: TRUE
B18: Forecast period | G18: =OR(G16:G17) -> FALSE | H18: =OR(H16:H17) -> FALSE | I18: FALSE | J18: FALSE | K18: FALSE | L18: FALSE | M18: FALSE | N18: FALSE | O18: FALSE | P18: FALSE | Q18: FALSE | R18: FALSE | S18: FALSE | T18: FALSE | U18: TRUE | V18: TRUE | W18: TRUE | X18: TRUE | Y18: TRUE | Z18: TRUE
B19: Fin year end | G19: 2012 | H19: =G19+1 -> 2013 | I19: 2014 | J19: 2015 | K19: 2016 | L19: 2017 | M19: 2018 | N19: 2019 | O19: 2020 | P19: 2021 | Q19: 2022 | R19: 2023 | S19: 2024 | T19: 2025 | U19: 2026 | V19: 2027 | W19: 2028 | X19: 2029 | Y19: 2030 | Z19: 2031
B20: Basis | G20: Actual | H20: Actual | I20: Actual | J20: Actual | K20: Actual | L20: Actual | M20: Actual | N20: Actual | O20: Actual | P20: Actual | Q20: Actual | R20: Actual | S20: Actual | T20: Actual | U20: Forecast | V20: Forecast | W20: Forecast | X20: Forecast | Y20: Forecast | Z20: Forecast
G24: =G19-1&"/"&RIGHT(G19,2) -> 2011/12 | H24: =H19-1&"/"&RIGHT(H19,2) -> 2012/13 | I24: 2013/14 | J24: 2014/15 | K24: 2015/16 | L24: 2016/17 | M24: 2017/18 | N24: 2018/19 | O24: 2019/20 | P24: 2020/21 | Q24: 2021/22 | R24: 2022/23 | S24: 2023/24 | T24: 2024/25 | U24: 2025/26 | V24: 2026/27 | W24: 2027/28 | X24: 2028/29 | Y24: 2029/30 | Z24: 2030/31
B25: Inflation conversions
B27: Cumulative escalation
B29: Conversion to June 2026 | D29: 2025/26 | G29: 1.44596459 | H29: 1.407139328 | I29: 1.378433129 | J29: 1.348306963 | K29: 1.32305647 | L29: 1.30650612 | M29: 1.287484088 | N29: 1.26216915 | O29: 1.239425501 | P29: 1.214855055 | Q29: 1.204489398 | R29: 1.16377706 | S29: 1.079251968 | T29: 1.037223787 | U29: 1.012669709 | V29: 0.9874888044 | W29: 0.962934045 | X29: 0.9389898608 | Y29: 0.9156410693 | Z29: 0.8928728656

Sheet Hist_vol
A1: =Assumptions!$A$1 -> Powercor
A2: =Assumptions!$A$2 -> Connections
A3: Historical volumes
B7: =Assumptions!B17 -> 2026/27 - 2030/31 reg period | G7: =Assumptions!G17 -> FALSE | H7: =Assumptions!H17 -> FALSE | I7: =Assumptions!I17 -> FALSE | J7: =Assumptions!J17 -> FALSE | K7: =Assumptions!K17 -> FALSE | L7: =Assumptions!L17 -> FALSE | M7: =Assumptions!M17 -> FALSE | N7: =Assumptions!N17 -> FALSE | O7: =Assumptions!O17 -> FALSE | P7: =Assumptions!P17 -> FALSE | Q7: =Assumptions!Q17 -> FALSE | R7: =Assumptions!R17 -> FALSE | S7: =Assumptions!S17 -> FALSE | T7: =Assumptions!T17 -> FALSE | U7: =Assumptions!U17 -> FALSE | V7: =Assumptions!V17 -> TRUE | W7: =Assumptions!W17 -> TRUE | X7: =Assumptions!X17 -> TRUE | Y7: =Assumptions!Y17 -> TRUE | Z7: =Assumptions!Z17 -> TRUE
B8: =Assumptions!B18 -> Forecast period | G8: =Assumptions!G18 -> FALSE | H8: =Assumptions!H18 -> FALSE | I8: =Assumptions!I18 -> FALSE | J8: =Assumptions!J18 -> FALSE | K8: =Assumptions!K18 -> FALSE | L8: =Assumptions!L18 -> FALSE | M8: =Assumptions!M18 -> FALSE | N8: =Assumptions!N18 -> FALSE | O8: =Assumptions!O18 -> FALSE | P8: =Assumptions!P18 -> FALSE | Q8: =Assumptions!Q18 -> FALSE | R8: =Assumptions!R18 -> FALSE | S8: =Assumptions!S18 -> FALSE | T8: =Assumptions!T18 -> FALSE | U8: =Assumptions!U18 -> TRUE | V8: =Assumptions!V18 -> TRUE | W8: =Assumptions!W18 -> TRUE | X8: =Assumptions!X18 -> TRUE | Y8: =Assumptions!Y18 -> TRUE | Z8: =Assumptions!Z18 -> TRUE
B9: =Assumptions!B19 -> Fin year end | G9: =Assumptions!G19 -> 2012 | H9: =Assumptions!H19 -> 2013 | I9: =Assumptions!I19 -> 2014 | J9: =Assumptions!J19 -> 2015 | K9: =Assumptions!K19 -> 2016 | L9: =Assumptions!L19 -> 2017 | M9: =Assumptions!M19 -> 2018 | N9: =Assumptions!N19 -> 2019 | O9: =Assumptions!O19 -> 2020 | P9: =Assumptions!P19 -> 2021 | Q9: =Assumptions!Q19 -> 2022 | R9: =Assumptions!R19 -> 2023 | S9: =Assumptions!S19 -> 2024 | T9: =Assumptions!T19 -> 2025 | U9: =Assumptions!U19 -> 2026 | V9: =Assumptions!V19 -> 2027 | W9: =Assumptions!W19 -> 2028 | X9: =Assumptions!X19 -> 2029 | Y9: =Assumptions!Y19 -> 2030 | Z9: =Assumptions!Z19 -> 2031
B10: =Assumptions!B20 -> Basis | G10: =Assumptions!G20 -> Actual | H10: =Assumptions!H20 -> Actual | I10: =Assumptions!I20 -> Actual | J10: =Assumptions!J20 -> Actual | K10: =Assumptions!K20 -> Actual | L10: =Assumptions!L20 -> Actual | M10: =Assumptions!M20 -> Actual | N10: =Assumptions!N20 -> Actual | O10: =Assumptions!O20 -> Actual | P10: =Assumptions!P20 -> Actual | Q10: =Assumptions!Q20 -> Actual | R10: =Assumptions!R20 -> Actual | S10: =Assumptions!S20 -> Actual | T10: =Assumptions!T20 -> Actual | U10: =Assumptions!U20 -> Forecast | V10: =Assumptions!V20 -> Forecast | W10: =Assumptions!W20 -> Forecast | X10: =Assumptions!X20 -> Forecast | Y10: =Assumptions!Y20 -> Forecast | Z10: =Assumptions!Z20 -> Forecast
B13: Category | C13: Type | D13: RIN category | E13: Description | G13: =Assumptions!G$24 -> 2011/12 | H13: =Assumptions!H$24 -> 2012/13 | I13: =Assumptions!I$24 -> 2013/14 | J13: =Assumptions!J$24 -> 2014/15 | K13: =Assumptions!K$24 -> 2015/16 | L13: =Assumptions!L$24 -> 2016/17 | M13: =Assumptions!M$24 -> 2017/18 | N13: =Assumptions!N$24 -> 2018/19 | O13: =Assumptions!O$24 -> 2019/20 | P13: =Assumptions!P$24 -> 2020/21 | Q13: =Assumptions!Q$24 -> 2021/22 | R13: =Assumptions!R$24 -> 2022/23 | S13: =Assumptions!S$24 -> 2023/24 | T13: =Assumptions!T$24 -> 2024/25 | U13: =Assumptions!U$24 -> 2025/26 | V13: =Assumptions!V$24 -> 2026/27 | W13: =Assumptions!W$24 -> 2027/28 | X13: =Assumptions!X$24 -> 2028/29 | Y13: =Assumptions!Y$24 -> 2029/30 | Z13: =Assumptions!Z$24 -> 2030/31
B14: Volumes
B15: Connections | C15: R1 | D15: =IF(ISBLANK($C15), "", INDEX(Lists!T$7:T$21, MATCH($C15, Lists!$S$7:$S$21,0))) -> Residential | E15: =IF(ISBLANK($C15), "", INDEX(Lists!U$7:U$21, MATCH($C15, Lists!$S$7:$S$21,0))) -> Simple connection LV | G15: 15246 | H15: 13350 | I15: 12650.84 | J15: 12805.84 | K15: 6511.5 | L15: 0 | M15: 0 | N15: 0 | O15: 0 | P15: 0 | Q15: 0 | R15: 0 | S15: 0 | T15: 0
B16: Connections | C16: R2 | D16: =IF(ISBLANK($C16), "", INDEX(Lists!T$7:T$21, MATCH($C16, Lists!$S$7:$S$21,0))) -> Residential | E16: =IF(ISBLANK($C16), "", INDEX(Lists!U$7:U$21, MATCH($C16, Lists!$S$7:$S$21,0))) -> Complex connection LV | G16: 2981 | H16: 3148.5 | I16: 3279.160469 | J16: 2935.660469 | K16: 2333.5 | L16: 2102.5 | M16: 2216.220566 | N16: 2305.720566 | O16: 2420 | P16: 2464 | Q16: 2202 | R16: 1804 | S16: 1775 | T16: 2196
B17: Connections | C17: R3 | D17: =IF(ISBLANK($C17), "", INDEX(Lists!T$7:T$21, MATCH($C17, Lists!$S$7:$S$21,0))) -> Residential | E17: =IF(ISBLANK($C17), "", INDEX(Lists!U$7:U$21, MATCH($C17, Lists!$S$7:$S$21,0))) -> Complex connection HV | G17: 352 | H17: 374.5 | I17: 342.5151479 | J17: 270.5151479 | K17: 184 | L17: 177 | M17: 238.2530479 | N17: 215.7530479 | O17: 169.5 | P17: 184 | Q17: 225 | R17: 200 | S17: 175 | T17: 143
B18: Connections | C18: CI1 | D18: =IF(ISBLANK($C18), "", INDEX(Lists!T$7:T$21, MATCH($C18, Lists!$S$7:$S$21,0))) -> Commercial/Industrial | E18: =IF(ISBLANK($C18), "", INDEX(Lists!U$7:U$21, MATCH($C18, Lists!$S$7:$S$21,0))) -> Simple connection LV | G18: 2119 | H18: 2108 | I18: 2117.488909 | J18: 1969.488909 | K18: 911.5 | L18: 0 | M18: 0 | N18: 0 | O18: 0 | P18: 0 | Q18: 0 | R18: 0 | S18: 0 | T18: 0
B19: Connections | C19: CI2 | D19: =IF(ISBLANK($C19), "", INDEX(Lists!T$7:T$21, MATCH($C19, Lists!$S$7:$S$21,0))) -> Commercial/Industrial | E19: =IF(ISBLANK($C19), "", INDEX(Lists!U$7:U$21, MATCH($C19, Lists!$S$7:$S$21,0))) -> Complex connection HV (customer connected at LV, minor HV works) | G19: 0 | H19: 0 | I19: 0 | J19: 0 | K19: 325.5 | L19: 305.5 | M19: 399.5 | N19: 357 | O19: 182 | P19: 182 | Q19: 144 | R19: 135 | S19: 156 | T19: 206
B20: Connections | C20: CI3 | D20: =IF(ISBLANK($C20), "", INDEX(Lists!T$7:T$21, MATCH($C20, Lists!$S$7:$S$21,0))) -> Commercial/Industrial | E20: =IF(ISBLANK($C20), "", INDEX(Lists!U$7:U$21, MATCH($C20, Lists!$S$7:$S$21,0))) -> Complex connection HV (customer connected at LV, upstream asset works) | G20: 371.2556342 | H20: 359.2739723 | I20: 345.5442312 | J20: 323.3831283 | K20: 290.5 | L20: 331.5 | M20: 378.7711871 | N20: 361.2711871 | O20: 330.5 | P20: 300 | Q20: 347 | R20: 377 | S20: 366 | T20: 466
B21: Connections | C21: CI4 | D21: =IF(ISBLANK($C21), "", INDEX(Lists!T$7:T$21, MATCH($C21, Lists!$S$7:$S$21,0))) -> Commercial/Industrial | E21: =IF(ISBLANK($C21), "", INDEX(Lists!U$7:U$21, MATCH($C21, Lists!$S$7:$S$21,0))) -> Complex connection HV (customer connected at HV) | G21: 4 | H21: 6.10306982 | I21: 6.153944173 | J21: 4.550874353 | K21: 8 | L21: 9.5 | M21: 4.948891292 | N21: 1.948891292 | O21: 6 | P21: 18 | Q21: 11 | R21: 7 | S21: 4 | T21: 7
B22: Connections | C22: CI5 | D22: =IF(ISBLANK($C22), "", INDEX(Lists!T$7:T$21, MATCH($C22, Lists!$S$7:$S$21,0))) -> Commercial/Industrial | E22: =IF(ISBLANK($C22), "", INDEX(Lists!U$7:U$21, MATCH($C22, Lists!$S$7:$S$21,0))) -> Complex connection sub-transmission | G22: 0 | H22: 0 | I22: 0 | J22: 0 | K22: 0 | L22: 0.5 | M22: 0.5 | N22: 0 | O22: 0 | P22: 0 | Q22: 0 | R22: 0 | S22: 0 | T22: 8
B23: Connections | C23: S1 | D23: =IF(ISBLANK($C23), "", INDEX(Lists!T$7:T$21, MATCH($C23, Lists!$S$7:$S$21,0))) -> Subdivision | E23: =IF(ISBLANK($C23), "", INDEX(Lists!U$7:U$21, MATCH($C23, Lists!$S$7:$S$21,0))) -> Complex connection LV | G23: 0 | H23: 0 | I23: 0 | J23: 0 | K23: 0 | L23: 0 | M23: 0 | N23: 0 | O23: 0 | P23: 0 | Q23: 0 | R23: 0 | S23: 0 | T23: 0
B24: Connections | C24: S2 | D24: =IF(ISBLANK($C24), "", INDEX(Lists!T$7:T$21, MATCH($C24, Lists!$S$7:$S$21,0))) -> Subdivision | E24: =IF(ISBLANK($C24), "", INDEX(Lists!U$7:U$21, MATCH($C24, Lists!$S$7:$S$21,0))) -> Complex connection HV (no upstream asset works) | G24: 0 | H24: 0 | I24: 0 | J24: 0 | K24: 0 | L24: 0 | M24: 0 | N24: 0 | O24: 0 | P24: 0 | Q24: 0 | R24: 0 | S24: 0 | T24: 0
B25: Connections | C25: S3 | D25: =IF(ISBLANK($C25), "", INDEX(Lists!T$7:T$21, MATCH($C25, Lists!$S$7:$S$21,0))) -> Subdivision | E25: =IF(ISBLANK($C25), "", INDEX(Lists!U$7:U$21, MATCH($C25, Lists!$S$7:$S$21,0))) -> Complex connection HV (with upstream asset works) | G25: 339.8103795 | H25: 337.1990873 | I25: 339.0642954 | J25: 340.0150544 | K25: 355 | L25: 388 | M25: 515.8202121 | N25: 545.3202121 | O25: 571.5 | P25: 565 | Q25: 744 | R25: 762 | S25: 822 | T25: 410
B26: Connections | C26: EG1 | D26: =IF(ISBLANK($C26), "", INDEX(Lists!T$7:T$21, MATCH($C26, Lists!$S$7:$S$21,0))) -> Embedded generation | E26: =IF(ISBLANK($C26), "", INDEX(Lists!U$7:U$21, MATCH($C26, Lists!$S$7:$S$21,0))) -> Simple connection LV | G26: 0 | H26: 0 | I26: 0 | J26: 0 | K26: 0 | L26: 0 | M26: 0 | N26: 0 | O26: 0 | P26: 0 | Q26: 0 | R26: 0 | S26: 0 | T26: 0
B27: Connections | C27: EG2 | D27: =IF(ISBLANK($C27), "", INDEX(Lists!T$7:T$21, MATCH($C27, Lists!$S$7:$S$21,0))) -> Embedded generation | E27: =IF(ISBLANK($C27), "", INDEX(Lists!U$7:U$21, MATCH($C27, Lists!$S$7:$S$21,0))) -> Complex connection HV (small capacity) | G27: 2.5 | H27: 2.5 | I27: 4.505145205 | J27: 22.00514521 | K27: 33.5 | L27: 45 | M27: 33.82543044 | N27: 5.325430441 | O27: 6.5 | P27: 10 | Q27: 11 | R27: 6 | S27: 4 | T27: 7
B28: Connections | C28: EG3 | D28: =IF(ISBLANK($C28), "", INDEX(Lists!T$7:T$21, MATCH($C28, Lists!$S$7:$S$21,0))) -> Embedded generation | E28: =IF(ISBLANK($C28), "", INDEX(Lists!U$7:U$21, MATCH($C28, Lists!$S$7:$S$21,0))) -> Complex connection HV (large capacity) | G28: 1 | H28: 0.5 | I28: 0 | J28: 1.5 | K28: 2 | L28: 3.5 | M28: 4.862937069 | N28: 2.862937069 | O28: 1 | P28: 0 | Q28: 0.3 | R28: 1 | S28: 1 | T28: 5

Sheet Hist_expenditure
A1: =Assumptions!$A$1 -> Powercor
A2: =Assumptions!$A$2 -> Connections
A3: Historical expenditure (nominal)
B7: =Assumptions!B17 -> 2026/27 - 2030/31 reg period | G7: =Assumptions!G17 -> FALSE | H7: =Assumptions!H17 -> FALSE | I7: =Assumptions!I17 -> FALSE | J7: =Assumptions!J17 -> FALSE | K7: =Assumptions!K17 -> FALSE | L7: =Assumptions!L17 -> FALSE | M7: =Assumptions!M17 -> FALSE | N7: =Assumptions!N17 -> FALSE | O7: =Assumptions!O17 -> FALSE | P7: =Assumptions!P17 -> FALSE | Q7: =Assumptions!Q17 -> FALSE | R7: =Assumptions!R17 -> FALSE | S7: =Assumptions!S17 -> FALSE | T7: =Assumptions!T17 -> FALSE | U7: =Assumptions!U17 -> FALSE | V7: =Assumptions!V17 -> TRUE | W7: =Assumptions!W17 -> TRUE | X7: =Assumptions!X17 -> TRUE | Y7: =Assumptions!Y17 -> TRUE | Z7: =Assumptions!Z17 -> TRUE
B8: =Assumptions!B18 -> Forecast period | G8: =Assumptions!G18 -> FALSE | H8: =Assumptions!H18 -> FALSE | I8: =Assumptions!I18 -> FALSE | J8: =Assumptions!J18 -> FALSE | K8: =Assumptions!K18 -> FALSE | L8: =Assumptions!L18 -> FALSE | M8: =Assumptions!M18 -> FALSE | N8: =Assumptions!N18 -> FALSE | O8: =Assumptions!O18 -> FALSE | P8: =Assumptions!P18 -> FALSE | Q8: =Assumptions!Q18 -> FALSE | R8: =Assumptions!R18 -> FALSE | S8: =Assumptions!S18 -> FALSE | T8: =Assumptions!T18 -> FALSE | U8: =Assumptions!U18 -> TRUE | V8: =Assumptions!V18 -> TRUE | W8: =Assumptions!W18 -> TRUE | X8: =Assumptions!X18 -> TRUE | Y8: =Assumptions!Y18 -> TRUE | Z8: =Assumptions!Z18 -> TRUE
B9: =Assumptions!B19 -> Fin year end | G9: =Assumptions!G19 -> 2012 | H9: =Assumptions!H19 -> 2013 | I9: =Assumptions!I19 -> 2014 | J9: =Assumptions!J19 -> 2015 | K9: =Assumptions!K19 -> 2016 | L9: =Assumptions!L19 -> 2017 | M9: =Assumptions!M19 -> 2018 | N9: =Assumptions!N19 -> 2019 | O9: =Assumptions!O19 -> 2020 | P9: =Assumptions!P19 -> 2021 | Q9: =Assumptions!Q19 -> 2022 | R9: =Assumptions!R19 -> 2023 | S9: =Assumptions!S19 -> 2024 | T9: =Assumptions!T19 -> 2025 | U9: =Assumptions!U19 -> 2026 | V9: =Assumptions!V19 -> 2027 | W9: =Assumptions!W19 -> 2028 | X9: =Assumptions!X19 -> 2029 | Y9: =Assumptions!Y19 -> 2030 | Z9: =Assumptions!Z19 -> 2031
B10: =Assumptions!B20 -> Basis | G10: =Assumptions!G20 -> Actual | H10: =Assumptions!H20 -> Actual | I10: =Assumptions!I20 -> Actual | J10: =Assumptions!J20 -> Actual | K10: =Assumptions!K20 -> Actual | L10: =Assumptions!L20 -> Actual | M10: =Assumptions!M20 -> Actual | N10: =Assumptions!N20 -> Actual | O10: =Assumptions!O20 -> Actual | P10: =Assumptions!P20 -> Actual | Q10: =Assumptions!Q20 -> Actual | R10: =Assumptions!R20 -> Actual | S10: =Assumptions!S20 -> Actual | T10: =Assumptions!T20 -> Actual | U10: =Assumptions!U20 -> Forecast | V10: =Assumptions!V20 -> Forecast | W10: =Assumptions!W20 -> Forecast | X10: =Assumptions!X20 -> Forecast | Y10: =Assumptions!Y20 -> Forecast | Z10: =Assumptions!Z20 -> Forecast
B13: =Hist_vol!B$13 -> Category | C13: Type | D13: =Hist_vol!D$13 -> RIN category | E13: =Hist_vol!E$13 -> Description | G13: =Assumptions!G$24 -> 2011/12 | H13: =Assumptions!H$24 -> 2012/13 | I13: =Assumptions!I$24 -> 2013/14 | J13: =Assumptions!J$24 -> 2014/15 | K13: =Assumptions!K$24 -> 2015/16 | L13: =Assumptions!L$24 -> 2016/17 | M13: =Assumptions!M$24 -> 2017/18 | N13: =Assumptions!N$24 -> 2018/19 | O13: =Assumptions!O$24 -> 2019/20 | P13: =Assumptions!P$24 -> 2020/21 | Q13: =Assumptions!Q$24 -> 2021/22 | R13: =Assumptions!R$24 -> 2022/23 | S13: =Assumptions!S$24 -> 2023/24 | T13: =Assumptions!T$24 -> 2024/25 | U13: =Assumptions!U$24 -> 2025/26 | V13: =Assumptions!V$24 -> 2026/27 | W13: =Assumptions!W$24 -> 2027/28 | X13: =Assumptions!X$24 -> 2028/29 | Y13: =Assumptions!Y$24 -> 2029/30 | Z13: =Assumptions!Z$24 -> 2030/31
B14: Spend ($ nominal)
B15: =Hist_vol!B15 -> Connections | C15: =Hist_vol!C15 -> R1 | D15: =Hist_vol!D15 -> Residential | E15: =Hist_vol!E15 -> Simple connection LV | G15: 4150616.021 | H15: 4032572.754 | I15: 4133306.415 | J15: 4176432.5 | K15: 2064772 | L15: 0 | M15: 0 | N15: 0 | O15: 0 | P15: 0 | Q15: 0 | R15: 0 | S15: 0 | T15: 0
B16: =Hist_vol!B16 -> Connections | C16: =Hist_vol!C16 -> R2 | D16: =Hist_vol!D16 -> Residential | E16: =Hist_vol!E16 -> Complex connection LV | G16: 16413889.87 | H16: 18078915.03 | I16: 19386223.7 | J16: 18210392.12 | K16: 15819933.12 | L16: 15202905.96 | M16: 15764602.92 | N16: 18036166.96 | O16: 20969203.93 | P16: 21943934.62 | Q16: 25797993.76 | R16: 29211145 | S16: 28303389 | T16: 28136433
B17: =Hist_vol!B17 -> Connections | C17: =Hist_vol!C17 -> R3 | D17: =Hist_vol!D17 -> Residential | E17: =Hist_vol!E17 -> Complex connection HV | G17: 7962583.8 | H17: 9029489.63 | I17: 8698155.106 | J17: 7149917.202 | K17: 5236533.535 | L17: 4758427.705 | M17: 5424535.122 | N17: 5794957.017 | O17: 6253504.935 | P17: 6378187.42 | Q17: 8502291.13 | R17: 9208312 | S17: 7870279 | T17: 7195499
B18: =Hist_vol!B18 -> Connections | C18: =Hist_vol!C18 -> CI1 | D18: =Hist_vol!D18 -> Commercial/Industrial | E18: =Hist_vol!E18 -> Simple connection LV | G18: 572661.079 | H18: 638455.5557 | I18: 681483.9896 | J18: 680642 | K18: 336125.5 | L18: 0 | M18: 0 | N18: 0 | O18: 0 | P18: 0 | Q18: 0 | R18: 0 | S18: 0 | T18: 0
B19: =Hist_vol!B19 -> Connections | C19: =Hist_vol!C19 -> CI2 | D19: =Hist_vol!D19 -> Commercial/Industrial | E19: =Hist_vol!E19 -> Complex connection HV (customer connected at LV, minor HV works) | G19: 11920524.52 | H19: 12652027.02 | I19: 14517672.74 | J19: 21460597.21 | K19: 25307641.74 | L19: 24369820.14 | M19: 29420368.06 | N19: 36414488.91 | O19: 32163312 | P19: 21370241 | Q19: 16398707 | R19: 19615700 | S19: 20612576 | T19: 17724892
B20: =Hist_vol!B20 -> Connections | C20: =Hist_vol!C20 -> CI3 | D20: =Hist_vol!D20 -> Commercial/Industrial | E20: =Hist_vol!E20 -> Complex connection HV (customer connected at LV, upstream asset works) | G20: 25628849.99 | H20: 27232391.85 | I20: 27981651.93 | J20: 25255357.11 | K20: 22868775.45 | L20: 25539319.95 | M20: 26115451.33 | N20: 26321892.28 | O20: 31108437.64 | P20: 31825876.56 | Q20: 36894348.2 | R20: 42674696 | S20: 46831206 | T20: 48049078
B21: =Hist_vol!B21 -> Connections | C21: =Hist_vol!C21 -> CI4 | D21: =Hist_vol!D21 -> Commercial/Industrial | E21: =Hist_vol!E21 -> Complex connection HV (customer connected at HV) | G21: 2725418.6 | H21: 3287566.685 | I21: 3467661.385 | J21: 1896616.5 | K21: 1181901.5 | L21: 1578575 | M21: 1312211.9 | N21: 1360278.9 | O21: 3466680.5 | P21: 13718605.96 | Q21: 15077957.39 | R21: 9956800 | S21: 15240651 | T21: 8004211.6
B22: =Hist_vol!B22 -> Connections | C22: =Hist_vol!C22 -> CI5 | D22: =Hist_vol!D22 -> Commercial/Industrial | E22: =Hist_vol!E22 -> Complex connection sub-transmission | G22: 0 | H22: 0 | I22: 0 | J22: 0 | K22: 0 | L22: 3531095 | M22: 3531095 | N22: 0 | O22: 0 | P22: 0 | Q22: 0 | R22: 4794000 | S22: 1392000 | T22: 19264942.73
B23: =Hist_vol!B23 -> Connections | C23: =Hist_vol!C23 -> S1 | D23: =Hist_vol!D23 -> Subdivision | E23: =Hist_vol!E23 -> Complex connection LV | G23: 0 | H23: 0 | I23: 0 | J23: 0 | K23: 0 | L23: 0 | M23: 0 | N23: 0 | O23: 0 | P23: 0 | Q23: 0 | R23: 0 | S23: 0 | T23: 0
B24: =Hist_vol!B24 -> Connections | C24: =Hist_vol!C24 -> S2 | D24: =Hist_vol!D24 -> Subdivision | E24: =Hist_vol!E24 -> Complex connection HV (no upstream asset works) | G24: 0 | H24: 0 | I24: 0 | J24: 0 | K24: 0 | L24: 0 | M24: 0 | N24: 0 | O24: 0 | P24: 0 | Q24: 0 | R24: 0 | S24: 0 | T24: 0
B25: =Hist_vol!B25 -> Connections | C25: =Hist_vol!C25 -> S3 | D25: =Hist_vol!D25 -> Subdivision | E25: =Hist_vol!E25 -> Complex connection HV (with upstream asset works) | G25: 23458451.68 | H25: 27309038.4 | I25: 25396993.75 | J25: 25260384.31 | K25: 31177524.91 | L25: 34166605.87 | M25: 33416326.15 | N25: 28822572.15 | O25: 30661216 | P25: 36071499.31 | Q25: 32142123.71 | R25: 35981982 | S25: 45988027 | T25: 56535389
B26: =Hist_vol!B26 -> Connections | C26: =Hist_vol!C26 -> EG1 | D26: =Hist_vol!D26 -> Embedded generation | E26: =Hist_vol!E26 -> Simple connection LV | G26: 0 | H26: 0 | I26: 0 | J26: 0 | K26: 0 | L26: 0 | M26: 0 | N26: 0 | O26: 0 | P26: 0 | Q26: 0 | R26: 0 | S26: 0 | T26: 0
B27: =Hist_vol!B27 -> Connections | C27: =Hist_vol!C27 -> EG2 | D27: =Hist_vol!D27 -> Embedded generation | E27: =Hist_vol!E27 -> Complex connection HV (small capacity) | G27: 839714.844 | H27: 794454.765 | I27: 959487.265 | J27: 1054125.5 | K27: 702632.5 | L27: 1834074 | M27: 2400153.67 | N27: 2029107.17 | O27: 4208256.5 | P27: 3538915 | Q27: 3173870.44 | R27: 2181577 | S27: 3594375 | T27: 5609020
B28: =Hist_vol!B28 -> Connections | C28: =Hist_vol!C28 -> EG3 | D28: =Hist_vol!D28 -> Embedded generation | E28: =Hist_vol!E28 -> Complex connection HV (large capacity) | G28: 5696026.395 | H28: 1419587.485 | I28: 0 | J28: 2457579.5 | K28: 3016802.5 | L28: 6059223 | M28: 16305035 | N28: 17126694 | O28: 6563910 | P28: 1123000 | Q28: 1353000 | R28: 3556123 | S28: 10167000 | T28: 5609020
C29: Total | G29: =SUM(G15:G28) -> 99368736.8 | H29: 104474499.2 | I29: 105222636.3 | J29: 107602044 | K29: 107712642.8 | L29: 117040046.6 | M29: 133689779.1 | N29: 135906157.4 | O29: 135394521.5 | P29: 135970259.9 | Q29: 139340291.6 | R29: 157180335 | S29: =SUM(S15:S28) -> 179999503 | T29: 196128485.3

Sheet Hist_contributions
A1: =Assumptions!$A$1 -> Powercor
A2: =Assumptions!$A$2 -> Connections
A3: Historical Type 1 Contributions (nominal)
B7: =Assumptions!B17 -> 2026/27 - 2030/31 reg period | G7: =Assumptions!G17 -> FALSE | H7: =Assumptions!H17 -> FALSE | I7: =Assumptions!I17 -> FALSE | J7: =Assumptions!J17 -> FALSE | K7: =Assumptions!K17 -> FALSE | L7: =Assumptions!L17 -> FALSE | M7: =Assumptions!M17 -> FALSE | N7: =Assumptions!N17 -> FALSE | O7: =Assumptions!O17 -> FALSE | P7: =Assumptions!P17 -> FALSE | Q7: =Assumptions!Q17 -> FALSE | R7: =Assumptions!R17 -> FALSE | S7: =Assumptions!S17 -> FALSE | T7: =Assumptions!T17 -> FALSE | U7: =Assumptions!U17 -> FALSE | V7: =Assumptions!V17 -> TRUE | W7: =Assumptions!W17 -> TRUE | X7: =Assumptions!X17 -> TRUE | Y7: =Assumptions!Y17 -> TRUE | Z7: =Assumptions!Z17 -> TRUE
B8: =Assumptions!B18 -> Forecast period | G8: =Assumptions!G18 -> FALSE | H8: =Assumptions!H18 -> FALSE | I8: =Assumptions!I18 -> FALSE | J8: =Assumptions!J18 -> FALSE | K8: =Assumptions!K18 -> FALSE | L8: =Assumptions!L18 -> FALSE | M8: =Assumptions!M18 -> FALSE | N8: =Assumptions!N18 -> FALSE | O8: =Assumptions!O18 -> FALSE | P8: =Assumptions!P18 -> FALSE | Q8: =Assumptions!Q18 -> FALSE | R8: =Assumptions!R18 -> FALSE | S8: =Assumptions!S18 -> FALSE | T8: =Assumptions!T18 -> FALSE | U8: =Assumptions!U18 -> TRUE | V8: =Assumptions!V18 -> TRUE | W8: =Assumptions!W18 -> TRUE | X8: =Assumptions!X18 -> TRUE | Y8: =Assumptions!Y18 -> TRUE | Z8: =Assumptions!Z18 -> TRUE
B9: =Assumptions!B19 -> Fin year end | G9: =Assumptions!G19 -> 2012 | H9: =Assumptions!H19 -> 2013 | I9: =Assumptions!I19 -> 2014 | J9: =Assumptions!J19 -> 2015 | K9: =Assumptions!K19 -> 2016 | L9: =Assumptions!L19 -> 2017 | M9: =Assumptions!M19 -> 2018 | N9: =Assumptions!N19 -> 2019 | O9: =Assumptions!O19 -> 2020 | P9: =Assumptions!P19 -> 2021 | Q9: =Assumptions!Q19 -> 2022 | R9: =Assumptions!R19 -> 2023 | S9: =Assumptions!S19 -> 2024 | T9: =Assumptions!T19 -> 2025 | U9: =Assumptions!U19 -> 2026 | V9: =Assumptions!V19 -> 2027 | W9: =Assumptions!W19 -> 2028 | X9: =Assumptions!X19 -> 2029 | Y9: =Assumptions!Y19 -> 2030 | Z9: =Assumptions!Z19 -> 2031
B10: =Assumptions!B20 -> Basis | G10: =Assumptions!G20 -> Actual | H10: =Assumptions!H20 -> Actual | I10: =Assumptions!I20 -> Actual | J10: =Assumptions!J20 -> Actual | K10: =Assumptions!K20 -> Actual | L10: =Assumptions!L20 -> Actual | M10: =Assumptions!M20 -> Actual | N10: =Assumptions!N20 -> Actual | O10: =Assumptions!O20 -> Actual | P10: =Assumptions!P20 -> Actual | Q10: =Assumptions!Q20 -> Actual | R10: =Assumptions!R20 -> Actual | S10: =Assumptions!S20 -> Actual | T10: =Assumptions!T20 -> Actual | U10: =Assumptions!U20 -> Forecast | V10: =Assumptions!V20 -> Forecast | W10: =Assumptions!W20 -> Forecast | X10: =Assumptions!X20 -> Forecast | Y10: =Assumptions!Y20 -> Forecast | Z10: =Assumptions!Z20 -> Forecast
B13: =Hist_vol!B$13 -> Category | C13: Type | D13: =Hist_vol!D$13 -> RIN category | E13: =Hist_vol!E$13 -> Description | G13: =Assumptions!G$24 -> 2011/12 | H13: =Assumptions!H$24 -> 2012/13 | I13: =Assumptions!I$24 -> 2013/14 | J13: =Assumptions!J$24 -> 2014/15 | K13: =Assumptions!K$24 -> 2015/16 | L13: =Assumptions!L$24 -> 2016/17 | M13: =Assumptions!M$24 -> 2017/18 | N13: =Assumptions!N$24 -> 2018/19 | O13: =Assumptions!O$24 -> 2019/20 | P13: =Assumptions!P$24 -> 2020/21 | Q13: =Assumptions!Q$24 -> 2021/22 | R13: =Assumptions!R$24 -> 2022/23 | S13: =Assumptions!S$24 -> 2023/24 | T13: =Assumptions!T$24 -> 2024/25 | U13: =Assumptions!U$24 -> 2025/26 | V13: =Assumptions!V$24 -> 2026/27 | W13: =Assumptions!W$24 -> 2027/28 | X13: =Assumptions!X$24 -> 2028/29 | Y13: =Assumptions!Y$24 -> 2029/30 | Z13: =Assumptions!Z$24 -> 2030/31
B14: Contributions ($ nominal)
B15: =Hist_expenditure!B15 -> Connections | C15: =Hist_expenditure!C15 -> R1 | D15: =Hist_expenditure!D15 -> Residential | E15: =Hist_expenditure!E15 -> Simple connection LV | G15: 1985256.726 | H15: 1510445.918 | I15: 1353901.495 | J15: 1528437.167 | K15: 855080.5665 | L15: 0 | M15: 0 | N15: 0 | O15: 0 | P15: 0 | Q15: 0 | R15: 0 | S15: 0 | T15: 0
B16: =Hist_expenditure!B16 -> Connections | C16: =Hist_expenditure!C16 -> R2 | D16: =Hist_expenditure!D16 -> Residential | E16: =Hist_expenditure!E16 -> Complex connection LV | G16: 7623470.662 | H16: 6712217.9 | I16: 6343300.337 | J16: 6605176.688 | K16: 7853978.612 | L16: 10402989.32 | M16: 13382741.99 | N16: 13030698.76 | O16: 13483902.45 | P16: 16921069 | Q16: 17765004 | R16: 16162449 | S16: 21748013 | T16: 21903215
B17: =Hist_expenditure!B17 -> Connections | C17: =Hist_expenditure!C17 -> R3 | D17: =Hist_expenditure!D17 -> Residential | E17: =Hist_expenditure!E17 -> Complex connection HV | G17: 3786470.284 | H17: 3350453.889 | I17: 2849862.413 | J17: 2577062.474 | K17: 2527035.698 | L17: 3284577.423 | M17: 4571117.678 | N17: 4213053.654 | O17: 3234213.079 | P17: 3487001 | Q17: 4639849 | R17: 4572277 | S17: 4201601 | T17: 3891708
B18: =Hist_expenditure!B18 -> Connections | C18: =Hist_expenditure!C18 -> CI1 | D18: =Hist_expenditure!D18 -> Commercial/Industrial | E18: =Hist_expenditure!E18 -> Simple connection LV | G18: 274293.5928 | H18: 237855.9241 | I18: 223290.9101 | J18: 249056.9287 | K18: 139199.0898 | L18: 0 | M18: 0 | N18: 0 | O18: 0 | P18: 0 | Q18: 0 | R18: 0 | S18: 0 | T18: 0
B19: =Hist_expenditure!B19 -> Connections | C19: =Hist_expenditure!C19 -> CI2 | D19: =Hist_expenditure!D19 -> Commercial/Industrial | E19: =Hist_expenditure!E19 -> Complex connection HV (customer connected at LV, minor HV works) | G19: 5186941.16 | H19: 12402412.54 | I19: 14603217.08 | J19: 24794843.95 | K19: 28862076.74 | L19: 24466217.09 | M19: 25966991.49 | N19: 37257341.98 | O19: 42869693.03 | P19: 23682397.98 | Q19: 18459514.58 | R19: 21306708 | S19: 18979101 | T19: 16838407
B20: =Hist_expenditure!B20 -> Connections | C20: =Hist_expenditure!C20 -> CI3 | D20: =Hist_expenditure!D20 -> Commercial/Industrial | E20: =Hist_expenditure!E20 -> Complex connection HV (customer connected at LV, upstream asset works) | G20: 12058423.25 | H20: 9722402.06 | I20: 8765342.533 | J20: 8685004.188 | K20: 10852693.05 | L20: 16378583.36 | M20: 20325293.53 | N20: 17849721.29 | O20: 11192899.03 | P20: 9166512 | Q20: 9676385 | R20: 14105659 | S20: 16734897 | T20: 17922641
B21: =Hist_expenditure!B21 -> Connections | C21: =Hist_expenditure!C21 -> CI4 | D21: =Hist_expenditure!D21 -> Commercial/Industrial | E21: =Hist_expenditure!E21 -> Complex connection HV (customer connected at HV) | G21: 1299566.509 | H21: 1197965.065 | I21: 1137240.408 | J21: 634520.6481 | K21: 639012.9072 | L21: 1051148.331 | M21: 1087742.175 | N21: 977880.972 | O21: 2089608.563 | P21: 9629558 | Q21: 10784273 | R21: 14924840 | S21: 8367591 | T21: 8220311.39
B22: =Hist_expenditure!B22 -> Connections | C22: =Hist_expenditure!C22 -> CI5 | D22: =Hist_expenditure!D22 -> Commercial/Industrial | E22: =Hist_expenditure!E22 -> Complex connection sub-transmission | G22: 0 | H22: 0 | I22: 0 | J22: 0 | K22: 0 | L22: 2737202.687 | M22: 2737202.687 | N22: 0 | O22: 0 | P22: 0 | Q22: 0 | R22: 0 | S22: 764251 | T22: 19144249.81
B23: =Hist_expenditure!B23 -> Connections | C23: =Hist_expenditure!C23 -> S1 | D23: =Hist_expenditure!D23 -> Subdivision | E23: =Hist_expenditure!E23 -> Complex connection LV | G23: 0 | H23: 0 | I23: 0 | J23: 0 | K23: 0 | L23: 0 | M23: 0 | N23: 0 | O23: 0 | P23: 0 | Q23: 0 | R23: 0 | S23: 0 | T23: 0
B24: =Hist_expenditure!B24 -> Connections | C24: =Hist_expenditure!C24 -> S2 | D24: =Hist_expenditure!D24 -> Subdivision | E24: =Hist_expenditure!E24 -> Complex connection HV (no upstream asset works) | G24: 0 | H24: 0 | I24: 0 | J24: 0 | K24: 0 | L24: 0 | M24: 0 | N24: 0 | O24: 0 | P24: 0 | Q24: 0 | R24: 0 | S24: 0 | T24: 0
B25: =Hist_expenditure!B25 -> Connections | C25: =Hist_expenditure!C25 -> S3 | D25: =Hist_expenditure!D25 -> Subdivision | E25: =Hist_expenditure!E25 -> Complex connection HV (with upstream asset works) | G25: 4957249.576 | H25: 3842172.988 | I25: 3286545.756 | J25: 4086101.638 | K25: 6298453.382 | L25: 9321808.401 | M25: 13800072.86 | N25: 13111146.22 | O25: 12573585.26 | P25: 15456049 | Q25: 9808561 | R25: 8973722 | S25: 7441041 | T25: 10476892
B26: =Hist_expenditure!B26 -> Connections | C26: =Hist_expenditure!C26 -> EG1 | D26: =Hist_expenditure!D26 -> Embedded generation | E26: =Hist_expenditure!E26 -> Simple connection LV | G26: 0 | H26: 0 | I26: 0 | J26: 0 | K26: 0 | L26: 0 | M26: 0 | N26: 0 | O26: 0 | P26: 0 | Q26: 0 | R26: 0 | S26: 0 | T26: 0
B27: =Hist_expenditure!B27 -> Connections | C27: =Hist_expenditure!C27 -> EG2 | D27: =Hist_expenditure!D27 -> Embedded generation | E27: =Hist_expenditure!E27 -> Complex connection HV (small capacity) | G27: 377249.1814 | H27: 314626.8827 | I27: 309047.3571 | J27: 361730.3467 | K27: 367813.5463 | L27: 1341890.963 | M27: 2012166.855 | N27: 1508396.275 | O27: 8608713.294 | P27: 11205732 | Q27: 7400758 | R27: 3115794 | S27: 4728584 | T27: 5572649
B28: =Hist_expenditure!B28 -> Connections | C28: =Hist_expenditure!C28 -> EG3 | D28: =Hist_expenditure!D28 -> Embedded generation | E28: =Hist_expenditure!E28 -> Complex connection HV (large capacity) | G28: 2949341.714 | H28: 585857.7664 | I28: 0 | J28: 1017753.278 | K28: 1348364.092 | L28: 4594051.696 | M28: 14277636.86 | N28: 13586809.02 | O28: 4184279.54 | P28: 3555903 | Q28: 3154894 | R28: 5078962 | S28: 13365148 | T28: 5572649
C29: Total | G29: =SUM(G15:G28) -> 40498262.65 | H29: =SUM(H15:H28) -> 39876410.93 | I29: 38871748.29 | J29: 50539687.31 | K29: 59743707.68 | L29: 73578469.27 | M29: 98160966.12 | N29: 101535048.2 | O29: 98236894.24 | P29: 93104221.98 | Q29: 81689238.58 | R29: 88240411 | S29: 96330227 | T29: 109542722.2

Sheet Unit_rates
A1: =Assumptions!$A$1 -> Powercor
A2: =Assumptions!$A$2 -> Connections
A3: Unit rates
B7: =Assumptions!B17 -> 2026/27 - 2030/31 reg period | G7: =Assumptions!G17 -> FALSE | H7: =Assumptions!H17 -> FALSE | I7: =Assumptions!I17 -> FALSE | J7: =Assumptions!J17 -> FALSE | K7: =Assumptions!K17 -> FALSE | L7: =Assumptions!L17 -> FALSE | M7: =Assumptions!M17 -> FALSE | N7: =Assumptions!N17 -> FALSE | O7: =Assumptions!O17 -> FALSE | P7: =Assumptions!P17 -> FALSE | Q7: =Assumptions!Q17 -> FALSE | R7: =Assumptions!R17 -> FALSE | S7: =Assumptions!S17 -> FALSE | T7: =Assumptions!T17 -> FALSE
B8: =Assumptions!B18 -> Forecast period | G8: =Assumptions!G18 -> FALSE | H8: =Assumptions!H18 -> FALSE | I8: =Assumptions!I18 -> FALSE | J8: =Assumptions!J18 -> FALSE | K8: =Assumptions!K18 -> FALSE | L8: =Assumptions!L18 -> FALSE | M8: =Assumptions!M18 -> FALSE | N8: =Assumptions!N18 -> FALSE | O8: =Assumptions!O18 -> FALSE | P8: =Assumptions!P18 -> FALSE | Q8: =Assumptions!Q18 -> FALSE | R8: =Assumptions!R18 -> FALSE | S8: =Assumptions!S18 -> FALSE | T8: =Assumptions!T18 -> FALSE
B9: =Assumptions!B19 -> Fin year end | G9: =Assumptions!G19 -> 2012 | H9: =Assumptions!H19 -> 2013 | I9: =Assumptions!I19 -> 2014 | J9: =Assumptions!J19 -> 2015 | K9: =Assumptions!K19 -> 2016 | L9: =Assumptions!L19 -> 2017 | M9: =Assumptions!M19 -> 2018 | N9: =Assumptions!N19 -> 2019 | O9: =Assumptions!O19 -> 2020 | P9: =Assumptions!P19 -> 2021 | Q9: =Assumptions!Q19 -> 2022 | R9: =Assumptions!R19 -> 2023 | S9: =Assumptions!S19 -> 2024 | T9: =Assumptions!T19 -> 2025
B10: =Assumptions!B20 -> Basis | G10: =Assumptions!G20 -> Actual | H10: =Assumptions!H20 -> Actual | I10: =Assumptions!I20 -> Actual | J10: =Assumptions!J20 -> Actual | K10: =Assumptions!K20 -> Actual | L10: =Assumptions!L20 -> Actual | M10: =Assumptions!M20 -> Actual | N10: =Assumptions!N20 -> Actual | O10: =Assumptions!O20 -> Actual | P10: =Assumptions!P20 -> Actual | Q10: =Assumptions!Q20 -> Actual | R10: =Assumptions!R20 -> Actual | S10: =Assumptions!S20 -> Actual | T10: =Assumptions!T20 -> Actual
B13: =Hist_vol!B$13 -> Category | C13: Type | D13: =Hist_vol!D$13 -> RIN category | E13: =Hist_vol!E$13 -> Description | G13: =Assumptions!G$24 -> 2011/12 | H13: =Assumptions!H$24 -> 2012/13 | I13: =Assumptions!I$24 -> 2013/14 | J13: =Assumptions!J$24 -> 2014/15 | K13: =Assumptions!K$24 -> 2015/16 | L13: =Assumptions!L$24 -> 2016/17 | M13: =Assumptions!M$24 -> 2017/18 | N13: =Assumptions!N$24 -> 2018/19 | O13: =Assumptions!O$24 -> 2019/20 | P13: =Assumptions!P$24 -> 2020/21 | Q13: =Assumptions!Q$24 -> 2021/22 | R13: =Assumptions!R$24 -> 2022/23 | S13: =Assumptions!S$24 -> 2023/24 | T13: =Assumptions!T$24 -> 2024/25
B14: Unit rate ($ June 2026)
B15: =Hist_vol!B15 -> Connections | C15: =Hist_vol!C15 -> R1 | D15: =Hist_vol!D15 -> Residential | E15: =Hist_vol!E15 -> Simple connection LV | G15: =IF(Hist_vol!G15=0,0, Hist_expenditure!G15*Assumptions!G$29/Hist_vol!G15) -> 393.6536661 | H15: =IF(Hist_vol!H15=0,0, Hist_expenditure!H15*Assumptions!H$29/Hist_vol!H15) -> 425.0480687 | I15: =IF(Hist_vol!I15=0,0, Hist_expenditure!I15*Assumptions!I$29/Hist_vol!I15) -> 450.3642838 | J15: =IF(Hist_vol!J15=0,0, Hist_expenditure!J15*Assumptions!J$29/Hist_vol!J15) -> 439.730078 | K15: =IF(Hist_vol!K15=0,0, Hist_expenditure!K15*Assumptions!K$29/Hist_vol!K15) -> 419.5361982 | L15: =IF(Hist_vol!L15=0,0, Hist_expenditure!L15*Assumptions!L$29/Hist_vol!L15) -> 0 | M15: =IF(Hist_vol!M15=0,0, Hist_expenditure!M15*Assumptions!M$29/Hist_vol!M15) -> 0 | N15: =IF(Hist_vol!N15=0,0, Hist_expenditure!N15*Assumptions!N$29/Hist_vol!N15) -> 0 | O15: =IF(Hist_vol!O15=0,0, Hist_expenditure!O15*Assumptions!O$29/Hist_vol!O15) -> 0 | P15: =IF(Hist_vol!P15=0,0, Hist_expenditure!P15*Assumptions!P$29/Hist_vol!P15) -> 0 | Q15: =IF(Hist_vol!Q15=0,0, Hist_expenditure!Q15*Assumptions!Q$29/Hist_vol!Q15) -> 0 | R15: =IF(Hist_vol!R15=0,0, Hist_expenditure!R15*Assumptions!R$29/Hist_vol!R15) -> 0 | S15: =IF(Hist_vol!S15=0,0, Hist_expenditure!S15*Assumptions!S$29/Hist_vol!S15) -> 0 | T15: =IF(Hist_vol!T15=0,0, Hist_expenditure!T15*Assumptions!T$29/Hist_vol!T15) -> 0
B16: =Hist_vol!B16 -> Connections | C16: =Hist_vol!C16 -> R2 | D16: =Hist_vol!D16 -> Residential | E16: =Hist_vol!E16 -> Complex connection LV | G16: =IF(Hist_vol!G16=0,0, Hist_expenditure!G16*Assumptions!G$29/Hist_vol!G16) -> 7961.725441 | H16: =IF(Hist_vol!H16=0,0, Hist_expenditure!H16*Assumptions!H$29/Hist_vol!H16) -> 8079.895936 | I16: =IF(Hist_vol!I16=0,0, Hist_expenditure!I16*Assumptions!I$29/Hist_vol!I16) -> 8149.22394 | J16: =IF(Hist_vol!J16=0,0, Hist_expenditure!J16*Assumptions!J$29/Hist_vol!J16) -> 8363.773251 | K16: =IF(Hist_vol!K16=0,0, Hist_expenditure!K16*Assumptions!K$29/Hist_vol!K16) -> 8969.64426 | L16: =IF(Hist_vol!L16=0,0, Hist_expenditure!L16*Assumptions!L$29/Hist_vol!L16) -> 9447.177015 | M16: =IF(Hist_vol!M16=0,0, Hist_expenditure!M16*Assumptions!M$29/Hist_vol!M16) -> 9158.238001 | N16: =IF(Hist_vol!N16=0,0, Hist_expenditure!N16*Assumptions!N$29/Hist_vol!N16) -> 9873.13635 | O16: =IF(Hist_vol!O16=0,0, Hist_expenditure!O16*Assumptions!O$29/Hist_vol!O16) -> 10739.57276 | P16: =IF(Hist_vol!P16=0,0, Hist_expenditure!P16*Assumptions!P$29/Hist_vol!P16) -> 10819.27756 | Q16: =IF(Hist_vol!Q16=0,0, Hist_expenditure!Q16*Assumptions!Q$29/Hist_vol!Q16) -> 14111.44867 | R16: =IF(Hist_vol!R16=0,0, Hist_expenditure!R16*Assumptions!R$29/Hist_vol!R16) -> 18844.37941 | S16: =IF(Hist_vol!S16=0,0, Hist_expenditure!S16*Assumptions!S$29/Hist_vol!S16) -> 17209.28917 | T16: =IF(Hist_vol!T16=0,0, Hist_expenditure!T16*Assumptions!T$29/Hist_vol!T16) -> 13289.51621
B17: =Hist_vol!B17 -> Connections | C17: =Hist_vol!C17 -> R3 | D17: =Hist_vol!D17 -> Residential | E17: =Hist_vol!E17 -> Complex connection HV | G17: =IF(Hist_vol!G17=0,0, Hist_expenditure!G17*Assumptions!G$29/Hist_vol!G17) -> 32709.13131 | H17: =IF(Hist_vol!H17=0,0, Hist_expenditure!H17*Assumptions!H$29/Hist_vol!H17) -> 33927.23625 | I17: =IF(Hist_vol!I17=0,0, Hist_expenditure!I17*Assumptions!I$29/Hist_vol!I17) -> 35005.24061 | J17: =IF(Hist_vol!J17=0,0, Hist_expenditure!J17*Assumptions!J$29/Hist_vol!J17) -> 35636.75907 | K17: =IF(Hist_vol!K17=0,0, Hist_expenditure!K17*Assumptions!K$29/Hist_vol!K17) -> 37653.42161 | L17: =IF(Hist_vol!L17=0,0, Hist_expenditure!L17*Assumptions!L$29/Hist_vol!L17) -> 35123.8131 | M17: =IF(Hist_vol!M17=0,0, Hist_expenditure!M17*Assumptions!M$29/Hist_vol!M17) -> 29313.3822 | N17: =IF(Hist_vol!N17=0,0, Hist_expenditure!N17*Assumptions!N$29/Hist_vol!N17) -> 33900.86975 | O17: =IF(Hist_vol!O17=0,0, Hist_expenditure!O17*Assumptions!O$29/Hist_vol!O17) -> 45727.15921 | P17: =IF(Hist_vol!P17=0,0, Hist_expenditure!P17*Assumptions!P$29/Hist_vol!P17) -> 42111.81103 | Q17: =IF(Hist_vol!Q17=0,0, Hist_expenditure!Q17*Assumptions!Q$29/Hist_vol!Q17) -> 45515.19787 | R17: =IF(Hist_vol!R17=0,0, Hist_expenditure!R17*Assumptions!R$29/Hist_vol!R17) -> 53582.11134 | S17: =IF(Hist_vol!S17=0,0, Hist_expenditure!S17*Assumptions!S$29/Hist_vol!S17) -> 48537.22342 | T17: =IF(Hist_vol!T17=0,0, Hist_expenditure!T17*Assumptions!T$29/Hist_vol!T17) -> 52191.20784
B18: =Hist_vol!B18 -> Connections | C18: =Hist_vol!C18 -> CI1 | D18: =Hist_vol!D18 -> Commercial/Industrial | E18: =Hist_vol!E18 -> Simple connection LV | G18: =IF(Hist_vol!G18=0,0, Hist_expenditure!G18*Assumptions!G$29/Hist_vol!G18) -> 390.7728373 | H18: =IF(Hist_vol!H18=0,0, Hist_expenditure!H18*Assumptions!H$29/Hist_vol!H18) -> 426.1840237 | I18: =IF(Hist_vol!I18=0,0, Hist_expenditure!I18*Assumptions!I$29/Hist_vol!I18) -> 443.6292933 | J18: =IF(Hist_vol!J18=0,0, Hist_expenditure!J18*Assumptions!J$29/Hist_vol!J18) -> 465.9657355 | K18: =IF(Hist_vol!K18=0,0, Hist_expenditure!K18*Assumptions!K$29/Hist_vol!K18) -> 487.8914072 | L18: =IF(Hist_vol!L18=0,0, Hist_expenditure!L18*Assumptions!L$29/Hist_vol!L18) -> 0 | M18: =IF(Hist_vol!M18=0,0, Hist_expenditure!M18*Assumptions!M$29/Hist_vol!M18) -> 0 | N18: =IF(Hist_vol!N18=0,0, Hist_expenditure!N18*Assumptions!N$29/Hist_vol!N18) -> 0 | O18: =IF(Hist_vol!O18=0,0, Hist_expenditure!O18*Assumptions!O$29/Hist_vol!O18) -> 0 | P18: =IF(Hist_vol!P18=0,0, Hist_expenditure!P18*Assumptions!P$29/Hist_vol!P18) -> 0 | Q18: =IF(Hist_vol!Q18=0,0, Hist_expenditure!Q18*Assumptions!Q$29/Hist_vol!Q18) -> 0 | R18: =IF(Hist_vol!R18=0,0, Hist_expenditure!R18*Assumptions!R$29/Hist_vol!R18) -> 0 | S18: =IF(Hist_vol!S18=0,0, Hist_expenditure!S18*Assumptions!S$29/Hist_vol!S18) -> 0 | T18: =IF(Hist_vol!T18=0,0, Hist_expenditure!T18*Assumptions!T$29/Hist_vol!T18) -> 0
B19: =Hist_vol!B19 -> Connections | C19: =Hist_vol!C19 -> CI2 | D19: =Hist_vol!D19 -> Commercial/Industrial | E19: =Hist_vol!E19 -> Complex connection HV (customer connected at LV, minor HV works) | G19: =IF(Hist_vol!G19=0,0, Hist_expenditure!G19*Assumptions!G$29/Hist_vol!G19) -> 0 | H19: =IF(Hist_vol!H19=0,0, Hist_expenditure!H19*Assumptions!H$29/Hist_vol!H19) -> 0 | I19: =IF(Hist_vol!I19=0,0, Hist_expenditure!I19*Assumptions!I$29/Hist_vol!I19) -> 0 | J19: =IF(Hist_vol!J19=0,0, Hist_expenditure!J19*Assumptions!J$29/Hist_vol!J19) -> 0 | K19: =IF(Hist_vol!K19=0,0, Hist_expenditure!K19*Assumptions!K$29/Hist_vol!K19) -> 102867.7086 | L19: =IF(Hist_vol!L19=0,0, Hist_expenditure!L19*Assumptions!L$29/Hist_vol!L19) -> 104220.3573 | M19: =IF(Hist_vol!M19=0,0, Hist_expenditure!M19*Assumptions!M$29/Hist_vol!M19) -> 94814.15701 | N19: =IF(Hist_vol!N19=0,0, Hist_expenditure!N19*Assumptions!N$29/Hist_vol!N19) -> 128742.9819 | O19: =IF(Hist_vol!O19=0,0, Hist_expenditure!O19*Assumptions!O$29/Hist_vol!O19) -> 219033.1269 | P19: =IF(Hist_vol!P19=0,0, Hist_expenditure!P19*Assumptions!P$29/Hist_vol!P19) -> 142646.9522 | Q19: =IF(Hist_vol!Q19=0,0, Hist_expenditure!Q19*Assumptions!Q$29/Hist_vol!Q19) -> 137167.1439 | R19: =IF(Hist_vol!R19=0,0, Hist_expenditure!R19*Assumptions!R$29/Hist_vol!R19) -> 169098.531 | S19: =IF(Hist_vol!S19=0,0, Hist_expenditure!S19*Assumptions!S$29/Hist_vol!S19) -> 142603.6103 | T19: =IF(Hist_vol!T19=0,0, Hist_expenditure!T19*Assumptions!T$29/Hist_vol!T19) -> 89246.01749
B20: =Hist_vol!B20 -> Connections | C20: =Hist_vol!C20 -> CI3 | D20: =Hist_vol!D20 -> Commercial/Industrial | E20: =Hist_vol!E20 -> Complex connection HV (customer connected at LV, upstream asset works) | G20: =IF(Hist_vol!G20=0,0, Hist_expenditure!G20*Assumptions!G$29/Hist_vol!G20) -> 99819.11698 | H20: =IF(Hist_vol!H20=0,0, Hist_expenditure!H20*Assumptions!H$29/Hist_vol!H20) -> 106658.9081 | I20: =IF(Hist_vol!I20=0,0, Hist_expenditure!I20*Assumptions!I$29/Hist_vol!I20) -> 111623.4408 | J20: =IF(Hist_vol!J20=0,0, Hist_expenditure!J20*Assumptions!J$29/Hist_vol!J20) -> 105299.1664 | K20: =IF(Hist_vol!K20=0,0, Hist_expenditure!K20*Assumptions!K$29/Hist_vol!K20) -> 104153.8083 | L20: =IF(Hist_vol!L20=0,0, Hist_expenditure!L20*Assumptions!L$29/Hist_vol!L20) -> 100655.4383 | M20: =IF(Hist_vol!M20=0,0, Hist_expenditure!M20*Assumptions!M$29/Hist_vol!M20) -> 88769.23368 | N20: =IF(Hist_vol!N20=0,0, Hist_expenditure!N20*Assumptions!N$29/Hist_vol!N20) -> 91960.5039 | O20: =IF(Hist_vol!O20=0,0, Hist_expenditure!O20*Assumptions!O$29/Hist_vol!O20) -> 116661.3946 | P20: =IF(Hist_vol!P20=0,0, Hist_expenditure!P20*Assumptions!P$29/Hist_vol!P20) -> 128879.4234 | Q20: =IF(Hist_vol!Q20=0,0, Hist_expenditure!Q20*Assumptions!Q$29/Hist_vol!Q20) -> 128065.8537 | R20: =IF(Hist_vol!R20=0,0, Hist_expenditure!R20*Assumptions!R$29/Hist_vol!R20) -> 131734.3031 | S20: =IF(Hist_vol!S20=0,0, Hist_expenditure!S20*Assumptions!S$29/Hist_vol!S20) -> 138094.7302 | T20: =IF(Hist_vol!T20=0,0, Hist_expenditure!T20*Assumptions!T$29/Hist_vol!T20) -> 106947.7396
B21: =Hist_vol!B21 -> Connections | C21: =Hist_vol!C21 -> CI4 | D21: =Hist_vol!D21 -> Commercial/Industrial | E21: =Hist_vol!E21 -> Complex connection HV (customer connected at HV) | G21: =IF(Hist_vol!G21=0,0, Hist_expenditure!G21*Assumptions!G$29/Hist_vol!G21) -> 985214.6972 | H21: =IF(Hist_vol!H21=0,0, Hist_expenditure!H21*Assumptions!H$29/Hist_vol!H21) -> 757989.7517 | I21: =IF(Hist_vol!I21=0,0, Hist_expenditure!I21*Assumptions!I$29/Hist_vol!I21) -> 776727.77 | J21: =IF(Hist_vol!J21=0,0, Hist_expenditure!J21*Assumptions!J$29/Hist_vol!J21) -> 561918.6633 | K21: =IF(Hist_vol!K21=0,0, Hist_expenditure!K21*Assumptions!K$29/Hist_vol!K21) -> 195465.3034 | L21: =IF(Hist_vol!L21=0,0, Hist_expenditure!L21*Assumptions!L$29/Hist_vol!L21) -> 217096.6209 | M21: =IF(Hist_vol!M21=0,0, Hist_expenditure!M21*Assumptions!M$29/Hist_vol!M21) -> 341379.8851 | N21: =IF(Hist_vol!N21=0,0, Hist_expenditure!N21*Assumptions!N$29/Hist_vol!N21) -> 880963.4845 | O21: =IF(Hist_vol!O21=0,0, Hist_expenditure!O21*Assumptions!O$29/Hist_vol!O21) -> 716115.3692 | P21: =IF(Hist_vol!P21=0,0, Hist_expenditure!P21*Assumptions!P$29/Hist_vol!P21) -> 925895.4333 | Q21: =IF(Hist_vol!Q21=0,0, Hist_expenditure!Q21*Assumptions!Q$29/Hist_vol!Q21) -> 1651021.801 | R21: =IF(Hist_vol!R21=0,0, Hist_expenditure!R21*Assumptions!R$29/Hist_vol!R21) -> 1655356.49 | S21: =IF(Hist_vol!S21=0,0, Hist_expenditure!S21*Assumptions!S$29/Hist_vol!S21) -> 4112125.646 | T21: =IF(Hist_vol!T21=0,0, Hist_expenditure!T21*Assumptions!T$29/Hist_vol!T21) -> 1186022.667
B22: =Hist_vol!B22 -> Connections | C22: =Hist_vol!C22 -> CI5 | D22: =Hist_vol!D22 -> Commercial/Industrial | E22: =Hist_vol!E22 -> Complex connection sub-transmission | G22: =IF(Hist_vol!G22=0,0, Hist_expenditure!G22*Assumptions!G$29/Hist_vol!G22) -> 0 | H22: =IF(Hist_vol!H22=0,0, Hist_expenditure!H22*Assumptions!H$29/Hist_vol!H22) -> 0 | I22: =IF(Hist_vol!I22=0,0, Hist_expenditure!I22*Assumptions!I$29/Hist_vol!I22) -> 0 | J22: =IF(Hist_vol!J22=0,0, Hist_expenditure!J22*Assumptions!J$29/Hist_vol!J22) -> 0 | K22: =IF(Hist_vol!K22=0,0, Hist_expenditure!K22*Assumptions!K$29/Hist_vol!K22) -> 0 | L22: =IF(Hist_vol!L22=0,0, Hist_expenditure!L22*Assumptions!L$29/Hist_vol!L22) -> 9226794.457 | M22: =IF(Hist_vol!M22=0,0, Hist_expenditure!M22*Assumptions!M$29/Hist_vol!M22) -> 9092457.248 | N22: =IF(Hist_vol!N22=0,0, Hist_expenditure!N22*Assumptions!N$29/Hist_vol!N22) -> 0 | O22: =IF(Hist_vol!O22=0,0, Hist_expenditure!O22*Assumptions!O$29/Hist_vol!O22) -> 0 | P22: =IF(Hist_vol!P22=0,0, Hist_expenditure!P22*Assumptions!P$29/Hist_vol!P22) -> 0 | Q22: =IF(Hist_vol!Q22=0,0, Hist_expenditure!Q22*Assumptions!Q$29/Hist_vol!Q22) -> 0 | R22: =IF(Hist_vol!R22=0,0, Hist_expenditure!R22*Assumptions!R$29/Hist_vol!R22) -> 0 | S22: =IF(Hist_vol!S22=0,0, Hist_expenditure!S22*Assumptions!S$29/Hist_vol!S22) -> 0 | T22: =IF(Hist_vol!T22=0,0, Hist_expenditure!T22*Assumptions!T$29/Hist_vol!T22) -> 2497757.107
B23: =Hist_vol!B23 -> Connections | C23: =Hist_vol!C23 -> S1 | D23: =Hist_vol!D23 -> Subdivision | E23: =Hist_vol!E23 -> Complex connection LV | G23: =IF(Hist_vol!G23=0,0, Hist_expenditure!G23*Assumptions!G$29/Hist_vol!G23) -> 0 | H23: =IF(Hist_vol!H23=0,0, Hist_expenditure!H23*Assumptions!H$29/Hist_vol!H23) -> 0 | I23: =IF(Hist_vol!I23=0,0, Hist_expenditure!I23*Assumptions!I$29/Hist_vol!I23) -> 0 | J23: =IF(Hist_vol!J23=0,0, Hist_expenditure!J23*Assumptions!J$29/Hist_vol!J23) -> 0 | K23: =IF(Hist_vol!K23=0,0, Hist_expenditure!K23*Assumptions!K$29/Hist_vol!K23) -> 0 | L23: =IF(Hist_vol!L23=0,0, Hist_expenditure!L23*Assumptions!L$29/Hist_vol!L23) -> 0 | M23: =IF(Hist_vol!M23=0,0, Hist_expenditure!M23*Assumptions!M$29/Hist_vol!M23) -> 0 | N23: =IF(Hist_vol!N23=0,0, Hist_expenditure!N23*Assumptions!N$29/Hist_vol!N23) -> 0 | O23: =IF(Hist_vol!O23=0,0, Hist_expenditure!O23*Assumptions!O$29/Hist_vol!O23) -> 0 | P23: =IF(Hist_vol!P23=0,0, Hist_expenditure!P23*Assumptions!P$29/Hist_vol!P23) -> 0 | Q23: =IF(Hist_vol!Q23=0,0, Hist_expenditure!Q23*Assumptions!Q$29/Hist_vol!Q23) -> 0 | R23: =IF(Hist_vol!R23=0,0, Hist_expenditure!R23*Assumptions!R$29/Hist_vol!R23) -> 0 | S23: =IF(Hist_vol!S23=0,0, Hist_expenditure!S23*Assumptions!S$29/Hist_vol!S23) -> 0 | T23: =IF(Hist_vol!T23=0,0, Hist_expenditure!T23*Assumptions!T$29/Hist_vol!T23) -> 0
B24: =Hist_vol!B24 -> Connections | C24: =Hist_vol!C24 -> S2 | D24: =Hist_vol!D24 -> Subdivision | E24: =Hist_vol!E24 -> Complex connection HV (no upstream asset works) | G24: =IF(Hist_vol!G24=0,0, Hist_expenditure!G24*Assumptions!G$29/Hist_vol!G24) -> 0 | H24: =IF(Hist_vol!H24=0,0, Hist_expenditure!H24*Assumptions!H$29/Hist_vol!H24) -> 0 | I24: =IF(Hist_vol!I24=0,0, Hist_expenditure!I24*Assumptions!I$29/Hist_vol!I24) -> 0 | J24: =IF(Hist_vol!J24=0,0, Hist_expenditure!J24*Assumptions!J$29/Hist_vol!J24) -> 0 | K24: =IF(Hist_vol!K24=0,0, Hist_expenditure!K24*Assumptions!K$29/Hist_vol!K24) -> 0 | L24: =IF(Hist_vol!L24=0,0, Hist_expenditure!L24*Assumptions!L$29/Hist_vol!L24) -> 0 | M24: =IF(Hist_vol!M24=0,0, Hist_expenditure!M24*Assumptions!M$29/Hist_vol!M24) -> 0 | N24: =IF(Hist_vol!N24=0,0, Hist_expenditure!N24*Assumptions!N$29/Hist_vol!N24) -> 0 | O24: =IF(Hist_vol!O24=0,0, Hist_expenditure!O24*Assumptions!O$29/Hist_vol!O24) -> 0 | P24: =IF(Hist_vol!P24=0,0, Hist_expenditure!P24*Assumptions!P$29/Hist_vol!P24) -> 0 | Q24: =IF(Hist_vol!Q24=0,0, Hist_expenditure!Q24*Assumptions!Q$29/Hist_vol!Q24) -> 0 | R24: =IF(Hist_vol!R24=0,0, Hist_expenditure!R24*Assumptions!R$29/Hist_vol!R24) -> 0 | S24: =IF(Hist_vol!S24=0,0, Hist_expenditure!S24*Assumptions!S$29/Hist_vol!S24) -> 0 | T24: =IF(Hist_vol!T24=0,0, Hist_expenditure!T24*Assumptions!T$29/Hist_vol!T24) -> 0
B25: =Hist_vol!B25 -> Connections | C25: =Hist_vol!C25 -> S3 | D25: =Hist_vol!D25 -> Subdivision | E25: =Hist_vol!E25 -> Complex connection HV (with upstream asset works) | G25: =IF(Hist_vol!G25=0,0, Hist_expenditure!G25*Assumptions!G$29/Hist_vol!G25) -> 99820.64269 | H25: =IF(Hist_vol!H25=0,0, Hist_expenditure!H25*Assumptions!H$29/Hist_vol!H25) -> 113961.2277 | I25: =IF(Hist_vol!I25=0,0, Hist_expenditure!I25*Assumptions!I$29/Hist_vol!I25) -> 103249.024 | J25: =IF(Hist_vol!J25=0,0, Hist_expenditure!J25*Assumptions!J$29/Hist_vol!J25) -> 100168.365 | K25: =IF(Hist_vol!K25=0,0, Hist_expenditure!K25*Assumptions!K$29/Hist_vol!K25) -> 116196.1298 | L25: =IF(Hist_vol!L25=0,0, Hist_expenditure!L25*Assumptions!L$29/Hist_vol!L25) -> 115048.6589 | M25: =IF(Hist_vol!M25=0,0, Hist_expenditure!M25*Assumptions!M$29/Hist_vol!M25) -> 83406.94524 | N25: =IF(Hist_vol!N25=0,0, Hist_expenditure!N25*Assumptions!N$29/Hist_vol!N25) -> 66711.19206 | O25: =IF(Hist_vol!O25=0,0, Hist_expenditure!O25*Assumptions!O$29/Hist_vol!O25) -> 66495.70079 | P25: =IF(Hist_vol!P25=0,0, Hist_expenditure!P25*Assumptions!P$29/Hist_vol!P25) -> 77560.43059 | Q25: =IF(Hist_vol!Q25=0,0, Hist_expenditure!Q25*Assumptions!Q$29/Hist_vol!Q25) -> 52036.08498 | R25: =IF(Hist_vol!R25=0,0, Hist_expenditure!R25*Assumptions!R$29/Hist_vol!R25) -> 54954.07511 | S25: =IF(Hist_vol!S25=0,0, Hist_expenditure!S25*Assumptions!S$29/Hist_vol!S25) -> 60380.37547 | T25: =IF(Hist_vol!T25=0,0, Hist_expenditure!T25*Assumptions!T$29/Hist_vol!T25) -> 143024.0251
B26: =Hist_vol!B26 -> Connections | C26: =Hist_vol!C26 -> EG1 | D26: =Hist_vol!D26 -> Embedded generation | E26: =Hist_vol!E26 -> Simple connection LV | G26: =IF(Hist_vol!G26=0,0, Hist_expenditure!G26*Assumptions!G$29/Hist_vol!G26) -> 0 | H26: =IF(Hist_vol!H26=0,0, Hist_expenditure!H26*Assumptions!H$29/Hist_vol!H26) -> 0 | I26: =IF(Hist_vol!I26=0,0, Hist_expenditure!I26*Assumptions!I$29/Hist_vol!I26) -> 0 | J26: =IF(Hist_vol!J26=0,0, Hist_expenditure!J26*Assumptions!J$29/Hist_vol!J26) -> 0 | K26: =IF(Hist_vol!K26=0,0, Hist_expenditure!K26*Assumptions!K$29/Hist_vol!K26) -> 0 | L26: =IF(Hist_vol!L26=0,0, Hist_expenditure!L26*Assumptions!L$29/Hist_vol!L26) -> 0 | M26: =IF(Hist_vol!M26=0,0, Hist_expenditure!M26*Assumptions!M$29/Hist_vol!M26) -> 0 | N26: =IF(Hist_vol!N26=0,0, Hist_expenditure!N26*Assumptions!N$29/Hist_vol!N26) -> 0 | O26: =IF(Hist_vol!O26=0,0, Hist_expenditure!O26*Assumptions!O$29/Hist_vol!O26) -> 0 | P26: =IF(Hist_vol!P26=0,0, Hist_expenditure!P26*Assumptions!P$29/Hist_vol!P26) -> 0 | Q26: =IF(Hist_vol!Q26=0,0, Hist_expenditure!Q26*Assumptions!Q$29/Hist_vol!Q26) -> 0 | R26: =IF(Hist_vol!R26=0,0, Hist_expenditure!R26*Assumptions!R$29/Hist_vol!R26) -> 0 | S26: =IF(Hist_vol!S26=0,0, Hist_expenditure!S26*Assumptions!S$29/Hist_vol!S26) -> 0 | T26: =IF(Hist_vol!T26=0,0, Hist_expenditure!T26*Assumptions!T$29/Hist_vol!T26) -> 0
B27: =Hist_vol!B27 -> Connections | C27: =Hist_vol!C27 -> EG2 | D27: =Hist_vol!D27 -> Embedded generation | E27: =Hist_vol!E27 -> Complex connection HV (small capacity) | G27: =IF(Hist_vol!G27=0,0, Hist_expenditure!G27*Assumptions!G$29/Hist_vol!G27) -> 485679.1721 | H27: =IF(Hist_vol!H27=0,0, Hist_expenditure!H27*Assumptions!H$29/Hist_vol!H27) -> 447163.4178 | I27: =IF(Hist_vol!I27=0,0, Hist_expenditure!I27*Assumptions!I$29/Hist_vol!I27) -> 293573.0088 | J27: =IF(Hist_vol!J27=0,0, Hist_expenditure!J27*Assumptions!J$29/Hist_vol!J27) -> 64588.74679 | K27: =IF(Hist_vol!K27=0,0, Hist_expenditure!K27*Assumptions!K$29/Hist_vol!K27) -> 27749.92464 | L27: =IF(Hist_vol!L27=0,0, Hist_expenditure!L27*Assumptions!L$29/Hist_vol!L27) -> 53249.53124 | M27: =IF(Hist_vol!M27=0,0, Hist_expenditure!M27*Assumptions!M$29/Hist_vol!M27) -> 91356.10744 | N27: =IF(Hist_vol!N27=0,0, Hist_expenditure!N27*Assumptions!N$29/Hist_vol!N27) -> 480914.454 | O27: =IF(Hist_vol!O27=0,0, Hist_expenditure!O27*Assumptions!O$29/Hist_vol!O27) -> 802433.9109 | P27: =IF(Hist_vol!P27=0,0, Hist_expenditure!P27*Assumptions!P$29/Hist_vol!P27) -> 429926.8777 | Q27: =IF(Hist_vol!Q27=0,0, Hist_expenditure!Q27*Assumptions!Q$29/Hist_vol!Q27) -> 347535.754 | R27: =IF(Hist_vol!R27=0,0, Hist_expenditure!R27*Assumptions!R$29/Hist_vol!R27) -> 423144.8779 | S27: =IF(Hist_vol!S27=0,0, Hist_expenditure!S27*Assumptions!S$29/Hist_vol!S27) -> 969809.073 | T27: =IF(Hist_vol!T27=0,0, Hist_expenditure!T27*Assumptions!T$29/Hist_vol!T27) -> 831115.5665
B28: =Hist_vol!B28 -> Connections | C28: =Hist_vol!C28 -> EG3 | D28: =Hist_vol!D28 -> Embedded generation | E28: =Hist_vol!E28 -> Complex connection HV (large capacity) | G28: =IF(Hist_vol!G28=0,0, Hist_expenditure!G28*Assumptions!G$29/Hist_vol!G28) -> 8236252.472 | H28: =IF(Hist_vol!H28=0,0, Hist_expenditure!H28*Assumptions!H$29/Hist_vol!H28) -> 3995114.761 | I28: =IF(Hist_vol!I28=0,0, Hist_expenditure!I28*Assumptions!I$29/Hist_vol!I28) -> 0 | J28: =IF(Hist_vol!J28=0,0, Hist_expenditure!J28*Assumptions!J$29/Hist_vol!J28) -> 2209047.702 | K28: =IF(Hist_vol!K28=0,0, Hist_expenditure!K28*Assumptions!K$29/Hist_vol!K28) -> 1995700.034 | L28: =IF(Hist_vol!L28=0,0, Hist_expenditure!L28*Assumptions!L$29/Hist_vol!L28) -> 2261831.981 | M28: =IF(Hist_vol!M28=0,0, Hist_expenditure!M28*Assumptions!M$29/Hist_vol!M28) -> 4316830.099 | N28: =IF(Hist_vol!N28=0,0, Hist_expenditure!N28*Assumptions!N$29/Hist_vol!N28) -> 7550562.34 | O28: =IF(Hist_vol!O28=0,0, Hist_expenditure!O28*Assumptions!O$29/Hist_vol!O28) -> 8135477.44 | P28: =IF(Hist_vol!P28=0,0, Hist_expenditure!P28*Assumptions!P$29/Hist_vol!P28) -> 0 | Q28: =IF(Hist_vol!Q28=0,0, Hist_expenditure!Q28*Assumptions!Q$29/Hist_vol!Q28) -> 5432247.183 | R28: =IF(Hist_vol!R28=0,0, Hist_expenditure!R28*Assumptions!R$29/Hist_vol!R28) -> 4138534.371 | S28: =IF(Hist_vol!S28=0,0, Hist_expenditure!S28*Assumptions!S$29/Hist_vol!S28) -> 10972754.76 | T28: =IF(Hist_vol!T28=0,0, Hist_expenditure!T28*Assumptions!T$29/Hist_vol!T28) -> 1163561.793

Sheet CC_ratio
A1: =Assumptions!$A$1 -> Powercor
A2: =Assumptions!$A$2 -> Connections
A3: Customer contribution ratio
B7: =Assumptions!B17 -> 2026/27 - 2030/31 reg period | G7: =Assumptions!G17 -> FALSE | H7: =Assumptions!H17 -> FALSE | I7: =Assumptions!I17 -> FALSE | J7: =Assumptions!J17 -> FALSE | K7: =Assumptions!K17 -> FALSE | L7: =Assumptions!L17 -> FALSE | M7: =Assumptions!M17 -> FALSE | N7: =Assumptions!N17 -> FALSE | O7: =Assumptions!O17 -> FALSE | P7: =Assumptions!P17 -> FALSE | Q7: =Assumptions!Q17 -> FALSE | R7: =Assumptions!R17 -> FALSE | S7: =Assumptions!S17 -> FALSE | T7: =Assumptions!T17 -> FALSE | U7: =Assumptions!U17 -> FALSE | V7: =Assumptions!V17 -> TRUE | W7: =Assumptions!W17 -> TRUE | X7: =Assumptions!X17 -> TRUE | Y7: =Assumptions!Y17 -> TRUE | Z7: =Assumptions!Z17 -> TRUE
B8: =Assumptions!B18 -> Forecast period | G8: =Assumptions!G18 -> FALSE | H8: =Assumptions!H18 -> FALSE | I8: =Assumptions!I18 -> FALSE | J8: =Assumptions!J18 -> FALSE | K8: =Assumptions!K18 -> FALSE | L8: =Assumptions!L18 -> FALSE | M8: =Assumptions!M18 -> FALSE | N8: =Assumptions!N18 -> FALSE | O8: =Assumptions!O18 -> FALSE | P8: =Assumptions!P18 -> FALSE | Q8: =Assumptions!Q18 -> FALSE | R8: =Assumptions!R18 -> FALSE | S8: =Assumptions!S18 -> FALSE | T8: =Assumptions!T18 -> FALSE | U8: =Assumptions!U18 -> TRUE | V8: =Assumptions!V18 -> TRUE | W8: =Assumptions!W18 -> TRUE | X8: =Assumptions!X18 -> TRUE | Y8: =Assumptions!Y18 -> TRUE | Z8: =Assumptions!Z18 -> TRUE
B9: =Assumptions!B19 -> Fin year end | G9: =Assumptions!G19 -> 2012 | H9: =Assumptions!H19 -> 2013 | I9: =Assumptions!I19 -> 2014 | J9: =Assumptions!J19 -> 2015 | K9: =Assumptions!K19 -> 2016 | L9: =Assumptions!L19 -> 2017 | M9: =Assumptions!M19 -> 2018 | N9: =Assumptions!N19 -> 2019 | O9: =Assumptions!O19 -> 2020 | P9: =Assumptions!P19 -> 2021 | Q9: =Assumptions!Q19 -> 2022 | R9: =Assumptions!R19 -> 2023 | S9: =Assumptions!S19 -> 2024 | T9: =Assumptions!T19 -> 2025 | U9: =Assumptions!U19 -> 2026 | V9: =Assumptions!V19 -> 2027 | W9: =Assumptions!W19 -> 2028 | X9: =Assumptions!X19 -> 2029 | Y9: =Assumptions!Y19 -> 2030 | Z9: =Assumptions!Z19 -> 2031
B10: =Assumptions!B20 -> Basis | G10: =Assumptions!G20 -> Actual | H10: =Assumptions!H20 -> Actual | I10: =Assumptions!I20 -> Actual | J10: =Assumptions!J20 -> Actual | K10: =Assumptions!K20 -> Actual | L10: =Assumptions!L20 -> Actual | M10: =Assumptions!M20 -> Actual | N10: =Assumptions!N20 -> Actual | O10: =Assumptions!O20 -> Actual | P10: =Assumptions!P20 -> Actual | Q10: =Assumptions!Q20 -> Actual | R10: =Assumptions!R20 -> Actual | S10: =Assumptions!S20 -> Actual | T10: =Assumptions!T20 -> Actual | U10: =Assumptions!U20 -> Forecast | V10: =Assumptions!V20 -> Forecast | W10: =Assumptions!W20 -> Forecast | X10: =Assumptions!X20 -> Forecast | Y10: =Assumptions!Y20 -> Forecast | Z10: =Assumptions!Z20 -> Forecast
B13: =Hist_vol!B$13 -> Category | C13: Type | D13: =Hist_vol!D$13 -> RIN category | E13: =Hist_vol!E$13 -> Description | G13: =Assumptions!G$24 -> 2011/12 | H13: =Assumptions!H$24 -> 2012/13 | I13: =Assumptions!I$24 -> 2013/14 | J13: =Assumptions!J$24 -> 2014/15 | K13: =Assumptions!K$24 -> 2015/16 | L13: =Assumptions!L$24 -> 2016/17 | M13: =Assumptions!M$24 -> 2017/18 | N13: =Assumptions!N$24 -> 2018/19 | O13: =Assumptions!O$24 -> 2019/20 | P13: =Assumptions!P$24 -> 2020/21 | Q13: =Assumptions!Q$24 -> 2021/22 | R13: =Assumptions!R$24 -> 2022/23 | S13: =Assumptions!S$24 -> 2023/24 | T13: =Assumptions!T$24 -> 2024/25 | U13: =Assumptions!U$24 -> 2025/26 | V13: =Assumptions!V$24 -> 2026/27 | W13: =Assumptions!W$24 -> 2027/28 | X13: =Assumptions!X$24 -> 2028/29 | Y13: =Assumptions!Y$24 -> 2029/30 | Z13: =Assumptions!Z$24 -> 2030/31
B14: Contribution as % of spend
B15: =Hist_vol!B15 -> Connections | C15: =Hist_vol!C15 -> R1 | D15: =Hist_vol!D15 -> Residential | E15: =Hist_vol!E15 -> Simple connection LV | G15: =IF(Hist_expenditure!G15=0,0, Hist_contributions!G15/Hist_expenditure!G15) -> 0.4783041158 | H15: =IF(Hist_expenditure!H15=0,0, Hist_contributions!H15/Hist_expenditure!H15) -> 0.3745613558 | I15: =IF(Hist_expenditure!I15=0,0, Hist_contributions!I15/Hist_expenditure!I15) -> 0.3275589466 | J15: =IF(Hist_expenditure!J15=0,0, Hist_contributions!J15/Hist_expenditure!J15) -> 0.3659671662 | K15: =IF(Hist_expenditure!K15=0,0, Hist_contributions!K15/Hist_expenditure!K15) -> 0.4141283234 | L15: =IF(Hist_expenditure!L15=0,0, Hist_contributions!L15/Hist_expenditure!L15) -> 0 | M15: =IF(Hist_expenditure!M15=0,0, Hist_contributions!M15/Hist_expenditure!M15) -> 0 | N15: =IF(Hist_expenditure!N15=0,0, Hist_contributions!N15/Hist_expenditure!N15) -> 0 | O15: =IF(Hist_expenditure!O15=0,0, Hist_contributions!O15/Hist_expenditure!O15) -> 0 | P15: =IF(Hist_expenditure!P15=0,0, Hist_contributions!P15/Hist_expenditure!P15) -> 0 | Q15: =IF(Hist_expenditure!Q15=0,0, Hist_contributions!Q15/Hist_expenditure!Q15) -> 0 | R15: =IF(Hist_expenditure!R15=0,0, Hist_contributions!R15/Hist_expenditure!R15) -> 0 | S15: =IF(Hist_expenditure!S15=0,0, Hist_contributions!S15/Hist_expenditure!S15) -> 0 | T15: =IF(Hist_expenditure!T15=0,0, Hist_contributions!T15/Hist_expenditure!T15) -> 0 | U15: 0 | V15: =$U15 -> 0 | W15: =$U15 -> 0 | X15: 0 | Y15: 0 | Z15: 0
B16: =Hist_vol!B16 -> Connections | C16: =Hist_vol!C16 -> R2 | D16: =Hist_vol!D16 -> Residential | E16: =Hist_vol!E16 -> Complex connection LV | G16: =IF(Hist_expenditure!G16=0,0, Hist_contributions!G16/Hist_expenditure!G16) -> 0.4644524072 | H16: =IF(Hist_expenditure!H16=0,0, Hist_contributions!H16/Hist_expenditure!H16) -> 0.3712732699 | I16: =IF(Hist_expenditure!I16=0,0, Hist_contributions!I16/Hist_expenditure!I16) -> 0.3272065997 | J16: =IF(Hist_expenditure!J16=0,0, Hist_contributions!J16/Hist_expenditure!J16) -> 0.3627146874 | K16: =IF(Hist_expenditure!K16=0,0, Hist_contributions!K16/Hist_expenditure!K16) -> 0.4964609237 | L16: =IF(Hist_expenditure!L16=0,0, Hist_contributions!L16/Hist_expenditure!L16) -> 0.6842763713 | M16: =IF(Hist_expenditure!M16=0,0, Hist_contributions!M16/Hist_expenditure!M16) -> 0.8489108198 | N16: =IF(Hist_expenditure!N16=0,0, Hist_contributions!N16/Hist_expenditure!N16) -> 0.7224760554 | O16: =IF(Hist_expenditure!O16=0,0, Hist_contributions!O16/Hist_expenditure!O16) -> 0.6430335885 | P16: =IF(Hist_expenditure!P16=0,0, Hist_contributions!P16/Hist_expenditure!P16) -> 0.7711046033 | Q16: =IF(Hist_expenditure!Q16=0,0, Hist_contributions!Q16/Hist_expenditure!Q16) -> 0.6886195944 | R16: =IF(Hist_expenditure!R16=0,0, Hist_contributions!R16/Hist_expenditure!R16) -> 0.5532973459 | S16: =IF(Hist_expenditure!S16=0,0, Hist_contributions!S16/Hist_expenditure!S16) -> 0.7683890081 | T16: =IF(Hist_expenditure!T16=0,0, Hist_contributions!T16/Hist_expenditure!T16) -> 0.7784645268 | U16: 0.533104271 | V16: =$U16 -> 0.533104271 | W16: 0.533104271 | X16: 0.533104271 | Y16: 0.533104271 | Z16: 0.533104271
B17: =Hist_vol!B17 -> Connections | C17: =Hist_vol!C17 -> R3 | D17: =Hist_vol!D17 -> Residential | E17: =Hist_vol!E17 -> Complex connection HV | G17: =IF(Hist_expenditure!G17=0,0, Hist_contributions!G17/Hist_expenditure!G17) -> 0.4755328646 | H17: =IF(Hist_expenditure!H17=0,0, Hist_contributions!H17/Hist_expenditure!H17) -> 0.37105684 | I17: =IF(Hist_expenditure!I17=0,0, Hist_contributions!I17/Hist_expenditure!I17) -> 0.3276398705 | J17: =IF(Hist_expenditure!J17=0,0, Hist_contributions!J17/Hist_expenditure!J17) -> 0.360432492 | K17: =IF(Hist_expenditure!K17=0,0, Hist_contributions!K17/Hist_expenditure!K17) -> 0.4825779653 | L17: =IF(Hist_expenditure!L17=0,0, Hist_contributions!L17/Hist_expenditure!L17) -> 0.6902652781 | M17: =IF(Hist_expenditure!M17=0,0, Hist_contributions!M17/Hist_expenditure!M17) -> 0.8426745472 | N17: =IF(Hist_expenditure!N17=0,0, Hist_contributions!N17/Hist_expenditure!N17) -> 0.7270206909 | O17: =IF(Hist_expenditure!O17=0,0, Hist_contributions!O17/Hist_expenditure!O17) -> 0.5171840613 | P17: =IF(Hist_expenditure!P17=0,0, Hist_contributions!P17/Hist_expenditure!P17) -> 0.5467072023 | Q17: =IF(Hist_expenditure!Q17=0,0, Hist_contributions!Q17/Hist_expenditure!Q17) -> 0.545717493 | R17: =IF(Hist_expenditure!R17=0,0, Hist_contributions!R17/Hist_expenditure!R17) -> 0.4965380191 | S17: =IF(Hist_expenditure!S17=0,0, Hist_contributions!S17/Hist_expenditure!S17) -> 0.5338566778 | T17: =IF(Hist_expenditure!T17=0,0, Hist_contributions!T17/Hist_expenditure!T17) -> 0.5408531083 | U17: 0.5741994229 | V17: 0.5741994229 | W17: 0.5741994229 | X17: 0.5741994229 | Y17: 0.5741994229 | Z17: 0.5741994229
B18: =Hist_vol!B18 -> Connections | C18: =Hist_vol!C18 -> CI1 | D18: =Hist_vol!D18 -> Commercial/Industrial | E18: =Hist_vol!E18 -> Simple connection LV | G18: =IF(Hist_expenditure!G18=0,0, Hist_contributions!G18/Hist_expenditure!G18) -> 0.4789806796 | H18: =IF(Hist_expenditure!H18=0,0, Hist_contributions!H18/Hist_expenditure!H18) -> 0.3725489144 | I18: =IF(Hist_expenditure!I18=0,0, Hist_contributions!I18/Hist_expenditure!I18) -> 0.3276539339 | J18: =IF(Hist_expenditure!J18=0,0, Hist_contributions!J18/Hist_expenditure!J18) -> 0.3659147228 | K18: =IF(Hist_expenditure!K18=0,0, Hist_contributions!K18/Hist_expenditure!K18) -> 0.4141283234 | L18: =IF(Hist_expenditure!L18=0,0, Hist_contributions!L18/Hist_expenditure!L18) -> 0 | M18: =IF(Hist_expenditure!M18=0,0, Hist_contributions!M18/Hist_expenditure!M18) -> 0 | N18: =IF(Hist_expenditure!N18=0,0, Hist_contributions!N18/Hist_expenditure!N18) -> 0 | O18: =IF(Hist_expenditure!O18=0,0, Hist_contributions!O18/Hist_expenditure!O18) -> 0 | P18: =IF(Hist_expenditure!P18=0,0, Hist_contributions!P18/Hist_expenditure!P18) -> 0 | Q18: =IF(Hist_expenditure!Q18=0,0, Hist_contributions!Q18/Hist_expenditure!Q18) -> 0 | R18: =IF(Hist_expenditure!R18=0,0, Hist_contributions!R18/Hist_expenditure!R18) -> 0 | S18: =IF(Hist_expenditure!S18=0,0, Hist_contributions!S18/Hist_expenditure!S18) -> 0 | T18: =IF(Hist_expenditure!T18=0,0, Hist_contributions!T18/Hist_expenditure!T18) -> 0 | U18: 0 | V18: 0 | W18: 0 | X18: 0 | Y18: 0 | Z18: 0
B19: =Hist_vol!B19 -> Connections | C19: =Hist_vol!C19 -> CI2 | D19: =Hist_vol!D19 -> Commercial/Industrial | E19: =Hist_vol!E19 -> Complex connection HV (customer connected at LV, minor HV works) | G19: =IF(Hist_expenditure!G19=0,0, Hist_contributions!G19/Hist_expenditure!G19) -> 0.4351269236 | H19: =IF(Hist_expenditure!H19=0,0, Hist_contributions!H19/Hist_expenditure!H19) -> 0.9802707914 | I19: =IF(Hist_expenditure!I19=0,0, Hist_contributions!I19/Hist_expenditure!I19) -> 1.005892428 | J19: =IF(Hist_expenditure!J19=0,0, Hist_contributions!J19/Hist_expenditure!J19) -> 1.155365981 | K19: =IF(Hist_expenditure!K19=0,0, Hist_contributions!K19/Hist_expenditure!K19) -> 1.14044908 | L19: =IF(Hist_expenditure!L19=0,0, Hist_contributions!L19/Hist_expenditure!L19) -> 1.003955587 | M19: =IF(Hist_expenditure!M19=0,0, Hist_contributions!M19/Hist_expenditure!M19) -> 0.8826195321 | N19: =IF(Hist_expenditure!N19=0,0, Hist_contributions!N19/Hist_expenditure!N19) -> 1.023146091 | O19: =IF(Hist_expenditure!O19=0,0, Hist_contributions!O19/Hist_expenditure!O19) -> 1.332875577 | P19: =IF(Hist_expenditure!P19=0,0, Hist_contributions!P19/Hist_expenditure!P19) -> 1.108195176 | Q19: =IF(Hist_expenditure!Q19=0,0, Hist_contributions!Q19/Hist_expenditure!Q19) -> 1.125668907 | R19: =IF(Hist_expenditure!R19=0,0, Hist_contributions!R19/Hist_expenditure!R19) -> 1.086206865 | S19: =IF(Hist_expenditure!S19=0,0, Hist_contributions!S19/Hist_expenditure!S19) -> 0.9207534759 | T19: =IF(Hist_expenditure!T19=0,0, Hist_contributions!T19/Hist_expenditure!T19) -> 0.9499864372 | U19: 1 | V19: 1 | W19: 1 | X19: 1 | Y19: 1 | Z19: 1
B20: =Hist_vol!B20 -> Connections | C20: =Hist_vol!C20 -> CI3 | D20: =Hist_vol!D20 -> Commercial/Industrial | E20: =Hist_vol!E20 -> Complex connection HV (customer connected at LV, upstream asset works) | G20: =IF(Hist_expenditure!G20=0,0, Hist_contributions!G20/Hist_expenditure!G20) -> 0.4705019246 | H20: =IF(Hist_expenditure!H20=0,0, Hist_contributions!H20/Hist_expenditure!H20) -> 0.3570160901 | I20: =IF(Hist_expenditure!I20=0,0, Hist_contributions!I20/Hist_expenditure!I20) -> 0.3132532188 | J20: =IF(Hist_expenditure!J20=0,0, Hist_contributions!J20/Hist_expenditure!J20) -> 0.3438876018 | K20: =IF(Hist_expenditure!K20=0,0, Hist_contributions!K20/Hist_expenditure!K20) -> 0.474563803 | L20: =IF(Hist_expenditure!L20=0,0, Hist_contributions!L20/Hist_expenditure!L20) -> 0.6413085154 | M20: =IF(Hist_expenditure!M20=0,0, Hist_contributions!M20/Hist_expenditure!M20) -> 0.7782861295 | N20: =IF(Hist_expenditure!N20=0,0, Hist_contributions!N20/Hist_expenditure!N20) -> 0.6781321456 | O20: =IF(Hist_expenditure!O20=0,0, Hist_contributions!O20/Hist_expenditure!O20) -> 0.3598026734 | P20: =IF(Hist_expenditure!P20=0,0, Hist_contributions!P20/Hist_expenditure!P20) -> 0.2880207237 | Q20: =IF(Hist_expenditure!Q20=0,0, Hist_contributions!Q20/Hist_expenditure!Q20) -> 0.2622728269 | R20: =IF(Hist_expenditure!R20=0,0, Hist_contributions!R20/Hist_expenditure!R20) -> 0.3305391795 | S20: =IF(Hist_expenditure!S20=0,0, Hist_contributions!S20/Hist_expenditure!S20) -> 0.3573449934 | T20: =IF(Hist_expenditure!T20=0,0, Hist_contributions!T20/Hist_expenditure!T20) -> 0.3730069701 | U20: 0.3418316307 | V20: 0.3418316307 | W20: 0.3418316307 | X20: 0.3418316307 | Y20: 0.3418316307 | Z20: 0.3418316307
B21: =Hist_vol!B21 -> Connections | C21: =Hist_vol!C21 -> CI4 | D21: =Hist_vol!D21 -> Commercial/Industrial | E21: =Hist_vol!E21 -> Complex connection HV (customer connected at HV) | G21: =IF(Hist_expenditure!G21=0,0, Hist_contributions!G21/Hist_expenditure!G21) -> 0.4768318925 | H21: =IF(Hist_expenditure!H21=0,0, Hist_contributions!H21/Hist_expenditure!H21) -> 0.3643926282 | I21: =IF(Hist_expenditure!I21=0,0, Hist_contributions!I21/Hist_expenditure!I21) -> 0.3279560147 | J21: =IF(Hist_expenditure!J21=0,0, Hist_contributions!J21/Hist_expenditure!J21) -> 0.3345540061 | K21: =IF(Hist_expenditure!K21=0,0, Hist_contributions!K21/Hist_expenditure!K21) -> 0.5406651123 | L21: =IF(Hist_expenditure!L21=0,0, Hist_contributions!L21/Hist_expenditure!L21) -> 0.6658843139 | M21: =IF(Hist_expenditure!M21=0,0, Hist_contributions!M21/Hist_expenditure!M21) -> 0.8289378985 | N21: =IF(Hist_expenditure!N21=0,0, Hist_contributions!N21/Hist_expenditure!N21) -> 0.7188827026 | O21: =IF(Hist_expenditure!O21=0,0, Hist_contributions!O21/Hist_expenditure!O21) -> 0.6027692955 | P21: =IF(Hist_expenditure!P21=0,0, Hist_contributions!P21/Hist_expenditure!P21) -> 0.701934149 | Q21: =IF(Hist_expenditure!Q21=0,0, Hist_contributions!Q21/Hist_expenditure!Q21) -> 0.7152343465 | R21: =IF(Hist_expenditure!R21=0,0, Hist_contributions!R21/Hist_expenditure!R21) -> 1.498959505 | S21: =IF(Hist_expenditure!S21=0,0, Hist_contributions!S21/Hist_expenditure!S21) -> 0.5490310749 | T21: =IF(Hist_expenditure!T21=0,0, Hist_contributions!T21/Hist_expenditure!T21) -> 1.026998261 | U21: 0.6719624051 | V21: 0.6719624051 | W21: 0.6719624051 | X21: 0.6719624051 | Y21: 0.6719624051 | Z21: 0.6719624051
B22: =Hist_vol!B22 -> Connections | C22: =Hist_vol!C22 -> CI5 | D22: =Hist_vol!D22 -> Commercial/Industrial | E22: =Hist_vol!E22 -> Complex connection sub-transmission | G22: =IF(Hist_expenditure!G22=0,0, Hist_contributions!G22/Hist_expenditure!G22) -> 0 | H22: =IF(Hist_expenditure!H22=0,0, Hist_contributions!H22/Hist_expenditure!H22) -> 0 | I22: =IF(Hist_expenditure!I22=0,0, Hist_contributions!I22/Hist_expenditure!I22) -> 0 | J22: =IF(Hist_expenditure!J22=0,0, Hist_contributions!J22/Hist_expenditure!J22) -> 0 | K22: =IF(Hist_expenditure!K22=0,0, Hist_contributions!K22/Hist_expenditure!K22) -> 0 | L22: =IF(Hist_expenditure!L22=0,0, Hist_contributions!L22/Hist_expenditure!L22) -> 0.7751710694 | M22: =IF(Hist_expenditure!M22=0,0, Hist_contributions!M22/Hist_expenditure!M22) -> 0.7751710694 | N22: =IF(Hist_expenditure!N22=0,0, Hist_contributions!N22/Hist_expenditure!N22) -> 0 | O22: =IF(Hist_expenditure!O22=0,0, Hist_contributions!O22/Hist_expenditure!O22) -> 0 | P22: =IF(Hist_expenditure!P22=0,0, Hist_contributions!P22/Hist_expenditure!P22) -> 0 | Q22: =IF(Hist_expenditure!Q22=0,0, Hist_contributions!Q22/Hist_expenditure!Q22) -> 0 | R22: =IF(Hist_expenditure!R22=0,0, Hist_contributions!R22/Hist_expenditure!R22) -> 0 | S22: =IF(Hist_expenditure!S22=0,0, Hist_contributions!S22/Hist_expenditure!S22) -> 0.5490308908 | T22: =IF(Hist_expenditure!T22=0,0, Hist_contributions!T22/Hist_expenditure!T22) -> 0.993735101 | U22: 0.5490308908 | V22: 0.5490308908 | W22: 0.5490308908 | X22: 0.5490308908 | Y22: 0.5490308908 | Z22: 0.5490308908
B23: =Hist_vol!B23 -> Connections | C23: =Hist_vol!C23 -> S1 | D23: =Hist_vol!D23 -> Subdivision | E23: =Hist_vol!E23 -> Complex connection LV | G23: =IF(Hist_expenditure!G23=0,0, Hist_contributions!G23/Hist_expenditure!G23) -> 0 | H23: =IF(Hist_expenditure!H23=0,0, Hist_contributions!H23/Hist_expenditure!H23) -> 0 | I23: =IF(Hist_expenditure!I23=0,0, Hist_contributions!I23/Hist_expenditure!I23) -> 0 | J23: =IF(Hist_expenditure!J23=0,0, Hist_contributions!J23/Hist_expenditure!J23) -> 0 | K23: =IF(Hist_expenditure!K23=0,0, Hist_contributions!K23/Hist_expenditure!K23) -> 0 | L23: =IF(Hist_expenditure!L23=0,0, Hist_contributions!L23/Hist_expenditure!L23) -> 0 | M23: =IF(Hist_expenditure!M23=0,0, Hist_contributions!M23/Hist_expenditure!M23) -> 0 | N23: =IF(Hist_expenditure!N23=0,0, Hist_contributions!N23/Hist_expenditure!N23) -> 0 | O23: =IF(Hist_expenditure!O23=0,0, Hist_contributions!O23/Hist_expenditure!O23) -> 0 | P23: =IF(Hist_expenditure!P23=0,0, Hist_contributions!P23/Hist_expenditure!P23) -> 0 | Q23: =IF(Hist_expenditure!Q23=0,0, Hist_contributions!Q23/Hist_expenditure!Q23) -> 0 | R23: =IF(Hist_expenditure!R23=0,0, Hist_contributions!R23/Hist_expenditure!R23) -> 0 | S23: =IF(Hist_expenditure!S23=0,0, Hist_contributions!S23/Hist_expenditure!S23) -> 0 | T23: =IF(Hist_expenditure!T23=0,0, Hist_contributions!T23/Hist_expenditure!T23) -> 0 | U23: 0 | V23: 0 | W23: 0 | X23: 0 | Y23: 0 | Z23: 0
B24: =Hist_vol!B24 -> Connections | C24: =Hist_vol!C24 -> S2 | D24: =Hist_vol!D24 -> Subdivision | E24: =Hist_vol!E24 -> Complex connection HV (no upstream asset works) | G24: =IF(Hist_expenditure!G24=0,0, Hist_contributions!G24/Hist_expenditure!G24) -> 0 | H24: =IF(Hist_expenditure!H24=0,0, Hist_contributions!H24/Hist_expenditure!H24) -> 0 | I24: =IF(Hist_expenditure!I24=0,0, Hist_contributions!I24/Hist_expenditure!I24) -> 0 | J24: =IF(Hist_expenditure!J24=0,0, Hist_contributions!J24/Hist_expenditure!J24) -> 0 | K24: =IF(Hist_expenditure!K24=0,0, Hist_contributions!K24/Hist_expenditure!K24) -> 0 | L24: =IF(Hist_expenditure!L24=0,0, Hist_contributions!L24/Hist_expenditure!L24) -> 0 | M24: =IF(Hist_expenditure!M24=0,0, Hist_contributions!M24/Hist_expenditure!M24) -> 0 | N24: =IF(Hist_expenditure!N24=0,0, Hist_contributions!N24/Hist_expenditure!N24) -> 0 | O24: =IF(Hist_expenditure!O24=0,0, Hist_contributions!O24/Hist_expenditure!O24) -> 0 | P24: =IF(Hist_expenditure!P24=0,0, Hist_contributions!P24/Hist_expenditure!P24) -> 0 | Q24: =IF(Hist_expenditure!Q24=0,0, Hist_contributions!Q24/Hist_expenditure!Q24) -> 0 | R24: =IF(Hist_expenditure!R24=0,0, Hist_contributions!R24/Hist_expenditure!R24) -> 0 | S24: =IF(Hist_expenditure!S24=0,0, Hist_contributions!S24/Hist_expenditure!S24) -> 0 | T24: =IF(Hist_expenditure!T24=0,0, Hist_contributions!T24/Hist_expenditure!T24) -> 0 | U24: 0 | V24: 0 | W24: 0 | X24: 0 | Y24: 0 | Z24: 0
B25: =Hist_vol!B25 -> Connections | C25: =Hist_vol!C25 -> S3 | D25: =Hist_vol!D25 -> Subdivision | E25: =Hist_vol!E25 -> Complex connection HV (with upstream asset works) | G25: =IF(Hist_expenditure!G25=0,0, Hist_contributions!G25/Hist_expenditure!G25) -> 0.2113204078 | H25: =IF(Hist_expenditure!H25=0,0, Hist_contributions!H25/Hist_expenditure!H25) -> 0.1406923573 | I25: =IF(Hist_expenditure!I25=0,0, Hist_contributions!I25/Hist_expenditure!I25) -> 0.1294068813 | J25: =IF(Hist_expenditure!J25=0,0, Hist_contributions!J25/Hist_expenditure!J25) -> 0.1617592823 | K25: =IF(Hist_expenditure!K25=0,0, Hist_contributions!K25/Hist_expenditure!K25) -> 0.2020190314 | L25: =IF(Hist_expenditure!L25=0,0, Hist_contributions!L25/Hist_expenditure!L25) -> 0.2728339021 | M25: =IF(Hist_expenditure!M25=0,0, Hist_contributions!M25/Hist_expenditure!M25) -> 0.4129739695 | N25: =IF(Hist_expenditure!N25=0,0, Hist_contributions!N25/Hist_expenditure!N25) -> 0.4548916089 | O25: =IF(Hist_expenditure!O25=0,0, Hist_contributions!O25/Hist_expenditure!O25) -> 0.4100811024 | P25: =IF(Hist_expenditure!P25=0,0, Hist_contributions!P25/Hist_expenditure!P25) -> 0.4284836864 | Q25: =IF(Hist_expenditure!Q25=0,0, Hist_contributions!Q25/Hist_expenditure!Q25) -> 0.3051621943 | R25: =IF(Hist_expenditure!R25=0,0, Hist_contributions!R25/Hist_expenditure!R25) -> 0.2493948777 | S25: =IF(Hist_expenditure!S25=0,0, Hist_contributions!S25/Hist_expenditure!S25) -> 0.1618038756 | T25: =IF(Hist_expenditure!T25=0,0, Hist_contributions!T25/Hist_expenditure!T25) -> 0.1853156436 | U25: 0.1856838514 | V25: 0.1856838514 | W25: 0.1856838514 | X25: 0.1856838514 | Y25: 0.1856838514 | Z25: 0.1856838514
B26: =Hist_vol!B26 -> Connections | C26: =Hist_vol!C26 -> EG1 | D26: =Hist_vol!D26 -> Embedded generation | E26: =Hist_vol!E26 -> Simple connection LV | G26: =IF(Hist_expenditure!G26=0,0, Hist_contributions!G26/Hist_expenditure!G26) -> 0 | H26: =IF(Hist_expenditure!H26=0,0, Hist_contributions!H26/Hist_expenditure!H26) -> 0 | I26: =IF(Hist_expenditure!I26=0,0, Hist_contributions!I26/Hist_expenditure!I26) -> 0 | J26: =IF(Hist_expenditure!J26=0,0, Hist_contributions!J26/Hist_expenditure!J26) -> 0 | K26: =IF(Hist_expenditure!K26=0,0, Hist_contributions!K26/Hist_expenditure!K26) -> 0 | L26: =IF(Hist_expenditure!L26=0,0, Hist_contributions!L26/Hist_expenditure!L26) -> 0 | M26: =IF(Hist_expenditure!M26=0,0, Hist_contributions!M26/Hist_expenditure!M26) -> 0 | N26: =IF(Hist_expenditure!N26=0,0, Hist_contributions!N26/Hist_expenditure!N26) -> 0 | O26: =IF(Hist_expenditure!O26=0,0, Hist_contributions!O26/Hist_expenditure!O26) -> 0 | P26: =IF(Hist_expenditure!P26=0,0, Hist_contributions!P26/Hist_expenditure!P26) -> 0 | Q26: =IF(Hist_expenditure!Q26=0,0, Hist_contributions!Q26/Hist_expenditure!Q26) -> 0 | R26: =IF(Hist_expenditure!R26=0,0, Hist_contributions!R26/Hist_expenditure!R26) -> 0 | S26: =IF(Hist_expenditure!S26=0,0, Hist_contributions!S26/Hist_expenditure!S26) -> 0 | T26: =IF(Hist_expenditure!T26=0,0, Hist_contributions!T26/Hist_expenditure!T26) -> 0 | U26: 1 | V26: 1 | W26: 1 | X26: 1 | Y26: 1 | Z26: 1
B27: =Hist_vol!B27 -> Connections | C27: =Hist_vol!C27 -> EG2 | D27: =Hist_vol!D27 -> Embedded generation | E27: =Hist_vol!E27 -> Complex connection HV (small capacity) | G27: =IF(Hist_expenditure!G27=0,0, Hist_contributions!G27/Hist_expenditure!G27) -> 0.4492586788 | H27: =IF(Hist_expenditure!H27=0,0, Hist_contributions!H27/Hist_expenditure!H27) -> 0.3960286936 | I27: =IF(Hist_expenditure!I27=0,0, Hist_contributions!I27/Hist_expenditure!I27) -> 0.3220963616 | J27: =IF(Hist_expenditure!J27=0,0, Hist_contributions!J27/Hist_expenditure!J27) -> 0.3431568127 | K27: =IF(Hist_expenditure!K27=0,0, Hist_contributions!K27/Hist_expenditure!K27) -> 0.5234792674 | L27: =IF(Hist_expenditure!L27=0,0, Hist_contributions!L27/Hist_expenditure!L27) -> 0.7316449406 | M27: =IF(Hist_expenditure!M27=0,0, Hist_contributions!M27/Hist_expenditure!M27) -> 0.8383491773 | N27: =IF(Hist_expenditure!N27=0,0, Hist_contributions!N27/Hist_expenditure!N27) -> 0.7433793038 | O27: =IF(Hist_expenditure!O27=0,0, Hist_contributions!O27/Hist_expenditure!O27) -> 2.045672191 | P27: =IF(Hist_expenditure!P27=0,0, Hist_contributions!P27/Hist_expenditure!P27) -> 3.166431519 | Q27: =IF(Hist_expenditure!Q27=0,0, Hist_contributions!Q27/Hist_expenditure!Q27) -> 2.331776971 | R27: =IF(Hist_expenditure!R27=0,0, Hist_contributions!R27/Hist_expenditure!R27) -> 1.428230129 | S27: =IF(Hist_expenditure!S27=0,0, Hist_contributions!S27/Hist_expenditure!S27) -> 1.315551104 | T27: =IF(Hist_expenditure!T27=0,0, Hist_contributions!T27/Hist_expenditure!T27) -> 0.9935156231 | U27: 1 | V27: 1 | W27: 1 | X27: 1 | Y27: 1 | Z27: 1
B28: =Hist_vol!B28 -> Connections | C28: =Hist_vol!C28 -> EG3 | D28: =Hist_vol!D28 -> Embedded generation | E28: =Hist_vol!E28 -> Complex connection HV (large capacity) | G28: =IF(Hist_expenditure!G28=0,0, Hist_contributions!G28/Hist_expenditure!G28) -> 0.5177893341 | H28: =IF(Hist_expenditure!H28=0,0, Hist_contributions!H28/Hist_expenditure!H28) -> 0.4126957814 | I28: =IF(Hist_expenditure!I28=0,0, Hist_contributions!I28/Hist_expenditure!I28) -> 0 | J28: =IF(Hist_expenditure!J28=0,0, Hist_contributions!J28/Hist_expenditure!J28) -> 0.4141283234 | K28: =IF(Hist_expenditure!K28=0,0, Hist_contributions!K28/Hist_expenditure!K28) -> 0.4469513971 | L28: =IF(Hist_expenditure!L28=0,0, Hist_contributions!L28/Hist_expenditure!L28) -> 0.7581915529 | M28: =IF(Hist_expenditure!M28=0,0, Hist_contributions!M28/Hist_expenditure!M28) -> 0.8756581548 | N28: =IF(Hist_expenditure!N28=0,0, Hist_contributions!N28/Hist_expenditure!N28) -> 0.7933118335 | O28: =IF(Hist_expenditure!O28=0,0, Hist_contributions!O28/Hist_expenditure!O28) -> 0.6374675368 | P28: =IF(Hist_expenditure!P28=0,0, Hist_contributions!P28/Hist_expenditure!P28) -> 3.166431879 | Q28: =IF(Hist_expenditure!Q28=0,0, Hist_contributions!Q28/Hist_expenditure!Q28) -> 2.331776792 | R28: =IF(Hist_expenditure!R28=0,0, Hist_contributions!R28/Hist_expenditure!R28) -> 1.428230126 | S28: =IF(Hist_expenditure!S28=0,0, Hist_contributions!S28/Hist_expenditure!S28) -> 1.314561621 | T28: =IF(Hist_expenditure!T28=0,0, Hist_contributions!T28/Hist_expenditure!T28) -> 0.9935156231 | U28: 1 | V28: 1 | W28: 1 | X28: 1 | Y28: 1 | Z28: 1

Sheet Macromonitor
A1: =Assumptions!$A$1 -> Powercor
A2: =Assumptions!$A$2 -> Connections
A3: Macromonitor Forecast
B6: Growth rate %
B7: =Hist_vol!B$13 -> Category | C7: =Hist_vol!C$13 -> Type | D7: =Hist_vol!D$13 -> RIN category | E7: =Hist_vol!E$13 -> Description | H7: 2023/24 | I7: 2024/25 | J7: 2025/26 | K7: 2026/27 | L7: 2027/28 | M7: 2028/29 | N7: 2029/30 | O7: 2030/31
I8: forecast | J8: forecast | K8: forecast | L8: forecast | M8: forecast | N8: forecast | O8: forecast
B9: Connections | C9: R1 | D9: Residential | E9: Simple connection LV | J9: =TRANSPOSE($M$39:$M$44) -> 0.05661815646 | K9: 0.1268484408 | L9: -0.002125518722 | M9: -0.03634569619 | N9: 0.007060584072 | O9: 0.02365731504
B10: Connections | C10: R2 | D10: Residential | E10: Complex connection LV | J10: =TRANSPOSE($M$39:$M$44) -> 0.05661815646 | K10: 0.1268484408 | L10: -0.002125518722 | M10: -0.03634569619 | N10: 0.007060584072 | O10: 0.02365731504
B11: Connections | C11: R3 | D11: Residential | E11: Complex connection HV | J11: =TRANSPOSE($M$39:$M$44) -> 0.05661815646 | K11: 0.1268484408 | L11: -0.002125518722 | M11: -0.03634569619 | N11: 0.007060584072 | O11: 0.02365731504
B12: Connections | C12: CI1 | D12: Commercial/Industrial | E12: Simple connection LV | J12: =TRANSPOSE($M$65:$M$70) -> -0.04112766147 | K12: -0.08163632534 | L12: -0.04618167111 | M12: -0.001632769459 | N12: 0.01496579802 | O12: -0.0525175706
B13: Connections | C13: CI2 | D13: Commercial/Industrial | E13: Complex connection HV (customer connected at LV, minor HV works) | J13: =TRANSPOSE($M$65:$M$70) -> -0.04112766147 | K13: -0.08163632534 | L13: -0.04618167111 | M13: -0.001632769459 | N13: 0.01496579802 | O13: -0.0525175706
B14: Connections | C14: CI3 | D14: Commercial/Industrial | E14: Complex connection HV (customer connected at LV, upstream asset works) | J14: =TRANSPOSE($M$65:$M$70) -> -0.04112766147 | K14: -0.08163632534 | L14: -0.04618167111 | M14: -0.001632769459 | N14: 0.01496579802 | O14: -0.0525175706
B15: Connections | C15: CI4 | D15: Commercial/Industrial | E15: Complex connection HV (customer connected at HV) | J15: =TRANSPOSE($M$65:$M$70) -> -0.04112766147 | K15: -0.08163632534 | L15: -0.04618167111 | M15: -0.001632769459 | N15: 0.01496579802 | O15: -0.0525175706
B16: Connections | C16: CI5 | D16: Commercial/Industrial | E16: Complex connection sub-transmission | J16: =TRANSPOSE($M$65:$M$70) -> -0.04112766147 | K16: -0.08163632534 | L16: -0.04618167111 | M16: -0.001632769459 | N16: 0.01496579802 | O16: -0.0525175706
B17: Connections | C17: S1 | D17: Subdivision | E17: Complex connection LV | J17: =TRANSPOSE($M$39:$M$44) -> 0.05661815646 | K17: 0.1268484408 | L17: -0.002125518722 | M17: -0.03634569619 | N17: 0.007060584072 | O17: 0.02365731504
B18: Connections | C18: S2 | D18: Subdivision | E18: Complex connection HV (no upstream asset works) | J18: =TRANSPOSE($M$39:$M$44) -> 0.05661815646 | K18: 0.1268484408 | L18: -0.002125518722 | M18: -0.03634569619 | N18: 0.007060584072 | O18: 0.02365731504
B19: Connections | C19: S3 | D19: Subdivision | E19: Complex connection HV (with upstream asset works) | J19: =TRANSPOSE($M$39:$M$44) -> 0.05661815646 | K19: 0.1268484408 | L19: -0.002125518722 | M19: -0.03634569619 | N19: 0.007060584072 | O19: 0.02365731504
B20: Connections | C20: EG1 | D20: Embedded generation | E20: Simple connection LV | J20: =TRANSPOSE($L$93:$L$98) -> 0.3574900541 | K20: 0.1416526451 | L20: -0.6603706116 | M20: -0.4084408141 | N20: -0.7864349003 | O20: -0.4104188462
B21: Connections | C21: EG2 | D21: Embedded generation | E21: Complex connection HV (small capacity) | J21: =TRANSPOSE($L$93:$L$98) -> 0.3574900541 | K21: 0.1416526451 | L21: -0.6603706116 | M21: -0.4084408141 | N21: -0.7864349003 | O21: -0.4104188462
B22: Connections | C22: EG3 | D22: Embedded generation | E22: Complex connection HV (large capacity) | J22: =TRANSPOSE($L$93:$L$98) -> 0.3574900541 | K22: 0.1416526451 | L22: -0.6603706116 | M22: -0.4084408141 | N22: -0.7864349003 | O22: -0.4104188462
B25: Residential
B26: Estimated Number of Dwellings Commenced
B27: Numbers
B28: Year Ended June | C28: CitiPower | E28: United Energy | G28: Powercor | I28: Other Regions | K28: Victoria
C31: Annual | D31: A%Ch | E31: Annual | F31: A%Ch | G31: Annual | H31: A%Ch | I31: Annual | J31: A%Ch | K31: Annual | L31: A%Ch
B32: 2020-06-01 | C32: 9151.604912 | E32: 10331.94036 | G32: 19144.34476 | I32: 20095.10997 | K32: 58723
B33: 2021-06-01 | C33: 5240.671963 | D33: -42.73494089 | E33: 11281.15188 | F33: 9.18715637 | G33: 26755.96783 | H33: 39.75912033 | I33: 24131.20833 | J33: 20.08497774 | K33: 67409 | L33: 14.79147864
B34: 2022-06-01 | C34: 7090.523652 | D34: 35.29798664 | E34: 12323.86181 | F34: 9.24293854 | G34: 23931.56157 | H34: -10.55617303 | I34: 23865.05297 | J34: -1.102950838 | K34: 67211 | L34: -0.293729324
B35: 2023-06-01 | C35: 6564.692022 | D35: -7.415977379 | E35: 9223.38275 | F35: -25.15834006 | G35: 20899.88943 | H35: -12.66809158 | I35: 18476.0358 | J35: -22.58120767 | K35: 55164 | L35: -17.92414932
B36: 2024-06-01 | C36: 5943.02839 | D36: -9.469806493 | E36: 8649.644579 | F36: -6.220474485 | G36: 18044.96977 | H36: -13.65997496 | I36: 20398.35726 | J36: 10.40440431 | K36: 53036 | L36: -3.857588282
B37: Forecasts | M37: Growth rate - Powercor
B38: 2025-06-01 | C38: 8863.484 | D38: 49.14086588 | E38: 8501.058169 | F38: -1.717832546 | G38: 17745.81353 | H38: -1.657837289 | I38: 19816.52185 | J38: -2.852364059 | K38: 54926.87755 | L38: 3.5652718
B39: 2026-06-01 | C39: 10491.93124 | D39: 18.37254106 | E39: 10571.34187 | F39: 24.35324712 | G39: 18750.54878 | H39: 5.661815646 | I39: 21307.89481 | J39: 7.525906767 | K39: 61121.7167 | L39: 11.27833844 | M39: =H39/100 -> 0.05661815646
B40: 2027-06-01 | C40: 11403.24739 | D40: 8.685876143 | E40: 12117.00588 | F40: 14.62126595 | G40: 21129.02665 | H40: 12.68484408 | I40: 22961.82638 | J40: 7.762059929 | K40: 67611.1063 | L40: 10.6171586 | M40: 0.1268484408
B41: 2028-06-01 | C41: 11144.45504 | D41: -2.269461889 | E41: 11800.85344 | F41: -2.609163101 | G41: 21084.11651 | H41: -0.2125518722 | I41: 22244.28561 | J41: -3.124928957 | K41: 66273.7106 | L41: -1.978071025 | M41: -0.002125518722
B42: 2029-06-01 | C42: 10000.52539 | D42: -10.26456331 | E42: 11462.30875 | F42: -2.868815314 | G42: 20317.79962 | H42: -3.634569619 | I42: 21519.10737 | J42: -3.260065317 | K42: 63299.74113 | L42: -4.487404493 | M42: -0.03634569619
B43: 2030-06-01 | C43: 10081.29337 | D43: 0.8076372951 | E43: 11591.3091 | F43: 1.125430784 | G43: 20461.25515 | H43: 0.7060584072 | I43: 21810.92304 | J43: 1.356077011 | K43: 63944.78066 | L43: 1.019023953 | M43: 0.007060584072
B44: 2031-06-01 | C44: 10565.42572 | D44: 4.802284177 | E44: 11998.86695 | F44: 3.516064036 | G44: 20945.31351 | H44: 2.365731504 | I44: 22480.6001 | J44: 3.070374684 | K44: 65990.20628 | L44: 3.198737417 | M44: 0.02365731504
L45: Source: ABS & Macromonitor
B48: Non Residential
B49: Estimated Value of Non-Residential Building Work Done
B50: Chain Volume Measures - 2021/22 Prices
B52: Year Ended June | C52: CitiPower | E52: United Energy | G52: Powercor | I52: Other Regions | K52: Victoria
C55: $M | D55: A%Ch | E55: $M | F55: A%Ch | G55: $M | H55: A%Ch | I55: $M | J55: A%Ch | K55: $M | L55: A%Ch
B56: 2018-06-01 | C56: 4945.264389 | E56: 3312.220066 | G56: 3301.06064 | I56: 2948.765408 | K56: 14507.31029
B57: 2019-06-01 | C57: 5802.338404 | D57: 17.33120713 | E57: 2934.400861 | F57: -11.40682676 | G57: 3292.063845 | H57: -0.2725425393 | I57: 3447.612301 | J57: 16.91714408 | K57: 15476.41527 | L57: 6.680114797
B58: 2020-06-01 | C58: 6195.999335 | D58: 6.784522101 | E58: 2872.084051 | F58: -2.123663852 | G58: 3722.264793 | H58: 13.0678191 | I58: 3982.255484 | J58: 15.5076365 | K58: 16772.60366 | L58: 8.375249507
B59: 2021-06-01 | C59: 4953.845414 | D59: -20.0476768 | E59: 2543.781285 | F59: -11.43082026 | G59: 4220.869815 | H59: 13.39520561 | I59: 3898.614306 | J59: -2.100346863 | K59: 15617.11082 | L59: -6.889167989
B60: 2022-06-01 | C60: 4936.27418 | D60: -0.3546988849 | E60: 2919.817519 | F60: 14.78256939 | G60: 4479.324618 | H60: 6.123259292 | I60: 4329.960865 | J60: 11.06409932 | K60: 16665.37718 | L60: 6.7122938
B61: 2023-06-01 | C61: 5017.618167 | D61: 1.64788227 | E61: 3393.538972 | F61: 16.22435138 | G61: 5017.336502 | H61: 12.01100454 | I61: 5110.544305 | J61: 18.02749409 | K61: 18539.03795 | L61: 11.24283443
B62: 2024-06-01 | C62: 4436.570968 | D62: -11.58013981 | E62: 3110.120127 | F62: -8.351719188 | G62: 5734.830491 | H62: 14.30029638 | I62: 5673.929482 | J62: 11.02397599 | K62: 18955.45107 | L62: 2.246142026
B63: Forecasts | M63: Growth rate - Powercor
B64: 2025-06-01 | C64: 4225.006531 | D64: -4.768647645 | E64: 2314.044828 | F64: -25.5962878 | G64: 5614.272963 | H64: -2.10219864 | I64: 5361.863534 | J64: -5.499996941 | K64: 17515.18786 | L64: -7.598147925
B65: 2026-06-01 | C65: 4368.16406 | D65: 3.38833865 | E65: 2331.361396 | F65: 0.7483246568 | G65: 5383.371045 | H65: -4.112766147 | I65: 5743.569989 | J65: 7.118914035 | K65: 17826.46649 | L65: 1.777192672 | M65: =H65/100 -> -0.04112766147
B66: 2027-06-01 | C66: 4504.866438 | D66: 3.129515652 | E66: 2595.502505 | F66: 11.32990832 | G66: 4943.892415 | H66: -8.163632534 | I66: 5292.597853 | J66: -7.85177402 | K66: 17336.85921 | L66: -2.746518946 | M66: -0.08163632534
B67: 2028-06-01 | C67: 4589.708666 | D67: 1.883346142 | E67: 2742.62608 | F67: 5.66840426 | G67: 4715.575202 | H67: -4.618167111 | I67: 4907.335076 | J67: -7.279275472 | K67: 16955.24502 | L67: -2.201172562 | M67: -0.04618167111
B68: 2029-06-01 | C68: 4745.017503 | D68: 3.383849572 | E68: 2881.990379 | F68: 5.081418127 | G68: 4707.875754 | H68: -0.1632769459 | I68: 4862.118573 | J68: -0.9214064637 | K68: 17197.00221 | L68: 1.425854865 | M68: -0.001632769459
B69: 2030-06-01 | C69: 4984.675962 | D69: 5.050739198 | E69: 3005.031772 | F69: 4.269320048 | G69: 4778.332872 | H69: 1.496579802 | I69: 4941.647043 | J69: 1.635675233 | K69: 17709.68765 | L69: 2.981248899 | M69: 0.01496579802
B70: 2031-06-01 | C70: 4971.063954 | D70: -0.2730770883 | E70: 2965.457613 | F70: -1.316929795 | G70: 4527.386438 | H70: -5.25175706 | I70: 4678.789226 | J70: -5.319234952 | K70: 17142.69723 | L70: -3.201583386 | M70: -0.0525175706
L71: Source: ABS & Macromonitor
B74: Renewable
B75: Estimated Value of Renewable Energy Construction - less than 200 MW capacity - Powercor
B76: $ Million - Constant 2021/22 Prices
B77: Year Ended June | C77: Powercor
C78: Wind | E78: Solar | G78: Battery & Other | I78: Total renewables
C79: Annual | D79: A%Ch | E79: Annual | F79: A%Ch | G79: Annual | H79: A%Ch | I79: Annual | J79: A%Ch
B80: 2014-06-01 | C80: 603.8717853 | E80: 0 | F80: - | G80: 0.0001280485744 | H80: - | I80: 603.8719134 | J80: -
B81: 2015-06-01 | C81: 309.2827689 | D81: -48.78337151 | E81: 0 | F81: - | G81: 8.714709971e-05 | H81: - | I81: 309.282856 | J81: -48.78336793
B82: 2016-06-01 | C82: 110.058369 | D82: -64.41496906 | E82: 0 | F82: - | G82: 7.044214335e-05 | H82: - | I82: 110.0584394 | J82: -64.41495631
B83: 2017-06-01 | C83: 71.02416142 | D83: -35.46682358 | E83: 6.416516334 | F83: - | G83: 0.1605011896 | H83: - | I83: 77.60117894 | J83: -29.49093287
B84: 2018-06-01 | C84: 370.0090839 | D84: 420.9622705 | E84: 263.0579044 | F84: 3999.699755 | G84: 7.561116111 | H84: 4610.940852 | I84: 640.6281045 | J84: 725.539139
B85: 2019-06-01 | C85: 1122.799666 | D85: 203.4519191 | E85: 334.1751726 | F85: 27.03483415 | G85: 57.69264521 | H85: 663.0175804 | I85: 1514.667484 | J85: 136.4347542
B86: 2020-06-01 | C86: 990.5370091 | D86: -11.77972002 | E86: 63.24189546 | F86: -81.07522622 | G86: 15.49429783 | H86: -73.14337421 | I86: 1069.273202 | J86: -29.40541646
B87: 2021-06-01 | C87: 326.7339975 | D87: -67.01445837 | E87: 0.03387917512 | F87: -99.94642922 | G87: 3.529571531 | H87: -77.2201905 | I87: 330.2974482 | J87: -69.11009764
B88: 2022-06-01 | C88: 146.7627833 | D88: -55.08187566 | E88: 0.09003441216 | F88: 165.7514885 | G88: 9.379888879 | H88: 165.7514885 | I88: 156.2327066 | J88: -52.69939038
B89: 2023-06-01 | C89: 51.50846653 | D89: -64.9035911 | E89: 8.995093395 | F89: 9890.728188 | G89: 0.5466898835 | H89: -94.1716806 | I89: 61.05024981 | J89: -60.92351521
B90: 2024-06-01 | C90: 68.50355417 | D90: 32.99474587 | E90: 184.7974037 | F90: 1954.424514 | G90: 91.8294129 | H90: 16697.34996 | I90: 345.1303708 | J90: 465.3217994 | L90: Excl batteries (separate forecast done)
B91: Forecasts | L91: Growth rate - Powercor
B92: 2025-06-01 | C92: 2.69248844 | D92: -96.06956387 | E92: 349.8538828 | F92: 89.3175314 | G92: 214.2808578 | H92: 133.346649 | I92: 566.8272291 | J92: 64.23568514 | K92: =SUM(C92,E92) -> 352.5463713
B93: 2026-06-01 | C93: 74.86769502 | D93: 2680.613424 | E93: 403.7104976 | F93: 15.39403088 | G93: 60.28544702 | H93: -71.86615378 | I93: 538.8636396 | J93: -4.93335324 | K93: =SUM(C93,E93) -> 478.5781926 | L93: =K93/K92-1 -> 0.3574900541
B94: 2027-06-01 | C94: 113.3502685 | D94: 51.40077238 | E94: 433.019791 | F94: 7.259978019 | G94: 41.03466842 | H94: -31.93271271 | I94: 587.4047279 | J94: 9.008046696 | K94: 546.3700595 | L94: =K94/K93-1 -> 0.1416526451
B95: 2028-06-01 | C95: 26.74803864 | D95: -76.4023156 | E95: 158.8152905 | F95: -63.32378016 | G95: 57.5261647 | H95: 40.18917885 | I95: 243.0894938 | J95: -58.61635389 | K95: 185.5633291 | L95: -0.6603706116
B96: 2029-06-01 | C96: 13.45944266 | D96: -49.68063698 | E96: 96.31224925 | F96: -39.35580828 | G96: 76.56072117 | H96: 33.08851993 | I96: 186.3324131 | J96: -23.3482245 | K96: 109.7716919 | L96: -0.4084408141
B97: 2030-06-01 | C97: 13.45984107 | D97: 0.002960088788 | E97: 9.983561254 | F97: -89.63417288 | G97: 122.8118971 | H97: 60.41110278 | I97: 146.2552995 | J97: -21.50839618 | K97: 23.44340233 | L97: -0.7864349003
B98: 2031-06-01 | C98: 13.4606873 | D98: 0.006287047274 | E98: 0.361100893 | F98: -96.38304525 | G98: 129.4595491 | H98: 5.412872971 | I98: 143.2813373 | J98: -2.033404712 | K98: 13.82178819 | L98: -0.4104188462
J99: Source: ABS & Macromonitor

Sheet Growth_rates
A1: =Assumptions!$A$1 -> Powercor
A2: =Assumptions!$A$2 -> Connections
A3: Growth rates
B7: =Assumptions!B17 -> 2026/27 - 2030/31 reg period | H7: =Assumptions!G17 -> FALSE | I7: =Assumptions!H17 -> FALSE | J7: =Assumptions!I17 -> FALSE | K7: =Assumptions!J17 -> FALSE | L7: =Assumptions!K17 -> FALSE | M7: =Assumptions!L17 -> FALSE | N7: =Assumptions!M17 -> FALSE | O7: =Assumptions!N17 -> FALSE | P7: =Assumptions!O17 -> FALSE | Q7: =Assumptions!P17 -> FALSE | R7: =Assumptions!Q17 -> FALSE | S7: =Assumptions!R17 -> FALSE | T7: =Assumptions!S17 -> FALSE | U7: =Assumptions!T17 -> FALSE | V7: =Assumptions!U17 -> FALSE | W7: =Assumptions!V17 -> TRUE | X7: =Assumptions!W17 -> TRUE | Y7: =Assumptions!X17 -> TRUE | Z7: =Assumptions!Y17 -> TRUE | AA7: =Assumptions!Z17 -> TRUE
B8: =Assumptions!B18 -> Forecast period | H8: =Assumptions!G18 -> FALSE | I8: =Assumptions!H18 -> FALSE | J8: =Assumptions!I18 -> FALSE | K8: =Assumptions!J18 -> FALSE | L8: =Assumptions!K18 -> FALSE | M8: =Assumptions!L18 -> FALSE | N8: =Assumptions!M18 -> FALSE | O8: =Assumptions!N18 -> FALSE | P8: =Assumptions!O18 -> FALSE | Q8: =Assumptions!P18 -> FALSE | R8: =Assumptions!Q18 -> FALSE | S8: =Assumptions!R18 -> FALSE | T8: =Assumptions!S18 -> FALSE | U8: =Assumptions!T18 -> FALSE | V8: =Assumptions!U18 -> TRUE | W8: =Assumptions!V18 -> TRUE | X8: =Assumptions!W18 -> TRUE | Y8: =Assumptions!X18 -> TRUE | Z8: =Assumptions!Y18 -> TRUE | AA8: =Assumptions!Z18 -> TRUE
B9: =Assumptions!B19 -> Fin year end | H9: =Assumptions!G19 -> 2012 | I9: =Assumptions!H19 -> 2013 | J9: =Assumptions!I19 -> 2014 | K9: =Assumptions!J19 -> 2015 | L9: =Assumptions!K19 -> 2016 | M9: =Assumptions!L19 -> 2017 | N9: =Assumptions!M19 -> 2018 | O9: =Assumptions!N19 -> 2019 | P9: =Assumptions!O19 -> 2020 | Q9: =Assumptions!P19 -> 2021 | R9: =Assumptions!Q19 -> 2022 | S9: =Assumptions!R19 -> 2023 | T9: =Assumptions!S19 -> 2024 | U9: =Assumptions!T19 -> 2025 | V9: =Assumptions!U19 -> 2026 | W9: =Assumptions!V19 -> 2027 | X9: =Assumptions!W19 -> 2028 | Y9: =Assumptions!X19 -> 2029 | Z9: =Assumptions!Y19 -> 2030 | AA9: =Assumptions!Z19 -> 2031
B10: =Assumptions!B20 -> Basis | H10: =Assumptions!G20 -> Actual | I10: =Assumptions!H20 -> Actual | J10: =Assumptions!I20 -> Actual | K10: =Assumptions!J20 -> Actual | L10: =Assumptions!K20 -> Actual | M10: =Assumptions!L20 -> Actual | N10: =Assumptions!M20 -> Actual | O10: =Assumptions!N20 -> Actual | P10: =Assumptions!O20 -> Actual | Q10: =Assumptions!P20 -> Actual | R10: =Assumptions!Q20 -> Actual | S10: =Assumptions!R20 -> Actual | T10: =Assumptions!S20 -> Actual | U10: =Assumptions!T20 -> Actual | V10: =Assumptions!U20 -> Forecast | W10: =Assumptions!V20 -> Forecast | X10: =Assumptions!W20 -> Forecast | Y10: =Assumptions!X20 -> Forecast | Z10: =Assumptions!Y20 -> Forecast | AA10: =Assumptions!Z20 -> Forecast
B13: =Hist_vol!B$13 -> Category | C13: Type | D13: =Hist_vol!D$13 -> RIN category | E13: =Hist_vol!E$13 -> Description | H13: =Assumptions!G$24 -> 2011/12 | I13: =Assumptions!H$24 -> 2012/13 | J13: =Assumptions!I$24 -> 2013/14 | K13: =Assumptions!J$24 -> 2014/15 | L13: =Assumptions!K$24 -> 2015/16 | M13: =Assumptions!L$24 -> 2016/17 | N13: =Assumptions!M$24 -> 2017/18 | O13: =Assumptions!N$24 -> 2018/19 | P13: =Assumptions!O$24 -> 2019/20 | Q13: =Assumptions!P$24 -> 2020/21 | R13: =Assumptions!Q$24 -> 2021/22 | S13: =Assumptions!R$24 -> 2022/23 | T13: =Assumptions!S$24 -> 2023/24 | U13: =Assumptions!T$24 -> 2024/25 | V13: =Assumptions!U$24 -> 2025/26 | W13: =Assumptions!V$24 -> 2026/27 | X13: =Assumptions!W$24 -> 2027/28 | Y13: =Assumptions!X$24 -> 2028/29 | Z13: =Assumptions!Y$24 -> 2029/30 | AA13: =Assumptions!Z$24 -> 2030/31
B14: Compound growth | U14: Base year
B16: Connections | C16: Macromonitor | D16: =Hist_vol!D15 -> Residential | E16: =Hist_vol!E15 -> Simple connection LV | F16: =C16&D16&E16 -> MacromonitorResidentialSimple connection LV | U16: 1 | V16: =(1+Macromonitor!J9)*Growth_rates!U16 -> 1.056618156 | W16: =(1+Macromonitor!K9)*Growth_rates!V16 -> 1.190648522 | X16: =(1+Macromonitor!L9)*Growth_rates!W16 -> 1.188117776 | Y16: =(1+Macromonitor!M9)*Growth_rates!X16 -> 1.144934809 | Z16: =(1+Macromonitor!N9)*Growth_rates!Y16 -> 1.153018717 | AA16: =(1+Macromonitor!O9)*Growth_rates!Z16 -> 1.180296044
B17: Connections | C17: Macromonitor | D17: =Hist_vol!D16 -> Residential | E17: =Hist_vol!E16 -> Complex connection LV | F17: MacromonitorResidentialComplex connection LV | U17: 1 | V17: =(1+Macromonitor!J10)*Growth_rates!U17 -> 1.056618156 | W17: =(1+Macromonitor!K10)*Growth_rates!V17 -> 1.190648522 | X17: =(1+Macromonitor!L10)*Growth_rates!W17 -> 1.188117776 | Y17: =(1+Macromonitor!M10)*Growth_rates!X17 -> 1.144934809 | Z17: =(1+Macromonitor!N10)*Growth_rates!Y17 -> 1.153018717 | AA17: =(1+Macromonitor!O10)*Growth_rates!Z17 -> 1.180296044
B18: Connections | C18: Macromonitor | D18: =Hist_vol!D17 -> Residential | E18: =Hist_vol!E17 -> Complex connection HV | F18: MacromonitorResidentialComplex connection HV | U18: 1 | V18: =(1+Macromonitor!J11)*Growth_rates!U18 -> 1.056618156 | W18: =(1+Macromonitor!K11)*Growth_rates!V18 -> 1.190648522 | X18: =(1+Macromonitor!L11)*Growth_rates!W18 -> 1.188117776 | Y18: =(1+Macromonitor!M11)*Growth_rates!X18 -> 1.144934809 | Z18: =(1+Macromonitor!N11)*Growth_rates!Y18 -> 1.153018717 | AA18: =(1+Macromonitor!O11)*Growth_rates!Z18 -> 1.180296044
B19: Connections | C19: Macromonitor | D19: =Hist_vol!D18 -> Commercial/Industrial | E19: =Hist_vol!E18 -> Simple connection LV | F19: MacromonitorCommercial/IndustrialSimple connection LV | U19: 1 | V19: =(1+Macromonitor!J12)*Growth_rates!U19 -> 0.9588723385 | W19: =(1+Macromonitor!K12)*Growth_rates!V19 -> 0.8805935243 | X19: =(1+Macromonitor!L12)*Growth_rates!W19 -> 0.8399262438 | Y19: =(1+Macromonitor!M12)*Growth_rates!X19 -> 0.8385548379 | Z19: =(1+Macromonitor!N12)*Growth_rates!Y19 -> 0.8511044802 | AA19: =(1+Macromonitor!O12)*Growth_rates!Z19 -> 0.8064065406
B20: Connections | C20: Macromonitor | D20: =Hist_vol!D19 -> Commercial/Industrial | E20: =Hist_vol!E19 -> Complex connection HV (customer connected at LV, minor HV works) | F20: MacromonitorCommercial/IndustrialComplex connection HV (customer connected at LV, minor HV works) | U20: 1 | V20: =(1+Macromonitor!J13)*Growth_rates!U20 -> 0.9588723385 | W20: =(1+Macromonitor!K13)*Growth_rates!V20 -> 0.8805935243 | X20: =(1+Macromonitor!L13)*Growth_rates!W20 -> 0.8399262438 | Y20: =(1+Macromonitor!M13)*Growth_rates!X20 -> 0.8385548379 | Z20: =(1+Macromonitor!N13)*Growth_rates!Y20 -> 0.8511044802 | AA20: =(1+Macromonitor!O13)*Growth_rates!Z20 -> 0.8064065406
B21: Connections | C21: Macromonitor | D21: =Hist_vol!D20 -> Commercial/Industrial | E21: =Hist_vol!E20 -> Complex connection HV (customer connected at LV, upstream asset works) | F21: MacromonitorCommercial/IndustrialComplex connection HV (customer connected at LV, upstream asset works) | U21: 1 | V21: =(1+Macromonitor!J14)*Growth_rates!U21 -> 0.9588723385 | W21: =(1+Macromonitor!K14)*Growth_rates!V21 -> 0.8805935243 | X21: =(1+Macromonitor!L14)*Growth_rates!W21 -> 0.8399262438 | Y21: =(1+Macromonitor!M14)*Growth_rates!X21 -> 0.8385548379 | Z21: =(1+Macromonitor!N14)*Growth_rates!Y21 -> 0.8511044802 | AA21: =(1+Macromonitor!O14)*Growth_rates!Z21 -> 0.8064065406
B22: Connections | C22: Macromonitor | D22: =Hist_vol!D21 -> Commercial/Industrial | E22: =Hist_vol!E21 -> Complex connection HV (customer connected at HV) | F22: MacromonitorCommercial/IndustrialComplex connection HV (customer connected at HV) | U22: 1 | V22: =(1+Macromonitor!J15)*Growth_rates!U22 -> 0.9588723385 | W22: =(1+Macromonitor!K15)*Growth_rates!V22 -> 0.8805935243 | X22: =(1+Macromonitor!L15)*Growth_rates!W22 -> 0.8399262438 | Y22: =(1+Macromonitor!M15)*Growth_rates!X22 -> 0.8385548379 | Z22: =(1+Macromonitor!N15)*Growth_rates!Y22 -> 0.8511044802 | AA22: =(1+Macromonitor!O15)*Growth_rates!Z22 -> 0.8064065406
B23: Connections | C23: Macromonitor | D23: =Hist_vol!D22 -> Commercial/Industrial | E23: =Hist_vol!E22 -> Complex connection sub-transmission | F23: MacromonitorCommercial/IndustrialComplex connection sub-transmission | U23: 1 | V23: =(1+Macromonitor!J16)*Growth_rates!U23 -> 0.9588723385 | W23: =(1+Macromonitor!K16)*Growth_rates!V23 -> 0.8805935243 | X23: =(1+Macromonitor!L16)*Growth_rates!W23 -> 0.8399262438 | Y23: =(1+Macromonitor!M16)*Growth_rates!X23 -> 0.8385548379 | Z23: =(1+Macromonitor!N16)*Growth_rates!Y23 -> 0.8511044802 | AA23: =(1+Macromonitor!O16)*Growth_rates!Z23 -> 0.8064065406
B24: Connections | C24: Macromonitor | D24: =Hist_vol!D23 -> Subdivision | E24: =Hist_vol!E23 -> Complex connection LV | F24: MacromonitorSubdivisionComplex connection LV | U24: 1 | V24: =(1+Macromonitor!J17)*Growth_rates!U24 -> 1.056618156 | W24: =(1+Macromonitor!K17)*Growth_rates!V24 -> 1.190648522 | X24: =(1+Macromonitor!L17)*Growth_rates!W24 -> 1.188117776 | Y24: =(1+Macromonitor!M17)*Growth_rates!X24 -> 1.144934809 | Z24: =(1+Macromonitor!N17)*Growth_rates!Y24 -> 1.153018717 | AA24: =(1+Macromonitor!O17)*Growth_rates!Z24 -> 1.180296044
B25: Connections | C25: Macromonitor | D25: =Hist_vol!D24 -> Subdivision | E25: =Hist_vol!E24 -> Complex connection HV (no upstream asset works) | F25: MacromonitorSubdivisionComplex connection HV (no upstream asset works) | U25: 1 | V25: =(1+Macromonitor!J18)*Growth_rates!U25 -> 1.056618156 | W25: =(1+Macromonitor!K18)*Growth_rates!V25 -> 1.190648522 | X25: =(1+Macromonitor!L18)*Growth_rates!W25 -> 1.188117776 | Y25: =(1+Macromonitor!M18)*Growth_rates!X25 -> 1.144934809 | Z25: =(1+Macromonitor!N18)*Growth_rates!Y25 -> 1.153018717 | AA25: =(1+Macromonitor!O18)*Growth_rates!Z25 -> 1.180296044
B26: Connections | C26: Macromonitor | D26: =Hist_vol!D25 -> Subdivision | E26: =Hist_vol!E25 -> Complex connection HV (with upstream asset works) | F26: MacromonitorSubdivisionComplex connection HV (with upstream asset works) | U26: 1 | V26: =(1+Macromonitor!J19)*Growth_rates!U26 -> 1.056618156 | W26: =(1+Macromonitor!K19)*Growth_rates!V26 -> 1.190648522 | X26: =(1+Macromonitor!L19)*Growth_rates!W26 -> 1.188117776 | Y26: =(1+Macromonitor!M19)*Growth_rates!X26 -> 1.144934809 | Z26: =(1+Macromonitor!N19)*Growth_rates!Y26 -> 1.153018717 | AA26: =(1+Macromonitor!O19)*Growth_rates!Z26 -> 1.180296044
B27: Connections | C27: Macromonitor | D27: =Hist_vol!D26 -> Embedded generation | E27: =Hist_vol!E26 -> Simple connection LV | F27: MacromonitorEmbedded generationSimple connection LV | U27: 1 | V27: =(1+Macromonitor!J20)*Growth_rates!U27 -> 1.357490054 | W27: =(1+Macromonitor!K20)*Growth_rates!V27 -> 1.549782111 | X27: =(1+Macromonitor!L20)*Growth_rates!W27 -> 0.5263515505 | Y27: =(1+Macromonitor!M20)*Growth_rates!X27 -> 0.3113680947 | Z27: =(1+Macromonitor!N20)*Growth_rates!Y27 -> 0.06649735819 | AA27: =(1+Macromonitor!O20)*Growth_rates!Z27 -> 0.03920558916
B28: Connections | C28: Macromonitor | D28: =Hist_vol!D27 -> Embedded generation | E28: =Hist_vol!E27 -> Complex connection HV (small capacity) | F28: MacromonitorEmbedded generationComplex connection HV (small capacity) | U28: 1 | V28: =(1+Macromonitor!J21)*Growth_rates!U28 -> 1.357490054 | W28: =(1+Macromonitor!K21)*Growth_rates!V28 -> 1.549782111 | X28: =(1+Macromonitor!L21)*Growth_rates!W28 -> 0.5263515505 | Y28: =(1+Macromonitor!M21)*Growth_rates!X28 -> 0.3113680947 | Z28: =(1+Macromonitor!N21)*Growth_rates!Y28 -> 0.06649735819 | AA28: =(1+Macromonitor!O21)*Growth_rates!Z28 -> 0.03920558916
B29: Connections | C29: Macromonitor | D29: =Hist_vol!D28 -> Embedded generation | E29: =Hist_vol!E28 -> Complex connection HV (large capacity) | F29: MacromonitorEmbedded generationComplex connection HV (large capacity) | U29: 1 | V29: =(1+Macromonitor!J22)*Growth_rates!U29 -> 1.357490054 | W29: =(1+Macromonitor!K22)*Growth_rates!V29 -> 1.549782111 | X29: =(1+Macromonitor!L22)*Growth_rates!W29 -> 0.5263515505 | Y29: =(1+Macromonitor!M22)*Growth_rates!X29 -> 0.3113680947 | Z29: =(1+Macromonitor!N22)*Growth_rates!Y29 -> 0.06649735819 | AA29: =(1+Macromonitor!O22)*Growth_rates!Z29 -> 0.03920558916

Sheet Grid connected batteries
A1: =Assumptions!$A$1 -> Powercor
A2: =Assumptions!$A$2 -> Connections
A3: Grid connected batteries
B7: =Assumptions!B17 -> 2026/27 - 2030/31 reg period | E7: =Assumptions!V17 -> TRUE | F7: =Assumptions!W17 -> TRUE | G7: =Assumptions!X17 -> TRUE | H7: =Assumptions!Y17 -> TRUE | I7: =Assumptions!Z17 -> TRUE
B8: =Assumptions!B18 -> Forecast period | E8: =Assumptions!V18 -> TRUE | F8: =Assumptions!W18 -> TRUE | G8: =Assumptions!X18 -> TRUE | H8: =Assumptions!Y18 -> TRUE | I8: =Assumptions!Z18 -> TRUE
B9: =Assumptions!B19 -> Fin year end | E9: =Assumptions!V19 -> 2027 | F9: =Assumptions!W19 -> 2028 | G9: =Assumptions!X19 -> 2029 | H9: =Assumptions!Y19 -> 2030 | I9: =Assumptions!Z19 -> 2031
B10: =Assumptions!B20 -> Basis | E10: =Assumptions!V20 -> Forecast | F10: =Assumptions!W20 -> Forecast | G10: =Assumptions!X20 -> Forecast | H10: =Assumptions!Y20 -> Forecast | I10: =Assumptions!Z20 -> Forecast
B13: =Hist_vol!B$13 -> Category | C13: =Hist_vol!C$13 -> Type | D13: =Hist_vol!D$13 -> RIN category | E13: =Assumptions!V$24 -> 2026/27 | F13: =Assumptions!W$24 -> 2027/28 | G13: =Assumptions!X$24 -> 2028/29 | H13: =Assumptions!Y$24 -> 2029/30 | I13: =Assumptions!Z$24 -> 2030/31 | K13: 2026-31 Total
B14: (Jun 2026 $)
B15: Connections | C15: Grid connected Battery | D15: Connected capacity (MW) | E15: 80.4992991 | F15: 77.0733909 | G15: 89.7929538 | H15: 99.7654482 | I15: 87.582165 | K15: =SUM(E15:I15) -> 434.713257
B16: Connections | C16: Grid connected Battery | D16: Gross capex | E16: =$E$20*E15 -> 8288046.837 | F16: =$E$20*F15 -> 7935322.18 | G16: =$E$20*G15 -> 9244902.937 | H16: =$E$20*H15 -> 10271651.02 | I16: =$E$20*I15 -> 9017284.544 | K16: =SUM(E16:I16) -> 44757207.51
B17: Connections | C17: Grid connected Battery | D17: Incremental revenue | E17: =E15*$E$21 -> 1971991.33 | F17: =F15*$E$21 -> 1888066.857 | G17: =G15*$E$21 -> 2199657.989 | H17: =H15*$E$21 -> 2443954.185 | I17: =I15*$E$21 -> 2145500.296 | K17: =SUM(E17:I17) -> 10649170.66
B18: Connections | C18: Grid connected Battery | D18: Customer contribution | E18: =E16-E17 -> 6316055.507 | F18: =F16-F17 -> 6047255.323 | G18: 7045244.948 | H18: 7827696.831 | I18: 6871784.248 | K18: =K16-K17 -> 34108036.86
B20: Connections | C20: Grid connected Battery | D20: Gross capex unit rate | E20: 102958 | F20: per MW
B21: Connections | C21: Grid connected Battery | D21: Incremental revenue unit rate | E21: 24497 | F21: per MW

Sheet Data Centres
A1: =Assumptions!$A$1 -> Powercor
A2: =Assumptions!$A$2 -> Connections
A3: Data Centres
B7: =Assumptions!B17 -> 2026/27 - 2030/31 reg period | E7: =Assumptions!V17 -> TRUE | F7: =Assumptions!W17 -> TRUE | G7: =Assumptions!X17 -> TRUE | H7: =Assumptions!Y17 -> TRUE | I7: =Assumptions!Z17 -> TRUE
B8: =Assumptions!B18 -> Forecast period | E8: =Assumptions!V18 -> TRUE | F8: =Assumptions!W18 -> TRUE | G8: =Assumptions!X18 -> TRUE | H8: =Assumptions!Y18 -> TRUE | I8: =Assumptions!Z18 -> TRUE
B9: =Assumptions!B19 -> Fin year end | E9: =Assumptions!V19 -> 2027 | F9: =Assumptions!W19 -> 2028 | G9: =Assumptions!X19 -> 2029 | H9: =Assumptions!Y19 -> 2030 | I9: =Assumptions!Z19 -> 2031
B10: =Assumptions!B20 -> Basis | E10: =Assumptions!V20 -> Forecast | F10: =Assumptions!W20 -> Forecast | G10: =Assumptions!X20 -> Forecast | H10: =Assumptions!Y20 -> Forecast | I10: =Assumptions!Z20 -> Forecast
B13: =Hist_vol!B$13 -> Category | C13: =Hist_vol!C$13 -> Type | D13: =Hist_vol!D$13 -> RIN category | E13: =Assumptions!V$24 -> 2026/27 | F13: =Assumptions!W$24 -> 2027/28 | G13: =Assumptions!X$24 -> 2028/29 | H13: =Assumptions!Y$24 -> 2029/30 | I13: =Assumptions!Z$24 -> 2030/31 | K13: 2026-31 Total
B14: (Jun 2026 $)
B15: Connections | C15: Data Centres | D15: Connected capacity (MW) | E15: 452.84 | F15: 771.84 | G15: 1394.04 | H15: 2192.54 | I15: 2601 | K15: =I15 -> 2601
B16: Connections | C16: Data Centres | D16: Gross capex | E16: =E23*$C$20 -> 369786773.9 | F16: =F23*$C$20 -> 100460286 | G16: 101600349.2 | H16: 69368067.94 | I16: 168182211.8 | K16: =SUM(E16:I16) -> 809397688.8
B17: Connections | C17: Data Centres | D17: Customer contribution | E17: =E16*$E$19 -> 314318757.8 | F17: =F16*$E$19 -> 85391243.09 | G17: =G16*$E$19 -> 86360296.83 | H17: =H16*$E$19 -> 58962857.75 | I17: =I16*$E$19 -> 142954880 | K17: =SUM(E17:I17) -> 687988035.5
B19: Connections | C19: Data Centres | D19: Customer contribution rate | E19: 0.85
B20: $ Jun-25 to $ Jun-26 | C20: 1.024246877
B22: (Jun 2025 $)
B23: Connections | C23: Data Centres | D23: Gross capex | E23: 361032854.6 | F23: 98082101.31 | G23: 99195175.96 | H23: 67725925.73 | I23: 164200853.8

Sheet Forecast_vol
A1: =Assumptions!$A$1 -> Powercor
A2: =Assumptions!$A$2 -> Connections
A3: Forecast volumes
B7: =Assumptions!B17 -> 2026/27 - 2030/31 reg period | H7: =Assumptions!G17 -> FALSE | I7: =Assumptions!H17 -> FALSE | J7: =Assumptions!I17 -> FALSE | K7: =Assumptions!J17 -> FALSE | L7: =Assumptions!K17 -> FALSE | M7: =Assumptions!L17 -> FALSE | N7: =Assumptions!M17 -> FALSE | O7: =Assumptions!N17 -> FALSE | P7: =Assumptions!O17 -> FALSE | Q7: =Assumptions!P17 -> FALSE | R7: =Assumptions!Q17 -> FALSE | S7: =Assumptions!R17 -> FALSE | T7: =Assumptions!S17 -> FALSE | U7: =Assumptions!T17 -> FALSE | V7: =Assumptions!U17 -> FALSE | W7: =Assumptions!V17 -> TRUE | X7: =Assumptions!W17 -> TRUE | Y7: =Assumptions!X17 -> TRUE | Z7: =Assumptions!Y17 -> TRUE | AA7: =Assumptions!Z17 -> TRUE
B8: =Assumptions!B18 -> Forecast period | H8: =Assumptions!G18 -> FALSE | I8: =Assumptions!H18 -> FALSE | J8: =Assumptions!I18 -> FALSE | K8: =Assumptions!J18 -> FALSE | L8: =Assumptions!K18 -> FALSE | M8: =Assumptions!L18 -> FALSE | N8: =Assumptions!M18 -> FALSE | O8: =Assumptions!N18 -> FALSE | P8: =Assumptions!O18 -> FALSE | Q8: =Assumptions!P18 -> FALSE | R8: =Assumptions!Q18 -> FALSE | S8: =Assumptions!R18 -> FALSE | T8: =Assumptions!S18 -> FALSE | U8: =Assumptions!T18 -> FALSE | V8: =Assumptions!U18 -> TRUE | W8: =Assumptions!V18 -> TRUE | X8: =Assumptions!W18 -> TRUE | Y8: =Assumptions!X18 -> TRUE | Z8: =Assumptions!Y18 -> TRUE | AA8: =Assumptions!Z18 -> TRUE
B9: =Assumptions!B19 -> Fin year end | H9: =Assumptions!G19 -> 2012 | I9: =Assumptions!H19 -> 2013 | J9: =Assumptions!I19 -> 2014 | K9: =Assumptions!J19 -> 2015 | L9: =Assumptions!K19 -> 2016 | M9: =Assumptions!L19 -> 2017 | N9: =Assumptions!M19 -> 2018 | O9: =Assumptions!N19 -> 2019 | P9: =Assumptions!O19 -> 2020 | Q9: =Assumptions!P19 -> 2021 | R9: =Assumptions!Q19 -> 2022 | S9: =Assumptions!R19 -> 2023 | T9: =Assumptions!S19 -> 2024 | U9: =Assumptions!T19 -> 2025 | V9: =Assumptions!U19 -> 2026 | W9: =Assumptions!V19 -> 2027 | X9: =Assumptions!W19 -> 2028 | Y9: =Assumptions!X19 -> 2029 | Z9: =Assumptions!Y19 -> 2030 | AA9: =Assumptions!Z19 -> 2031
B10: =Assumptions!B20 -> Basis | H10: =Assumptions!G20 -> Actual | I10: =Assumptions!H20 -> Actual | J10: =Assumptions!I20 -> Actual | K10: =Assumptions!J20 -> Actual | L10: =Assumptions!K20 -> Actual | M10: =Assumptions!L20 -> Actual | N10: =Assumptions!M20 -> Actual | O10: =Assumptions!N20 -> Actual | P10: =Assumptions!O20 -> Actual | Q10: =Assumptions!P20 -> Actual | R10: =Assumptions!Q20 -> Actual | S10: =Assumptions!R20 -> Actual | T10: =Assumptions!S20 -> Actual | U10: =Assumptions!T20 -> Actual | V10: =Assumptions!U20 -> Forecast | W10: =Assumptions!V20 -> Forecast | X10: =Assumptions!W20 -> Forecast | Y10: =Assumptions!X20 -> Forecast | Z10: =Assumptions!Y20 -> Forecast | AA10: =Assumptions!Z20 -> Forecast
B13: =Hist_vol!B$13 -> Category | C13: Type | D13: =Hist_vol!D$13 -> RIN category | E13: =Hist_vol!E$13 -> Description | H13: =Assumptions!G$24 -> 2011/12 | I13: =Assumptions!H$24 -> 2012/13 | J13: =Assumptions!I$24 -> 2013/14 | K13: =Assumptions!J$24 -> 2014/15 | L13: =Assumptions!K$24 -> 2015/16 | M13: =Assumptions!L$24 -> 2016/17 | N13: =Assumptions!M$24 -> 2017/18 | O13: =Assumptions!N$24 -> 2018/19 | P13: =Assumptions!O$24 -> 2019/20 | Q13: =Assumptions!P$24 -> 2020/21 | R13: =Assumptions!Q$24 -> 2021/22 | S13: =Assumptions!R$24 -> 2022/23 | T13: =Assumptions!S$24 -> 2023/24 | U13: =Assumptions!T$24 -> 2024/25 | V13: =Assumptions!U$24 -> 2025/26 | W13: =Assumptions!V$24 -> 2026/27 | X13: =Assumptions!W$24 -> 2027/28 | Y13: =Assumptions!X$24 -> 2028/29 | Z13: =Assumptions!Y$24 -> 2029/30 | AA13: =Assumptions!Z$24 -> 2030/31
B15: Forecast volumes | U15: Base year
B16: =Hist_vol!B15 -> Connections | C16: =Hist_vol!C15 -> R1 | D16: =Hist_vol!D15 -> Residential | E16: =Hist_vol!E15 -> Simple connection LV | H16: =IF(H$8, Hist_vol!$T15*Growth_rates!H16, Hist_vol!G15) -> 15246 | I16: =IF(I$8, Hist_vol!$T15*Growth_rates!I16, Hist_vol!H15) -> 13350 | J16: =IF(J$8, Hist_vol!$T15*Growth_rates!J16, Hist_vol!I15) -> 12650.84 | K16: =IF(K$8, Hist_vol!$T15*Growth_rates!K16, Hist_vol!J15) -> 12805.84 | L16: =IF(L$8, Hist_vol!$T15*Growth_rates!L16, Hist_vol!K15) -> 6511.5 | M16: =IF(M$8, Hist_vol!$T15*Growth_rates!M16, Hist_vol!L15) -> 0 | N16: =IF(N$8, Hist_vol!$T15*Growth_rates!N16, Hist_vol!M15) -> 0 | O16: =IF(O$8, Hist_vol!$T15*Growth_rates!O16, Hist_vol!N15) -> 0 | P16: =IF(P$8, Hist_vol!$T15*Growth_rates!P16, Hist_vol!O15) -> 0 | Q16: =IF(Q$8, Hist_vol!$T15*Growth_rates!Q16, Hist_vol!P15) -> 0 | R16: =IF(R$8, Hist_vol!$T15*Growth_rates!R16, Hist_vol!Q15) -> 0 | S16: =IF(S$8, Hist_vol!$T15*Growth_rates!S16, Hist_vol!R15) -> 0 | T16: =IF(T$8, Hist_vol!$T15*Growth_rates!T16, Hist_vol!S15) -> 0 | U16: =IF(U$8, Hist_vol!$T15*Growth_rates!U16, Hist_vol!T15) -> 0 | V16: =IF(V$8, Hist_vol!$T15*Growth_rates!V16, Hist_vol!U15) -> 0 | W16: =IF(W$8, Hist_vol!$T15*Growth_rates!W16, Hist_vol!V15) -> 0 | X16: =IF(X$8, Hist_vol!$T15*Growth_rates!X16, Hist_vol!W15) -> 0 | Y16: =IF(Y$8, Hist_vol!$T15*Growth_rates!Y16, Hist_vol!X15) -> 0 | Z16: =IF(Z$8, Hist_vol!$T15*Growth_rates!Z16, Hist_vol!Y15) -> 0 | AA16: =IF(AA$8, Hist_vol!$T15*Growth_rates!AA16, Hist_vol!Z15) -> 0
B17: =Hist_vol!B16 -> Connections | C17: =Hist_vol!C16 -> R2 | D17: =Hist_vol!D16 -> Residential | E17: =Hist_vol!E16 -> Complex connection LV | H17: =IF(H$8, Hist_vol!$T16*Growth_rates!H17, Hist_vol!G16) -> 2981 | I17: =IF(I$8, Hist_vol!$T16*Growth_rates!I17, Hist_vol!H16) -> 3148.5 | J17: =IF(J$8, Hist_vol!$T16*Growth_rates!J17, Hist_vol!I16) -> 3279.160469 | K17: =IF(K$8, Hist_vol!$T16*Growth_rates!K17, Hist_vol!J16) -> 2935.660469 | L17: =IF(L$8, Hist_vol!$T16*Growth_rates!L17, Hist_vol!K16) -> 2333.5 | M17: =IF(M$8, Hist_vol!$T16*Growth_rates!M17, Hist_vol!L16) -> 2102.5 | N17: =IF(N$8, Hist_vol!$T16*Growth_rates!N17, Hist_vol!M16) -> 2216.220566 | O17: =IF(O$8, Hist_vol!$T16*Growth_rates!O17, Hist_vol!N16) -> 2305.720566 | P17: =IF(P$8, Hist_vol!$T16*Growth_rates!P17, Hist_vol!O16) -> 2420 | Q17: =IF(Q$8, Hist_vol!$T16*Growth_rates!Q17, Hist_vol!P16) -> 2464 | R17: =IF(R$8, Hist_vol!$T16*Growth_rates!R17, Hist_vol!Q16) -> 2202 | S17: =IF(S$8, Hist_vol!$T16*Growth_rates!S17, Hist_vol!R16) -> 1804 | T17: =IF(T$8, Hist_vol!$T16*Growth_rates!T17, Hist_vol!S16) -> 1775 | U17: =IF(U$8, Hist_vol!$T16*Growth_rates!U17, Hist_vol!T16) -> 2196 | V17: =IF(V$8, Hist_vol!$T16*Growth_rates!V17, Hist_vol!U16) -> 2320.333472 | W17: =IF(W$8, Hist_vol!$T16*Growth_rates!W17, Hist_vol!V16) -> 2614.664155 | X17: =IF(X$8, Hist_vol!$T16*Growth_rates!X17, Hist_vol!W16) -> 2609.106637 | Y17: =IF(Y$8, Hist_vol!$T16*Growth_rates!Y17, Hist_vol!X16) -> 2514.27684 | Z17: =IF(Z$8, Hist_vol!$T16*Growth_rates!Z17, Hist_vol!Y16) -> 2532.029103 | AA17: =IF(AA$8, Hist_vol!$T16*Growth_rates!AA17, Hist_vol!Z16) -> 2591.930113
B18: =Hist_vol!B17 -> Connections | C18: =Hist_vol!C17 -> R3 | D18: =Hist_vol!D17 -> Residential | E18: =Hist_vol!E17 -> Complex connection HV | H18: =IF(H$8, Hist_vol!$T17*Growth_rates!H18, Hist_vol!G17) -> 352 | I18: =IF(I$8, Hist_vol!$T17*Growth_rates!I18, Hist_vol!H17) -> 374.5 | J18: =IF(J$8, Hist_vol!$T17*Growth_rates!J18, Hist_vol!I17) -> 342.5151479 | K18: =IF(K$8, Hist_vol!$T17*Growth_rates!K18, Hist_vol!J17) -> 270.5151479 | L18: =IF(L$8, Hist_vol!$T17*Growth_rates!L18, Hist_vol!K17) -> 184 | M18: =IF(M$8, Hist_vol!$T17*Growth_rates!M18, Hist_vol!L17) -> 177 | N18: =IF(N$8, Hist_vol!$T17*Growth_rates!N18, Hist_vol!M17) -> 238.2530479 | O18: =IF(O$8, Hist_vol!$T17*Growth_rates!O18, Hist_vol!N17) -> 215.7530479 | P18: =IF(P$8, Hist_vol!$T17*Growth_rates!P18, Hist_vol!O17) -> 169.5 | Q18: =IF(Q$8, Hist_vol!$T17*Growth_rates!Q18, Hist_vol!P17) -> 184 | R18: =IF(R$8, Hist_vol!$T17*Growth_rates!R18, Hist_vol!Q17) -> 225 | S18: =IF(S$8, Hist_vol!$T17*Growth_rates!S18, Hist_vol!R17) -> 200 | T18: =IF(T$8, Hist_vol!$T17*Growth_rates!T18, Hist_vol!S17) -> 175 | U18: =IF(U$8, Hist_vol!$T17*Growth_rates!U18, Hist_vol!T17) -> 143 | V18: =IF(V$8, Hist_vol!$T17*Growth_rates!V18, Hist_vol!U17) -> 151.0963964 | W18: =IF(W$8, Hist_vol!$T17*Growth_rates!W18, Hist_vol!V17) -> 170.2627387 | X18: =IF(X$8, Hist_vol!$T17*Growth_rates!X18, Hist_vol!W17) -> 169.900842 | Y18: =IF(Y$8, Hist_vol!$T17*Growth_rates!Y18, Hist_vol!X17) -> 163.7256776 | Z18: =IF(Z$8, Hist_vol!$T17*Growth_rates!Z18, Hist_vol!Y17) -> 164.8816766 | AA18: =IF(AA$8, Hist_vol!$T17*Growth_rates!AA18, Hist_vol!Z17) -> 168.7823343
B19: =Hist_vol!B18 -> Connections | C19: =Hist_vol!C18 -> CI1 | D19: =Hist_vol!D18 -> Commercial/Industrial | E19: =Hist_vol!E18 -> Simple connection LV | H19: =IF(H$8, Hist_vol!$T18*Growth_rates!H19, Hist_vol!G18) -> 2119 | I19: =IF(I$8, Hist_vol!$T18*Growth_rates!I19, Hist_vol!H18) -> 2108 | J19: =IF(J$8, Hist_vol!$T18*Growth_rates!J19, Hist_vol!I18) -> 2117.488909 | K19: =IF(K$8, Hist_vol!$T18*Growth_rates!K19, Hist_vol!J18) -> 1969.488909 | L19: =IF(L$8, Hist_vol!$T18*Growth_rates!L19, Hist_vol!K18) -> 911.5 | M19: =IF(M$8, Hist_vol!$T18*Growth_rates!M19, Hist_vol!L18) -> 0 | N19: =IF(N$8, Hist_vol!$T18*Growth_rates!N19, Hist_vol!M18) -> 0 | O19: =IF(O$8, Hist_vol!$T18*Growth_rates!O19, Hist_vol!N18) -> 0 | P19: =IF(P$8, Hist_vol!$T18*Growth_rates!P19, Hist_vol!O18) -> 0 | Q19: =IF(Q$8, Hist_vol!$T18*Growth_rates!Q19, Hist_vol!P18) -> 0 | R19: =IF(R$8, Hist_vol!$T18*Growth_rates!R19, Hist_vol!Q18) -> 0 | S19: =IF(S$8, Hist_vol!$T18*Growth_rates!S19, Hist_vol!R18) -> 0 | T19: =IF(T$8, Hist_vol!$T18*Growth_rates!T19, Hist_vol!S18) -> 0 | U19: =IF(U$8, Hist_vol!$T18*Growth_rates!U19, Hist_vol!T18) -> 0 | V19: =IF(V$8, Hist_vol!$T18*Growth_rates!V19, Hist_vol!U18) -> 0 | W19: =IF(W$8, Hist_vol!$T18*Growth_rates!W19, Hist_vol!V18) -> 0 | X19: =IF(X$8, Hist_vol!$T18*Growth_rates!X19, Hist_vol!W18) -> 0 | Y19: =IF(Y$8, Hist_vol!$T18*Growth_rates!Y19, Hist_vol!X18) -> 0 | Z19: =IF(Z$8, Hist_vol!$T18*Growth_rates!Z19, Hist_vol!Y18) -> 0 | AA19: =IF(AA$8, Hist_vol!$T18*Growth_rates!AA19, Hist_vol!Z18) -> 0
B20: =Hist_vol!B19 -> Connections | C20: =Hist_vol!C19 -> CI2 | D20: =Hist_vol!D19 -> Commercial/Industrial | E20: =Hist_vol!E19 -> Complex connection HV (customer connected at LV, minor HV works) | H20: =IF(H$8, Hist_vol!$T19*Growth_rates!H20, Hist_vol!G19) -> 0 | I20: =IF(I$8, Hist_vol!$T19*Growth_rates!I20, Hist_vol!H19) -> 0 | J20: =IF(J$8, Hist_vol!$T19*Growth_rates!J20, Hist_vol!I19) -> 0 | K20: =IF(K$8, Hist_vol!$T19*Growth_rates!K20, Hist_vol!J19) -> 0 | L20: =IF(L$8, Hist_vol!$T19*Growth_rates!L20, Hist_vol!K19) -> 325.5 | M20: =IF(M$8, Hist_vol!$T19*Growth_rates!M20, Hist_vol!L19) -> 305.5 | N20: =IF(N$8, Hist_vol!$T19*Growth_rates!N20, Hist_vol!M19) -> 399.5 | O20: =IF(O$8, Hist_vol!$T19*Growth_rates!O20, Hist_vol!N19) -> 357 | P20: =IF(P$8, Hist_vol!$T19*Growth_rates!P20, Hist_vol!O19) -> 182 | Q20: =IF(Q$8, Hist_vol!$T19*Growth_rates!Q20, Hist_vol!P19) -> 182 | R20: =IF(R$8, Hist_vol!$T19*Growth_rates!R20, Hist_vol!Q19) -> 144 | S20: =IF(S$8, Hist_vol!$T19*Growth_rates!S20, Hist_vol!R19) -> 135 | T20: =IF(T$8, Hist_vol!$T19*Growth_rates!T20, Hist_vol!S19) -> 156 | U20: =IF(U$8, Hist_vol!$T19*Growth_rates!U20, Hist_vol!T19) -> 206 | V20: =IF(V$8, Hist_vol!$T19*Growth_rates!V20, Hist_vol!U19) -> 197.5277017 | W20: =IF(W$8, Hist_vol!$T19*Growth_rates!W20, Hist_vol!V19) -> 181.402266 | X20: =IF(X$8, Hist_vol!$T19*Growth_rates!X20, Hist_vol!W19) -> 173.0248062 | Y20: =IF(Y$8, Hist_vol!$T19*Growth_rates!Y20, Hist_vol!X19) -> 172.7422966 | Z20: =IF(Z$8, Hist_vol!$T19*Growth_rates!Z20, Hist_vol!Y19) -> 175.3275229 | AA20: =IF(AA$8, Hist_vol!$T19*Growth_rates!AA20, Hist_vol!Z19) -> 166.1197474
B21: =Hist_vol!B20 -> Connections | C21: =Hist_vol!C20 -> CI3 | D21: =Hist_vol!D20 -> Commercial/Industrial | E21: =Hist_vol!E20 -> Complex connection HV (customer connected at LV, upstream asset works) | H21: =IF(H$8, Hist_vol!$T20*Growth_rates!H21, Hist_vol!G20) -> 371.2556342 | I21: =IF(I$8, Hist_vol!$T20*Growth_rates!I21, Hist_vol!H20) -> 359.2739723 | J21: =IF(J$8, Hist_vol!$T20*Growth_rates!J21, Hist_vol!I20) -> 345.5442312 | K21: =IF(K$8, Hist_vol!$T20*Growth_rates!K21, Hist_vol!J20) -> 323.3831283 | L21: =IF(L$8, Hist_vol!$T20*Growth_rates!L21, Hist_vol!K20) -> 290.5 | M21: =IF(M$8, Hist_vol!$T20*Growth_rates!M21, Hist_vol!L20) -> 331.5 | N21: =IF(N$8, Hist_vol!$T20*Growth_rates!N21, Hist_vol!M20) -> 378.7711871 | O21: =IF(O$8, Hist_vol!$T20*Growth_rates!O21, Hist_vol!N20) -> 361.2711871 | P21: =IF(P$8, Hist_vol!$T20*Growth_rates!P21, Hist_vol!O20) -> 330.5 | Q21: =IF(Q$8, Hist_vol!$T20*Growth_rates!Q21, Hist_vol!P20) -> 300 | R21: =IF(R$8, Hist_vol!$T20*Growth_rates!R21, Hist_vol!Q20) -> 347 | S21: =IF(S$8, Hist_vol!$T20*Growth_rates!S21, Hist_vol!R20) -> 377 | T21: =IF(T$8, Hist_vol!$T20*Growth_rates!T21, Hist_vol!S20) -> 366 | U21: =IF(U$8, Hist_vol!$T20*Growth_rates!U21, Hist_vol!T20) -> 466 | V21: =IF(V$8, Hist_vol!$T20*Growth_rates!V21, Hist_vol!U20) -> 446.8345098 | W21: =IF(W$8, Hist_vol!$T20*Growth_rates!W21, Hist_vol!V20) -> 410.3565823 | X21: =IF(X$8, Hist_vol!$T20*Growth_rates!X21, Hist_vol!W20) -> 391.4056296 | Y21: =IF(Y$8, Hist_vol!$T20*Growth_rates!Y21, Hist_vol!X20) -> 390.7665545 | Z21: =IF(Z$8, Hist_vol!$T20*Growth_rates!Z21, Hist_vol!Y20) -> 396.6146878 | AA21: =IF(AA$8, Hist_vol!$T20*Growth_rates!AA21, Hist_vol!Z20) -> 375.7854479
B22: =Hist_vol!B21 -> Connections | C22: =Hist_vol!C21 -> CI4 | D22: =Hist_vol!D21 -> Commercial/Industrial | E22: =Hist_vol!E21 -> Complex connection HV (customer connected at HV) | H22: =IF(H$8, Hist_vol!$T21*Growth_rates!H22, Hist_vol!G21) -> 4 | I22: =IF(I$8, Hist_vol!$T21*Growth_rates!I22, Hist_vol!H21) -> 6.10306982 | J22: =IF(J$8, Hist_vol!$T21*Growth_rates!J22, Hist_vol!I21) -> 6.153944173 | K22: =IF(K$8, Hist_vol!$T21*Growth_rates!K22, Hist_vol!J21) -> 4.550874353 | L22: =IF(L$8, Hist_vol!$T21*Growth_rates!L22, Hist_vol!K21) -> 8 | M22: =IF(M$8, Hist_vol!$T21*Growth_rates!M22, Hist_vol!L21) -> 9.5 | N22: =IF(N$8, Hist_vol!$T21*Growth_rates!N22, Hist_vol!M21) -> 4.948891292 | O22: =IF(O$8, Hist_vol!$T21*Growth_rates!O22, Hist_vol!N21) -> 1.948891292 | P22: =IF(P$8, Hist_vol!$T21*Growth_rates!P22, Hist_vol!O21) -> 6 | Q22: =IF(Q$8, Hist_vol!$T21*Growth_rates!Q22, Hist_vol!P21) -> 18 | R22: =IF(R$8, Hist_vol!$T21*Growth_rates!R22, Hist_vol!Q21) -> 11 | S22: =IF(S$8, Hist_vol!$T21*Growth_rates!S22, Hist_vol!R21) -> 7 | T22: =IF(T$8, Hist_vol!$T21*Growth_rates!T22, Hist_vol!S21) -> 4 | U22: =IF(U$8, Hist_vol!$T21*Growth_rates!U22, Hist_vol!T21) -> 7 | V22: =IF(V$8, Hist_vol!$T21*Growth_rates!V22, Hist_vol!U21) -> 6.71210637 | W22: =IF(W$8, Hist_vol!$T21*Growth_rates!W22, Hist_vol!V21) -> 6.16415467 | X22: =IF(X$8, Hist_vol!$T21*Growth_rates!X22, Hist_vol!W21) -> 5.879483707 | Y22: =IF(Y$8, Hist_vol!$T21*Growth_rates!Y22, Hist_vol!X21) -> 5.869883865 | Z22: =IF(Z$8, Hist_vol!$T21*Growth_rates!Z22, Hist_vol!Y21) -> 5.957731362 | AA22: =IF(AA$8, Hist_vol!$T21*Growth_rates!AA22, Hist_vol!Z21) -> 5.644845784
B23: =Hist_vol!B22 -> Connections | C23: =Hist_vol!C22 -> CI5 | D23: =Hist_vol!D22 -> Commercial/Industrial | E23: =Hist_vol!E22 -> Complex connection sub-transmission | H23: =IF(H$8, Hist_vol!$T22*Growth_rates!H23, Hist_vol!G22) -> 0 | I23: =IF(I$8, Hist_vol!$T22*Growth_rates!I23, Hist_vol!H22) -> 0 | J23: =IF(J$8, Hist_vol!$T22*Growth_rates!J23, Hist_vol!I22) -> 0 | K23: =IF(K$8, Hist_vol!$T22*Growth_rates!K23, Hist_vol!J22) -> 0 | L23: =IF(L$8, Hist_vol!$T22*Growth_rates!L23, Hist_vol!K22) -> 0 | M23: =IF(M$8, Hist_vol!$T22*Growth_rates!M23, Hist_vol!L22) -> 0.5 | N23: =IF(N$8, Hist_vol!$T22*Growth_rates!N23, Hist_vol!M22) -> 0.5 | O23: =IF(O$8, Hist_vol!$T22*Growth_rates!O23, Hist_vol!N22) -> 0 | P23: =IF(P$8, Hist_vol!$T22*Growth_rates!P23, Hist_vol!O22) -> 0 | Q23: =IF(Q$8, Hist_vol!$T22*Growth_rates!Q23, Hist_vol!P22) -> 0 | R23: =IF(R$8, Hist_vol!$T22*Growth_rates!R23, Hist_vol!Q22) -> 0 | S23: =IF(S$8, Hist_vol!$T22*Growth_rates!S23, Hist_vol!R22) -> 0 | T23: =IF(T$8, Hist_vol!$T22*Growth_rates!T23, Hist_vol!S22) -> 0 | U23: =IF(U$8, Hist_vol!$T22*Growth_rates!U23, Hist_vol!T22) -> 8 | V23: =IF(V$8, Hist_vol!$T22*Growth_rates!V23, Hist_vol!U22) -> 7.670978708 | W23: =IF(W$8, Hist_vol!$T22*Growth_rates!W23, Hist_vol!V22) -> 7.044748195 | X23: =IF(X$8, Hist_vol!$T22*Growth_rates!X23, Hist_vol!W22) -> 6.719409951 | Y23: =IF(Y$8, Hist_vol!$T22*Growth_rates!Y23, Hist_vol!X22) -> 6.708438703 | Z23: =IF(Z$8, Hist_vol!$T22*Growth_rates!Z23, Hist_vol!Y22) -> 6.808835842 | AA23: =IF(AA$8, Hist_vol!$T22*Growth_rates!AA23, Hist_vol!Z22) -> 6.451252325
B24: =Hist_vol!B23 -> Connections | C24: =Hist_vol!C23 -> S1 | D24: =Hist_vol!D23 -> Subdivision | E24: =Hist_vol!E23 -> Complex connection LV | H24: =IF(H$8, Hist_vol!$T23*Growth_rates!H24, Hist_vol!G23) -> 0 | I24: =IF(I$8, Hist_vol!$T23*Growth_rates!I24, Hist_vol!H23) -> 0 | J24: =IF(J$8, Hist_vol!$T23*Growth_rates!J24, Hist_vol!I23) -> 0 | K24: =IF(K$8, Hist_vol!$T23*Growth_rates!K24, Hist_vol!J23) -> 0 | L24: =IF(L$8, Hist_vol!$T23*Growth_rates!L24, Hist_vol!K23) -> 0 | M24: =IF(M$8, Hist_vol!$T23*Growth_rates!M24, Hist_vol!L23) -> 0 | N24: =IF(N$8, Hist_vol!$T23*Growth_rates!N24, Hist_vol!M23) -> 0 | O24: =IF(O$8, Hist_vol!$T23*Growth_rates!O24, Hist_vol!N23) -> 0 | P24: =IF(P$8, Hist_vol!$T23*Growth_rates!P24, Hist_vol!O23) -> 0 | Q24: =IF(Q$8, Hist_vol!$T23*Growth_rates!Q24, Hist_vol!P23) -> 0 | R24: =IF(R$8, Hist_vol!$T23*Growth_rates!R24, Hist_vol!Q23) -> 0 | S24: =IF(S$8, Hist_vol!$T23*Growth_rates!S24, Hist_vol!R23) -> 0 | T24: =IF(T$8, Hist_vol!$T23*Growth_rates!T24, Hist_vol!S23) -> 0 | U24: =IF(U$8, Hist_vol!$T23*Growth_rates!U24, Hist_vol!T23) -> 0 | V24: =IF(V$8, Hist_vol!$T23*Growth_rates!V24, Hist_vol!U23) -> 0 | W24: =IF(W$8, Hist_vol!$T23*Growth_rates!W24, Hist_vol!V23) -> 0 | X24: =IF(X$8, Hist_vol!$T23*Growth_rates!X24, Hist_vol!W23) -> 0 | Y24: =IF(Y$8, Hist_vol!$T23*Growth_rates!Y24, Hist_vol!X23) -> 0 | Z24: =IF(Z$8, Hist_vol!$T23*Growth_rates!Z24, Hist_vol!Y23) -> 0 | AA24: =IF(AA$8, Hist_vol!$T23*Growth_rates!AA24, Hist_vol!Z23) -> 0
B25: =Hist_vol!B24 -> Connections | C25: =Hist_vol!C24 -> S2 | D25: =Hist_vol!D24 -> Subdivision | E25: =Hist_vol!E24 -> Complex connection HV (no upstream asset works) | H25: =IF(H$8, Hist_vol!$T24*Growth_rates!H25, Hist_vol!G24) -> 0 | I25: =IF(I$8, Hist_vol!$T24*Growth_rates!I25, Hist_vol!H24) -> 0 | J25: =IF(J$8, Hist_vol!$T24*Growth_rates!J25, Hist_vol!I24) -> 0 | K25: =IF(K$8, Hist_vol!$T24*Growth_rates!K25, Hist_vol!J24) -> 0 | L25: =IF(L$8, Hist_vol!$T24*Growth_rates!L25, Hist_vol!K24) -> 0 | M25: =IF(M$8, Hist_vol!$T24*Growth_rates!M25, Hist_vol!L24) -> 0 | N25: =IF(N$8, Hist_vol!$T24*Growth_rates!N25, Hist_vol!M24) -> 0 | O25: =IF(O$8, Hist_vol!$T24*Growth_rates!O25, Hist_vol!N24) -> 0 | P25: =IF(P$8, Hist_vol!$T24*Growth_rates!P25, Hist_vol!O24) -> 0 | Q25: =IF(Q$8, Hist_vol!$T24*Growth_rates!Q25, Hist_vol!P24) -> 0 | R25: =IF(R$8, Hist_vol!$T24*Growth_rates!R25, Hist_vol!Q24) -> 0 | S25: =IF(S$8, Hist_vol!$T24*Growth_rates!S25, Hist_vol!R24) -> 0 | T25: =IF(T$8, Hist_vol!$T24*Growth_rates!T25, Hist_vol!S24) -> 0 | U25: =IF(U$8, Hist_vol!$T24*Growth_rates!U25, Hist_vol!T24) -> 0 | V25: =IF(V$8, Hist_vol!$T24*Growth_rates!V25, Hist_vol!U24) -> 0 | W25: =IF(W$8, Hist_vol!$T24*Growth_rates!W25, Hist_vol!V24) -> 0 | X25: =IF(X$8, Hist_vol!$T24*Growth_rates!X25, Hist_vol!W24) -> 0 | Y25: =IF(Y$8, Hist_vol!$T24*Growth_rates!Y25, Hist_vol!X24) -> 0 | Z25: =IF(Z$8, Hist_vol!$T24*Growth_rates!Z25, Hist_vol!Y24) -> 0 | AA25: =IF(AA$8, Hist_vol!$T24*Growth_rates!AA25, Hist_vol!Z24) -> 0
B26: =Hist_vol!B25 -> Connections | C26: =Hist_vol!C25 -> S3 | D26: =Hist_vol!D25 -> Subdivision | E26: =Hist_vol!E25 -> Complex connection HV (with upstream asset works) | H26: =IF(H$8, Hist_vol!$T25*Growth_rates!H26, Hist_vol!G25) -> 339.8103795 | I26: =IF(I$8, Hist_vol!$T25*Growth_rates!I26, Hist_vol!H25) -> 337.1990873 | J26: =IF(J$8, Hist_vol!$T25*Growth_rates!J26, Hist_vol!I25) -> 339.0642954 | K26: =IF(K$8, Hist_vol!$T25*Growth_rates!K26, Hist_vol!J25) -> 340.0150544 | L26: =IF(L$8, Hist_vol!$T25*Growth_rates!L26, Hist_vol!K25) -> 355 | M26: =IF(M$8, Hist_vol!$T25*Growth_rates!M26, Hist_vol!L25) -> 388 | N26: =IF(N$8, Hist_vol!$T25*Growth_rates!N26, Hist_vol!M25) -> 515.8202121 | O26: =IF(O$8, Hist_vol!$T25*Growth_rates!O26, Hist_vol!N25) -> 545.3202121 | P26: =IF(P$8, Hist_vol!$T25*Growth_rates!P26, Hist_vol!O25) -> 571.5 | Q26: =IF(Q$8, Hist_vol!$T25*Growth_rates!Q26, Hist_vol!P25) -> 565 | R26: =IF(R$8, Hist_vol!$T25*Growth_rates!R26, Hist_vol!Q25) -> 744 | S26: =IF(S$8, Hist_vol!$T25*Growth_rates!S26, Hist_vol!R25) -> 762 | T26: =IF(T$8, Hist_vol!$T25*Growth_rates!T26, Hist_vol!S25) -> 822 | U26: =IF(U$8, Hist_vol!$T25*Growth_rates!U26, Hist_vol!T25) -> 410 | V26: =IF(V$8, Hist_vol!$T25*Growth_rates!V26, Hist_vol!U25) -> 433.2134441 | W26: =IF(W$8, Hist_vol!$T25*Growth_rates!W26, Hist_vol!V25) -> 488.1658941 | X26: =IF(X$8, Hist_vol!$T25*Growth_rates!X26, Hist_vol!W25) -> 487.1282883 | Y26: =IF(Y$8, Hist_vol!$T25*Growth_rates!Y26, Hist_vol!X25) -> 469.4232716 | Z26: =IF(Z$8, Hist_vol!$T25*Growth_rates!Z26, Hist_vol!Y25) -> 472.737674 | AA26: =IF(AA$8, Hist_vol!$T25*Growth_rates!AA26, Hist_vol!Z25) -> 483.9213781
B27: =Hist_vol!B26 -> Connections | C27: =Hist_vol!C26 -> EG1 | D27: =Hist_vol!D26 -> Embedded generation | E27: =Hist_vol!E26 -> Simple connection LV | H27: =IF(H$8, Hist_vol!$T26*Growth_rates!H27, Hist_vol!G26) -> 0 | I27: =IF(I$8, Hist_vol!$T26*Growth_rates!I27, Hist_vol!H26) -> 0 | J27: =IF(J$8, Hist_vol!$T26*Growth_rates!J27, Hist_vol!I26) -> 0 | K27: =IF(K$8, Hist_vol!$T26*Growth_rates!K27, Hist_vol!J26) -> 0 | L27: =IF(L$8, Hist_vol!$T26*Growth_rates!L27, Hist_vol!K26) -> 0 | M27: =IF(M$8, Hist_vol!$T26*Growth_rates!M27, Hist_vol!L26) -> 0 | N27: =IF(N$8, Hist_vol!$T26*Growth_rates!N27, Hist_vol!M26) -> 0 | O27: =IF(O$8, Hist_vol!$T26*Growth_rates!O27, Hist_vol!N26) -> 0 | P27: =IF(P$8, Hist_vol!$T26*Growth_rates!P27, Hist_vol!O26) -> 0 | Q27: =IF(Q$8, Hist_vol!$T26*Growth_rates!Q27, Hist_vol!P26) -> 0 | R27: =IF(R$8, Hist_vol!$T26*Growth_rates!R27, Hist_vol!Q26) -> 0 | S27: =IF(S$8, Hist_vol!$T26*Growth_rates!S27, Hist_vol!R26) -> 0 | T27: =IF(T$8, Hist_vol!$T26*Growth_rates!T27, Hist_vol!S26) -> 0 | U27: =IF(U$8, Hist_vol!$T26*Growth_rates!U27, Hist_vol!T26) -> 0 | V27: =IF(V$8, Hist_vol!$T26*Growth_rates!V27, Hist_vol!U26) -> 0 | W27: =IF(W$8, Hist_vol!$T26*Growth_rates!W27, Hist_vol!V26) -> 0 | X27: =IF(X$8, Hist_vol!$T26*Growth_rates!X27, Hist_vol!W26) -> 0 | Y27: =IF(Y$8, Hist_vol!$T26*Growth_rates!Y27, Hist_vol!X26) -> 0 | Z27: =IF(Z$8, Hist_vol!$T26*Growth_rates!Z27, Hist_vol!Y26) -> 0 | AA27: =IF(AA$8, Hist_vol!$T26*Growth_rates!AA27, Hist_vol!Z26) -> 0
B28: =Hist_vol!B27 -> Connections | C28: =Hist_vol!C27 -> EG2 | D28: =Hist_vol!D27 -> Embedded generation | E28: =Hist_vol!E27 -> Complex connection HV (small capacity) | H28: =IF(H$8, Hist_vol!$T27*Growth_rates!H28, Hist_vol!G27) -> 2.5 | I28: =IF(I$8, Hist_vol!$T27*Growth_rates!I28, Hist_vol!H27) -> 2.5 | J28: =IF(J$8, Hist_vol!$T27*Growth_rates!J28, Hist_vol!I27) -> 4.505145205 | K28: =IF(K$8, Hist_vol!$T27*Growth_rates!K28, Hist_vol!J27) -> 22.00514521 | L28: =IF(L$8, Hist_vol!$T27*Growth_rates!L28, Hist_vol!K27) -> 33.5 | M28: =IF(M$8, Hist_vol!$T27*Growth_rates!M28, Hist_vol!L27) -> 45 | N28: =IF(N$8, Hist_vol!$T27*Growth_rates!N28, Hist_vol!M27) -> 33.82543044 | O28: =IF(O$8, Hist_vol!$T27*Growth_rates!O28, Hist_vol!N27) -> 5.325430441 | P28: =IF(P$8, Hist_vol!$T27*Growth_rates!P28, Hist_vol!O27) -> 6.5 | Q28: =IF(Q$8, Hist_vol!$T27*Growth_rates!Q28, Hist_vol!P27) -> 10 | R28: =IF(R$8, Hist_vol!$T27*Growth_rates!R28, Hist_vol!Q27) -> 11 | S28: =IF(S$8, Hist_vol!$T27*Growth_rates!S28, Hist_vol!R27) -> 6 | T28: =IF(T$8, Hist_vol!$T27*Growth_rates!T28, Hist_vol!S27) -> 4 | U28: =IF(U$8, Hist_vol!$T27*Growth_rates!U28, Hist_vol!T27) -> 7 | V28: =IF(V$8, Hist_vol!$T27*Growth_rates!V28, Hist_vol!U27) -> 9.502430378 | W28: =IF(W$8, Hist_vol!$T27*Growth_rates!W28, Hist_vol!V27) -> 10.84847478 | X28: =IF(X$8, Hist_vol!$T27*Growth_rates!X28, Hist_vol!W27) -> 3.684460853 | Y28: =IF(Y$8, Hist_vol!$T27*Growth_rates!Y28, Hist_vol!X27) -> 2.179576663 | Z28: =IF(Z$8, Hist_vol!$T27*Growth_rates!Z28, Hist_vol!Y27) -> 0.4654815073 | AA28: =IF(AA$8, Hist_vol!$T27*Growth_rates!AA28, Hist_vol!Z27) -> 0.2744391241
B29: =Hist_vol!B28 -> Connections | C29: =Hist_vol!C28 -> EG3 | D29: =Hist_vol!D28 -> Embedded generation | E29: =Hist_vol!E28 -> Complex connection HV (large capacity) | H29: =IF(H$8, Hist_vol!$T28*Growth_rates!H29, Hist_vol!G28) -> 1 | I29: =IF(I$8, Hist_vol!$T28*Growth_rates!I29, Hist_vol!H28) -> 0.5 | J29: =IF(J$8, Hist_vol!$T28*Growth_rates!J29, Hist_vol!I28) -> 0 | K29: =IF(K$8, Hist_vol!$T28*Growth_rates!K29, Hist_vol!J28) -> 1.5 | L29: =IF(L$8, Hist_vol!$T28*Growth_rates!L29, Hist_vol!K28) -> 2 | M29: =IF(M$8, Hist_vol!$T28*Growth_rates!M29, Hist_vol!L28) -> 3.5 | N29: =IF(N$8, Hist_vol!$T28*Growth_rates!N29, Hist_vol!M28) -> 4.862937069 | O29: =IF(O$8, Hist_vol!$T28*Growth_rates!O29, Hist_vol!N28) -> 2.862937069 | P29: =IF(P$8, Hist_vol!$T28*Growth_rates!P29, Hist_vol!O28) -> 1 | Q29: =IF(Q$8, Hist_vol!$T28*Growth_rates!Q29, Hist_vol!P28) -> 0 | R29: =IF(R$8, Hist_vol!$T28*Growth_rates!R29, Hist_vol!Q28) -> 0.3 | S29: =IF(S$8, Hist_vol!$T28*Growth_rates!S29, Hist_vol!R28) -> 1 | T29: =IF(T$8, Hist_vol!$T28*Growth_rates!T29, Hist_vol!S28) -> 1 | U29: =IF(U$8, Hist_vol!$T28*Growth_rates!U29, Hist_vol!T28) -> 5 | V29: =IF(V$8, Hist_vol!$T28*Growth_rates!V29, Hist_vol!U28) -> 6.78745027 | W29: =IF(W$8, Hist_vol!$T28*Growth_rates!W29, Hist_vol!V28) -> 7.748910555 | X29: =IF(X$8, Hist_vol!$T28*Growth_rates!X29, Hist_vol!W28) -> 2.631757752 | Y29: =IF(Y$8, Hist_vol!$T28*Growth_rates!Y29, Hist_vol!X28) -> 1.556840473 | Z29: =IF(Z$8, Hist_vol!$T28*Growth_rates!Z29, Hist_vol!Y28) -> 0.3324867909 | AA29: =IF(AA$8, Hist_vol!$T28*Growth_rates!AA29, Hist_vol!Z28) -> 0.1960279458

Sheet Forecast_spend
A1: =Assumptions!$A$1 -> Powercor
A2: =Assumptions!$A$2 -> Connections
A3: Forecast gross capex
B7: =Assumptions!B17 -> 2026/27 - 2030/31 reg period | H7: =Assumptions!G17 -> FALSE | I7: =Assumptions!H17 -> FALSE | J7: =Assumptions!I17 -> FALSE | K7: =Assumptions!J17 -> FALSE | L7: =Assumptions!K17 -> FALSE | M7: =Assumptions!L17 -> FALSE | N7: =Assumptions!M17 -> FALSE | O7: =Assumptions!N17 -> FALSE | P7: =Assumptions!O17 -> FALSE | Q7: =Assumptions!P17 -> FALSE | R7: =Assumptions!Q17 -> FALSE | S7: =Assumptions!R17 -> FALSE | T7: =Assumptions!S17 -> FALSE | U7: =Assumptions!T17 -> FALSE | V7: =Assumptions!U17 -> FALSE | W7: =Assumptions!V17 -> TRUE | X7: =Assumptions!W17 -> TRUE | Y7: =Assumptions!X17 -> TRUE | Z7: =Assumptions!Y17 -> TRUE | AA7: =Assumptions!Z17 -> TRUE
B8: =Assumptions!B18 -> Forecast period | H8: =Assumptions!G18 -> FALSE | I8: =Assumptions!H18 -> FALSE | J8: =Assumptions!I18 -> FALSE | K8: =Assumptions!J18 -> FALSE | L8: =Assumptions!K18 -> FALSE | M8: =Assumptions!L18 -> FALSE | N8: =Assumptions!M18 -> FALSE | O8: =Assumptions!N18 -> FALSE | P8: =Assumptions!O18 -> FALSE | Q8: =Assumptions!P18 -> FALSE | R8: =Assumptions!Q18 -> FALSE | S8: =Assumptions!R18 -> FALSE | T8: =Assumptions!S18 -> FALSE | U8: =Assumptions!T18 -> FALSE | V8: =Assumptions!U18 -> TRUE | W8: =Assumptions!V18 -> TRUE | X8: =Assumptions!W18 -> TRUE | Y8: =Assumptions!X18 -> TRUE | Z8: =Assumptions!Y18 -> TRUE | AA8: =Assumptions!Z18 -> TRUE
B9: =Assumptions!B19 -> Fin year end | H9: =Assumptions!G19 -> 2012 | I9: =Assumptions!H19 -> 2013 | J9: =Assumptions!I19 -> 2014 | K9: =Assumptions!J19 -> 2015 | L9: =Assumptions!K19 -> 2016 | M9: =Assumptions!L19 -> 2017 | N9: =Assumptions!M19 -> 2018 | O9: =Assumptions!N19 -> 2019 | P9: =Assumptions!O19 -> 2020 | Q9: =Assumptions!P19 -> 2021 | R9: =Assumptions!Q19 -> 2022 | S9: =Assumptions!R19 -> 2023 | T9: =Assumptions!S19 -> 2024 | U9: =Assumptions!T19 -> 2025 | V9: =Assumptions!U19 -> 2026 | W9: =Assumptions!V19 -> 2027 | X9: =Assumptions!W19 -> 2028 | Y9: =Assumptions!X19 -> 2029 | Z9: =Assumptions!Y19 -> 2030 | AA9: =Assumptions!Z19 -> 2031
B10: =Assumptions!B20 -> Basis | H10: =Assumptions!G20 -> Actual | I10: =Assumptions!H20 -> Actual | J10: =Assumptions!I20 -> Actual | K10: =Assumptions!J20 -> Actual | L10: =Assumptions!K20 -> Actual | M10: =Assumptions!L20 -> Actual | N10: =Assumptions!M20 -> Actual | O10: =Assumptions!N20 -> Actual | P10: =Assumptions!O20 -> Actual | Q10: =Assumptions!P20 -> Actual | R10: =Assumptions!Q20 -> Actual | S10: =Assumptions!R20 -> Actual | T10: =Assumptions!S20 -> Actual | U10: =Assumptions!T20 -> Actual | V10: =Assumptions!U20 -> Forecast | W10: =Assumptions!V20 -> Forecast | X10: =Assumptions!W20 -> Forecast | Y10: =Assumptions!X20 -> Forecast | Z10: =Assumptions!Y20 -> Forecast | AA10: =Assumptions!Z20 -> Forecast
B13: =Hist_vol!B$13 -> Category | C13: Type | D13: =Hist_vol!D$13 -> RIN category | E13: =Hist_vol!E$13 -> Description | H13: =Assumptions!G$24 -> 2011/12 | I13: =Assumptions!H$24 -> 2012/13 | J13: =Assumptions!I$24 -> 2013/14 | K13: =Assumptions!J$24 -> 2014/15 | L13: =Assumptions!K$24 -> 2015/16 | M13: =Assumptions!L$24 -> 2016/17 | N13: =Assumptions!M$24 -> 2017/18 | O13: =Assumptions!N$24 -> 2018/19 | P13: =Assumptions!O$24 -> 2019/20 | Q13: =Assumptions!P$24 -> 2020/21 | R13: =Assumptions!Q$24 -> 2021/22 | S13: =Assumptions!R$24 -> 2022/23 | T13: =Assumptions!S$24 -> 2023/24 | U13: =Assumptions!T$24 -> 2024/25 | V13: =Assumptions!U$24 -> 2025/26 | W13: =Assumptions!V$24 -> 2026/27 | X13: =Assumptions!W$24 -> 2027/28 | Y13: =Assumptions!X$24 -> 2028/29 | Z13: =Assumptions!Y$24 -> 2029/30 | AA13: =Assumptions!Z$24 -> 2030/31 | AC13: 2026-31 Total
B15: Forecast total spend (June 2026 $)
B16: =Hist_vol!B15 -> Connections | C16: =Hist_vol!C15 -> R1 | D16: =Hist_vol!D15 -> Residential | E16: =Hist_vol!E15 -> Simple connection LV | F16: =D16&" "&E16 -> Residential Simple connection LV | H16: =SUMPRODUCT(($F$38:$F$53=$F16)*(H$38:H$53)) -> 6001643.794 | I16: =SUMPRODUCT(($F$38:$F$53=$F16)*(I$38:I$53)) -> 5674391.718 | J16: =SUMPRODUCT(($F$38:$F$53=$F16)*(J$38:J$53)) -> 5697486.497 | K16: =SUMPRODUCT(($F$38:$F$53=$F16)*(K$38:K$53)) -> 5631113.022 | L16: =SUMPRODUCT(($F$38:$F$53=$F16)*(L$38:L$53)) -> 2731809.954 | M16: =SUMPRODUCT(($F$38:$F$53=$F16)*(M$38:M$53)) -> 0 | N16: =SUMPRODUCT(($F$38:$F$53=$F16)*(N$38:N$53)) -> 0 | O16: =SUMPRODUCT(($F$38:$F$53=$F16)*(O$38:O$53)) -> 0 | P16: =SUMPRODUCT(($F$38:$F$53=$F16)*(P$38:P$53)) -> 0 | Q16: =SUMPRODUCT(($F$38:$F$53=$F16)*(Q$38:Q$53)) -> 0 | R16: =SUMPRODUCT(($F$38:$F$53=$F16)*(R$38:R$53)) -> 0 | S16: =SUMPRODUCT(($F$38:$F$53=$F16)*(S$38:S$53)) -> 0 | T16: =SUMPRODUCT(($F$38:$F$53=$F16)*(T$38:T$53)) -> 0 | U16: =SUMPRODUCT(($F$38:$F$53=$F16)*(U$38:U$53)) -> 0 | V16: =SUMPRODUCT(($F$38:$F$53=$F16)*(V$38:V$53)) -> 0 | W16: =SUMPRODUCT(($F$38:$F$53=$F16)*(W$38:W$53)) -> 0 | X16: =SUMPRODUCT(($F$38:$F$53=$F16)*(X$38:X$53)) -> 0 | Y16: =SUMPRODUCT(($F$38:$F$53=$F16)*(Y$38:Y$53)) -> 0 | Z16: =SUMPRODUCT(($F$38:$F$53=$F16)*(Z$38:Z$53)) -> 0 | AA16: =SUMPRODUCT(($F$38:$F$53=$F16)*(AA$38:AA$53)) -> 0 | AC16: =SUMPRODUCT($H$7:$AA$7*$H16:$AA16) -> 0
B17: =Hist_vol!B16 -> Connections | C17: =Hist_vol!C16 -> R2 | D17: =Hist_vol!D16 -> Residential | E17: =Hist_vol!E16 -> Complex connection LV | F17: =D17&" "&E17 -> Residential Complex connection LV | H17: =SUMPRODUCT(($F$38:$F$53=$F17)*(H$38:H$53)) -> 23733903.54 | I17: =SUMPRODUCT(($F$38:$F$53=$F17)*(I$38:I$53)) -> 25439552.36 | J17: =SUMPRODUCT(($F$38:$F$53=$F17)*(J$38:J$53)) -> 26722613 | K17: =SUMPRODUCT(($F$38:$F$53=$F17)*(K$38:K$53)) -> 24553198.51 | L17: =SUMPRODUCT(($F$38:$F$53=$F17)*(L$38:L$53)) -> 20930664.88 | M17: =SUMPRODUCT(($F$38:$F$53=$F17)*(M$38:M$53)) -> 19862689.67 | N17: =SUMPRODUCT(($F$38:$F$53=$F17)*(N$38:N$53)) -> 20296675.4 | O17: =SUMPRODUCT(($F$38:$F$53=$F17)*(O$38:O$53)) -> 22764693.53 | P17: =SUMPRODUCT(($F$38:$F$53=$F17)*(P$38:P$53)) -> 25989766.08 | Q17: =SUMPRODUCT(($F$38:$F$53=$F17)*(Q$38:Q$53)) -> 26658699.9 | R17: =SUMPRODUCT(($F$38:$F$53=$F17)*(R$38:R$53)) -> 31073409.96 | S17: =SUMPRODUCT(($F$38:$F$53=$F17)*(S$38:S$53)) -> 33995260.45 | T17: =SUMPRODUCT(($F$38:$F$53=$F17)*(T$38:T$53)) -> 30546488.28 | U17: =SUMPRODUCT(($F$38:$F$53=$F17)*(U$38:U$53)) -> 29183777.59 | V17: =SUMPRODUCT(($F$38:$F$53=$F17)*(V$38:V$53)) -> 36808977.48 | W17: =SUMPRODUCT(($F$38:$F$53=$F17)*(W$38:W$53)) -> 41478138.88 | X17: =SUMPRODUCT(($F$38:$F$53=$F17)*(X$38:X$53)) -> 41389976.32 | Y17: =SUMPRODUCT(($F$38:$F$53=$F17)*(Y$38:Y$53)) -> 39885628.82 | Z17: =SUMPRODUCT(($F$38:$F$53=$F17)*(Z$38:Z$53)) -> 40167244.65 | AA17: =SUMPRODUCT(($F$38:$F$53=$F17)*(AA$38:AA$53)) -> 41117493.81 | AC17: =SUMPRODUCT($H$7:$AA$7*$H17:$AA17) -> 204038482.5
B18: =Hist_vol!B17 -> Connections | C18: =Hist_vol!C17 -> R3 | D18: =Hist_vol!D17 -> Residential | E18: =Hist_vol!E17 -> Complex connection HV | F18: Residential Complex connection HV | H18: =SUMPRODUCT(($F$38:$F$53=$F18)*(H$38:H$53)) -> 11513614.22 | I18: =SUMPRODUCT(($F$38:$F$53=$F18)*(I$38:I$53)) -> 12705749.97 | J18: =SUMPRODUCT(($F$38:$F$53=$F18)*(J$38:J$53)) -> 11989825.16 | K18: =SUMPRODUCT(($F$38:$F$53=$F18)*(K$38:K$53)) -> 9640283.15 | L18: =SUMPRODUCT(($F$38:$F$53=$F18)*(L$38:L$53)) -> 6928229.576 | M18: =SUMPRODUCT(($F$38:$F$53=$F18)*(M$38:M$53)) -> 6216914.919 | N18: =SUMPRODUCT(($F$38:$F$53=$F18)*(N$38:N$53)) -> 6984002.652 | O18: =SUMPRODUCT(($F$38:$F$53=$F18)*(O$38:O$53)) -> 7314215.974 | P18: =SUMPRODUCT(($F$38:$F$53=$F18)*(P$38:P$53)) -> 7750753.487 | Q18: =SUMPRODUCT(($F$38:$F$53=$F18)*(Q$38:Q$53)) -> 7748573.23 | R18: =SUMPRODUCT(($F$38:$F$53=$F18)*(R$38:R$53)) -> 10240919.52 | S18: =SUMPRODUCT(($F$38:$F$53=$F18)*(S$38:S$53)) -> 10716422.27 | T18: =SUMPRODUCT(($F$38:$F$53=$F18)*(T$38:T$53)) -> 8494014.099 | U18: =SUMPRODUCT(($F$38:$F$53=$F18)*(U$38:U$53)) -> 7463342.722 | V18: =SUMPRODUCT(($F$38:$F$53=$F18)*(V$38:V$53)) -> 7548237.322 | W18: =SUMPRODUCT(($F$38:$F$53=$F18)*(W$38:W$53)) -> 8505719.458 | X18: =SUMPRODUCT(($F$38:$F$53=$F18)*(X$38:X$53)) -> 8487640.392 | Y18: =SUMPRODUCT(($F$38:$F$53=$F18)*(Y$38:Y$53)) -> 8179151.193 | Z18: =SUMPRODUCT(($F$38:$F$53=$F18)*(Z$38:Z$53)) -> 8236900.777 | AA18: =SUMPRODUCT(($F$38:$F$53=$F18)*(AA$38:AA$53)) -> 8431763.734 | AC18: =SUMPRODUCT($H$7:$AA$7*$H18:$AA18) -> 41841175.55
B19: =Hist_vol!B18 -> Connections | C19: =Hist_vol!C18 -> CI1 | D19: =Hist_vol!D18 -> Commercial/Industrial | E19: =Hist_vol!E18 -> Simple connection LV | F19: Commercial/Industrial Simple connection LV | H19: =SUMPRODUCT(($F$38:$F$53=$F19)*(H$38:H$53)) -> 828047.6423 | I19: =SUMPRODUCT(($F$38:$F$53=$F19)*(I$38:I$53)) -> 898395.9219 | J19: =SUMPRODUCT(($F$38:$F$53=$F19)*(J$38:J$53)) -> 939380.1083 | K19: =SUMPRODUCT(($F$38:$F$53=$F19)*(K$38:K$53)) -> 917714.3481 | L19: =SUMPRODUCT(($F$38:$F$53=$F19)*(L$38:L$53)) -> 444713.0176 | M19: =SUMPRODUCT(($F$38:$F$53=$F19)*(M$38:M$53)) -> 0 | N19: =SUMPRODUCT(($F$38:$F$53=$F19)*(N$38:N$53)) -> 0 | O19: =SUMPRODUCT(($F$38:$F$53=$F19)*(O$38:O$53)) -> 0 | P19: =SUMPRODUCT(($F$38:$F$53=$F19)*(P$38:P$53)) -> 0 | Q19: =SUMPRODUCT(($F$38:$F$53=$F19)*(Q$38:Q$53)) -> 0 | R19: =SUMPRODUCT(($F$38:$F$53=$F19)*(R$38:R$53)) -> 0 | S19: =SUMPRODUCT(($F$38:$F$53=$F19)*(S$38:S$53)) -> 0 | T19: =SUMPRODUCT(($F$38:$F$53=$F19)*(T$38:T$53)) -> 0 | U19: =SUMPRODUCT(($F$38:$F$53=$F19)*(U$38:U$53)) -> 0 | V19: =SUMPRODUCT(($F$38:$F$53=$F19)*(V$38:V$53)) -> 0 | W19: =SUMPRODUCT(($F$38:$F$53=$F19)*(W$38:W$53)) -> 0 | X19: =SUMPRODUCT(($F$38:$F$53=$F19)*(X$38:X$53)) -> 0 | Y19: =SUMPRODUCT(($F$38:$F$53=$F19)*(Y$38:Y$53)) -> 0 | Z19: =SUMPRODUCT(($F$38:$F$53=$F19)*(Z$38:Z$53)) -> 0 | AA19: =SUMPRODUCT(($F$38:$F$53=$F19)*(AA$38:AA$53)) -> 0 | AC19: =SUMPRODUCT($H$7:$AA$7*$H19:$AA19) -> 0
B20: =Hist_vol!B19 -> Connections | C20: =Hist_vol!C19 -> CI2 | D20: =Hist_vol!D19 -> Commercial/Industrial | E20: =Hist_vol!E19 -> Complex connection HV (customer connected at LV, minor HV works) | F20: Commercial/Industrial Complex connection HV (customer connected at LV, minor HV works) | H20: =SUMPRODUCT(($F$38:$F$53=$F20)*(H$38:H$53)) -> 17236656.34 | I20: =SUMPRODUCT(($F$38:$F$53=$F20)*(I$38:I$53)) -> 17803164.81 | J20: =SUMPRODUCT(($F$38:$F$53=$F20)*(J$38:J$53)) -> 20011641.06 | K20: =SUMPRODUCT(($F$38:$F$53=$F20)*(K$38:K$53)) -> 28935472.65 | L20: =SUMPRODUCT(($F$38:$F$53=$F20)*(L$38:L$53)) -> 33483439.15 | M20: =SUMPRODUCT(($F$38:$F$53=$F20)*(M$38:M$53)) -> 31839319.16 | N20: =SUMPRODUCT(($F$38:$F$53=$F20)*(N$38:N$53)) -> 37878255.73 | O20: =SUMPRODUCT(($F$38:$F$53=$F20)*(O$38:O$53)) -> 45961244.53 | P20: =SUMPRODUCT(($F$38:$F$53=$F20)*(P$38:P$53)) -> 39864029.09 | Q20: =SUMPRODUCT(($F$38:$F$53=$F20)*(Q$38:Q$53)) -> 25961745.31 | R20: =SUMPRODUCT(($F$38:$F$53=$F20)*(R$38:R$53)) -> 19752068.72 | S20: =SUMPRODUCT(($F$38:$F$53=$F20)*(S$38:S$53)) -> 22828301.68 | T20: =SUMPRODUCT(($F$38:$F$53=$F20)*(T$38:T$53)) -> 22246163.21 | U20: =SUMPRODUCT(($F$38:$F$53=$F20)*(U$38:U$53)) -> 18384679.6 | V20: =SUMPRODUCT(($F$38:$F$53=$F20)*(V$38:V$53)) -> 26573169.75 | W20: =SUMPRODUCT(($F$38:$F$53=$F20)*(W$38:W$53)) -> 24403833.82 | X20: =SUMPRODUCT(($F$38:$F$53=$F20)*(X$38:X$53)) -> 23276823.99 | Y20: =SUMPRODUCT(($F$38:$F$53=$F20)*(Y$38:Y$53)) -> 23238818.3 | Z20: =SUMPRODUCT(($F$38:$F$53=$F20)*(Z$38:Z$53)) -> 23586605.77 | AA20: =SUMPRODUCT(($F$38:$F$53=$F20)*(AA$38:AA$53)) -> 22347894.53 | AC20: =SUMPRODUCT($H$7:$AA$7*$H20:$AA20) -> 116853976.4
B21: =Hist_vol!B20 -> Connections | C21: =Hist_vol!C20 -> CI3 | D21: =Hist_vol!D20 -> Commercial/Industrial | E21: =Hist_vol!E20 -> Complex connection HV (customer connected at LV, upstream asset works) | F21: Commercial/Industrial Complex connection HV (customer connected at LV, upstream asset works) | H21: =SUMPRODUCT(($F$38:$F$53=$F21)*(H$38:H$53)) -> 37058409.58 | I21: =SUMPRODUCT(($F$38:$F$53=$F21)*(I$38:I$53)) -> 38319769.57 | J21: =SUMPRODUCT(($F$38:$F$53=$F21)*(J$38:J$53)) -> 38570836.03 | K21: =SUMPRODUCT(($F$38:$F$53=$F21)*(K$38:K$53)) -> 34051973.85 | L21: =SUMPRODUCT(($F$38:$F$53=$F21)*(L$38:L$53)) -> 30256681.32 | M21: =SUMPRODUCT(($F$38:$F$53=$F21)*(M$38:M$53)) -> 33367277.81 | N21: =SUMPRODUCT(($F$38:$F$53=$F21)*(N$38:N$53)) -> 33623228.02 | O21: =SUMPRODUCT(($F$38:$F$53=$F21)*(O$38:O$53)) -> 33222680.41 | P21: =SUMPRODUCT(($F$38:$F$53=$F21)*(P$38:P$53)) -> 38556590.91 | Q21: =SUMPRODUCT(($F$38:$F$53=$F21)*(Q$38:Q$53)) -> 38663827.02 | R21: =SUMPRODUCT(($F$38:$F$53=$F21)*(R$38:R$53)) -> 44438851.24 | S21: =SUMPRODUCT(($F$38:$F$53=$F21)*(S$38:S$53)) -> 49663832.26 | T21: =SUMPRODUCT(($F$38:$F$53=$F21)*(T$38:T$53)) -> 50542671.23 | U21: =SUMPRODUCT(($F$38:$F$53=$F21)*(U$38:U$53)) -> 49837646.64 | V21: =SUMPRODUCT(($F$38:$F$53=$F21)*(V$38:V$53)) -> 56395276.88 | W21: =SUMPRODUCT(($F$38:$F$53=$F21)*(W$38:W$53)) -> 51791373.71 | X21: =SUMPRODUCT(($F$38:$F$53=$F21)*(X$38:X$53)) -> 49399561.52 | Y21: =SUMPRODUCT(($F$38:$F$53=$F21)*(Y$38:Y$53)) -> 49318903.43 | Z21: =SUMPRODUCT(($F$38:$F$53=$F21)*(Z$38:Z$53)) -> 50057000.17 | AA21: =SUMPRODUCT(($F$38:$F$53=$F21)*(AA$38:AA$53)) -> 47428128.13 | AC21: =SUMPRODUCT($H$7:$AA$7*$H21:$AA21) -> 247994967
B22: =Hist_vol!B21 -> Connections | C22: =Hist_vol!C21 -> CI4 | D22: =Hist_vol!D21 -> Commercial/Industrial | E22: =Hist_vol!E21 -> Complex connection HV (customer connected at HV) | F22: Commercial/Industrial Complex connection HV (customer connected at HV) | H22: =SUMPRODUCT(($F$38:$F$53=$F22)*(H$38:H$53)) -> 3940858.789 | I22: =SUMPRODUCT(($F$38:$F$53=$F22)*(I$38:I$53)) -> 4626064.378 | J22: =SUMPRODUCT(($F$38:$F$53=$F22)*(J$38:J$53)) -> 4779939.334 | K22: =SUMPRODUCT(($F$38:$F$53=$F22)*(K$38:K$53)) -> 2557221.234 | L22: =SUMPRODUCT(($F$38:$F$53=$F22)*(L$38:L$53)) -> 1563722.427 | M22: =SUMPRODUCT(($F$38:$F$53=$F22)*(M$38:M$53)) -> 2062417.899 | N22: =SUMPRODUCT(($F$38:$F$53=$F22)*(N$38:N$53)) -> 1689451.941 | O22: =SUMPRODUCT(($F$38:$F$53=$F22)*(O$38:O$53)) -> 1716902.063 | P22: =SUMPRODUCT(($F$38:$F$53=$F22)*(P$38:P$53)) -> 4296692.215 | Q22: =SUMPRODUCT(($F$38:$F$53=$F22)*(Q$38:Q$53)) -> 16666117.8 | R22: =SUMPRODUCT(($F$38:$F$53=$F22)*(R$38:R$53)) -> 18161239.81 | S22: =SUMPRODUCT(($F$38:$F$53=$F22)*(S$38:S$53)) -> 11587495.43 | T22: =SUMPRODUCT(($F$38:$F$53=$F22)*(T$38:T$53)) -> 16448502.58 | U22: =SUMPRODUCT(($F$38:$F$53=$F22)*(U$38:U$53)) -> 36511189.02 | V22: =SUMPRODUCT(($F$38:$F$53=$F22)*(V$38:V$53)) -> 14438624.46 | W22: =SUMPRODUCT(($F$38:$F$53=$F22)*(W$38:W$53)) -> 13259908.21 | X22: =SUMPRODUCT(($F$38:$F$53=$F22)*(X$38:X$53)) -> 12647543.49 | Y22: =SUMPRODUCT(($F$38:$F$53=$F22)*(Y$38:Y$53)) -> 12626892.97 | Z22: =SUMPRODUCT(($F$38:$F$53=$F22)*(Z$38:Z$53)) -> 12815864.5 | AA22: =SUMPRODUCT(($F$38:$F$53=$F22)*(AA$38:AA$53)) -> 12142806.43 | AC22: =SUMPRODUCT($H$7:$AA$7*$H22:$AA22) -> 63493015.61
B23: =Hist_vol!B22 -> Connections | C23: =Hist_vol!C22 -> CI5 | D23: =Hist_vol!D22 -> Commercial/Industrial | E23: =Hist_vol!E22 -> Complex connection sub-transmission | F23: Commercial/Industrial Complex connection sub-transmission | H23: =SUMPRODUCT(($F$38:$F$53=$F23)*(H$38:H$53)) -> 0 | I23: =SUMPRODUCT(($F$38:$F$53=$F23)*(I$38:I$53)) -> 0 | J23: =SUMPRODUCT(($F$38:$F$53=$F23)*(J$38:J$53)) -> 0 | K23: =SUMPRODUCT(($F$38:$F$53=$F23)*(K$38:K$53)) -> 0 | L23: =SUMPRODUCT(($F$38:$F$53=$F23)*(L$38:L$53)) -> 0 | M23: =SUMPRODUCT(($F$38:$F$53=$F23)*(M$38:M$53)) -> 4613397.228 | N23: =SUMPRODUCT(($F$38:$F$53=$F23)*(N$38:N$53)) -> 4546228.624 | O23: =SUMPRODUCT(($F$38:$F$53=$F23)*(O$38:O$53)) -> 0 | P23: =SUMPRODUCT(($F$38:$F$53=$F23)*(P$38:P$53)) -> 0 | Q23: =SUMPRODUCT(($F$38:$F$53=$F23)*(Q$38:Q$53)) -> 0 | R23: =SUMPRODUCT(($F$38:$F$53=$F23)*(R$38:R$53)) -> 0 | S23: =SUMPRODUCT(($F$38:$F$53=$F23)*(S$38:S$53)) -> 5579147.227 | T23: =SUMPRODUCT(($F$38:$F$53=$F23)*(T$38:T$53)) -> 1502318.739 | U23: =SUMPRODUCT(($F$38:$F$53=$F23)*(U$38:U$53)) -> 46468786.31 | V23: =SUMPRODUCT(($F$38:$F$53=$F23)*(V$38:V$53)) -> 4790060.396 | W23: =SUMPRODUCT(($F$38:$F$53=$F23)*(W$38:W$53)) -> 4399017.467 | X23: =SUMPRODUCT(($F$38:$F$53=$F23)*(X$38:X$53)) -> 4195863.489 | Y23: =SUMPRODUCT(($F$38:$F$53=$F23)*(Y$38:Y$53)) -> 4189012.611 | Z23: =SUMPRODUCT(($F$38:$F$53=$F23)*(Z$38:Z$53)) -> 4251704.528 | AA23: =SUMPRODUCT(($F$38:$F$53=$F23)*(AA$38:AA$53)) -> 4028415.335 | AC23: =SUMPRODUCT($H$7:$AA$7*$H23:$AA23) -> 21064013.43
B24: =Hist_vol!B23 -> Connections | C24: =Hist_vol!C23 -> S1 | D24: =Hist_vol!D23 -> Subdivision | E24: =Hist_vol!E23 -> Complex connection LV | F24: Subdivision Complex connection LV | H24: =SUMPRODUCT(($F$38:$F$53=$F24)*(H$38:H$53)) -> 0 | I24: =SUMPRODUCT(($F$38:$F$53=$F24)*(I$38:I$53)) -> 0 | J24: =SUMPRODUCT(($F$38:$F$53=$F24)*(J$38:J$53)) -> 0 | K24: =SUMPRODUCT(($F$38:$F$53=$F24)*(K$38:K$53)) -> 0 | L24: =SUMPRODUCT(($F$38:$F$53=$F24)*(L$38:L$53)) -> 0 | M24: =SUMPRODUCT(($F$38:$F$53=$F24)*(M$38:M$53)) -> 0 | N24: =SUMPRODUCT(($F$38:$F$53=$F24)*(N$38:N$53)) -> 0 | O24: =SUMPRODUCT(($F$38:$F$53=$F24)*(O$38:O$53)) -> 0 | P24: =SUMPRODUCT(($F$38:$F$53=$F24)*(P$38:P$53)) -> 0 | Q24: =SUMPRODUCT(($F$38:$F$53=$F24)*(Q$38:Q$53)) -> 0 | R24: =SUMPRODUCT(($F$38:$F$53=$F24)*(R$38:R$53)) -> 0 | S24: =SUMPRODUCT(($F$38:$F$53=$F24)*(S$38:S$53)) -> 0 | T24: =SUMPRODUCT(($F$38:$F$53=$F24)*(T$38:T$53)) -> 0 | U24: =SUMPRODUCT(($F$38:$F$53=$F24)*(U$38:U$53)) -> 0 | V24: =SUMPRODUCT(($F$38:$F$53=$F24)*(V$38:V$53)) -> 0 | W24: =SUMPRODUCT(($F$38:$F$53=$F24)*(W$38:W$53)) -> 0 | X24: =SUMPRODUCT(($F$38:$F$53=$F24)*(X$38:X$53)) -> 0 | Y24: =SUMPRODUCT(($F$38:$F$53=$F24)*(Y$38:Y$53)) -> 0 | Z24: =SUMPRODUCT(($F$38:$F$53=$F24)*(Z$38:Z$53)) -> 0 | AA24: =SUMPRODUCT(($F$38:$F$53=$F24)*(AA$38:AA$53)) -> 0 | AC24: =SUMPRODUCT($H$7:$AA$7*$H24:$AA24) -> 0
B25: =Hist_vol!B24 -> Connections | C25: =Hist_vol!C24 -> S2 | D25: =Hist_vol!D24 -> Subdivision | E25: =Hist_vol!E24 -> Complex connection HV (no upstream asset works) | F25: Subdivision Complex connection HV (no upstream asset works) | H25: =SUMPRODUCT(($F$38:$F$53=$F25)*(H$38:H$53)) -> 0 | I25: =SUMPRODUCT(($F$38:$F$53=$F25)*(I$38:I$53)) -> 0 | J25: =SUMPRODUCT(($F$38:$F$53=$F25)*(J$38:J$53)) -> 0 | K25: =SUMPRODUCT(($F$38:$F$53=$F25)*(K$38:K$53)) -> 0 | L25: =SUMPRODUCT(($F$38:$F$53=$F25)*(L$38:L$53)) -> 0 | M25: =SUMPRODUCT(($F$38:$F$53=$F25)*(M$38:M$53)) -> 0 | N25: =SUMPRODUCT(($F$38:$F$53=$F25)*(N$38:N$53)) -> 0 | O25: =SUMPRODUCT(($F$38:$F$53=$F25)*(O$38:O$53)) -> 0 | P25: =SUMPRODUCT(($F$38:$F$53=$F25)*(P$38:P$53)) -> 0 | Q25: =SUMPRODUCT(($F$38:$F$53=$F25)*(Q$38:Q$53)) -> 0 | R25: =SUMPRODUCT(($F$38:$F$53=$F25)*(R$38:R$53)) -> 0 | S25: =SUMPRODUCT(($F$38:$F$53=$F25)*(S$38:S$53)) -> 0 | T25: =SUMPRODUCT(($F$38:$F$53=$F25)*(T$38:T$53)) -> 0 | U25: =SUMPRODUCT(($F$38:$F$53=$F25)*(U$38:U$53)) -> 0 | V25: =SUMPRODUCT(($F$38:$F$53=$F25)*(V$38:V$53)) -> 0 | W25: =SUMPRODUCT(($F$38:$F$53=$F25)*(W$38:W$53)) -> 0 | X25: =SUMPRODUCT(($F$38:$F$53=$F25)*(X$38:X$53)) -> 0 | Y25: =SUMPRODUCT(($F$38:$F$53=$F25)*(Y$38:Y$53)) -> 0 | Z25: =SUMPRODUCT(($F$38:$F$53=$F25)*(Z$38:Z$53)) -> 0 | AA25: =SUMPRODUCT(($F$38:$F$53=$F25)*(AA$38:AA$53)) -> 0 | AC25: =SUMPRODUCT($H$7:$AA$7*$H25:$AA25) -> 0
B26: =Hist_vol!B25 -> Connections | C26: =Hist_vol!C25 -> S3 | D26: =Hist_vol!D25 -> Subdivision | E26: =Hist_vol!E25 -> Complex connection HV (with upstream asset works) | F26: Subdivision Complex connection HV (with upstream asset works) | H26: =SUMPRODUCT(($F$38:$F$53=$F26)*(H$38:H$53)) -> 33920090.47 | I26: =SUMPRODUCT(($F$38:$F$53=$F26)*(I$38:I$53)) -> 38427621.96 | J26: =SUMPRODUCT(($F$38:$F$53=$F26)*(J$38:J$53)) -> 35008057.57 | K26: =SUMPRODUCT(($F$38:$F$53=$F26)*(K$38:K$53)) -> 34058752.07 | L26: =SUMPRODUCT(($F$38:$F$53=$F26)*(L$38:L$53)) -> 41249626.06 | M26: =SUMPRODUCT(($F$38:$F$53=$F26)*(M$38:M$53)) -> 44638879.67 | N26: =SUMPRODUCT(($F$38:$F$53=$F26)*(N$38:N$53)) -> 43022988.18 | O26: =SUMPRODUCT(($F$38:$F$53=$F26)*(O$38:O$53)) -> 36378961.4 | P26: =SUMPRODUCT(($F$38:$F$53=$F26)*(P$38:P$53)) -> 38002293 | Q26: =SUMPRODUCT(($F$38:$F$53=$F26)*(Q$38:Q$53)) -> 43821643.28 | R26: =SUMPRODUCT(($F$38:$F$53=$F26)*(R$38:R$53)) -> 38714847.23 | S26: =SUMPRODUCT(($F$38:$F$53=$F26)*(S$38:S$53)) -> 41875005.23 | T26: =SUMPRODUCT(($F$38:$F$53=$F26)*(T$38:T$53)) -> 49632668.64 | U26: =SUMPRODUCT(($F$38:$F$53=$F26)*(U$38:U$53)) -> 58639850.27 | V26: =SUMPRODUCT(($F$38:$F$53=$F26)*(V$38:V$53)) -> 33616774.16 | W26: =SUMPRODUCT(($F$38:$F$53=$F26)*(W$38:W$53)) -> 37881009.55 | X26: =SUMPRODUCT(($F$38:$F$53=$F26)*(X$38:X$53)) -> 37800492.76 | Y26: =SUMPRODUCT(($F$38:$F$53=$F26)*(Y$38:Y$53)) -> 36426607.53 | Z26: =SUMPRODUCT(($F$38:$F$53=$F26)*(Z$38:Z$53)) -> 36683800.66 | AA26: =SUMPRODUCT(($F$38:$F$53=$F26)*(AA$38:AA$53)) -> 37551640.88 | AC26: =SUMPRODUCT($H$7:$AA$7*$H26:$AA26) -> 186343551.4
B27: =Hist_vol!B26 -> Connections | C27: =Hist_vol!C26 -> EG1 | D27: =Hist_vol!D26 -> Embedded generation | E27: =Hist_vol!E26 -> Simple connection LV | F27: Embedded generation Simple connection LV | H27: =SUMPRODUCT(($F$38:$F$53=$F27)*(H$38:H$53)) -> 0 | I27: =SUMPRODUCT(($F$38:$F$53=$F27)*(I$38:I$53)) -> 0 | J27: =SUMPRODUCT(($F$38:$F$53=$F27)*(J$38:J$53)) -> 0 | K27: =SUMPRODUCT(($F$38:$F$53=$F27)*(K$38:K$53)) -> 0 | L27: =SUMPRODUCT(($F$38:$F$53=$F27)*(L$38:L$53)) -> 0 | M27: =SUMPRODUCT(($F$38:$F$53=$F27)*(M$38:M$53)) -> 0 | N27: =SUMPRODUCT(($F$38:$F$53=$F27)*(N$38:N$53)) -> 0 | O27: =SUMPRODUCT(($F$38:$F$53=$F27)*(O$38:O$53)) -> 0 | P27: =SUMPRODUCT(($F$38:$F$53=$F27)*(P$38:P$53)) -> 0 | Q27: =SUMPRODUCT(($F$38:$F$53=$F27)*(Q$38:Q$53)) -> 0 | R27: =SUMPRODUCT(($F$38:$F$53=$F27)*(R$38:R$53)) -> 0 | S27: =SUMPRODUCT(($F$38:$F$53=$F27)*(S$38:S$53)) -> 0 | T27: =SUMPRODUCT(($F$38:$F$53=$F27)*(T$38:T$53)) -> 0 | U27: =SUMPRODUCT(($F$38:$F$53=$F27)*(U$38:U$53)) -> 0 | V27: =SUMPRODUCT(($F$38:$F$53=$F27)*(V$38:V$53)) -> 0 | W27: =SUMPRODUCT(($F$38:$F$53=$F27)*(W$38:W$53)) -> 0 | X27: =SUMPRODUCT(($F$38:$F$53=$F27)*(X$38:X$53)) -> 0 | Y27: =SUMPRODUCT(($F$38:$F$53=$F27)*(Y$38:Y$53)) -> 0 | Z27: =SUMPRODUCT(($F$38:$F$53=$F27)*(Z$38:Z$53)) -> 0 | AA27: =SUMPRODUCT(($F$38:$F$53=$F27)*(AA$38:AA$53)) -> 0 | AC27: =SUMPRODUCT($H$7:$AA$7*$H27:$AA27) -> 0
B28: =Hist_vol!B27 -> Connections | C28: =Hist_vol!C27 -> EG2 | D28: =Hist_vol!D27 -> Embedded generation | E28: =Hist_vol!E27 -> Complex connection HV (small capacity) | F28: Embedded generation Complex connection HV (small capacity) | H28: =SUMPRODUCT(($F$38:$F$53=$F28)*(H$38:H$53)) -> 1214197.93 | I28: =SUMPRODUCT(($F$38:$F$53=$F28)*(I$38:I$53)) -> 1117908.545 | J28: =SUMPRODUCT(($F$38:$F$53=$F28)*(J$38:J$53)) -> 1322589.033 | K28: =SUMPRODUCT(($F$38:$F$53=$F28)*(K$38:K$53)) -> 1421284.752 | L28: =SUMPRODUCT(($F$38:$F$53=$F28)*(L$38:L$53)) -> 929622.4754 | M28: =SUMPRODUCT(($F$38:$F$53=$F28)*(M$38:M$53)) -> 2396228.906 | N28: =SUMPRODUCT(($F$38:$F$53=$F28)*(N$38:N$53)) -> 3090159.658 | O28: =SUMPRODUCT(($F$38:$F$53=$F28)*(O$38:O$53)) -> 2561076.473 | P28: =SUMPRODUCT(($F$38:$F$53=$F28)*(P$38:P$53)) -> 5215820.421 | Q28: =SUMPRODUCT(($F$38:$F$53=$F28)*(Q$38:Q$53)) -> 4299268.777 | R28: =SUMPRODUCT(($F$38:$F$53=$F28)*(R$38:R$53)) -> 3822893.294 | S28: =SUMPRODUCT(($F$38:$F$53=$F28)*(S$38:S$53)) -> 2538869.268 | T28: =SUMPRODUCT(($F$38:$F$53=$F28)*(T$38:T$53)) -> 3879236.292 | U28: =SUMPRODUCT(($F$38:$F$53=$F28)*(U$38:U$53)) -> 5817808.965 | V28: =SUMPRODUCT(($F$38:$F$53=$F28)*(V$38:V$53)) -> 6109125.013 | W28: =SUMPRODUCT(($F$38:$F$53=$F28)*(W$38:W$53)) -> 6974498.731 | X28: =SUMPRODUCT(($F$38:$F$53=$F28)*(X$38:X$53)) -> 2368744.738 | Y28: =SUMPRODUCT(($F$38:$F$53=$F28)*(Y$38:Y$53)) -> 1401252.709 | Z28: =SUMPRODUCT(($F$38:$F$53=$F28)*(Z$38:Z$53)) -> 299258.6745 | AA28: =SUMPRODUCT(($F$38:$F$53=$F28)*(AA$38:AA$53)) -> 176437.2746 | AC28: =SUMPRODUCT($H$7:$AA$7*$H28:$AA28) -> 11220192.13
B29: =Hist_vol!B28 -> Connections | C29: =Hist_vol!C28 -> EG3 | D29: =Hist_vol!D28 -> Embedded generation | E29: =Hist_vol!E28 -> Complex connection HV (large capacity) | F29: Embedded generation Complex connection HV (large capacity) | H29: =SUMPRODUCT(($F$38:$F$53=$F29)*(H$38:H$53)) -> 8236252.472 | I29: =SUMPRODUCT(($F$38:$F$53=$F29)*(I$38:I$53)) -> 1997557.38 | J29: =SUMPRODUCT(($F$38:$F$53=$F29)*(J$38:J$53)) -> 0 | K29: =SUMPRODUCT(($F$38:$F$53=$F29)*(K$38:K$53)) -> 3313571.553 | L29: =SUMPRODUCT(($F$38:$F$53=$F29)*(L$38:L$53)) -> 3991400.067 | M29: =SUMPRODUCT(($F$38:$F$53=$F29)*(M$38:M$53)) -> 7916411.933 | N29: =SUMPRODUCT(($F$38:$F$53=$F29)*(N$38:N$53)) -> 20992473.11 | O29: =SUMPRODUCT(($F$38:$F$53=$F29)*(O$38:O$53)) -> 21616784.81 | P29: =SUMPRODUCT(($F$38:$F$53=$F29)*(P$38:P$53)) -> 8135477.44 | Q29: =SUMPRODUCT(($F$38:$F$53=$F29)*(Q$38:Q$53)) -> 1364282.227 | R29: =SUMPRODUCT(($F$38:$F$53=$F29)*(R$38:R$53)) -> 1629674.155 | S29: =SUMPRODUCT(($F$38:$F$53=$F29)*(S$38:S$53)) -> 4138534.371 | T29: =SUMPRODUCT(($F$38:$F$53=$F29)*(T$38:T$53)) -> 10972754.76 | U29: =SUMPRODUCT(($F$38:$F$53=$F29)*(U$38:U$53)) -> 5817808.965 | V29: =SUMPRODUCT(($F$38:$F$53=$F29)*(V$38:V$53)) -> 36833962.22 | W29: =SUMPRODUCT(($F$38:$F$53=$F29)*(W$38:W$53)) -> 42051590.4 | X29: =SUMPRODUCT(($F$38:$F$53=$F29)*(X$38:X$53)) -> 14281955.93 | Y29: =SUMPRODUCT(($F$38:$F$53=$F29)*(Y$38:Y$53)) -> 8448622.222 | Z29: =SUMPRODUCT(($F$38:$F$53=$F29)*(Z$38:Z$53)) -> 1804330.847 | AA29: =SUMPRODUCT(($F$38:$F$53=$F29)*(AA$38:AA$53)) -> 1063799.463 | AC29: =SUMPRODUCT($H$7:$AA$7*$H29:$AA29) -> 67650298.87
B30: ='Grid connected batteries'!B16 -> Connections | C30: Grid connected batteries | D30: Grid connected batteries | F30: =D30 -> Grid connected batteries | H30: 0 | I30: 0 | J30: 0 | K30: 0 | L30: 0 | M30: 0 | N30: 0 | O30: 0 | P30: 0 | Q30: 0 | R30: 0 | S30: 0 | T30: 0 | U30: 0 | V30: 0 | W30: ='Grid connected batteries'!E16 -> 8288046.837 | X30: ='Grid connected batteries'!F16 -> 7935322.18 | Y30: ='Grid connected batteries'!G16 -> 9244902.937 | Z30: ='Grid connected batteries'!H16 -> 10271651.02 | AA30: ='Grid connected batteries'!I16 -> 9017284.544 | AC30: =SUMPRODUCT($H$7:$AA$7*$H30:$AA30) -> 44757207.51
B31: ='Data Centres'!B16 -> Connections | C31: Data Centres | D31: Data Centres | F31: =D31 -> Data Centres | H31: 0 | I31: 0 | J31: 0 | K31: 0 | L31: 0 | M31: 0 | N31: 0 | O31: 0 | P31: 0 | Q31: 0 | R31: 0 | S31: 0 | T31: 0 | U31: 0 | V31: 0 | W31: ='Data Centres'!E16 -> 369786773.9 | X31: ='Data Centres'!F16 -> 100460286 | Y31: ='Data Centres'!G16 -> 101600349.2 | Z31: ='Data Centres'!H16 -> 69368067.94 | AA31: ='Data Centres'!I16 -> 168182211.8 | AC31: =SUMPRODUCT($H$7:$AA$7*$H31:$AA31) -> 809397688.8
B32: Total | H32: =SUM(H16:H31) -> 143683674.8 | I32: =SUM(I16:I31) -> 147010176.6 | J32: 145042367.8 | K32: 145080585.1 | L32: 142509908.9 | M32: 152913537.2 | N32: 172123463.3 | O32: 171536559.2 | P32: 167811422.6 | Q32: 165184157.5 | R32: 167833903.9 | S32: 182922868.2 | T32: 194264817.8 | U32: 258124890.1 | V32: 223114207.7 | W32: 608819911 | X32: 302244210.8 | Y32: 294560141.9 | Z32: 257542429.5 | AA32: 351487875.9 | AC32: 1814654569
B35: =Hist_vol!B$13 -> Category | C35: =Hist_vol!C$13 -> Type | D35: =Hist_vol!D$13 -> RIN category | E35: =Hist_vol!E$13 -> Description | G35: Unit rate | H35: =Assumptions!G$24 -> 2011/12 | I35: =Assumptions!H$24 -> 2012/13 | J35: =Assumptions!I$24 -> 2013/14 | K35: =Assumptions!J$24 -> 2014/15 | L35: =Assumptions!K$24 -> 2015/16 | M35: =Assumptions!L$24 -> 2016/17 | N35: =Assumptions!M$24 -> 2017/18 | O35: =Assumptions!N$24 -> 2018/19 | P35: =Assumptions!O$24 -> 2019/20 | Q35: =Assumptions!P$24 -> 2020/21 | R35: =Assumptions!Q$24 -> 2021/22 | S35: =Assumptions!R$24 -> 2022/23 | T35: =Assumptions!S$24 -> 2023/24 | U35: =Assumptions!T$24 -> 2024/25 | V35: =Assumptions!U$24 -> 2025/26 | W35: =Assumptions!V$24 -> 2026/27 | X35: =Assumptions!W$24 -> 2027/28 | Y35: =Assumptions!X$24 -> 2028/29 | Z35: =Assumptions!Y$24 -> 2029/30 | AA35: =Assumptions!Z$24 -> 2030/31 | AC35: 2026-31 Total
B37: Forecast spend from trend (June 2026 $)
B38: =Hist_vol!B15 -> Connections | C38: =Hist_vol!C15 -> R1 | D38: =Hist_vol!D15 -> Residential | E38: =Hist_vol!E15 -> Simple connection LV | F38: =D38&" "&E38 -> Residential Simple connection LV | G38: =AVERAGE(Unit_rates!Q15:T15) -> 0 | H38: =IF(H$8, $G38*Forecast_vol!H16,Hist_expenditure!G15*Assumptions!G$29) -> 6001643.794 | I38: =IF(I$8, $G38*Forecast_vol!I16,Hist_expenditure!H15*Assumptions!H$29) -> 5674391.718 | J38: =IF(J$8, $G38*Forecast_vol!J16,Hist_expenditure!I15*Assumptions!I$29) -> 5697486.497 | K38: =IF(K$8, $G38*Forecast_vol!K16,Hist_expenditure!J15*Assumptions!J$29) -> 5631113.022 | L38: =IF(L$8, $G38*Forecast_vol!L16,Hist_expenditure!K15*Assumptions!K$29) -> 2731809.954 | M38: =IF(M$8, $G38*Forecast_vol!M16,Hist_expenditure!L15*Assumptions!L$29) -> 0 | N38: =IF(N$8, $G38*Forecast_vol!N16,Hist_expenditure!M15*Assumptions!M$29) -> 0 | O38: =IF(O$8, $G38*Forecast_vol!O16,Hist_expenditure!N15*Assumptions!N$29) -> 0 | P38: =IF(P$8, $G38*Forecast_vol!P16,Hist_expenditure!O15*Assumptions!O$29) -> 0 | Q38: =IF(Q$8, $G38*Forecast_vol!Q16,Hist_expenditure!P15*Assumptions!P$29) -> 0 | R38: =IF(R$8, $G38*Forecast_vol!R16,Hist_expenditure!Q15*Assumptions!Q$29) -> 0 | S38: =IF(S$8, $G38*Forecast_vol!S16,Hist_expenditure!R15*Assumptions!R$29) -> 0 | T38: =IF(T$8, $G38*Forecast_vol!T16,Hist_expenditure!S15*Assumptions!S$29) -> 0 | U38: =IF(U$8, $G38*Forecast_vol!U16,Hist_expenditure!T15*Assumptions!T$29) -> 0 | V38: =IF(V$8, $G38*Forecast_vol!V16,Hist_expenditure!U15*Assumptions!U$29) -> 0 | W38: =IF(W$8, $G38*Forecast_vol!W16,Hist_expenditure!V15*Assumptions!V$29) -> 0 | X38: =IF(X$8, $G38*Forecast_vol!X16,Hist_expenditure!W15*Assumptions!W$29) -> 0 | Y38: =IF(Y$8, $G38*Forecast_vol!Y16,Hist_expenditure!X15*Assumptions!X$29) -> 0 | Z38: =IF(Z$8, $G38*Forecast_vol!Z16,Hist_expenditure!Y15*Assumptions!Y$29) -> 0 | AA38: =IF(AA$8, $G38*Forecast_vol!AA16,Hist_expenditure!Z15*Assumptions!Z$29) -> 0 | AC38: =SUMPRODUCT($H$7:$AA$7*$H38:$AA38) -> 0
B39: =Hist_vol!B16 -> Connections | C39: =Hist_vol!C16 -> R2 | D39: =Hist_vol!D16 -> Residential | E39: =Hist_vol!E16 -> Complex connection LV | F39: =D39&" "&E39 -> Residential Complex connection LV | G39: =AVERAGE(Unit_rates!Q16:T16) -> 15863.65836 | H39: =IF(H$8, $G39*Forecast_vol!H17,Hist_expenditure!G16*Assumptions!G$29) -> 23733903.54 | I39: =IF(I$8, $G39*Forecast_vol!I17,Hist_expenditure!H16*Assumptions!H$29) -> 25439552.36 | J39: =IF(J$8, $G39*Forecast_vol!J17,Hist_expenditure!I16*Assumptions!I$29) -> 26722613 | K39: =IF(K$8, $G39*Forecast_vol!K17,Hist_expenditure!J16*Assumptions!J$29) -> 24553198.51 | L39: =IF(L$8, $G39*Forecast_vol!L17,Hist_expenditure!K16*Assumptions!K$29) -> 20930664.88 | M39: =IF(M$8, $G39*Forecast_vol!M17,Hist_expenditure!L16*Assumptions!L$29) -> 19862689.67 | N39: =IF(N$8, $G39*Forecast_vol!N17,Hist_expenditure!M16*Assumptions!M$29) -> 20296675.4 | O39: =IF(O$8, $G39*Forecast_vol!O17,Hist_expenditure!N16*Assumptions!N$29) -> 22764693.53 | P39: =IF(P$8, $G39*Forecast_vol!P17,Hist_expenditure!O16*Assumptions!O$29) -> 25989766.08 | Q39: =IF(Q$8, $G39*Forecast_vol!Q17,Hist_expenditure!P16*Assumptions!P$29) -> 26658699.9 | R39: =IF(R$8, $G39*Forecast_vol!R17,Hist_expenditure!Q16*Assumptions!Q$29) -> 31073409.96 | S39: =IF(S$8, $G39*Forecast_vol!S17,Hist_expenditure!R16*Assumptions!R$29) -> 33995260.45 | T39: =IF(T$8, $G39*Forecast_vol!T17,Hist_expenditure!S16*Assumptions!S$29) -> 30546488.28 | U39: =IF(U$8, $G39*Forecast_vol!U17,Hist_expenditure!T16*Assumptions!T$29) -> 29183777.59 | V39: =IF(V$8, $G39*Forecast_vol!V17,Hist_expenditure!U16*Assumptions!U$29) -> 36808977.48 | W39: =IF(W$8, $G39*Forecast_vol!W17,Hist_expenditure!V16*Assumptions!V$29) -> 41478138.88 | X39: =IF(X$8, $G39*Forecast_vol!X17,Hist_expenditure!W16*Assumptions!W$29) -> 41389976.32 | Y39: =IF(Y$8, $G39*Forecast_vol!Y17,Hist_expenditure!X16*Assumptions!X$29) -> 39885628.82 | Z39: =IF(Z$8, $G39*Forecast_vol!Z17,Hist_expenditure!Y16*Assumptions!Y$29) -> 40167244.65 | AA39: =IF(AA$8, $G39*Forecast_vol!AA17,Hist_expenditure!Z16*Assumptions!Z$29) -> 41117493.81 | AC39: =SUMPRODUCT($H$7:$AA$7*$H39:$AA39) -> 204038482.5
B40: =Hist_vol!B17 -> Connections | C40: =Hist_vol!C17 -> R3 | D40: =Hist_vol!D17 -> Residential | E40: =Hist_vol!E17 -> Complex connection HV | F40: Residential Complex connection HV | G40: =AVERAGE(Unit_rates!Q17:T17) -> 49956.43512 | H40: =IF(H$8, $G40*Forecast_vol!H18,Hist_expenditure!G17*Assumptions!G$29) -> 11513614.22 | I40: =IF(I$8, $G40*Forecast_vol!I18,Hist_expenditure!H17*Assumptions!H$29) -> 12705749.97 | J40: =IF(J$8, $G40*Forecast_vol!J18,Hist_expenditure!I17*Assumptions!I$29) -> 11989825.16 | K40: =IF(K$8, $G40*Forecast_vol!K18,Hist_expenditure!J17*Assumptions!J$29) -> 9640283.15 | L40: =IF(L$8, $G40*Forecast_vol!L18,Hist_expenditure!K17*Assumptions!K$29) -> 6928229.576 | M40: =IF(M$8, $G40*Forecast_vol!M18,Hist_expenditure!L17*Assumptions!L$29) -> 6216914.919 | N40: =IF(N$8, $G40*Forecast_vol!N18,Hist_expenditure!M17*Assumptions!M$29) -> 6984002.652 | O40: =IF(O$8, $G40*Forecast_vol!O18,Hist_expenditure!N17*Assumptions!N$29) -> 7314215.974 | P40: =IF(P$8, $G40*Forecast_vol!P18,Hist_expenditure!O17*Assumptions!O$29) -> 7750753.487 | Q40: =IF(Q$8, $G40*Forecast_vol!Q18,Hist_expenditure!P17*Assumptions!P$29) -> 7748573.23 | R40: =IF(R$8, $G40*Forecast_vol!R18,Hist_expenditure!Q17*Assumptions!Q$29) -> 10240919.52 | S40: =IF(S$8, $G40*Forecast_vol!S18,Hist_expenditure!R17*Assumptions!R$29) -> 10716422.27 | T40: =IF(T$8, $G40*Forecast_vol!T18,Hist_expenditure!S17*Assumptions!S$29) -> 8494014.099 | U40: =IF(U$8, $G40*Forecast_vol!U18,Hist_expenditure!T17*Assumptions!T$29) -> 7463342.722 | V40: =IF(V$8, $G40*Forecast_vol!V18,Hist_expenditure!U17*Assumptions!U$29) -> 7548237.322 | W40: =IF(W$8, $G40*Forecast_vol!W18,Hist_expenditure!V17*Assumptions!V$29) -> 8505719.458 | X40: =IF(X$8, $G40*Forecast_vol!X18,Hist_expenditure!W17*Assumptions!W$29) -> 8487640.392 | Y40: =IF(Y$8, $G40*Forecast_vol!Y18,Hist_expenditure!X17*Assumptions!X$29) -> 8179151.193 | Z40: =IF(Z$8, $G40*Forecast_vol!Z18,Hist_expenditure!Y17*Assumptions!Y$29) -> 8236900.777 | AA40: =IF(AA$8, $G40*Forecast_vol!AA18,Hist_expenditure!Z17*Assumptions!Z$29) -> 8431763.734 | AC40: =SUMPRODUCT($H$7:$AA$7*$H40:$AA40) -> 41841175.55
B41: =Hist_vol!B18 -> Connections | C41: =Hist_vol!C18 -> CI1 | D41: =Hist_vol!D18 -> Commercial/Industrial | E41: =Hist_vol!E18 -> Simple connection LV | F41: Commercial/Industrial Simple connection LV | G41: =AVERAGE(Unit_rates!Q18:T18) -> 0 | H41: =IF(H$8, $G41*Forecast_vol!H19,Hist_expenditure!G18*Assumptions!G$29) -> 828047.6423 | I41: =IF(I$8, $G41*Forecast_vol!I19,Hist_expenditure!H18*Assumptions!H$29) -> 898395.9219 | J41: =IF(J$8, $G41*Forecast_vol!J19,Hist_expenditure!I18*Assumptions!I$29) -> 939380.1083 | K41: =IF(K$8, $G41*Forecast_vol!K19,Hist_expenditure!J18*Assumptions!J$29) -> 917714.3481 | L41: =IF(L$8, $G41*Forecast_vol!L19,Hist_expenditure!K18*Assumptions!K$29) -> 444713.0176 | M41: =IF(M$8, $G41*Forecast_vol!M19,Hist_expenditure!L18*Assumptions!L$29) -> 0 | N41: =IF(N$8, $G41*Forecast_vol!N19,Hist_expenditure!M18*Assumptions!M$29) -> 0 | O41: =IF(O$8, $G41*Forecast_vol!O19,Hist_expenditure!N18*Assumptions!N$29) -> 0 | P41: =IF(P$8, $G41*Forecast_vol!P19,Hist_expenditure!O18*Assumptions!O$29) -> 0 | Q41: =IF(Q$8, $G41*Forecast_vol!Q19,Hist_expenditure!P18*Assumptions!P$29) -> 0 | R41: =IF(R$8, $G41*Forecast_vol!R19,Hist_expenditure!Q18*Assumptions!Q$29) -> 0 | S41: =IF(S$8, $G41*Forecast_vol!S19,Hist_expenditure!R18*Assumptions!R$29) -> 0 | T41: =IF(T$8, $G41*Forecast_vol!T19,Hist_expenditure!S18*Assumptions!S$29) -> 0 | U41: =IF(U$8, $G41*Forecast_vol!U19,Hist_expenditure!T18*Assumptions!T$29) -> 0 | V41: =IF(V$8, $G41*Forecast_vol!V19,Hist_expenditure!U18*Assumptions!U$29) -> 0 | W41: =IF(W$8, $G41*Forecast_vol!W19,Hist_expenditure!V18*Assumptions!V$29) -> 0 | X41: =IF(X$8, $G41*Forecast_vol!X19,Hist_expenditure!W18*Assumptions!W$29) -> 0 | Y41: =IF(Y$8, $G41*Forecast_vol!Y19,Hist_expenditure!X18*Assumptions!X$29) -> 0 | Z41: =IF(Z$8, $G41*Forecast_vol!Z19,Hist_expenditure!Y18*Assumptions!Y$29) -> 0 | AA41: =IF(AA$8, $G41*Forecast_vol!AA19,Hist_expenditure!Z18*Assumptions!Z$29) -> 0 | AC41: =SUMPRODUCT($H$7:$AA$7*$H41:$AA41) -> 0
B42: =Hist_vol!B19 -> Connections | C42: =Hist_vol!C19 -> CI2 | D42: =Hist_vol!D19 -> Commercial/Industrial | E42: =Hist_vol!E19 -> Complex connection HV (customer connected at LV, minor HV works) | F42: Commercial/Industrial Complex connection HV (customer connected at LV, minor HV works) | G42: =AVERAGE(Unit_rates!Q19:T19) -> 134528.8257 | H42: =IF(H$8, $G42*Forecast_vol!H20,Hist_expenditure!G19*Assumptions!G$29) -> 17236656.34 | I42: =IF(I$8, $G42*Forecast_vol!I20,Hist_expenditure!H19*Assumptions!H$29) -> 17803164.81 | J42: =IF(J$8, $G42*Forecast_vol!J20,Hist_expenditure!I19*Assumptions!I$29) -> 20011641.06 | K42: =IF(K$8, $G42*Forecast_vol!K20,Hist_expenditure!J19*Assumptions!J$29) -> 28935472.65 | L42: =IF(L$8, $G42*Forecast_vol!L20,Hist_expenditure!K19*Assumptions!K$29) -> 33483439.15 | M42: =IF(M$8, $G42*Forecast_vol!M20,Hist_expenditure!L19*Assumptions!L$29) -> 31839319.16 | N42: =IF(N$8, $G42*Forecast_vol!N20,Hist_expenditure!M19*Assumptions!M$29) -> 37878255.73 | O42: =IF(O$8, $G42*Forecast_vol!O20,Hist_expenditure!N19*Assumptions!N$29) -> 45961244.53 | P42: =IF(P$8, $G42*Forecast_vol!P20,Hist_expenditure!O19*Assumptions!O$29) -> 39864029.09 | Q42: =IF(Q$8, $G42*Forecast_vol!Q20,Hist_expenditure!P19*Assumptions!P$29) -> 25961745.31 | R42: =IF(R$8, $G42*Forecast_vol!R20,Hist_expenditure!Q19*Assumptions!Q$29) -> 19752068.72 | S42: =IF(S$8, $G42*Forecast_vol!S20,Hist_expenditure!R19*Assumptions!R$29) -> 22828301.68 | T42: =IF(T$8, $G42*Forecast_vol!T20,Hist_expenditure!S19*Assumptions!S$29) -> 22246163.21 | U42: =IF(U$8, $G42*Forecast_vol!U20,Hist_expenditure!T19*Assumptions!T$29) -> 18384679.6 | V42: =IF(V$8, $G42*Forecast_vol!V20,Hist_expenditure!U19*Assumptions!U$29) -> 26573169.75 | W42: =IF(W$8, $G42*Forecast_vol!W20,Hist_expenditure!V19*Assumptions!V$29) -> 24403833.82 | X42: =IF(X$8, $G42*Forecast_vol!X20,Hist_expenditure!W19*Assumptions!W$29) -> 23276823.99 | Y42: =IF(Y$8, $G42*Forecast_vol!Y20,Hist_expenditure!X19*Assumptions!X$29) -> 23238818.3 | Z42: =IF(Z$8, $G42*Forecast_vol!Z20,Hist_expenditure!Y19*Assumptions!Y$29) -> 23586605.77 | AA42: =IF(AA$8, $G42*Forecast_vol!AA20,Hist_expenditure!Z19*Assumptions!Z$29) -> 22347894.53 | AC42: =SUMPRODUCT($H$7:$AA$7*$H42:$AA42) -> 116853976.4
B43: =Hist_vol!B20 -> Connections | C43: =Hist_vol!C20 -> CI3 | D43: =Hist_vol!D20 -> Commercial/Industrial | E43: =Hist_vol!E20 -> Complex connection HV (customer connected at LV, upstream asset works) | F43: Commercial/Industrial Complex connection HV (customer connected at LV, upstream asset works) | G43: =AVERAGE(Unit_rates!Q20:T20) -> 126210.6566 | H43: =IF(H$8, $G43*Forecast_vol!H21,Hist_expenditure!G20*Assumptions!G$29) -> 37058409.58 | I43: =IF(I$8, $G43*Forecast_vol!I21,Hist_expenditure!H20*Assumptions!H$29) -> 38319769.57 | J43: =IF(J$8, $G43*Forecast_vol!J21,Hist_expenditure!I20*Assumptions!I$29) -> 38570836.03 | K43: =IF(K$8, $G43*Forecast_vol!K21,Hist_expenditure!J20*Assumptions!J$29) -> 34051973.85 | L43: =IF(L$8, $G43*Forecast_vol!L21,Hist_expenditure!K20*Assumptions!K$29) -> 30256681.32 | M43: =IF(M$8, $G43*Forecast_vol!M21,Hist_expenditure!L20*Assumptions!L$29) -> 33367277.81 | N43: =IF(N$8, $G43*Forecast_vol!N21,Hist_expenditure!M20*Assumptions!M$29) -> 33623228.02 | O43: =IF(O$8, $G43*Forecast_vol!O21,Hist_expenditure!N20*Assumptions!N$29) -> 33222680.41 | P43: =IF(P$8, $G43*Forecast_vol!P21,Hist_expenditure!O20*Assumptions!O$29) -> 38556590.91 | Q43: =IF(Q$8, $G43*Forecast_vol!Q21,Hist_expenditure!P20*Assumptions!P$29) -> 38663827.02 | R43: =IF(R$8, $G43*Forecast_vol!R21,Hist_expenditure!Q20*Assumptions!Q$29) -> 44438851.24 | S43: =IF(S$8, $G43*Forecast_vol!S21,Hist_expenditure!R20*Assumptions!R$29) -> 49663832.26 | T43: =IF(T$8, $G43*Forecast_vol!T21,Hist_expenditure!S20*Assumptions!S$29) -> 50542671.23 | U43: =IF(U$8, $G43*Forecast_vol!U21,Hist_expenditure!T20*Assumptions!T$29) -> 49837646.64 | V43: =IF(V$8, $G43*Forecast_vol!V21,Hist_expenditure!U20*Assumptions!U$29) -> 56395276.88 | W43: =IF(W$8, $G43*Forecast_vol!W21,Hist_expenditure!V20*Assumptions!V$29) -> 51791373.71 | X43: =IF(X$8, $G43*Forecast_vol!X21,Hist_expenditure!W20*Assumptions!W$29) -> 49399561.52 | Y43: =IF(Y$8, $G43*Forecast_vol!Y21,Hist_expenditure!X20*Assumptions!X$29) -> 49318903.43 | Z43: =IF(Z$8, $G43*Forecast_vol!Z21,Hist_expenditure!Y20*Assumptions!Y$29) -> 50057000.17 | AA43: =IF(AA$8, $G43*Forecast_vol!AA21,Hist_expenditure!Z20*Assumptions!Z$29) -> 47428128.13 | AC43: =SUMPRODUCT($H$7:$AA$7*$H43:$AA43) -> 247994967
B44: =Hist_vol!B21 -> Connections | C44: =Hist_vol!C21 -> CI4 | D44: =Hist_vol!D21 -> Commercial/Industrial | E44: =Hist_vol!E21 -> Complex connection HV (customer connected at HV) | F44: Commercial/Industrial Complex connection HV (customer connected at HV) | G44: =AVERAGE(Unit_rates!Q21:T21) -> 2151131.651 | H44: =IF(H$8, $G44*Forecast_vol!H22,Hist_expenditure!G21*Assumptions!G$29) -> 3940858.789 | I44: =IF(I$8, $G44*Forecast_vol!I22,Hist_expenditure!H21*Assumptions!H$29) -> 4626064.378 | J44: =IF(J$8, $G44*Forecast_vol!J22,Hist_expenditure!I21*Assumptions!I$29) -> 4779939.334 | K44: =IF(K$8, $G44*Forecast_vol!K22,Hist_expenditure!J21*Assumptions!J$29) -> 2557221.234 | L44: =IF(L$8, $G44*Forecast_vol!L22,Hist_expenditure!K21*Assumptions!K$29) -> 1563722.427 | M44: =IF(M$8, $G44*Forecast_vol!M22,Hist_expenditure!L21*Assumptions!L$29) -> 2062417.899 | N44: =IF(N$8, $G44*Forecast_vol!N22,Hist_expenditure!M21*Assumptions!M$29) -> 1689451.941 | O44: =IF(O$8, $G44*Forecast_vol!O22,Hist_expenditure!N21*Assumptions!N$29) -> 1716902.063 | P44: =IF(P$8, $G44*Forecast_vol!P22,Hist_expenditure!O21*Assumptions!O$29) -> 4296692.215 | Q44: =IF(Q$8, $G44*Forecast_vol!Q22,Hist_expenditure!P21*Assumptions!P$29) -> 16666117.8 | R44: =IF(R$8, $G44*Forecast_vol!R22,Hist_expenditure!Q21*Assumptions!Q$29) -> 18161239.81 | S44: =IF(S$8, $G44*Forecast_vol!S22,Hist_expenditure!R21*Assumptions!R$29) -> 11587495.43 | T44: =IF(T$8, $G44*Forecast_vol!T22,Hist_expenditure!S21*Assumptions!S$29) -> 16448502.58 | U44: =IF(U$8, $G44*Forecast_vol!U22,(Hist_expenditure!T21+27196667.4)*Assumptions!T$29) -> 36511189.02 | V44: =IF(V$8, $G44*Forecast_vol!V22,Hist_expenditure!U21*Assumptions!U$29) -> 14438624.46 | W44: =IF(W$8, $G44*Forecast_vol!W22,Hist_expenditure!V21*Assumptions!V$29) -> 13259908.21 | X44: =IF(X$8, $G44*Forecast_vol!X22,Hist_expenditure!W21*Assumptions!W$29) -> 12647543.49 | Y44: =IF(Y$8, $G44*Forecast_vol!Y22,Hist_expenditure!X21*Assumptions!X$29) -> 12626892.97 | Z44: =IF(Z$8, $G44*Forecast_vol!Z22,Hist_expenditure!Y21*Assumptions!Y$29) -> 12815864.5 | AA44: =IF(AA$8, $G44*Forecast_vol!AA22,Hist_expenditure!Z21*Assumptions!Z$29) -> 12142806.43 | AC44: =SUMPRODUCT($H$7:$AA$7*$H44:$AA44) -> 63493015.61
B45: =Hist_vol!B22 -> Connections | C45: =Hist_vol!C22 -> CI5 | D45: =Hist_vol!D22 -> Commercial/Industrial | E45: =Hist_vol!E22 -> Complex connection sub-transmission | F45: Commercial/Industrial Complex connection sub-transmission | G45: =AVERAGE(Unit_rates!Q22:T22) -> 624439.2767 | H45: =IF(H$8, $G45*Forecast_vol!H23,Hist_expenditure!G22*Assumptions!G$29) -> 0 | I45: =IF(I$8, $G45*Forecast_vol!I23,Hist_expenditure!H22*Assumptions!H$29) -> 0 | J45: =IF(J$8, $G45*Forecast_vol!J23,Hist_expenditure!I22*Assumptions!I$29) -> 0 | K45: =IF(K$8, $G45*Forecast_vol!K23,Hist_expenditure!J22*Assumptions!J$29) -> 0 | L45: =IF(L$8, $G45*Forecast_vol!L23,Hist_expenditure!K22*Assumptions!K$29) -> 0 | M45: =IF(M$8, $G45*Forecast_vol!M23,Hist_expenditure!L22*Assumptions!L$29) -> 4613397.228 | N45: =IF(N$8, $G45*Forecast_vol!N23,Hist_expenditure!M22*Assumptions!M$29) -> 4546228.624 | O45: =IF(O$8, $G45*Forecast_vol!O23,Hist_expenditure!N22*Assumptions!N$29) -> 0 | P45: =IF(P$8, $G45*Forecast_vol!P23,Hist_expenditure!O22*Assumptions!O$29) -> 0 | Q45: =IF(Q$8, $G45*Forecast_vol!Q23,Hist_expenditure!P22*Assumptions!P$29) -> 0 | R45: =IF(R$8, $G45*Forecast_vol!R23,Hist_expenditure!Q22*Assumptions!Q$29) -> 0 | S45: =IF(S$8, $G45*Forecast_vol!S23,Hist_expenditure!R22*Assumptions!R$29) -> 5579147.227 | T45: =IF(T$8, $G45*Forecast_vol!T23,Hist_expenditure!S22*Assumptions!S$29) -> 1502318.739 | U45: =IF(U$8, $G45*Forecast_vol!U23,(Hist_expenditure!T22+25536176.2699999)*Assumptions!T$29) -> 46468786.31 | V45: =IF(V$8, $G45*Forecast_vol!V23,Hist_expenditure!U22*Assumptions!U$29) -> 4790060.396 | W45: =IF(W$8, $G45*Forecast_vol!W23,Hist_expenditure!V22*Assumptions!V$29) -> 4399017.467 | X45: =IF(X$8, $G45*Forecast_vol!X23,Hist_expenditure!W22*Assumptions!W$29) -> 4195863.489 | Y45: =IF(Y$8, $G45*Forecast_vol!Y23,Hist_expenditure!X22*Assumptions!X$29) -> 4189012.611 | Z45: =IF(Z$8, $G45*Forecast_vol!Z23,Hist_expenditure!Y22*Assumptions!Y$29) -> 4251704.528 | AA45: =IF(AA$8, $G45*Forecast_vol!AA23,Hist_expenditure!Z22*Assumptions!Z$29) -> 4028415.335 | AC45: =SUMPRODUCT($H$7:$AA$7*$H45:$AA45) -> 21064013.43
B46: =Hist_vol!B23 -> Connections | C46: =Hist_vol!C23 -> S1 | D46: =Hist_vol!D23 -> Subdivision | E46: =Hist_vol!E23 -> Complex connection LV | F46: Subdivision Complex connection LV | G46: =AVERAGE(Unit_rates!Q23:T23) -> 0 | H46: =IF(H$8, $G46*Forecast_vol!H24,Hist_expenditure!G23*Assumptions!G$29) -> 0 | I46: =IF(I$8, $G46*Forecast_vol!I24,Hist_expenditure!H23*Assumptions!H$29) -> 0 | J46: =IF(J$8, $G46*Forecast_vol!J24,Hist_expenditure!I23*Assumptions!I$29) -> 0 | K46: =IF(K$8, $G46*Forecast_vol!K24,Hist_expenditure!J23*Assumptions!J$29) -> 0 | L46: =IF(L$8, $G46*Forecast_vol!L24,Hist_expenditure!K23*Assumptions!K$29) -> 0 | M46: =IF(M$8, $G46*Forecast_vol!M24,Hist_expenditure!L23*Assumptions!L$29) -> 0 | N46: =IF(N$8, $G46*Forecast_vol!N24,Hist_expenditure!M23*Assumptions!M$29) -> 0 | O46: =IF(O$8, $G46*Forecast_vol!O24,Hist_expenditure!N23*Assumptions!N$29) -> 0 | P46: =IF(P$8, $G46*Forecast_vol!P24,Hist_expenditure!O23*Assumptions!O$29) -> 0 | Q46: =IF(Q$8, $G46*Forecast_vol!Q24,Hist_expenditure!P23*Assumptions!P$29) -> 0 | R46: =IF(R$8, $G46*Forecast_vol!R24,Hist_expenditure!Q23*Assumptions!Q$29) -> 0 | S46: =IF(S$8, $G46*Forecast_vol!S24,Hist_expenditure!R23*Assumptions!R$29) -> 0 | T46: =IF(T$8, $G46*Forecast_vol!T24,Hist_expenditure!S23*Assumptions!S$29) -> 0 | U46: =IF(U$8, $G46*Forecast_vol!U24,Hist_expenditure!T23*Assumptions!T$29) -> 0 | V46: =IF(V$8, $G46*Forecast_vol!V24,Hist_expenditure!U23*Assumptions!U$29) -> 0 | W46: =IF(W$8, $G46*Forecast_vol!W24,Hist_expenditure!V23*Assumptions!V$29) -> 0 | X46: =IF(X$8, $G46*Forecast_vol!X24,Hist_expenditure!W23*Assumptions!W$29) -> 0 | Y46: =IF(Y$8, $G46*Forecast_vol!Y24,Hist_expenditure!X23*Assumptions!X$29) -> 0 | Z46: =IF(Z$8, $G46*Forecast_vol!Z24,Hist_expenditure!Y23*Assumptions!Y$29) -> 0 | AA46: =IF(AA$8, $G46*Forecast_vol!AA24,Hist_expenditure!Z23*Assumptions!Z$29) -> 0 | AC46: =SUMPRODUCT($H$7:$AA$7*$H46:$AA46) -> 0
B47: =Hist_vol!B24 -> Connections | C47: =Hist_vol!C24 -> S2 | D47: =Hist_vol!D24 -> Subdivision | E47: =Hist_vol!E24 -> Complex connection HV (no upstream asset works) | F47: Subdivision Complex connection HV (no upstream asset works) | G47: =AVERAGE(Unit_rates!Q24:T24) -> 0 | H47: =IF(H$8, $G47*Forecast_vol!H25,Hist_expenditure!G24*Assumptions!G$29) -> 0 | I47: =IF(I$8, $G47*Forecast_vol!I25,Hist_expenditure!H24*Assumptions!H$29) -> 0 | J47: =IF(J$8, $G47*Forecast_vol!J25,Hist_expenditure!I24*Assumptions!I$29) -> 0 | K47: =IF(K$8, $G47*Forecast_vol!K25,Hist_expenditure!J24*Assumptions!J$29) -> 0 | L47: =IF(L$8, $G47*Forecast_vol!L25,Hist_expenditure!K24*Assumptions!K$29) -> 0 | M47: =IF(M$8, $G47*Forecast_vol!M25,Hist_expenditure!L24*Assumptions!L$29) -> 0 | N47: =IF(N$8, $G47*Forecast_vol!N25,Hist_expenditure!M24*Assumptions!M$29) -> 0 | O47: =IF(O$8, $G47*Forecast_vol!O25,Hist_expenditure!N24*Assumptions!N$29) -> 0 | P47: =IF(P$8, $G47*Forecast_vol!P25,Hist_expenditure!O24*Assumptions!O$29) -> 0 | Q47: =IF(Q$8, $G47*Forecast_vol!Q25,Hist_expenditure!P24*Assumptions!P$29) -> 0 | R47: =IF(R$8, $G47*Forecast_vol!R25,Hist_expenditure!Q24*Assumptions!Q$29) -> 0 | S47: =IF(S$8, $G47*Forecast_vol!S25,Hist_expenditure!R24*Assumptions!R$29) -> 0 | T47: =IF(T$8, $G47*Forecast_vol!T25,Hist_expenditure!S24*Assumptions!S$29) -> 0 | U47: =IF(U$8, $G47*Forecast_vol!U25,Hist_expenditure!T24*Assumptions!T$29) -> 0 | V47: =IF(V$8, $G47*Forecast_vol!V25,Hist_expenditure!U24*Assumptions!U$29) -> 0 | W47: =IF(W$8, $G47*Forecast_vol!W25,Hist_expenditure!V24*Assumptions!V$29) -> 0 | X47: =IF(X$8, $G47*Forecast_vol!X25,Hist_expenditure!W24*Assumptions!W$29) -> 0 | Y47: =IF(Y$8, $G47*Forecast_vol!Y25,Hist_expenditure!X24*Assumptions!X$29) -> 0 | Z47: =IF(Z$8, $G47*Forecast_vol!Z25,Hist_expenditure!Y24*Assumptions!Y$29) -> 0 | AA47: =IF(AA$8, $G47*Forecast_vol!AA25,Hist_expenditure!Z24*Assumptions!Z$29) -> 0 | AC47: =SUMPRODUCT($H$7:$AA$7*$H47:$AA47) -> 0
B48: =Hist_vol!B25 -> Connections | C48: =Hist_vol!C25 -> S3 | D48: =Hist_vol!D25 -> Subdivision | E48: =Hist_vol!E25 -> Complex connection HV (with upstream asset works) | F48: Subdivision Complex connection HV (with upstream asset works) | G48: =AVERAGE(Unit_rates!Q25:T25) -> 77598.64016 | H48: =IF(H$8, $G48*Forecast_vol!H26,Hist_expenditure!G25*Assumptions!G$29) -> 33920090.47 | I48: =IF(I$8, $G48*Forecast_vol!I26,Hist_expenditure!H25*Assumptions!H$29) -> 38427621.96 | J48: =IF(J$8, $G48*Forecast_vol!J26,Hist_expenditure!I25*Assumptions!I$29) -> 35008057.57 | K48: =IF(K$8, $G48*Forecast_vol!K26,Hist_expenditure!J25*Assumptions!J$29) -> 34058752.07 | L48: =IF(L$8, $G48*Forecast_vol!L26,Hist_expenditure!K25*Assumptions!K$29) -> 41249626.06 | M48: =IF(M$8, $G48*Forecast_vol!M26,Hist_expenditure!L25*Assumptions!L$29) -> 44638879.67 | N48: =IF(N$8, $G48*Forecast_vol!N26,Hist_expenditure!M25*Assumptions!M$29) -> 43022988.18 | O48: =IF(O$8, $G48*Forecast_vol!O26,Hist_expenditure!N25*Assumptions!N$29) -> 36378961.4 | P48: =IF(P$8, $G48*Forecast_vol!P26,Hist_expenditure!O25*Assumptions!O$29) -> 38002293 | Q48: =IF(Q$8, $G48*Forecast_vol!Q26,Hist_expenditure!P25*Assumptions!P$29) -> 43821643.28 | R48: =IF(R$8, $G48*Forecast_vol!R26,Hist_expenditure!Q25*Assumptions!Q$29) -> 38714847.23 | S48: =IF(S$8, $G48*Forecast_vol!S26,Hist_expenditure!R25*Assumptions!R$29) -> 41875005.23 | T48: =IF(T$8, $G48*Forecast_vol!T26,Hist_expenditure!S25*Assumptions!S$29) -> 49632668.64 | U48: =IF(U$8, $G48*Forecast_vol!U26,Hist_expenditure!T25*Assumptions!T$29) -> 58639850.27 | V48: =IF(V$8, $G48*Forecast_vol!V26,Hist_expenditure!U25*Assumptions!U$29) -> 33616774.16 | W48: =IF(W$8, $G48*Forecast_vol!W26,Hist_expenditure!V25*Assumptions!V$29) -> 37881009.55 | X48: =IF(X$8, $G48*Forecast_vol!X26,Hist_expenditure!W25*Assumptions!W$29) -> 37800492.76 | Y48: =IF(Y$8, $G48*Forecast_vol!Y26,Hist_expenditure!X25*Assumptions!X$29) -> 36426607.53 | Z48: =IF(Z$8, $G48*Forecast_vol!Z26,Hist_expenditure!Y25*Assumptions!Y$29) -> 36683800.66 | AA48: =IF(AA$8, $G48*Forecast_vol!AA26,Hist_expenditure!Z25*Assumptions!Z$29) -> 37551640.88 | AC48: =SUMPRODUCT($H$7:$AA$7*$H48:$AA48) -> 186343551.4
B49: =Hist_vol!B26 -> Connections | C49: =Hist_vol!C26 -> EG1 | D49: =Hist_vol!D26 -> Embedded generation | E49: =Hist_vol!E26 -> Simple connection LV | F49: Embedded generation Simple connection LV | G49: =AVERAGE(Unit_rates!Q26:T26) -> 0 | H49: =IF(H$8, $G49*Forecast_vol!H27,Hist_expenditure!G26*Assumptions!G$29) -> 0 | I49: =IF(I$8, $G49*Forecast_vol!I27,Hist_expenditure!H26*Assumptions!H$29) -> 0 | J49: =IF(J$8, $G49*Forecast_vol!J27,Hist_expenditure!I26*Assumptions!I$29) -> 0 | K49: =IF(K$8, $G49*Forecast_vol!K27,Hist_expenditure!J26*Assumptions!J$29) -> 0 | L49: =IF(L$8, $G49*Forecast_vol!L27,Hist_expenditure!K26*Assumptions!K$29) -> 0 | M49: =IF(M$8, $G49*Forecast_vol!M27,Hist_expenditure!L26*Assumptions!L$29) -> 0 | N49: =IF(N$8, $G49*Forecast_vol!N27,Hist_expenditure!M26*Assumptions!M$29) -> 0 | O49: =IF(O$8, $G49*Forecast_vol!O27,Hist_expenditure!N26*Assumptions!N$29) -> 0 | P49: =IF(P$8, $G49*Forecast_vol!P27,Hist_expenditure!O26*Assumptions!O$29) -> 0 | Q49: =IF(Q$8, $G49*Forecast_vol!Q27,Hist_expenditure!P26*Assumptions!P$29) -> 0 | R49: =IF(R$8, $G49*Forecast_vol!R27,Hist_expenditure!Q26*Assumptions!Q$29) -> 0 | S49: =IF(S$8, $G49*Forecast_vol!S27,Hist_expenditure!R26*Assumptions!R$29) -> 0 | T49: =IF(T$8, $G49*Forecast_vol!T27,Hist_expenditure!S26*Assumptions!S$29) -> 0 | U49: =IF(U$8, $G49*Forecast_vol!U27,Hist_expenditure!T26*Assumptions!T$29) -> 0 | V49: =IF(V$8, $G49*Forecast_vol!V27,Hist_expenditure!U26*Assumptions!U$29) -> 0 | W49: =IF(W$8, $G49*Forecast_vol!W27,Hist_expenditure!V26*Assumptions!V$29) -> 0 | X49: =IF(X$8, $G49*Forecast_vol!X27,Hist_expenditure!W26*Assumptions!W$29) -> 0 | Y49: =IF(Y$8, $G49*Forecast_vol!Y27,Hist_expenditure!X26*Assumptions!X$29) -> 0 | Z49: =IF(Z$8, $G49*Forecast_vol!Z27,Hist_expenditure!Y26*Assumptions!Y$29) -> 0 | AA49: =IF(AA$8, $G49*Forecast_vol!AA27,Hist_expenditure!Z26*Assumptions!Z$29) -> 0 | AC49: =SUMPRODUCT($H$7:$AA$7*$H49:$AA49) -> 0
B50: =Hist_vol!B27 -> Connections | C50: =Hist_vol!C27 -> EG2 | D50: =Hist_vol!D27 -> Embedded generation | E50: =Hist_vol!E27 -> Complex connection HV (small capacity) | F50: Embedded generation Complex connection HV (small capacity) | G50: =AVERAGE(Unit_rates!Q27:T27) -> 642901.3179 | H50: =IF(H$8, $G50*Forecast_vol!H28,Hist_expenditure!G27*Assumptions!G$29) -> 1214197.93 | I50: =IF(I$8, $G50*Forecast_vol!I28,Hist_expenditure!H27*Assumptions!H$29) -> 1117908.545 | J50: =IF(J$8, $G50*Forecast_vol!J28,Hist_expenditure!I27*Assumptions!I$29) -> 1322589.033 | K50: =IF(K$8, $G50*Forecast_vol!K28,Hist_expenditure!J27*Assumptions!J$29) -> 1421284.752 | L50: =IF(L$8, $G50*Forecast_vol!L28,Hist_expenditure!K27*Assumptions!K$29) -> 929622.4754 | M50: =IF(M$8, $G50*Forecast_vol!M28,Hist_expenditure!L27*Assumptions!L$29) -> 2396228.906 | N50: =IF(N$8, $G50*Forecast_vol!N28,Hist_expenditure!M27*Assumptions!M$29) -> 3090159.658 | O50: =IF(O$8, $G50*Forecast_vol!O28,Hist_expenditure!N27*Assumptions!N$29) -> 2561076.473 | P50: =IF(P$8, $G50*Forecast_vol!P28,Hist_expenditure!O27*Assumptions!O$29) -> 5215820.421 | Q50: =IF(Q$8, $G50*Forecast_vol!Q28,Hist_expenditure!P27*Assumptions!P$29) -> 4299268.777 | R50: =IF(R$8, $G50*Forecast_vol!R28,Hist_expenditure!Q27*Assumptions!Q$29) -> 3822893.294 | S50: =IF(S$8, $G50*Forecast_vol!S28,Hist_expenditure!R27*Assumptions!R$29) -> 2538869.268 | T50: =IF(T$8, $G50*Forecast_vol!T28,Hist_expenditure!S27*Assumptions!S$29) -> 3879236.292 | U50: =IF(U$8, $G50*Forecast_vol!U28,Hist_expenditure!T27*Assumptions!T$29) -> 5817808.965 | V50: =IF(V$8, $G50*Forecast_vol!V28,Hist_expenditure!U27*Assumptions!U$29) -> 6109125.013 | W50: =IF(W$8, $G50*Forecast_vol!W28,Hist_expenditure!V27*Assumptions!V$29) -> 6974498.731 | X50: =IF(X$8, $G50*Forecast_vol!X28,Hist_expenditure!W27*Assumptions!W$29) -> 2368744.738 | Y50: =IF(Y$8, $G50*Forecast_vol!Y28,Hist_expenditure!X27*Assumptions!X$29) -> 1401252.709 | Z50: =IF(Z$8, $G50*Forecast_vol!Z28,Hist_expenditure!Y27*Assumptions!Y$29) -> 299258.6745 | AA50: =IF(AA$8, $G50*Forecast_vol!AA28,Hist_expenditure!Z27*Assumptions!Z$29) -> 176437.2746 | AC50: =SUMPRODUCT($H$7:$AA$7*$H50:$AA50) -> 11220192.13
B51: =Hist_vol!B28 -> Connections | C51: =Hist_vol!C28 -> EG3 | D51: =Hist_vol!D28 -> Embedded generation | E51: =Hist_vol!E28 -> Complex connection HV (large capacity) | F51: Embedded generation Complex connection HV (large capacity) | G51: =AVERAGE(Unit_rates!Q28:T28) -> 5426774.526 | H51: =IF(H$8, $G51*Forecast_vol!H29,Hist_expenditure!G28*Assumptions!G$29) -> 8236252.472 | I51: =IF(I$8, $G51*Forecast_vol!I29,Hist_expenditure!H28*Assumptions!H$29) -> 1997557.38 | J51: =IF(J$8, $G51*Forecast_vol!J29,Hist_expenditure!I28*Assumptions!I$29) -> 0 | K51: =IF(K$8, $G51*Forecast_vol!K29,Hist_expenditure!J28*Assumptions!J$29) -> 3313571.553 | L51: =IF(L$8, $G51*Forecast_vol!L29,Hist_expenditure!K28*Assumptions!K$29) -> 3991400.067 | M51: =IF(M$8, $G51*Forecast_vol!M29,Hist_expenditure!L28*Assumptions!L$29) -> 7916411.933 | N51: =IF(N$8, $G51*Forecast_vol!N29,Hist_expenditure!M28*Assumptions!M$29) -> 20992473.11 | O51: =IF(O$8, $G51*Forecast_vol!O29,Hist_expenditure!N28*Assumptions!N$29) -> 21616784.81 | P51: =IF(P$8, $G51*Forecast_vol!P29,Hist_expenditure!O28*Assumptions!O$29) -> 8135477.44 | Q51: =IF(Q$8, $G51*Forecast_vol!Q29,Hist_expenditure!P28*Assumptions!P$29) -> 1364282.227 | R51: =IF(R$8, $G51*Forecast_vol!R29,Hist_expenditure!Q28*Assumptions!Q$29) -> 1629674.155 | S51: =IF(S$8, $G51*Forecast_vol!S29,Hist_expenditure!R28*Assumptions!R$29) -> 4138534.371 | T51: =IF(T$8, $G51*Forecast_vol!T29,Hist_expenditure!S28*Assumptions!S$29) -> 10972754.76 | U51: =IF(U$8, $G51*Forecast_vol!U29,Hist_expenditure!T28*Assumptions!T$29) -> 5817808.965 | V51: =IF(V$8, $G51*Forecast_vol!V29,Hist_expenditure!U28*Assumptions!U$29) -> 36833962.22 | W51: =IF(W$8, $G51*Forecast_vol!W29,Hist_expenditure!V28*Assumptions!V$29) -> 42051590.4 | X51: =IF(X$8, $G51*Forecast_vol!X29,Hist_expenditure!W28*Assumptions!W$29) -> 14281955.93 | Y51: =IF(Y$8, $G51*Forecast_vol!Y29,Hist_expenditure!X28*Assumptions!X$29) -> 8448622.222 | Z51: =IF(Z$8, $G51*Forecast_vol!Z29,Hist_expenditure!Y28*Assumptions!Y$29) -> 1804330.847 | AA51: =IF(AA$8, $G51*Forecast_vol!AA29,Hist_expenditure!Z28*Assumptions!Z$29) -> 1063799.463 | AC51: =SUMPRODUCT($H$7:$AA$7*$H51:$AA51) -> 67650298.87
B54: Category | C54: Type | D54: RIN category | E54: Description | U54: =Assumptions!T$24 -> 2024/25 | V54: =Assumptions!U$24 -> 2025/26 | W54: =Assumptions!V$24 -> 2026/27 | X54: =Assumptions!W$24 -> 2027/28 | Y54: =Assumptions!X$24 -> 2028/29 | Z54: =Assumptions!Y$24 -> 2029/30 | AA54: =Assumptions!Z$24 -> 2030/31 | AC54: 2026-31 Total
B56: Gifted Assets | G56: GA as % of gross capex (FY23)
B57: Connections | C57: R1 | D57: Residential | E57: Simple connection LV | F57: ResidentialSimple connection LV | G57: 0 | U57: =$G57*U16 -> 0 | V57: 0 | W57: 0 | X57: 0 | Y57: 0 | Z57: 0 | AA57: 0 | AC57: =SUMPRODUCT($H$7:$AA$7*$H57:$AA57) -> 0
B58: Connections | C58: R2 | D58: Residential | E58: Complex connection LV | F58: ResidentialComplex connection LV | G58: 0.001064355403 | U58: 31061.91135 | V58: 39177.83405 | W58: 44147.48121 | X58: 44053.64492 | Y58: 42452.48452 | Z58: 42752.22386 | AA58: 43763.62669 | AC58: =SUMPRODUCT($H$7:$AA$7*$H58:$AA58) -> 217169.4612
B59: Connections | C59: R3 | D59: Residential | E59: Complex connection HV | F59: ResidentialComplex connection HV | G59: 0.003657777886 | U59: 27299.24996 | V59: 27609.77556 | W59: 31112.03254 | X59: 31045.90333 | Y59: 29917.51836 | Z59: 30128.75351 | AA59: 30841.51892 | AC59: =SUMPRODUCT($H$7:$AA$7*$H59:$AA59) -> 153045.7267
B60: Connections | C60: CI1 | D60: Commercial/Industrial | E60: Simple connection LV | F60: Commercial/IndustrialSimple connection LV | G60: 0 | U60: 0 | V60: 0 | W60: 0 | X60: 0 | Y60: 0 | Z60: 0 | AA60: 0 | AC60: =SUMPRODUCT($H$7:$AA$7*$H60:$AA60) -> 0
B61: Connections | C61: CI2 | D61: Commercial/Industrial | E61: Complex connection HV (customer connected at LV, minor HV works) | F61: Commercial/IndustrialComplex connection HV (customer connected at LV, minor HV works) | G61: 0.03778106313 | U61: 694592.7407 | V61: 1003962.604 | W61: 922002.7861 | X61: 879423.1567 | Y61: 877987.2614 | Z61: 891127.0414 | AA61: 844327.2141 | AC61: =SUMPRODUCT($H$7:$AA$7*$H61:$AA61) -> 4414867.46
B62: Connections | C62: CI3 | D62: Commercial/Industrial | E62: Complex connection HV (customer connected at LV, upstream asset works) | F62: Commercial/IndustrialComplex connection HV (customer connected at LV, upstream asset works) | G62: 0.05906230709 | U62: 2943526.39 | V62: 3330835.161 | W62: 3058918.018 | X62: 2917652.073 | Y62: 2912888.219 | Z62: 2956481.916 | AA62: 2801214.668 | AC62: =SUMPRODUCT($H$7:$AA$7*$H62:$AA62) -> 14647154.89
B63: Connections | C63: CI4 | D63: Commercial/Industrial | E63: Complex connection HV (customer connected at HV) | F63: Commercial/IndustrialComplex connection HV (customer connected at HV) | G63: 0 | U63: 0 | V63: 0 | W63: 0 | X63: 0 | Y63: 0 | Z63: 0 | AA63: 0 | AC63: =SUMPRODUCT($H$7:$AA$7*$H63:$AA63) -> 0
B64: Connections | C64: CI5 | D64: Commercial/Industrial | E64: Complex connection sub-transmission | F64: Commercial/IndustrialComplex connection sub-transmission | G64: 0 | U64: 0 | V64: 0 | W64: 0 | X64: 0 | Y64: 0 | Z64: 0 | AA64: 0 | AC64: =SUMPRODUCT($H$7:$AA$7*$H64:$AA64) -> 0
B65: Connections | C65: S1 | D65: Subdivision | E65: Complex connection LV | F65: SubdivisionComplex connection LV | G65: 0 | U65: 0 | V65: 0 | W65: 0 | X65: 0 | Y65: 0 | Z65: 0 | AA65: 0 | AC65: =SUMPRODUCT($H$7:$AA$7*$H65:$AA65) -> 0
B66: Connections | C66: S2 | D66: Subdivision | E66: Complex connection HV (no upstream asset works) | F66: SubdivisionComplex connection HV (no upstream asset works) | G66: 0 | U66: 0 | V66: 0 | W66: 0 | X66: 0 | Y66: 0 | Z66: 0 | AA66: 0 | AC66: =SUMPRODUCT($H$7:$AA$7*$H66:$AA66) -> 0
B67: Connections | C67: S3 | D67: Subdivision | E67: Complex connection HV (with upstream asset works) | F67: SubdivisionComplex connection HV (with upstream asset works) | G67: 1.137099417 | U67: 66679339.54 | V67: 38225614.29 | W67: 43074473.86 | X67: 42982918.26 | Y67: 41420674.17 | Z67: 41713128.32 | AA67: 42699948.94 | AC67: =SUMPRODUCT($H$7:$AA$7*$H67:$AA67) -> 211891143.6
B68: Connections | C68: EG1 | D68: Embedded generation | E68: Simple connection LV | F68: Embedded generationSimple connection LV | G68: 0 | U68: 0 | V68: 0 | W68: 0 | X68: 0 | Y68: 0 | Z68: 0 | AA68: 0 | AC68: =SUMPRODUCT($H$7:$AA$7*$H68:$AA68) -> 0
B69: Connections | C69: EG2 | D69: Embedded generation | E69: Complex connection HV (small capacity) | F69: Embedded generationComplex connection HV (small capacity) | G69: 0 | U69: 0 | V69: 0 | W69: 0 | X69: 0 | Y69: 0 | Z69: 0 | AA69: 0 | AC69: =SUMPRODUCT($H$7:$AA$7*$H69:$AA69) -> 0
B70: Connections | C70: EG3 | D70: Embedded generation | E70: Complex connection HV (large capacity) | F70: Embedded generationComplex connection HV (large capacity) | G70: 0 | U70: 0 | V70: 0 | W70: 0 | X70: 0 | Y70: 0 | Z70: 0 | AA70: 0 | AC70: =SUMPRODUCT($H$7:$AA$7*$H70:$AA70) -> 0
U71: =SUM(U55:U70) -> 70375819.83 | V71: 42627199.66 | W71: 47130654.18 | X71: 46855093.04 | Y71: 45283919.65 | Z71: 45633618.26 | AA71: 46420095.97 | AC71: 231323381.1

Sheet Forecast_contrib
A1: =Assumptions!$A$1 -> Powercor
A2: =Assumptions!$A$2 -> Connections
A3: Forecast contributions
B7: =Assumptions!B17 -> 2026/27 - 2030/31 reg period | H7: =Assumptions!G17 -> FALSE | I7: =Assumptions!H17 -> FALSE | J7: =Assumptions!I17 -> FALSE | K7: =Assumptions!J17 -> FALSE | L7: =Assumptions!K17 -> FALSE | M7: =Assumptions!L17 -> FALSE | N7: =Assumptions!M17 -> FALSE | O7: =Assumptions!N17 -> FALSE | P7: =Assumptions!O17 -> FALSE | Q7: =Assumptions!P17 -> FALSE | R7: =Assumptions!Q17 -> FALSE | S7: =Assumptions!R17 -> FALSE | T7: =Assumptions!S17 -> FALSE | U7: =Assumptions!T17 -> FALSE | V7: =Assumptions!U17 -> FALSE | W7: =Assumptions!V17 -> TRUE | X7: =Assumptions!W17 -> TRUE | Y7: =Assumptions!X17 -> TRUE | Z7: =Assumptions!Y17 -> TRUE | AA7: =Assumptions!Z17 -> TRUE
B8: =Assumptions!B18 -> Forecast period | H8: =Assumptions!G18 -> FALSE | I8: =Assumptions!H18 -> FALSE | J8: =Assumptions!I18 -> FALSE | K8: =Assumptions!J18 -> FALSE | L8: =Assumptions!K18 -> FALSE | M8: =Assumptions!L18 -> FALSE | N8: =Assumptions!M18 -> FALSE | O8: =Assumptions!N18 -> FALSE | P8: =Assumptions!O18 -> FALSE | Q8: =Assumptions!P18 -> FALSE | R8: =Assumptions!Q18 -> FALSE | S8: =Assumptions!R18 -> FALSE | T8: =Assumptions!S18 -> FALSE | U8: =Assumptions!T18 -> FALSE | V8: =Assumptions!U18 -> TRUE | W8: =Assumptions!V18 -> TRUE | X8: =Assumptions!W18 -> TRUE | Y8: =Assumptions!X18 -> TRUE | Z8: =Assumptions!Y18 -> TRUE | AA8: =Assumptions!Z18 -> TRUE
B9: =Assumptions!B19 -> Fin year end | H9: =Assumptions!G19 -> 2012 | I9: =Assumptions!H19 -> 2013 | J9: =Assumptions!I19 -> 2014 | K9: =Assumptions!J19 -> 2015 | L9: =Assumptions!K19 -> 2016 | M9: =Assumptions!L19 -> 2017 | N9: =Assumptions!M19 -> 2018 | O9: =Assumptions!N19 -> 2019 | P9: =Assumptions!O19 -> 2020 | Q9: =Assumptions!P19 -> 2021 | R9: =Assumptions!Q19 -> 2022 | S9: =Assumptions!R19 -> 2023 | T9: =Assumptions!S19 -> 2024 | U9: =Assumptions!T19 -> 2025 | V9: =Assumptions!U19 -> 2026 | W9: =Assumptions!V19 -> 2027 | X9: =Assumptions!W19 -> 2028 | Y9: =Assumptions!X19 -> 2029 | Z9: =Assumptions!Y19 -> 2030 | AA9: =Assumptions!Z19 -> 2031
B10: =Assumptions!B20 -> Basis | H10: =Assumptions!G20 -> Actual | I10: =Assumptions!H20 -> Actual | J10: =Assumptions!I20 -> Actual | K10: =Assumptions!J20 -> Actual | L10: =Assumptions!K20 -> Actual | M10: =Assumptions!L20 -> Actual | N10: =Assumptions!M20 -> Actual | O10: =Assumptions!N20 -> Actual | P10: =Assumptions!O20 -> Actual | Q10: =Assumptions!P20 -> Actual | R10: =Assumptions!Q20 -> Actual | S10: =Assumptions!R20 -> Actual | T10: =Assumptions!S20 -> Actual | U10: =Assumptions!T20 -> Actual | V10: =Assumptions!U20 -> Forecast | W10: =Assumptions!V20 -> Forecast | X10: =Assumptions!W20 -> Forecast | Y10: =Assumptions!X20 -> Forecast | Z10: =Assumptions!Y20 -> Forecast | AA10: =Assumptions!Z20 -> Forecast
B13: =Hist_vol!B$13 -> Category | C13: Type | D13: =Hist_vol!D$13 -> RIN category | E13: =Hist_vol!E$13 -> Description | H13: =Assumptions!G$24 -> 2011/12 | I13: =Assumptions!H$24 -> 2012/13 | J13: =Assumptions!I$24 -> 2013/14 | K13: =Assumptions!J$24 -> 2014/15 | L13: =Assumptions!K$24 -> 2015/16 | M13: =Assumptions!L$24 -> 2016/17 | N13: =Assumptions!M$24 -> 2017/18 | O13: =Assumptions!N$24 -> 2018/19 | P13: =Assumptions!O$24 -> 2019/20 | Q13: =Assumptions!P$24 -> 2020/21 | R13: =Assumptions!Q$24 -> 2021/22 | S13: =Assumptions!R$24 -> 2022/23 | T13: =Assumptions!S$24 -> 2023/24 | U13: =Assumptions!T$24 -> 2024/25 | V13: =Assumptions!U$24 -> 2025/26 | W13: =Assumptions!V$24 -> 2026/27 | X13: =Assumptions!W$24 -> 2027/28 | Y13: =Assumptions!X$24 -> 2028/29 | Z13: =Assumptions!Y$24 -> 2029/30 | AA13: =Assumptions!Z$24 -> 2030/31 | AC13: 2026-31 Total
B15: Forecast type 1 contributions (June 2026 $)
B16: =Hist_vol!B15 -> Connections | C16: =Hist_vol!C15 -> R1 | D16: =Hist_vol!D15 -> Residential | E16: =Hist_vol!E15 -> Simple connection LV | F16: =D16&" "&E16 -> Residential Simple connection LV | H16: =IF(H$8,CC_ratio!G15*Forecast_spend!H16,Hist_contributions!G15*Assumptions!G$29) -> 2870610.928 | I16: =IF(I$8,CC_ratio!H15*Forecast_spend!I16,Hist_contributions!H15*Assumptions!H$29) -> 2125407.855 | J16: =IF(J$8,CC_ratio!I15*Forecast_spend!J16,Hist_contributions!I15*Assumptions!I$29) -> 1866262.675 | K16: =IF(K$8,CC_ratio!J15*Forecast_spend!K16,Hist_contributions!J15*Assumptions!J$29) -> 2060802.475 | L16: =IF(L$8,CC_ratio!K15*Forecast_spend!L16,Hist_contributions!K15*Assumptions!K$29) -> 1131319.876 | M16: =IF(M$8,CC_ratio!L15*Forecast_spend!M16,Hist_contributions!L15*Assumptions!L$29) -> 0 | N16: =IF(N$8,CC_ratio!M15*Forecast_spend!N16,Hist_contributions!M15*Assumptions!M$29) -> 0 | O16: =IF(O$8,CC_ratio!N15*Forecast_spend!O16,Hist_contributions!N15*Assumptions!N$29) -> 0 | P16: =IF(P$8,CC_ratio!O15*Forecast_spend!P16,Hist_contributions!O15*Assumptions!O$29) -> 0 | Q16: =IF(Q$8,CC_ratio!P15*Forecast_spend!Q16,Hist_contributions!P15*Assumptions!P$29) -> 0 | R16: =IF(R$8,CC_ratio!Q15*Forecast_spend!R16,Hist_contributions!Q15*Assumptions!Q$29) -> 0 | S16: =IF(S$8,CC_ratio!R15*Forecast_spend!S16,Hist_contributions!R15*Assumptions!R$29) -> 0 | T16: =IF(T$8,CC_ratio!S15*Forecast_spend!T16,Hist_contributions!S15*Assumptions!S$29) -> 0 | U16: =IF(U$8,CC_ratio!T15*Forecast_spend!U16,Hist_contributions!T15*Assumptions!T$29) -> 0 | V16: =IF(V$8,CC_ratio!U15*Forecast_spend!V16,Hist_contributions!U15*Assumptions!U$29) -> 0 | W16: =IF(W$8,CC_ratio!V15*Forecast_spend!W16,Hist_contributions!V15*Assumptions!V$29) -> 0 | X16: =IF(X$8,CC_ratio!W15*Forecast_spend!X16,Hist_contributions!W15*Assumptions!W$29) -> 0 | Y16: =IF(Y$8,CC_ratio!X15*Forecast_spend!Y16,Hist_contributions!X15*Assumptions!X$29) -> 0 | Z16: =IF(Z$8,CC_ratio!Y15*Forecast_spend!Z16,Hist_contributions!Y15*Assumptions!Y$29) -> 0 | AA16: =IF(AA$8,CC_ratio!Z15*Forecast_spend!AA16,Hist_contributions!Z15*Assumptions!Z$29) -> 0 | AC16: =SUMPRODUCT($H$7:$AA$7*$H16:$AA16) -> 0
B17: =Hist_vol!B16 -> Connections | C17: =Hist_vol!C16 -> R2 | D17: =Hist_vol!D16 -> Residential | E17: =Hist_vol!E16 -> Complex connection LV | F17: =D17&" "&E17 -> Residential Complex connection LV | H17: =IF(H$8,CC_ratio!G16*Forecast_spend!H17,Hist_contributions!G16*Assumptions!G$29) -> 11023268.63 | I17: =IF(I$8,CC_ratio!H16*Forecast_spend!I17,Hist_contributions!H16*Assumptions!H$29) -> 9445025.789 | J17: =IF(J$8,CC_ratio!I16*Forecast_spend!J17,Hist_contributions!I16*Assumptions!I$29) -> 8743815.334 | K17: =IF(K$8,CC_ratio!J16*Forecast_spend!K17,Hist_contributions!J16*Assumptions!J$29) -> 8905805.722 | L17: =IF(L$8,CC_ratio!K16*Forecast_spend!L17,Hist_contributions!K16*Assumptions!K$29) -> 10391257.22 | M17: =IF(M$8,CC_ratio!L16*Forecast_spend!M17,Hist_contributions!L16*Assumptions!L$29) -> 13591569.21 | N17: =IF(N$8,CC_ratio!M16*Forecast_spend!N17,Hist_contributions!M16*Assumptions!M$29) -> 17230067.35 | O17: =IF(O$8,CC_ratio!N16*Forecast_spend!O17,Hist_contributions!N16*Assumptions!N$29) -> 16446945.98 | P17: =IF(P$8,CC_ratio!O16*Forecast_spend!P17,Hist_contributions!O16*Assumptions!O$29) -> 16712292.55 | Q17: =IF(Q$8,CC_ratio!P16*Forecast_spend!Q17,Hist_contributions!P16*Assumptions!P$29) -> 20556646.21 | R17: =IF(R$8,CC_ratio!Q16*Forecast_spend!R17,Hist_contributions!Q16*Assumptions!Q$29) -> 21397758.97 | S17: =IF(S$8,CC_ratio!R16*Forecast_spend!S17,Hist_contributions!R16*Assumptions!R$29) -> 18809487.38 | T17: =IF(T$8,CC_ratio!S16*Forecast_spend!T17,Hist_contributions!S16*Assumptions!S$29) -> 23471585.83 | U17: =IF(U$8,CC_ratio!T16*Forecast_spend!U17,Hist_contributions!T16*Assumptions!T$29) -> 22718535.61 | V17: =IF(V$8,CC_ratio!U16*Forecast_spend!V17,Hist_contributions!U16*Assumptions!U$29) -> 19623023.11 | W17: =IF(W$8,CC_ratio!V16*Forecast_spend!W17,Hist_contributions!V16*Assumptions!V$29) -> 22112172.99 | X17: =IF(X$8,CC_ratio!W16*Forecast_spend!X17,Hist_contributions!W16*Assumptions!W$29) -> 22065173.15 | Y17: =IF(Y$8,CC_ratio!X16*Forecast_spend!Y17,Hist_contributions!X16*Assumptions!X$29) -> 21263199.07 | Z17: =IF(Z$8,CC_ratio!Y16*Forecast_spend!Z17,Hist_contributions!Y16*Assumptions!Y$29) -> 21413329.68 | AA17: =IF(AA$8,CC_ratio!Z16*Forecast_spend!AA17,Hist_contributions!Z16*Assumptions!Z$29) -> 21919911.56 | AC17: =SUMPRODUCT($H$7:$AA$7*$H17:$AA17) -> 108773786.5
B18: =Hist_vol!B17 -> Connections | C18: =Hist_vol!C17 -> R3 | D18: =Hist_vol!D17 -> Residential | E18: =Hist_vol!E17 -> Complex connection HV | F18: Residential Complex connection HV | H18: =IF(H$8,CC_ratio!G17*Forecast_spend!H18,Hist_contributions!G17*Assumptions!G$29) -> 5475101.953 | I18: =IF(I$8,CC_ratio!H17*Forecast_spend!I18,Hist_contributions!H17*Assumptions!H$29) -> 4714555.436 | J18: =IF(J$8,CC_ratio!I17*Forecast_spend!J18,Hist_contributions!I17*Assumptions!I$29) -> 3928344.764 | K18: =IF(K$8,CC_ratio!J17*Forecast_spend!K18,Hist_contributions!J17*Assumptions!J$29) -> 3474671.279 | L18: =IF(L$8,CC_ratio!K17*Forecast_spend!L18,Hist_contributions!K17*Assumptions!K$29) -> 3343410.932 | M18: =IF(M$8,CC_ratio!L17*Forecast_spend!M18,Hist_contributions!L17*Assumptions!L$29) -> 4291320.505 | N18: =IF(N$8,CC_ratio!M17*Forecast_spend!N18,Hist_contributions!M17*Assumptions!M$29) -> 5885241.272 | O18: =IF(O$8,CC_ratio!N17*Forecast_spend!O18,Hist_contributions!N17*Assumptions!N$29) -> 5317586.351 | P18: =IF(P$8,CC_ratio!O17*Forecast_spend!P18,Hist_contributions!O17*Assumptions!O$29) -> 4008566.166 | Q18: =IF(Q$8,CC_ratio!P17*Forecast_spend!Q18,Hist_contributions!P17*Assumptions!P$29) -> 4236200.792 | R18: =IF(R$8,CC_ratio!Q17*Forecast_spend!R18,Hist_contributions!Q17*Assumptions!Q$29) -> 5588648.927 | S18: =IF(S$8,CC_ratio!R17*Forecast_spend!S18,Hist_contributions!R17*Assumptions!R$29) -> 5321111.085 | T18: =IF(T$8,CC_ratio!S17*Forecast_spend!T18,Hist_contributions!S17*Assumptions!S$29) -> 4534586.148 | U18: =IF(U$8,CC_ratio!T17*Forecast_spend!U18,Hist_contributions!T17*Assumptions!T$29) -> 4036572.109 | V18: =IF(V$8,CC_ratio!U17*Forecast_spend!V18,Hist_contributions!U17*Assumptions!U$29) -> 4334193.515 | W18: =IF(W$8,CC_ratio!V17*Forecast_spend!W18,Hist_contributions!V17*Assumptions!V$29) -> 4883979.204 | X18: =IF(X$8,CC_ratio!W17*Forecast_spend!X18,Hist_contributions!W17*Assumptions!W$29) -> 4873598.215 | Y18: =IF(Y$8,CC_ratio!X17*Forecast_spend!Y18,Hist_contributions!X17*Assumptions!X$29) -> 4696463.895 | Z18: =IF(Z$8,CC_ratio!Y17*Forecast_spend!Z18,Hist_contributions!Y17*Assumptions!Y$29) -> 4729623.673 | AA18: =IF(AA$8,CC_ratio!Z17*Forecast_spend!AA18,Hist_contributions!Z17*Assumptions!Z$29) -> 4841513.87 | AC18: =SUMPRODUCT($H$7:$AA$7*$H18:$AA18) -> 24025178.86
B19: =Hist_vol!B18 -> Connections | C19: =Hist_vol!C18 -> CI1 | D19: =Hist_vol!D18 -> Commercial/Industrial | E19: =Hist_vol!E18 -> Simple connection LV | F19: Commercial/Industrial Simple connection LV | H19: =IF(H$8,CC_ratio!G18*Forecast_spend!H19,Hist_contributions!G18*Assumptions!G$29) -> 396618.8225 | I19: =IF(I$8,CC_ratio!H18*Forecast_spend!I19,Hist_contributions!H18*Assumptions!H$29) -> 334696.4254 | J19: =IF(J$8,CC_ratio!I18*Forecast_spend!J19,Hist_contributions!I18*Assumptions!I$29) -> 307791.5879 | K19: =IF(K$8,CC_ratio!J18*Forecast_spend!K19,Hist_contributions!J18*Assumptions!J$29) -> 335805.1913 | L19: =IF(L$8,CC_ratio!K18*Forecast_spend!L19,Hist_contributions!K18*Assumptions!K$29) -> 184168.2564 | M19: =IF(M$8,CC_ratio!L18*Forecast_spend!M19,Hist_contributions!L18*Assumptions!L$29) -> 0 | N19: =IF(N$8,CC_ratio!M18*Forecast_spend!N19,Hist_contributions!M18*Assumptions!M$29) -> 0 | O19: =IF(O$8,CC_ratio!N18*Forecast_spend!O19,Hist_contributions!N18*Assumptions!N$29) -> 0 | P19: =IF(P$8,CC_ratio!O18*Forecast_spend!P19,Hist_contributions!O18*Assumptions!O$29) -> 0 | Q19: =IF(Q$8,CC_ratio!P18*Forecast_spend!Q19,Hist_contributions!P18*Assumptions!P$29) -> 0 | R19: =IF(R$8,CC_ratio!Q18*Forecast_spend!R19,Hist_contributions!Q18*Assumptions!Q$29) -> 0 | S19: =IF(S$8,CC_ratio!R18*Forecast_spend!S19,Hist_contributions!R18*Assumptions!R$29) -> 0 | T19: =IF(T$8,CC_ratio!S18*Forecast_spend!T19,Hist_contributions!S18*Assumptions!S$29) -> 0 | U19: =IF(U$8,CC_ratio!T18*Forecast_spend!U19,Hist_contributions!T18*Assumptions!T$29) -> 0 | V19: =IF(V$8,CC_ratio!U18*Forecast_spend!V19,Hist_contributions!U18*Assumptions!U$29) -> 0 | W19: =IF(W$8,CC_ratio!V18*Forecast_spend!W19,Hist_contributions!V18*Assumptions!V$29) -> 0 | X19: =IF(X$8,CC_ratio!W18*Forecast_spend!X19,Hist_contributions!W18*Assumptions!W$29) -> 0 | Y19: =IF(Y$8,CC_ratio!X18*Forecast_spend!Y19,Hist_contributions!X18*Assumptions!X$29) -> 0 | Z19: =IF(Z$8,CC_ratio!Y18*Forecast_spend!Z19,Hist_contributions!Y18*Assumptions!Y$29) -> 0 | AA19: =IF(AA$8,CC_ratio!Z18*Forecast_spend!AA19,Hist_contributions!Z18*Assumptions!Z$29) -> 0 | AC19: =SUMPRODUCT($H$7:$AA$7*$H19:$AA19) -> 0
B20: =Hist_vol!B19 -> Connections | C20: =Hist_vol!C19 -> CI2 | D20: =Hist_vol!D19 -> Commercial/Industrial | E20: =Hist_vol!E19 -> Complex connection HV (customer connected at LV, minor HV works) | F20: Commercial/Industrial Complex connection HV (customer connected at LV, minor HV works) | H20: =IF(H$8,CC_ratio!G19*Forecast_spend!H20,Hist_contributions!G19*Assumptions!G$29) -> 7500133.249 | I20: =IF(I$8,CC_ratio!H19*Forecast_spend!I20,Hist_contributions!H19*Assumptions!H$29) -> 17451922.45 | J20: =IF(J$8,CC_ratio!I19*Forecast_spend!J20,Hist_contributions!I19*Assumptions!I$29) -> 20129558.21 | K20: =IF(K$8,CC_ratio!J19*Forecast_spend!K20,Hist_contributions!J19*Assumptions!J$29) -> 33431060.75 | L20: =IF(L$8,CC_ratio!K19*Forecast_spend!L20,Hist_contributions!K19*Assumptions!K$29) -> 38186157.38 | M20: =IF(M$8,CC_ratio!L19*Forecast_spend!M20,Hist_contributions!L19*Assumptions!L$29) -> 31965262.36 | N20: =IF(N$8,CC_ratio!M19*Forecast_spend!N20,Hist_contributions!M19*Assumptions!M$29) -> 33432088.34 | O20: =IF(O$8,CC_ratio!N19*Forecast_spend!O20,Hist_contributions!N19*Assumptions!N$29) -> 47025067.66 | P20: =IF(P$8,CC_ratio!O19*Forecast_spend!P20,Hist_contributions!O19*Assumptions!O$29) -> 53133790.76 | Q20: =IF(Q$8,CC_ratio!P19*Forecast_spend!Q20,Hist_contributions!P19*Assumptions!P$29) -> 28770680.91 | R20: =IF(R$8,CC_ratio!Q19*Forecast_spend!R20,Hist_contributions!Q19*Assumptions!Q$29) -> 22234289.6 | S20: =IF(S$8,CC_ratio!R19*Forecast_spend!S20,Hist_contributions!R19*Assumptions!R$29) -> 24796258 | T20: =IF(T$8,CC_ratio!S19*Forecast_spend!T20,Hist_contributions!S19*Assumptions!S$29) -> 20483232.1 | U20: =IF(U$8,CC_ratio!T19*Forecast_spend!U20,Hist_contributions!T19*Assumptions!T$29) -> 17465196.27 | V20: =IF(V$8,CC_ratio!U19*Forecast_spend!V20,Hist_contributions!U19*Assumptions!U$29) -> 26573169.75 | W20: =IF(W$8,CC_ratio!V19*Forecast_spend!W20,Hist_contributions!V19*Assumptions!V$29) -> 24403833.82 | X20: =IF(X$8,CC_ratio!W19*Forecast_spend!X20,Hist_contributions!W19*Assumptions!W$29) -> 23276823.99 | Y20: =IF(Y$8,CC_ratio!X19*Forecast_spend!Y20,Hist_contributions!X19*Assumptions!X$29) -> 23238818.3 | Z20: =IF(Z$8,CC_ratio!Y19*Forecast_spend!Z20,Hist_contributions!Y19*Assumptions!Y$29) -> 23586605.77 | AA20: =IF(AA$8,CC_ratio!Z19*Forecast_spend!AA20,Hist_contributions!Z19*Assumptions!Z$29) -> 22347894.53 | AC20: =SUMPRODUCT($H$7:$AA$7*$H20:$AA20) -> 116853976.4
B21: =Hist_vol!B20 -> Connections | C21: =Hist_vol!C20 -> CI3 | D21: =Hist_vol!D20 -> Commercial/Industrial | E21: =Hist_vol!E20 -> Complex connection HV (customer connected at LV, upstream asset works) | F21: Commercial/Industrial Complex connection HV (customer connected at LV, upstream asset works) | H21: =IF(H$8,CC_ratio!G20*Forecast_spend!H21,Hist_contributions!G20*Assumptions!G$29) -> 17436053.03 | I21: =IF(I$8,CC_ratio!H20*Forecast_spend!I21,Hist_contributions!H20*Assumptions!H$29) -> 13680774.31 | J21: =IF(J$8,CC_ratio!I20*Forecast_spend!J21,Hist_contributions!I20*Assumptions!I$29) -> 12082438.54 | K21: =IF(K$8,CC_ratio!J20*Forecast_spend!K21,Hist_contributions!J20*Assumptions!J$29) -> 11710051.62 | L21: =IF(L$8,CC_ratio!K20*Forecast_spend!L21,Hist_contributions!K20*Assumptions!K$29) -> 14358725.75 | M21: =IF(M$8,CC_ratio!L20*Forecast_spend!M21,Hist_contributions!L20*Assumptions!L$29) -> 21398719.4 | N21: =IF(N$8,CC_ratio!M20*Forecast_spend!N21,Hist_contributions!M20*Assumptions!M$29) -> 26168492 | O21: =IF(O$8,CC_ratio!N20*Forecast_spend!O21,Hist_contributions!N20*Assumptions!N$29) -> 22529367.55 | P21: =IF(P$8,CC_ratio!O20*Forecast_spend!P21,Hist_contributions!O20*Assumptions!O$29) -> 13872764.48 | Q21: =IF(Q$8,CC_ratio!P20*Forecast_spend!Q21,Hist_contributions!P20*Assumptions!P$29) -> 11135983.44 | R21: =IF(R$8,CC_ratio!Q20*Forecast_spend!R21,Hist_contributions!Q20*Assumptions!Q$29) -> 11655103.14 | S21: =IF(S$8,CC_ratio!R20*Forecast_spend!S21,Hist_contributions!R20*Assumptions!R$29) -> 16415842.36 | T21: =IF(T$8,CC_ratio!S20*Forecast_spend!T21,Hist_contributions!S20*Assumptions!S$29) -> 18061170.52 | U21: =IF(U$8,CC_ratio!T20*Forecast_spend!U21,Hist_contributions!T20*Assumptions!T$29) -> 18589789.57 | V21: =IF(V$8,CC_ratio!U20*Forecast_spend!V21,Hist_contributions!U20*Assumptions!U$29) -> 19277689.46 | W21: =IF(W$8,CC_ratio!V20*Forecast_spend!W21,Hist_contributions!V20*Assumptions!V$29) -> 17703929.73 | X21: =IF(X$8,CC_ratio!W20*Forecast_spend!X21,Hist_contributions!W20*Assumptions!W$29) -> 16886332.67 | Y21: =IF(Y$8,CC_ratio!X20*Forecast_spend!Y21,Hist_contributions!X20*Assumptions!X$29) -> 16858761.18 | Z21: =IF(Z$8,CC_ratio!Y20*Forecast_spend!Z21,Hist_contributions!Y20*Assumptions!Y$29) -> 17111066 | AA21: =IF(AA$8,CC_ratio!Z20*Forecast_spend!AA21,Hist_contributions!Z20*Assumptions!Z$29) -> 16212434.38 | AC21: =SUMPRODUCT($H$7:$AA$7*$H21:$AA21) -> 84772523.95
B22: =Hist_vol!B21 -> Connections | C22: =Hist_vol!C21 -> CI4 | D22: =Hist_vol!D21 -> Commercial/Industrial | E22: =Hist_vol!E21 -> Complex connection HV (customer connected at HV) | F22: Commercial/Industrial Complex connection HV (customer connected at HV) | H22: =IF(H$8,CC_ratio!G21*Forecast_spend!H22,Hist_contributions!G21*Assumptions!G$29) -> 1879127.155 | I22: =IF(I$8,CC_ratio!H21*Forecast_spend!I22,Hist_contributions!H21*Assumptions!H$29) -> 1685703.757 | J22: =IF(J$8,CC_ratio!I21*Forecast_spend!J22,Hist_contributions!I21*Assumptions!I$29) -> 1567609.855 | K22: =IF(K$8,CC_ratio!J21*Forecast_spend!K22,Hist_contributions!J21*Assumptions!J$29) -> 855528.6083 | L22: =IF(L$8,CC_ratio!K21*Forecast_spend!L22,Hist_contributions!K21*Assumptions!K$29) -> 845450.1616 | M22: =IF(M$8,CC_ratio!L21*Forecast_spend!M22,Hist_contributions!L21*Assumptions!L$29) -> 1373331.727 | N22: =IF(N$8,CC_ratio!M21*Forecast_spend!N22,Hist_contributions!M21*Assumptions!M$29) -> 1400450.741 | O22: =IF(O$8,CC_ratio!N21*Forecast_spend!O22,Hist_contributions!N21*Assumptions!N$29) -> 1234251.196 | P22: =IF(P$8,CC_ratio!O21*Forecast_spend!P22,Hist_contributions!O21*Assumptions!O$29) -> 2589914.14 | Q22: =IF(Q$8,CC_ratio!P21*Forecast_spend!Q22,Hist_contributions!P21*Assumptions!P$29) -> 11698517.21 | R22: =IF(R$8,CC_ratio!Q21*Forecast_spend!R22,Hist_contributions!Q21*Assumptions!Q$29) -> 12989542.49 | S22: =IF(S$8,CC_ratio!R21*Forecast_spend!S22,Hist_contributions!R21*Assumptions!R$29) -> 17369186.42 | T22: =IF(T$8,CC_ratio!S21*Forecast_spend!T22,Hist_contributions!S21*Assumptions!S$29) -> 9030739.053 | U22: =IF(U$8,CC_ratio!T21*Forecast_spend!U22,(Hist_contributions!T21+25938559.61)*Assumptions!T$29) -> 35430393.54 | V22: =IF(V$8,CC_ratio!U21*Forecast_spend!V22,Hist_contributions!U21*Assumptions!U$29) -> 9702212.816 | W22: =IF(W$8,CC_ratio!V21*Forecast_spend!W22,Hist_contributions!V21*Assumptions!V$29) -> 8910159.814 | X22: =IF(X$8,CC_ratio!W21*Forecast_spend!X22,Hist_contributions!W21*Assumptions!W$29) -> 8498673.744 | Y22: =IF(Y$8,CC_ratio!X21*Forecast_spend!Y22,Hist_contributions!X21*Assumptions!X$29) -> 8484797.369 | Z22: =IF(Z$8,CC_ratio!Y21*Forecast_spend!Z22,Hist_contributions!Y21*Assumptions!Y$29) -> 8611779.133 | AA22: =IF(AA$8,CC_ratio!Z21*Forecast_spend!AA22,Hist_contributions!Z21*Assumptions!Z$29) -> 8159509.414 | AC22: =SUMPRODUCT($H$7:$AA$7*$H22:$AA22) -> 42664919.48
B23: =Hist_vol!B22 -> Connections | C23: =Hist_vol!C22 -> CI5 | D23: =Hist_vol!D22 -> Commercial/Industrial | E23: =Hist_vol!E22 -> Complex connection sub-transmission | F23: Commercial/Industrial Complex connection sub-transmission | H23: =IF(H$8,CC_ratio!G22*Forecast_spend!H23,Hist_contributions!G22*Assumptions!G$29) -> 0 | I23: =IF(I$8,CC_ratio!H22*Forecast_spend!I23,Hist_contributions!H22*Assumptions!H$29) -> 0 | J23: =IF(J$8,CC_ratio!I22*Forecast_spend!J23,Hist_contributions!I22*Assumptions!I$29) -> 0 | K23: =IF(K$8,CC_ratio!J22*Forecast_spend!K23,Hist_contributions!J22*Assumptions!J$29) -> 0 | L23: =IF(L$8,CC_ratio!K22*Forecast_spend!L23,Hist_contributions!K22*Assumptions!K$29) -> 0 | M23: =IF(M$8,CC_ratio!L22*Forecast_spend!M23,Hist_contributions!L22*Assumptions!L$29) -> 3576172.063 | N23: =IF(N$8,CC_ratio!M22*Forecast_spend!N23,Hist_contributions!M22*Assumptions!M$29) -> 3524104.904 | O23: =IF(O$8,CC_ratio!N22*Forecast_spend!O23,Hist_contributions!N22*Assumptions!N$29) -> 0 | P23: =IF(P$8,CC_ratio!O22*Forecast_spend!P23,Hist_contributions!O22*Assumptions!O$29) -> 0 | Q23: =IF(Q$8,CC_ratio!P22*Forecast_spend!Q23,Hist_contributions!P22*Assumptions!P$29) -> 0 | R23: =IF(R$8,CC_ratio!Q22*Forecast_spend!R23,Hist_contributions!Q22*Assumptions!Q$29) -> 0 | S23: =IF(S$8,CC_ratio!R22*Forecast_spend!S23,Hist_contributions!R22*Assumptions!R$29) -> 0 | T23: =IF(T$8,CC_ratio!S22*Forecast_spend!T23,Hist_contributions!S22*Assumptions!S$29) -> 824819.3957 | U23: =IF(U$8,CC_ratio!T22*Forecast_spend!U23,(Hist_contributions!T22+24330677.19)*Assumptions!T$29) -> 45093228.42 | V23: =IF(V$8,CC_ratio!U22*Forecast_spend!V23,Hist_contributions!U22*Assumptions!U$29) -> 2629891.126 | W23: =IF(W$8,CC_ratio!V22*Forecast_spend!W23,Hist_contributions!V22*Assumptions!V$29) -> 2415196.479 | X23: =IF(X$8,CC_ratio!W22*Forecast_spend!X23,Hist_contributions!W22*Assumptions!W$29) -> 2303658.669 | Y23: =IF(Y$8,CC_ratio!X22*Forecast_spend!Y23,Hist_contributions!X22*Assumptions!X$29) -> 2299897.326 | Z23: =IF(Z$8,CC_ratio!Y22*Forecast_spend!Z23,Hist_contributions!Y22*Assumptions!Y$29) -> 2334317.124 | AA23: =IF(AA$8,CC_ratio!Z22*Forecast_spend!AA23,Hist_contributions!Z22*Assumptions!Z$29) -> 2211724.46 | AC23: =SUMPRODUCT($H$7:$AA$7*$H23:$AA23) -> 11564794.06
B24: =Hist_vol!B23 -> Connections | C24: =Hist_vol!C23 -> S1 | D24: =Hist_vol!D23 -> Subdivision | E24: =Hist_vol!E23 -> Complex connection LV | F24: Subdivision Complex connection LV | H24: =IF(H$8,CC_ratio!G23*Forecast_spend!H24,Hist_contributions!G23*Assumptions!G$29) -> 0 | I24: =IF(I$8,CC_ratio!H23*Forecast_spend!I24,Hist_contributions!H23*Assumptions!H$29) -> 0 | J24: =IF(J$8,CC_ratio!I23*Forecast_spend!J24,Hist_contributions!I23*Assumptions!I$29) -> 0 | K24: =IF(K$8,CC_ratio!J23*Forecast_spend!K24,Hist_contributions!J23*Assumptions!J$29) -> 0 | L24: =IF(L$8,CC_ratio!K23*Forecast_spend!L24,Hist_contributions!K23*Assumptions!K$29) -> 0 | M24: =IF(M$8,CC_ratio!L23*Forecast_spend!M24,Hist_contributions!L23*Assumptions!L$29) -> 0 | N24: =IF(N$8,CC_ratio!M23*Forecast_spend!N24,Hist_contributions!M23*Assumptions!M$29) -> 0 | O24: =IF(O$8,CC_ratio!N23*Forecast_spend!O24,Hist_contributions!N23*Assumptions!N$29) -> 0 | P24: =IF(P$8,CC_ratio!O23*Forecast_spend!P24,Hist_contributions!O23*Assumptions!O$29) -> 0 | Q24: =IF(Q$8,CC_ratio!P23*Forecast_spend!Q24,Hist_contributions!P23*Assumptions!P$29) -> 0 | R24: =IF(R$8,CC_ratio!Q23*Forecast_spend!R24,Hist_contributions!Q23*Assumptions!Q$29) -> 0 | S24: =IF(S$8,CC_ratio!R23*Forecast_spend!S24,Hist_contributions!R23*Assumptions!R$29) -> 0 | T24: =IF(T$8,CC_ratio!S23*Forecast_spend!T24,Hist_contributions!S23*Assumptions!S$29) -> 0 | U24: =IF(U$8,CC_ratio!T23*Forecast_spend!U24,Hist_contributions!T23*Assumptions!T$29) -> 0 | V24: =IF(V$8,CC_ratio!U23*Forecast_spend!V24,Hist_contributions!U23*Assumptions!U$29) -> 0 | W24: =IF(W$8,CC_ratio!V23*Forecast_spend!W24,Hist_contributions!V23*Assumptions!V$29) -> 0 | X24: =IF(X$8,CC_ratio!W23*Forecast_spend!X24,Hist_contributions!W23*Assumptions!W$29) -> 0 | Y24: =IF(Y$8,CC_ratio!X23*Forecast_spend!Y24,Hist_contributions!X23*Assumptions!X$29) -> 0 | Z24: =IF(Z$8,CC_ratio!Y23*Forecast_spend!Z24,Hist_contributions!Y23*Assumptions!Y$29) -> 0 | AA24: =IF(AA$8,CC_ratio!Z23*Forecast_spend!AA24,Hist_contributions!Z23*Assumptions!Z$29) -> 0 | AC24: =SUMPRODUCT($H$7:$AA$7*$H24:$AA24) -> 0
B25: =Hist_vol!B24 -> Connections | C25: =Hist_vol!C24 -> S2 | D25: =Hist_vol!D24 -> Subdivision | E25: =Hist_vol!E24 -> Complex connection HV (no upstream asset works) | F25: Subdivision Complex connection HV (no upstream asset works) | H25: =IF(H$8,CC_ratio!G24*Forecast_spend!H25,Hist_contributions!G24*Assumptions!G$29) -> 0 | I25: =IF(I$8,CC_ratio!H24*Forecast_spend!I25,Hist_contributions!H24*Assumptions!H$29) -> 0 | J25: =IF(J$8,CC_ratio!I24*Forecast_spend!J25,Hist_contributions!I24*Assumptions!I$29) -> 0 | K25: =IF(K$8,CC_ratio!J24*Forecast_spend!K25,Hist_contributions!J24*Assumptions!J$29) -> 0 | L25: =IF(L$8,CC_ratio!K24*Forecast_spend!L25,Hist_contributions!K24*Assumptions!K$29) -> 0 | M25: =IF(M$8,CC_ratio!L24*Forecast_spend!M25,Hist_contributions!L24*Assumptions!L$29) -> 0 | N25: =IF(N$8,CC_ratio!M24*Forecast_spend!N25,Hist_contributions!M24*Assumptions!M$29) -> 0 | O25: =IF(O$8,CC_ratio!N24*Forecast_spend!O25,Hist_contributions!N24*Assumptions!N$29) -> 0 | P25: =IF(P$8,CC_ratio!O24*Forecast_spend!P25,Hist_contributions!O24*Assumptions!O$29) -> 0 | Q25: =IF(Q$8,CC_ratio!P24*Forecast_spend!Q25,Hist_contributions!P24*Assumptions!P$29) -> 0 | R25: =IF(R$8,CC_ratio!Q24*Forecast_spend!R25,Hist_contributions!Q24*Assumptions!Q$29) -> 0 | S25: =IF(S$8,CC_ratio!R24*Forecast_spend!S25,Hist_contributions!R24*Assumptions!R$29) -> 0 | T25: =IF(T$8,CC_ratio!S24*Forecast_spend!T25,Hist_contributions!S24*Assumptions!S$29) -> 0 | U25: =IF(U$8,CC_ratio!T24*Forecast_spend!U25,Hist_contributions!T24*Assumptions!T$29) -> 0 | V25: =IF(V$8,CC_ratio!U24*Forecast_spend!V25,Hist_contributions!U24*Assumptions!U$29) -> 0 | W25: =IF(W$8,CC_ratio!V24*Forecast_spend!W25,Hist_contributions!V24*Assumptions!V$29) -> 0 | X25: =IF(X$8,CC_ratio!W24*Forecast_spend!X25,Hist_contributions!W24*Assumptions!W$29) -> 0 | Y25: =IF(Y$8,CC_ratio!X24*Forecast_spend!Y25,Hist_contributions!X24*Assumptions!X$29) -> 0 | Z25: =IF(Z$8,CC_ratio!Y24*Forecast_spend!Z25,Hist_contributions!Y24*Assumptions!Y$29) -> 0 | AA25: =IF(AA$8,CC_ratio!Z24*Forecast_spend!AA25,Hist_contributions!Z24*Assumptions!Z$29) -> 0 | AC25: =SUMPRODUCT($H$7:$AA$7*$H25:$AA25) -> 0
B26: =Hist_vol!B25 -> Connections | C26: =Hist_vol!C25 -> S3 | D26: =Hist_vol!D25 -> Subdivision | E26: =Hist_vol!E25 -> Complex connection HV (with upstream asset works) | F26: Subdivision Complex connection HV (with upstream asset works) | H26: =IF(H$8,CC_ratio!G25*Forecast_spend!H26,Hist_contributions!G25*Assumptions!G$29) -> 7168007.352 | I26: =IF(I$8,CC_ratio!H25*Forecast_spend!I26,Hist_contributions!H25*Assumptions!H$29) -> 5406472.719 | J26: =IF(J$8,CC_ratio!I25*Forecast_spend!J26,Hist_contributions!I25*Assumptions!I$29) -> 4530283.552 | K26: =IF(K$8,CC_ratio!J25*Forecast_spend!K26,Hist_contributions!J25*Assumptions!J$29) -> 5509319.292 | L26: =IF(L$8,CC_ratio!K25*Forecast_spend!L26,Hist_contributions!K25*Assumptions!K$29) -> 8333209.501 | M26: =IF(M$8,CC_ratio!L25*Forecast_spend!M26,Hist_contributions!L25*Assumptions!L$29) -> 12178999.73 | N26: =IF(N$8,CC_ratio!M25*Forecast_spend!N26,Hist_contributions!M25*Assumptions!M$29) -> 17767374.21 | O26: =IF(O$8,CC_ratio!N25*Forecast_spend!O26,Hist_contributions!N25*Assumptions!N$29) -> 16548484.28 | P26: =IF(P$8,CC_ratio!O25*Forecast_spend!P26,Hist_contributions!O25*Assumptions!O$29) -> 15584022.21 | Q26: =IF(Q$8,CC_ratio!P25*Forecast_spend!Q26,Hist_contributions!P25*Assumptions!P$29) -> 18776859.26 | R26: =IF(R$8,CC_ratio!Q25*Forecast_spend!R26,Hist_contributions!Q25*Assumptions!Q$29) -> 11814307.73 | S26: =IF(S$8,CC_ratio!R25*Forecast_spend!S26,Hist_contributions!R25*Assumptions!R$29) -> 10443411.81 | T26: =IF(T$8,CC_ratio!S25*Forecast_spend!T26,Hist_contributions!S25*Assumptions!S$29) -> 8030758.143 | U26: =IF(U$8,CC_ratio!T25*Forecast_spend!U26,Hist_contributions!T25*Assumptions!T$29) -> 10866881.6 | V26: =IF(V$8,CC_ratio!U25*Forecast_spend!V26,Hist_contributions!U25*Assumptions!U$29) -> 6242092.1 | W26: =IF(W$8,CC_ratio!V25*Forecast_spend!W26,Hist_contributions!V25*Assumptions!V$29) -> 7033891.75 | X26: =IF(X$8,CC_ratio!W25*Forecast_spend!X26,Hist_contributions!W25*Assumptions!W$29) -> 7018941.081 | Y26: =IF(Y$8,CC_ratio!X25*Forecast_spend!Y26,Hist_contributions!X25*Assumptions!X$29) -> 6763832.781 | Z26: =IF(Z$8,CC_ratio!Y25*Forecast_spend!Z26,Hist_contributions!Y25*Assumptions!Y$29) -> 6811589.391 | AA26: =IF(AA$8,CC_ratio!Z25*Forecast_spend!AA26,Hist_contributions!Z25*Assumptions!Z$29) -> 6972733.308 | AC26: =SUMPRODUCT($H$7:$AA$7*$H26:$AA26) -> 34600988.31
B27: =Hist_vol!B26 -> Connections | C27: =Hist_vol!C26 -> EG1 | D27: =Hist_vol!D26 -> Embedded generation | E27: =Hist_vol!E26 -> Simple connection LV | F27: Embedded generation Simple connection LV | H27: =IF(H$8,CC_ratio!G26*Forecast_spend!H27,Hist_contributions!G26*Assumptions!G$29) -> 0 | I27: =IF(I$8,CC_ratio!H26*Forecast_spend!I27,Hist_contributions!H26*Assumptions!H$29) -> 0 | J27: =IF(J$8,CC_ratio!I26*Forecast_spend!J27,Hist_contributions!I26*Assumptions!I$29) -> 0 | K27: =IF(K$8,CC_ratio!J26*Forecast_spend!K27,Hist_contributions!J26*Assumptions!J$29) -> 0 | L27: =IF(L$8,CC_ratio!K26*Forecast_spend!L27,Hist_contributions!K26*Assumptions!K$29) -> 0 | M27: =IF(M$8,CC_ratio!L26*Forecast_spend!M27,Hist_contributions!L26*Assumptions!L$29) -> 0 | N27: =IF(N$8,CC_ratio!M26*Forecast_spend!N27,Hist_contributions!M26*Assumptions!M$29) -> 0 | O27: =IF(O$8,CC_ratio!N26*Forecast_spend!O27,Hist_contributions!N26*Assumptions!N$29) -> 0 | P27: =IF(P$8,CC_ratio!O26*Forecast_spend!P27,Hist_contributions!O26*Assumptions!O$29) -> 0 | Q27: =IF(Q$8,CC_ratio!P26*Forecast_spend!Q27,Hist_contributions!P26*Assumptions!P$29) -> 0 | R27: =IF(R$8,CC_ratio!Q26*Forecast_spend!R27,Hist_contributions!Q26*Assumptions!Q$29) -> 0 | S27: =IF(S$8,CC_ratio!R26*Forecast_spend!S27,Hist_contributions!R26*Assumptions!R$29) -> 0 | T27: =IF(T$8,CC_ratio!S26*Forecast_spend!T27,Hist_contributions!S26*Assumptions!S$29) -> 0 | U27: =IF(U$8,CC_ratio!T26*Forecast_spend!U27,Hist_contributions!T26*Assumptions!T$29) -> 0 | V27: =IF(V$8,CC_ratio!U26*Forecast_spend!V27,Hist_contributions!U26*Assumptions!U$29) -> 0 | W27: =IF(W$8,CC_ratio!V26*Forecast_spend!W27,Hist_contributions!V26*Assumptions!V$29) -> 0 | X27: =IF(X$8,CC_ratio!W26*Forecast_spend!X27,Hist_contributions!W26*Assumptions!W$29) -> 0 | Y27: =IF(Y$8,CC_ratio!X26*Forecast_spend!Y27,Hist_contributions!X26*Assumptions!X$29) -> 0 | Z27: =IF(Z$8,CC_ratio!Y26*Forecast_spend!Z27,Hist_contributions!Y26*Assumptions!Y$29) -> 0 | AA27: =IF(AA$8,CC_ratio!Z26*Forecast_spend!AA27,Hist_contributions!Z26*Assumptions!Z$29) -> 0 | AC27: =SUMPRODUCT($H$7:$AA$7*$H27:$AA27) -> 0
B28: =Hist_vol!B27 -> Connections | C28: =Hist_vol!C27 -> EG2 | D28: =Hist_vol!D27 -> Embedded generation | E28: =Hist_vol!E27 -> Complex connection HV (small capacity) | F28: Embedded generation Complex connection HV (small capacity) | H28: =IF(H$8,CC_ratio!G27*Forecast_spend!H28,Hist_contributions!G27*Assumptions!G$29) -> 545488.958 | I28: =IF(I$8,CC_ratio!H27*Forecast_spend!I28,Hist_contributions!H27*Assumptions!H$29) -> 442723.8605 | J28: =IF(J$8,CC_ratio!I27*Forecast_spend!J28,Hist_contributions!I27*Assumptions!I$29) -> 426001.1156 | K28: =IF(K$8,CC_ratio!J27*Forecast_spend!K28,Hist_contributions!J27*Assumptions!J$29) -> 487723.5453 | L28: =IF(L$8,CC_ratio!K27*Forecast_spend!L28,Hist_contributions!K27*Assumptions!K$29) -> 486638.0924 | M28: =IF(M$8,CC_ratio!L27*Forecast_spend!M28,Hist_contributions!L27*Assumptions!L$29) -> 1753188.755 | N28: =IF(N$8,CC_ratio!M27*Forecast_spend!N28,Hist_contributions!M27*Assumptions!M$29) -> 2590632.807 | O28: =IF(O$8,CC_ratio!N27*Forecast_spend!O28,Hist_contributions!N27*Assumptions!N$29) -> 1903851.245 | P28: =IF(P$8,CC_ratio!O27*Forecast_spend!P28,Hist_contributions!O27*Assumptions!O$29) -> 10669858.79 | Q28: =IF(Q$8,CC_ratio!P27*Forecast_spend!Q28,Hist_contributions!P27*Assumptions!P$29) -> 13613340.17 | R28: =IF(R$8,CC_ratio!Q27*Forecast_spend!R28,Hist_contributions!Q27*Assumptions!Q$29) -> 8914134.545 | S28: =IF(S$8,CC_ratio!R27*Forecast_spend!S28,Hist_contributions!R27*Assumptions!R$29) -> 3626089.582 | T28: =IF(T$8,CC_ratio!S27*Forecast_spend!T28,Hist_contributions!S27*Assumptions!S$29) -> 5103333.587 | U28: =IF(U$8,CC_ratio!T27*Forecast_spend!U28,Hist_contributions!T27*Assumptions!T$29) -> 5780084.099 | V28: =IF(V$8,CC_ratio!U27*Forecast_spend!V28,Hist_contributions!U27*Assumptions!U$29) -> 6109125.013 | W28: =IF(W$8,CC_ratio!V27*Forecast_spend!W28,Hist_contributions!V27*Assumptions!V$29) -> 6974498.731 | X28: =IF(X$8,CC_ratio!W27*Forecast_spend!X28,Hist_contributions!W27*Assumptions!W$29) -> 2368744.738 | Y28: =IF(Y$8,CC_ratio!X27*Forecast_spend!Y28,Hist_contributions!X27*Assumptions!X$29) -> 1401252.709 | Z28: =IF(Z$8,CC_ratio!Y27*Forecast_spend!Z28,Hist_contributions!Y27*Assumptions!Y$29) -> 299258.6745 | AA28: =IF(AA$8,CC_ratio!Z27*Forecast_spend!AA28,Hist_contributions!Z27*Assumptions!Z$29) -> 176437.2746 | AC28: =SUMPRODUCT($H$7:$AA$7*$H28:$AA28) -> 11220192.13
B29: =Hist_vol!B28 -> Connections | C29: =Hist_vol!C28 -> EG3 | D29: =Hist_vol!D28 -> Embedded generation | E29: =Hist_vol!E28 -> Complex connection HV (large capacity) | F29: Embedded generation Complex connection HV (large capacity) | H29: =IF(H$8,CC_ratio!G28*Forecast_spend!H29,Hist_contributions!G28*Assumptions!G$29) -> 4264643.683 | I29: =IF(I$8,CC_ratio!H28*Forecast_spend!I29,Hist_contributions!H28*Assumptions!H$29) -> 824383.504 | J29: =IF(J$8,CC_ratio!I28*Forecast_spend!J29,Hist_contributions!I28*Assumptions!I$29) -> 0 | K29: =IF(K$8,CC_ratio!J28*Forecast_spend!K29,Hist_contributions!J28*Assumptions!J$29) -> 1372243.832 | L29: =IF(L$8,CC_ratio!K28*Forecast_spend!L29,Hist_contributions!K28*Assumptions!K$29) -> 1783961.837 | M29: =IF(M$8,CC_ratio!L28*Forecast_spend!M29,Hist_contributions!L28*Assumptions!L$29) -> 6002156.657 | N29: =IF(N$8,CC_ratio!M28*Forecast_spend!N29,Hist_contributions!M28*Assumptions!M$29) -> 18382230.27 | O29: =IF(O$8,CC_ratio!N28*Forecast_spend!O29,Hist_contributions!N28*Assumptions!N$29) -> 17148851.2 | P29: =IF(P$8,CC_ratio!O28*Forecast_spend!P29,Hist_contributions!O28*Assumptions!O$29) -> 5186102.765 | Q29: =IF(Q$8,CC_ratio!P28*Forecast_spend!Q29,Hist_contributions!P28*Assumptions!P$29) -> 4319906.735 | R29: =IF(R$8,CC_ratio!Q28*Forecast_spend!R29,Hist_contributions!Q28*Assumptions!Q$29) -> 3800036.374 | S29: =IF(S$8,CC_ratio!R28*Forecast_spend!S29,Hist_contributions!R28*Assumptions!R$29) -> 5910779.465 | T29: =IF(T$8,CC_ratio!S28*Forecast_spend!T29,Hist_contributions!S28*Assumptions!S$29) -> 14424362.28 | U29: =IF(U$8,CC_ratio!T28*Forecast_spend!U29,Hist_contributions!T28*Assumptions!T$29) -> 5780084.099 | V29: =IF(V$8,CC_ratio!U28*Forecast_spend!V29,Hist_contributions!U28*Assumptions!U$29) -> 36833962.22 | W29: =IF(W$8,CC_ratio!V28*Forecast_spend!W29,Hist_contributions!V28*Assumptions!V$29) -> 42051590.4 | X29: =IF(X$8,CC_ratio!W28*Forecast_spend!X29,Hist_contributions!W28*Assumptions!W$29) -> 14281955.93 | Y29: =IF(Y$8,CC_ratio!X28*Forecast_spend!Y29,Hist_contributions!X28*Assumptions!X$29) -> 8448622.222 | Z29: =IF(Z$8,CC_ratio!Y28*Forecast_spend!Z29,Hist_contributions!Y28*Assumptions!Y$29) -> 1804330.847 | AA29: =IF(AA$8,CC_ratio!Z28*Forecast_spend!AA29,Hist_contributions!Z28*Assumptions!Z$29) -> 1063799.463 | AC29: =SUMPRODUCT($H$7:$AA$7*$H29:$AA29) -> 67650298.87
B30: ='Grid connected batteries'!B18 -> Connections | C30: Grid connected batteries | D30: Grid connected batteries | F30: =D30 -> Grid connected batteries | H30: 0 | I30: 0 | J30: 0 | K30: 0 | L30: 0 | M30: 0 | N30: 0 | O30: 0 | P30: 0 | Q30: 0 | R30: 0 | S30: 0 | T30: 0 | U30: 0 | V30: 0 | W30: ='Grid connected batteries'!E18 -> 6316055.507 | X30: ='Grid connected batteries'!F18 -> 6047255.323 | Y30: ='Grid connected batteries'!G18 -> 7045244.948 | Z30: ='Grid connected batteries'!H18 -> 7827696.831 | AA30: ='Grid connected batteries'!I18 -> 6871784.248 | AC30: =SUMPRODUCT($H$7:$AA$7*$H30:$AA30) -> 34108036.86
B31: ='Data Centres'!B17 -> Connections | C31: Data Centres | D31: Data Centres | F31: =D31 -> Data Centres | H31: 0 | I31: 0 | J31: 0 | K31: 0 | L31: 0 | M31: 0 | N31: 0 | O31: 0 | P31: 0 | Q31: 0 | R31: 0 | S31: 0 | T31: 0 | U31: 0 | V31: 0 | W31: ='Data Centres'!E17 -> 314318757.8 | X31: ='Data Centres'!F17 -> 85391243.09 | Y31: ='Data Centres'!G17 -> 86360296.83 | Z31: ='Data Centres'!H17 -> 58962857.75 | AA31: ='Data Centres'!I17 -> 142954880 | AC31: =SUMPRODUCT($H$7:$AA$7*$H31:$AA31) -> 687988035.5
D32: Total | H32: =SUM(H16:H31) -> 58559053.76 | I32: 56111666.11 | J32: 53582105.63 | K32: 68143012.32 | L32: 79044299.01 | M32: 96130720.41 | N32: 126380681.9 | O32: 128154405.5 | P32: 121757311.9 | Q32: 113108134.7 | R32: 98393821.77 | S32: 102692166.1 | T32: 103964587.1 | U32: 165760765.3 | V32: 131325359.1 | W32: 457124066.3 | X32: 193012400.6 | Y32: 186861186.6 | Z32: 153492454.9 | AA32: 233732622.5 | AC32: =SUM(AC16:AC31) -> 1224222731

Sheet Forecast_netcapex
A1: =Assumptions!$A$1 -> Powercor
A2: =Assumptions!$A$2 -> Connections
A3: Forecast net capex
B7: =Assumptions!B17 -> 2026/27 - 2030/31 reg period | H7: =Assumptions!G17 -> FALSE | I7: =Assumptions!H17 -> FALSE | J7: =Assumptions!I17 -> FALSE | K7: =Assumptions!J17 -> FALSE | L7: =Assumptions!K17 -> FALSE | M7: =Assumptions!L17 -> FALSE | N7: =Assumptions!M17 -> FALSE | O7: =Assumptions!N17 -> FALSE | P7: =Assumptions!O17 -> FALSE | Q7: =Assumptions!P17 -> FALSE | R7: =Assumptions!Q17 -> FALSE | S7: =Assumptions!R17 -> FALSE | T7: =Assumptions!S17 -> FALSE | U7: =Assumptions!T17 -> FALSE | V7: =Assumptions!U17 -> FALSE | W7: =Assumptions!V17 -> TRUE | X7: =Assumptions!W17 -> TRUE | Y7: =Assumptions!X17 -> TRUE | Z7: =Assumptions!Y17 -> TRUE | AA7: =Assumptions!Z17 -> TRUE
B8: =Assumptions!B18 -> Forecast period | H8: =Assumptions!G18 -> FALSE | I8: =Assumptions!H18 -> FALSE | J8: =Assumptions!I18 -> FALSE | K8: =Assumptions!J18 -> FALSE | L8: =Assumptions!K18 -> FALSE | M8: =Assumptions!L18 -> FALSE | N8: =Assumptions!M18 -> FALSE | O8: =Assumptions!N18 -> FALSE | P8: =Assumptions!O18 -> FALSE | Q8: =Assumptions!P18 -> FALSE | R8: =Assumptions!Q18 -> FALSE | S8: =Assumptions!R18 -> FALSE | T8: =Assumptions!S18 -> FALSE | U8: =Assumptions!T18 -> FALSE | V8: =Assumptions!U18 -> TRUE | W8: =Assumptions!V18 -> TRUE | X8: =Assumptions!W18 -> TRUE | Y8: =Assumptions!X18 -> TRUE | Z8: =Assumptions!Y18 -> TRUE | AA8: =Assumptions!Z18 -> TRUE
B9: =Assumptions!B19 -> Fin year end | H9: =Assumptions!G19 -> 2012 | I9: =Assumptions!H19 -> 2013 | J9: =Assumptions!I19 -> 2014 | K9: =Assumptions!J19 -> 2015 | L9: =Assumptions!K19 -> 2016 | M9: =Assumptions!L19 -> 2017 | N9: =Assumptions!M19 -> 2018 | O9: =Assumptions!N19 -> 2019 | P9: =Assumptions!O19 -> 2020 | Q9: =Assumptions!P19 -> 2021 | R9: =Assumptions!Q19 -> 2022 | S9: =Assumptions!R19 -> 2023 | T9: =Assumptions!S19 -> 2024 | U9: =Assumptions!T19 -> 2025 | V9: =Assumptions!U19 -> 2026 | W9: =Assumptions!V19 -> 2027 | X9: =Assumptions!W19 -> 2028 | Y9: =Assumptions!X19 -> 2029 | Z9: =Assumptions!Y19 -> 2030 | AA9: =Assumptions!Z19 -> 2031
B10: =Assumptions!B20 -> Basis | H10: =Assumptions!G20 -> Actual | I10: =Assumptions!H20 -> Actual | J10: =Assumptions!I20 -> Actual | K10: =Assumptions!J20 -> Actual | L10: =Assumptions!K20 -> Actual | M10: =Assumptions!L20 -> Actual | N10: =Assumptions!M20 -> Actual | O10: =Assumptions!N20 -> Actual | P10: =Assumptions!O20 -> Actual | Q10: =Assumptions!P20 -> Actual | R10: =Assumptions!Q20 -> Actual | S10: =Assumptions!R20 -> Actual | T10: =Assumptions!S20 -> Actual | U10: =Assumptions!T20 -> Actual | V10: =Assumptions!U20 -> Forecast | W10: =Assumptions!V20 -> Forecast | X10: =Assumptions!W20 -> Forecast | Y10: =Assumptions!X20 -> Forecast | Z10: =Assumptions!Y20 -> Forecast | AA10: =Assumptions!Z20 -> Forecast
B13: =Hist_vol!B$13 -> Category | C13: Type | D13: =Hist_vol!D$13 -> RIN category | E13: =Hist_vol!E$13 -> Description | H13: =Assumptions!G$24 -> 2011/12 | I13: =Assumptions!H$24 -> 2012/13 | J13: =Assumptions!I$24 -> 2013/14 | K13: =Assumptions!J$24 -> 2014/15 | L13: =Assumptions!K$24 -> 2015/16 | M13: =Assumptions!L$24 -> 2016/17 | N13: =Assumptions!M$24 -> 2017/18 | O13: =Assumptions!N$24 -> 2018/19 | P13: =Assumptions!O$24 -> 2019/20 | Q13: =Assumptions!P$24 -> 2020/21 | R13: =Assumptions!Q$24 -> 2021/22 | S13: =Assumptions!R$24 -> 2022/23 | T13: =Assumptions!S$24 -> 2023/24 | U13: =Assumptions!T$24 -> 2024/25 | V13: =Assumptions!U$24 -> 2025/26 | W13: =Assumptions!V$24 -> 2026/27 | X13: =Assumptions!W$24 -> 2027/28 | Y13: =Assumptions!X$24 -> 2028/29 | Z13: =Assumptions!Y$24 -> 2029/30 | AA13: =Assumptions!Z$24 -> 2030/31 | AC13: 2026-31 Total
B15: Forecast net spend (June 2026 $)
B16: =Hist_vol!B15 -> Connections | C16: =Hist_vol!C15 -> R1 | D16: =Hist_vol!D15 -> Residential | E16: =Hist_vol!E15 -> Simple connection LV | F16: =D16&" "&E16 -> Residential Simple connection LV | H16: =Forecast_spend!H16-Forecast_contrib!H16 -> 3131032.866 | I16: =Forecast_spend!I16-Forecast_contrib!I16 -> 3548983.862 | J16: =Forecast_spend!J16-Forecast_contrib!J16 -> 3831223.821 | K16: =Forecast_spend!K16-Forecast_contrib!K16 -> 3570310.547 | L16: =Forecast_spend!L16-Forecast_contrib!L16 -> 1600490.078 | M16: =Forecast_spend!M16-Forecast_contrib!M16 -> 0 | N16: =Forecast_spend!N16-Forecast_contrib!N16 -> 0 | O16: =Forecast_spend!O16-Forecast_contrib!O16 -> 0 | P16: =Forecast_spend!P16-Forecast_contrib!P16 -> 0 | Q16: =Forecast_spend!Q16-Forecast_contrib!Q16 -> 0 | R16: =Forecast_spend!R16-Forecast_contrib!R16 -> 0 | S16: =Forecast_spend!S16-Forecast_contrib!S16 -> 0 | T16: =Forecast_spend!T16-Forecast_contrib!T16 -> 0 | U16: =Forecast_spend!U16-Forecast_contrib!U16 -> 0 | V16: =Forecast_spend!V16-Forecast_contrib!V16 -> 0 | W16: =Forecast_spend!W16-Forecast_contrib!W16 -> 0 | X16: =Forecast_spend!X16-Forecast_contrib!X16 -> 0 | Y16: =Forecast_spend!Y16-Forecast_contrib!Y16 -> 0 | Z16: =Forecast_spend!Z16-Forecast_contrib!Z16 -> 0 | AA16: =Forecast_spend!AA16-Forecast_contrib!AA16 -> 0 | AC16: =SUMPRODUCT($H$7:$AA$7*$H16:$AA16) -> 0
B17: =Hist_vol!B16 -> Connections | C17: =Hist_vol!C16 -> R2 | D17: =Hist_vol!D16 -> Residential | E17: =Hist_vol!E16 -> Complex connection LV | F17: =D17&" "&E17 -> Residential Complex connection LV | H17: =Forecast_spend!H17-Forecast_contrib!H17 -> 12710634.91 | I17: =Forecast_spend!I17-Forecast_contrib!I17 -> 15994526.57 | J17: =Forecast_spend!J17-Forecast_contrib!J17 -> 17978797.67 | K17: =Forecast_spend!K17-Forecast_contrib!K17 -> 15647392.78 | L17: =Forecast_spend!L17-Forecast_contrib!L17 -> 10539407.66 | M17: =Forecast_spend!M17-Forecast_contrib!M17 -> 6271120.46 | N17: =Forecast_spend!N17-Forecast_contrib!N17 -> 3066608.048 | O17: =Forecast_spend!O17-Forecast_contrib!O17 -> 6317747.546 | P17: =Forecast_spend!P17-Forecast_contrib!P17 -> 9277473.532 | Q17: =Forecast_spend!Q17-Forecast_contrib!Q17 -> 6102053.69 | R17: =Forecast_spend!R17-Forecast_contrib!R17 -> 9675650.997 | S17: =Forecast_spend!S17-Forecast_contrib!S17 -> 15185773.07 | T17: =Forecast_spend!T17-Forecast_contrib!T17 -> 7074902.448 | U17: =Forecast_spend!U17-Forecast_contrib!U17 -> 6465241.979 | V17: =Forecast_spend!V17-Forecast_contrib!V17 -> 17185954.38 | W17: =Forecast_spend!W17-Forecast_contrib!W17 -> 19365965.89 | X17: =Forecast_spend!X17-Forecast_contrib!X17 -> 19324803.17 | Y17: =Forecast_spend!Y17-Forecast_contrib!Y17 -> 18622429.74 | Z17: =Forecast_spend!Z17-Forecast_contrib!Z17 -> 18753914.97 | AA17: =Forecast_spend!AA17-Forecast_contrib!AA17 -> 19197582.25 | AC17: =SUMPRODUCT($H$7:$AA$7*$H17:$AA17) -> 95264696.03
B18: =Hist_vol!B17 -> Connections | C18: =Hist_vol!C17 -> R3 | D18: =Hist_vol!D17 -> Residential | E18: =Hist_vol!E17 -> Complex connection HV | F18: Residential Complex connection HV | H18: =Forecast_spend!H18-Forecast_contrib!H18 -> 6038512.268 | I18: =Forecast_spend!I18-Forecast_contrib!I18 -> 7991194.539 | J18: =Forecast_spend!J18-Forecast_contrib!J18 -> 8061480.399 | K18: =Forecast_spend!K18-Forecast_contrib!K18 -> 6165611.871 | L18: =Forecast_spend!L18-Forecast_contrib!L18 -> 3584818.644 | M18: =Forecast_spend!M18-Forecast_contrib!M18 -> 1925594.413 | N18: =Forecast_spend!N18-Forecast_contrib!N18 -> 1098761.38 | O18: =Forecast_spend!O18-Forecast_contrib!O18 -> 1996629.623 | P18: =Forecast_spend!P18-Forecast_contrib!P18 -> 3742187.321 | Q18: =Forecast_spend!Q18-Forecast_contrib!Q18 -> 3512372.438 | R18: =Forecast_spend!R18-Forecast_contrib!R18 -> 4652270.595 | S18: =Forecast_spend!S18-Forecast_contrib!S18 -> 5395311.183 | T18: =Forecast_spend!T18-Forecast_contrib!T18 -> 3959427.951 | U18: =Forecast_spend!U18-Forecast_contrib!U18 -> 3426770.612 | V18: =Forecast_spend!V18-Forecast_contrib!V18 -> 3214043.808 | W18: =Forecast_spend!W18-Forecast_contrib!W18 -> 3621740.253 | X18: =Forecast_spend!X18-Forecast_contrib!X18 -> 3614042.177 | Y18: =Forecast_spend!Y18-Forecast_contrib!Y18 -> 3482687.298 | Z18: =Forecast_spend!Z18-Forecast_contrib!Z18 -> 3507277.104 | AA18: =Forecast_spend!AA18-Forecast_contrib!AA18 -> 3590249.863 | AC18: =SUMPRODUCT($H$7:$AA$7*$H18:$AA18) -> 17815996.7
B19: =Hist_vol!B18 -> Connections | C19: =Hist_vol!C18 -> CI1 | D19: =Hist_vol!D18 -> Commercial/Industrial | E19: =Hist_vol!E18 -> Simple connection LV | F19: Commercial/Industrial Simple connection LV | H19: =Forecast_spend!H19-Forecast_contrib!H19 -> 431428.8199 | I19: =Forecast_spend!I19-Forecast_contrib!I19 -> 563699.4965 | J19: =Forecast_spend!J19-Forecast_contrib!J19 -> 631588.5204 | K19: =Forecast_spend!K19-Forecast_contrib!K19 -> 581909.1569 | L19: =Forecast_spend!L19-Forecast_contrib!L19 -> 260544.7613 | M19: =Forecast_spend!M19-Forecast_contrib!M19 -> 0 | N19: =Forecast_spend!N19-Forecast_contrib!N19 -> 0 | O19: =Forecast_spend!O19-Forecast_contrib!O19 -> 0 | P19: =Forecast_spend!P19-Forecast_contrib!P19 -> 0 | Q19: =Forecast_spend!Q19-Forecast_contrib!Q19 -> 0 | R19: =Forecast_spend!R19-Forecast_contrib!R19 -> 0 | S19: =Forecast_spend!S19-Forecast_contrib!S19 -> 0 | T19: =Forecast_spend!T19-Forecast_contrib!T19 -> 0 | U19: =Forecast_spend!U19-Forecast_contrib!U19 -> 0 | V19: =Forecast_spend!V19-Forecast_contrib!V19 -> 0 | W19: =Forecast_spend!W19-Forecast_contrib!W19 -> 0 | X19: =Forecast_spend!X19-Forecast_contrib!X19 -> 0 | Y19: =Forecast_spend!Y19-Forecast_contrib!Y19 -> 0 | Z19: =Forecast_spend!Z19-Forecast_contrib!Z19 -> 0 | AA19: =Forecast_spend!AA19-Forecast_contrib!AA19 -> 0 | AC19: =SUMPRODUCT($H$7:$AA$7*$H19:$AA19) -> 0
B20: =Hist_vol!B19 -> Connections | C20: =Hist_vol!C19 -> CI2 | D20: =Hist_vol!D19 -> Commercial/Industrial | E20: =Hist_vol!E19 -> Complex connection HV (customer connected at LV, minor HV works) | F20: Commercial/Industrial Complex connection HV (customer connected at LV, minor HV works) | H20: =Forecast_spend!H20-Forecast_contrib!H20 -> 9736523.096 | I20: =Forecast_spend!I20-Forecast_contrib!I20 -> 351242.3518 | J20: =Forecast_spend!J20-Forecast_contrib!J20 -> -117917.1523 | K20: =Forecast_spend!K20-Forecast_contrib!K20 -> -4495588.097 | L20: =Forecast_spend!L20-Forecast_contrib!L20 -> -4702718.23 | M20: =Forecast_spend!M20-Forecast_contrib!M20 -> -125943.2043 | N20: =Forecast_spend!N20-Forecast_contrib!N20 -> 4446167.381 | O20: =Forecast_spend!O20-Forecast_contrib!O20 -> -1063823.137 | P20: =Forecast_spend!P20-Forecast_contrib!P20 -> -13269761.68 | Q20: =Forecast_spend!Q20-Forecast_contrib!Q20 -> -2808935.598 | R20: =Forecast_spend!R20-Forecast_contrib!R20 -> -2482220.885 | S20: =Forecast_spend!S20-Forecast_contrib!S20 -> -1967956.319 | T20: =Forecast_spend!T20-Forecast_contrib!T20 -> 1762931.108 | U20: =Forecast_spend!U20-Forecast_contrib!U20 -> 919483.3288 | V20: =Forecast_spend!V20-Forecast_contrib!V20 -> 0 | W20: =Forecast_spend!W20-Forecast_contrib!W20 -> 0 | X20: =Forecast_spend!X20-Forecast_contrib!X20 -> 0 | Y20: =Forecast_spend!Y20-Forecast_contrib!Y20 -> 0 | Z20: =Forecast_spend!Z20-Forecast_contrib!Z20 -> 0 | AA20: =Forecast_spend!AA20-Forecast_contrib!AA20 -> 0 | AC20: =SUMPRODUCT($H$7:$AA$7*$H20:$AA20) -> 0
B21: =Hist_vol!B20 -> Connections | C21: =Hist_vol!C20 -> CI3 | D21: =Hist_vol!D20 -> Commercial/Industrial | E21: =Hist_vol!E20 -> Complex connection HV (customer connected at LV, upstream asset works) | F21: Commercial/Industrial Complex connection HV (customer connected at LV, upstream asset works) | H21: =Forecast_spend!H21-Forecast_contrib!H21 -> 19622356.55 | I21: =Forecast_spend!I21-Forecast_contrib!I21 -> 24638995.27 | J21: =Forecast_spend!J21-Forecast_contrib!J21 -> 26488397.5 | K21: =Forecast_spend!K21-Forecast_contrib!K21 -> 22341922.23 | L21: =Forecast_spend!L21-Forecast_contrib!L21 -> 15897955.57 | M21: =Forecast_spend!M21-Forecast_contrib!M21 -> 11968558.42 | N21: =Forecast_spend!N21-Forecast_contrib!N21 -> 7454736.022 | O21: =Forecast_spend!O21-Forecast_contrib!O21 -> 10693312.86 | P21: =Forecast_spend!P21-Forecast_contrib!P21 -> 24683826.42 | Q21: =Forecast_spend!Q21-Forecast_contrib!Q21 -> 27527843.58 | R21: =Forecast_spend!R21-Forecast_contrib!R21 -> 32783748.1 | S21: =Forecast_spend!S21-Forecast_contrib!S21 -> 33247989.89 | T21: =Forecast_spend!T21-Forecast_contrib!T21 -> 32481500.71 | U21: =Forecast_spend!U21-Forecast_contrib!U21 -> 31247857.07 | V21: =Forecast_spend!V21-Forecast_contrib!V21 -> 37117587.42 | W21: =Forecast_spend!W21-Forecast_contrib!W21 -> 34087443.98 | X21: =Forecast_spend!X21-Forecast_contrib!X21 -> 32513228.85 | Y21: =Forecast_spend!Y21-Forecast_contrib!Y21 -> 32460142.25 | Z21: =Forecast_spend!Z21-Forecast_contrib!Z21 -> 32945934.18 | AA21: =Forecast_spend!AA21-Forecast_contrib!AA21 -> 31215693.75 | AC21: =SUMPRODUCT($H$7:$AA$7*$H21:$AA21) -> 163222443
B22: =Hist_vol!B21 -> Connections | C22: =Hist_vol!C21 -> CI4 | D22: =Hist_vol!D21 -> Commercial/Industrial | E22: =Hist_vol!E21 -> Complex connection HV (customer connected at HV) | F22: Commercial/Industrial Complex connection HV (customer connected at HV) | H22: =Forecast_spend!H22-Forecast_contrib!H22 -> 2061731.634 | I22: =Forecast_spend!I22-Forecast_contrib!I22 -> 2940360.621 | J22: =Forecast_spend!J22-Forecast_contrib!J22 -> 3212329.48 | K22: =Forecast_spend!K22-Forecast_contrib!K22 -> 1701692.625 | L22: =Forecast_spend!L22-Forecast_contrib!L22 -> 718272.2653 | M22: =Forecast_spend!M22-Forecast_contrib!M22 -> 689086.1713 | N22: =Forecast_spend!N22-Forecast_contrib!N22 -> 289001.1993 | O22: =Forecast_spend!O22-Forecast_contrib!O22 -> 482650.8679 | P22: =Forecast_spend!P22-Forecast_contrib!P22 -> 1706778.076 | Q22: =Forecast_spend!Q22-Forecast_contrib!Q22 -> 4967600.585 | R22: =Forecast_spend!R22-Forecast_contrib!R22 -> 5171697.325 | S22: =Forecast_spend!S22-Forecast_contrib!S22 -> -5781690.986 | T22: =Forecast_spend!T22-Forecast_contrib!T22 -> 7417763.531 | U22: =Forecast_spend!U22-Forecast_contrib!U22 -> 1080795.484 | V22: =Forecast_spend!V22-Forecast_contrib!V22 -> 4736411.641 | W22: =Forecast_spend!W22-Forecast_contrib!W22 -> 4349748.4 | X22: =Forecast_spend!X22-Forecast_contrib!X22 -> 4148869.75 | Y22: =Forecast_spend!Y22-Forecast_contrib!Y22 -> 4142095.602 | Z22: =Forecast_spend!Z22-Forecast_contrib!Z22 -> 4204085.368 | AA22: =Forecast_spend!AA22-Forecast_contrib!AA22 -> 3983297.018 | AC22: =SUMPRODUCT($H$7:$AA$7*$H22:$AA22) -> 20828096.14
B23: =Hist_vol!B22 -> Connections | C23: =Hist_vol!C22 -> CI5 | D23: =Hist_vol!D22 -> Commercial/Industrial | E23: =Hist_vol!E22 -> Complex connection sub-transmission | F23: Commercial/Industrial Complex connection sub-transmission | H23: =Forecast_spend!H23-Forecast_contrib!H23 -> 0 | I23: =Forecast_spend!I23-Forecast_contrib!I23 -> 0 | J23: =Forecast_spend!J23-Forecast_contrib!J23 -> 0 | K23: =Forecast_spend!K23-Forecast_contrib!K23 -> 0 | L23: =Forecast_spend!L23-Forecast_contrib!L23 -> 0 | M23: =Forecast_spend!M23-Forecast_contrib!M23 -> 1037225.165 | N23: =Forecast_spend!N23-Forecast_contrib!N23 -> 1022123.72 | O23: =Forecast_spend!O23-Forecast_contrib!O23 -> 0 | P23: =Forecast_spend!P23-Forecast_contrib!P23 -> 0 | Q23: =Forecast_spend!Q23-Forecast_contrib!Q23 -> 0 | R23: =Forecast_spend!R23-Forecast_contrib!R23 -> 0 | S23: =Forecast_spend!S23-Forecast_contrib!S23 -> 5579147.227 | T23: =Forecast_spend!T23-Forecast_contrib!T23 -> 677499.3436 | U23: =Forecast_spend!U23-Forecast_contrib!U23 -> 1375557.888 | V23: =Forecast_spend!V23-Forecast_contrib!V23 -> 2160169.27 | W23: =Forecast_spend!W23-Forecast_contrib!W23 -> 1983820.988 | X23: =Forecast_spend!X23-Forecast_contrib!X23 -> 1892204.82 | Y23: =Forecast_spend!Y23-Forecast_contrib!Y23 -> 1889115.286 | Z23: =Forecast_spend!Z23-Forecast_contrib!Z23 -> 1917387.404 | AA23: =Forecast_spend!AA23-Forecast_contrib!AA23 -> 1816690.875 | AC23: =SUMPRODUCT($H$7:$AA$7*$H23:$AA23) -> 9499219.373
B24: =Hist_vol!B23 -> Connections | C24: =Hist_vol!C23 -> S1 | D24: =Hist_vol!D23 -> Subdivision | E24: =Hist_vol!E23 -> Complex connection LV | F24: Subdivision Complex connection LV | H24: =Forecast_spend!H24-Forecast_contrib!H24 -> 0 | I24: =Forecast_spend!I24-Forecast_contrib!I24 -> 0 | J24: =Forecast_spend!J24-Forecast_contrib!J24 -> 0 | K24: =Forecast_spend!K24-Forecast_contrib!K24 -> 0 | L24: =Forecast_spend!L24-Forecast_contrib!L24 -> 0 | M24: =Forecast_spend!M24-Forecast_contrib!M24 -> 0 | N24: =Forecast_spend!N24-Forecast_contrib!N24 -> 0 | O24: =Forecast_spend!O24-Forecast_contrib!O24 -> 0 | P24: =Forecast_spend!P24-Forecast_contrib!P24 -> 0 | Q24: =Forecast_spend!Q24-Forecast_contrib!Q24 -> 0 | R24: =Forecast_spend!R24-Forecast_contrib!R24 -> 0 | S24: =Forecast_spend!S24-Forecast_contrib!S24 -> 0 | T24: =Forecast_spend!T24-Forecast_contrib!T24 -> 0 | U24: =Forecast_spend!U24-Forecast_contrib!U24 -> 0 | V24: =Forecast_spend!V24-Forecast_contrib!V24 -> 0 | W24: =Forecast_spend!W24-Forecast_contrib!W24 -> 0 | X24: =Forecast_spend!X24-Forecast_contrib!X24 -> 0 | Y24: =Forecast_spend!Y24-Forecast_contrib!Y24 -> 0 | Z24: =Forecast_spend!Z24-Forecast_contrib!Z24 -> 0 | AA24: =Forecast_spend!AA24-Forecast_contrib!AA24 -> 0 | AC24: =SUMPRODUCT($H$7:$AA$7*$H24:$AA24) -> 0
B25: =Hist_vol!B24 -> Connections | C25: =Hist_vol!C24 -> S2 | D25: =Hist_vol!D24 -> Subdivision | E25: =Hist_vol!E24 -> Complex connection HV (no upstream asset works) | F25: Subdivision Complex connection HV (no upstream asset works) | H25: =Forecast_spend!H25-Forecast_contrib!H25 -> 0 | I25: =Forecast_spend!I25-Forecast_contrib!I25 -> 0 | J25: =Forecast_spend!J25-Forecast_contrib!J25 -> 0 | K25: =Forecast_spend!K25-Forecast_contrib!K25 -> 0 | L25: =Forecast_spend!L25-Forecast_contrib!L25 -> 0 | M25: =Forecast_spend!M25-Forecast_contrib!M25 -> 0 | N25: =Forecast_spend!N25-Forecast_contrib!N25 -> 0 | O25: =Forecast_spend!O25-Forecast_contrib!O25 -> 0 | P25: =Forecast_spend!P25-Forecast_contrib!P25 -> 0 | Q25: =Forecast_spend!Q25-Forecast_contrib!Q25 -> 0 | R25: =Forecast_spend!R25-Forecast_contrib!R25 -> 0 | S25: =Forecast_spend!S25-Forecast_contrib!S25 -> 0 | T25: =Forecast_spend!T25-Forecast_contrib!T25 -> 0 | U25: =Forecast_spend!U25-Forecast_contrib!U25 -> 0 | V25: =Forecast_spend!V25-Forecast_contrib!V25 -> 0 | W25: =Forecast_spend!W25-Forecast_contrib!W25 -> 0 | X25: =Forecast_spend!X25-Forecast_contrib!X25 -> 0 | Y25: =Forecast_spend!Y25-Forecast_contrib!Y25 -> 0 | Z25: =Forecast_spend!Z25-Forecast_contrib!Z25 -> 0 | AA25: =Forecast_spend!AA25-Forecast_contrib!AA25 -> 0 | AC25: =SUMPRODUCT($H$7:$AA$7*$H25:$AA25) -> 0
B26: =Hist_vol!B25 -> Connections | C26: =Hist_vol!C25 -> S3 | D26: =Hist_vol!D25 -> Subdivision | E26: =Hist_vol!E25 -> Complex connection HV (with upstream asset works) | F26: Subdivision Complex connection HV (with upstream asset works) | H26: =Forecast_spend!H26-Forecast_contrib!H26 -> 26752083.12 | I26: =Forecast_spend!I26-Forecast_contrib!I26 -> 33021149.24 | J26: =Forecast_spend!J26-Forecast_contrib!J26 -> 30477774.02 | K26: =Forecast_spend!K26-Forecast_contrib!K26 -> 28549432.78 | L26: =Forecast_spend!L26-Forecast_contrib!L26 -> 32916416.56 | M26: =Forecast_spend!M26-Forecast_contrib!M26 -> 32459879.94 | N26: =Forecast_spend!N26-Forecast_contrib!N26 -> 25255613.97 | O26: =Forecast_spend!O26-Forecast_contrib!O26 -> 19830477.12 | P26: =Forecast_spend!P26-Forecast_contrib!P26 -> 22418270.79 | Q26: =Forecast_spend!Q26-Forecast_contrib!Q26 -> 25044784.02 | R26: =Forecast_spend!R26-Forecast_contrib!R26 -> 26900539.5 | S26: =Forecast_spend!S26-Forecast_contrib!S26 -> 31431593.42 | T26: =Forecast_spend!T26-Forecast_contrib!T26 -> 41601910.5 | U26: =Forecast_spend!U26-Forecast_contrib!U26 -> 47772968.68 | V26: =Forecast_spend!V26-Forecast_contrib!V26 -> 27374682.06 | W26: =Forecast_spend!W26-Forecast_contrib!W26 -> 30847117.8 | X26: =Forecast_spend!X26-Forecast_contrib!X26 -> 30781551.67 | Y26: =Forecast_spend!Y26-Forecast_contrib!Y26 -> 29662774.75 | Z26: =Forecast_spend!Z26-Forecast_contrib!Z26 -> 29872211.26 | AA26: =Forecast_spend!AA26-Forecast_contrib!AA26 -> 30578907.58 | AC26: =SUMPRODUCT($H$7:$AA$7*$H26:$AA26) -> 151742563.1
B27: =Hist_vol!B26 -> Connections | C27: =Hist_vol!C26 -> EG1 | D27: =Hist_vol!D26 -> Embedded generation | E27: =Hist_vol!E26 -> Simple connection LV | F27: Embedded generation Simple connection LV | H27: =Forecast_spend!H27-Forecast_contrib!H27 -> 0 | I27: =Forecast_spend!I27-Forecast_contrib!I27 -> 0 | J27: =Forecast_spend!J27-Forecast_contrib!J27 -> 0 | K27: =Forecast_spend!K27-Forecast_contrib!K27 -> 0 | L27: =Forecast_spend!L27-Forecast_contrib!L27 -> 0 | M27: =Forecast_spend!M27-Forecast_contrib!M27 -> 0 | N27: =Forecast_spend!N27-Forecast_contrib!N27 -> 0 | O27: =Forecast_spend!O27-Forecast_contrib!O27 -> 0 | P27: =Forecast_spend!P27-Forecast_contrib!P27 -> 0 | Q27: =Forecast_spend!Q27-Forecast_contrib!Q27 -> 0 | R27: =Forecast_spend!R27-Forecast_contrib!R27 -> 0 | S27: =Forecast_spend!S27-Forecast_contrib!S27 -> 0 | T27: =Forecast_spend!T27-Forecast_contrib!T27 -> 0 | U27: =Forecast_spend!U27-Forecast_contrib!U27 -> 0 | V27: =Forecast_spend!V27-Forecast_contrib!V27 -> 0 | W27: =Forecast_spend!W27-Forecast_contrib!W27 -> 0 | X27: =Forecast_spend!X27-Forecast_contrib!X27 -> 0 | Y27: =Forecast_spend!Y27-Forecast_contrib!Y27 -> 0 | Z27: =Forecast_spend!Z27-Forecast_contrib!Z27 -> 0 | AA27: =Forecast_spend!AA27-Forecast_contrib!AA27 -> 0 | AC27: =SUMPRODUCT($H$7:$AA$7*$H27:$AA27) -> 0
B28: =Hist_vol!B27 -> Connections | C28: =Hist_vol!C27 -> EG2 | D28: =Hist_vol!D27 -> Embedded generation | E28: =Hist_vol!E27 -> Complex connection HV (small capacity) | F28: Embedded generation Complex connection HV (small capacity) | H28: =Forecast_spend!H28-Forecast_contrib!H28 -> 668708.9723 | I28: =Forecast_spend!I28-Forecast_contrib!I28 -> 675184.6841 | J28: =Forecast_spend!J28-Forecast_contrib!J28 -> 896587.9177 | K28: =Forecast_spend!K28-Forecast_contrib!K28 -> 933561.2065 | L28: =Forecast_spend!L28-Forecast_contrib!L28 -> 442984.383 | M28: =Forecast_spend!M28-Forecast_contrib!M28 -> 643040.1504 | N28: =Forecast_spend!N28-Forecast_contrib!N28 -> 499526.8509 | O28: =Forecast_spend!O28-Forecast_contrib!O28 -> 657225.2275 | P28: =Forecast_spend!P28-Forecast_contrib!P28 -> -5454038.366 | Q28: =Forecast_spend!Q28-Forecast_contrib!Q28 -> -9314071.389 | R28: =Forecast_spend!R28-Forecast_contrib!R28 -> -5091241.251 | S28: =Forecast_spend!S28-Forecast_contrib!S28 -> -1087220.314 | T28: =Forecast_spend!T28-Forecast_contrib!T28 -> -1224097.295 | U28: =Forecast_spend!U28-Forecast_contrib!U28 -> 37724.86635 | V28: =Forecast_spend!V28-Forecast_contrib!V28 -> 0 | W28: =Forecast_spend!W28-Forecast_contrib!W28 -> 0 | X28: =Forecast_spend!X28-Forecast_contrib!X28 -> 0 | Y28: =Forecast_spend!Y28-Forecast_contrib!Y28 -> 0 | Z28: =Forecast_spend!Z28-Forecast_contrib!Z28 -> 0 | AA28: =Forecast_spend!AA28-Forecast_contrib!AA28 -> 0 | AC28: =SUMPRODUCT($H$7:$AA$7*$H28:$AA28) -> 0
B29: =Hist_vol!B28 -> Connections | C29: =Hist_vol!C28 -> EG3 | D29: =Hist_vol!D28 -> Embedded generation | E29: =Hist_vol!E28 -> Complex connection HV (large capacity) | F29: Embedded generation Complex connection HV (large capacity) | H29: =Forecast_spend!H29-Forecast_contrib!H29 -> 3971608.789 | I29: =Forecast_spend!I29-Forecast_contrib!I29 -> 1173173.876 | J29: =Forecast_spend!J29-Forecast_contrib!J29 -> 0 | K29: =Forecast_spend!K29-Forecast_contrib!K29 -> 1941327.721 | L29: =Forecast_spend!L29-Forecast_contrib!L29 -> 2207438.231 | M29: =Forecast_spend!M29-Forecast_contrib!M29 -> 1914255.276 | N29: =Forecast_spend!N29-Forecast_contrib!N29 -> 2610242.842 | O29: =Forecast_spend!O29-Forecast_contrib!O29 -> 4467933.618 | P29: =Forecast_spend!P29-Forecast_contrib!P29 -> 2949374.675 | Q29: =Forecast_spend!Q29-Forecast_contrib!Q29 -> -2955624.508 | R29: =Forecast_spend!R29-Forecast_contrib!R29 -> -2170362.219 | S29: =Forecast_spend!S29-Forecast_contrib!S29 -> -1772245.095 | T29: =Forecast_spend!T29-Forecast_contrib!T29 -> -3451607.523 | U29: =Forecast_spend!U29-Forecast_contrib!U29 -> 37724.86635 | V29: =Forecast_spend!V29-Forecast_contrib!V29 -> 0 | W29: =Forecast_spend!W29-Forecast_contrib!W29 -> 0 | X29: =Forecast_spend!X29-Forecast_contrib!X29 -> 0 | Y29: =Forecast_spend!Y29-Forecast_contrib!Y29 -> 0 | Z29: =Forecast_spend!Z29-Forecast_contrib!Z29 -> 0 | AA29: =Forecast_spend!AA29-Forecast_contrib!AA29 -> 0 | AC29: =SUMPRODUCT($H$7:$AA$7*$H29:$AA29) -> 0
B30: ='Grid connected batteries'!B17 -> Connections | C30: Grid connected Batteries | D30: ='Grid connected batteries'!C17 -> Grid connected Battery | E30: Net capex | F30: =D30 -> Grid connected Battery | H30: =Forecast_spend!H30-Forecast_contrib!H30 -> 0 | I30: =Forecast_spend!I30-Forecast_contrib!I30 -> 0 | J30: =Forecast_spend!J30-Forecast_contrib!J30 -> 0 | K30: =Forecast_spend!K30-Forecast_contrib!K30 -> 0 | L30: =Forecast_spend!L30-Forecast_contrib!L30 -> 0 | M30: =Forecast_spend!M30-Forecast_contrib!M30 -> 0 | N30: =Forecast_spend!N30-Forecast_contrib!N30 -> 0 | O30: =Forecast_spend!O30-Forecast_contrib!O30 -> 0 | P30: =Forecast_spend!P30-Forecast_contrib!P30 -> 0 | Q30: =Forecast_spend!Q30-Forecast_contrib!Q30 -> 0 | R30: =Forecast_spend!R30-Forecast_contrib!R30 -> 0 | S30: =Forecast_spend!S30-Forecast_contrib!S30 -> 0 | T30: =Forecast_spend!T30-Forecast_contrib!T30 -> 0 | U30: =Forecast_spend!U30-Forecast_contrib!U30 -> 0 | V30: =Forecast_spend!V30-Forecast_contrib!V30 -> 0 | W30: =Forecast_spend!W30-Forecast_contrib!W30 -> 1971991.33 | X30: =Forecast_spend!X30-Forecast_contrib!X30 -> 1888066.857 | Y30: =Forecast_spend!Y30-Forecast_contrib!Y30 -> 2199657.989 | Z30: =Forecast_spend!Z30-Forecast_contrib!Z30 -> 2443954.185 | AA30: =Forecast_spend!AA30-Forecast_contrib!AA30 -> 2145500.296 | AC30: =SUMPRODUCT($H$7:$AA$7*$H30:$AA30) -> 10649170.66
B31: ='Data Centres'!A2 -> Connections | C31: Data Centres | D31: ='Data Centres'!A2 -> Connections | E31: Net capex | F31: =D31 -> Connections | H31: =Forecast_spend!H31-Forecast_contrib!H31 -> 0 | I31: =Forecast_spend!I31-Forecast_contrib!I31 -> 0 | J31: =Forecast_spend!J31-Forecast_contrib!J31 -> 0 | K31: =Forecast_spend!K31-Forecast_contrib!K31 -> 0 | L31: =Forecast_spend!L31-Forecast_contrib!L31 -> 0 | M31: =Forecast_spend!M31-Forecast_contrib!M31 -> 0 | N31: =Forecast_spend!N31-Forecast_contrib!N31 -> 0 | O31: =Forecast_spend!O31-Forecast_contrib!O31 -> 0 | P31: =Forecast_spend!P31-Forecast_contrib!P31 -> 0 | Q31: =Forecast_spend!Q31-Forecast_contrib!Q31 -> 0 | R31: =Forecast_spend!R31-Forecast_contrib!R31 -> 0 | S31: =Forecast_spend!S31-Forecast_contrib!S31 -> 0 | T31: =Forecast_spend!T31-Forecast_contrib!T31 -> 0 | U31: =Forecast_spend!U31-Forecast_contrib!U31 -> 0 | V31: =Forecast_spend!V31-Forecast_contrib!V31 -> 0 | W31: =Forecast_spend!W31-Forecast_contrib!W31 -> 55468016.09 | X31: =Forecast_spend!X31-Forecast_contrib!X31 -> 15069042.9 | Y31: =Forecast_spend!Y31-Forecast_contrib!Y31 -> 15240052.38 | Z31: =Forecast_spend!Z31-Forecast_contrib!Z31 -> 10405210.19 | AA31: =Forecast_spend!AA31-Forecast_contrib!AA31 -> 25227331.76 | AC31: =SUMPRODUCT($H$7:$AA$7*$H31:$AA31) -> 121409653.3
D32: Total | H32: =SUM(H16:H31) -> 85124621.02 | I32: 90898510.51 | J32: 91460262.16 | K32: 76937572.82 | L32: 63465609.92 | M32: 56782816.79 | N32: 45742781.42 | O32: 43382153.73 | P32: 46054110.78 | Q32: 52076022.82 | R32: 69440082.16 | S32: 80230702.08 | T32: 90300230.78 | U32: 92364124.78 | V32: 91788848.58 | W32: 151695844.7 | X32: 109231810.2 | Y32: 107698955.3 | Z32: 104049974.7 | AA32: 117755253.4 | AC32: =SUM(AC16:AC31) -> 590431838.3

Sheet Lists
A1: =Assumptions!$A$1 -> Powercor
A2: =Assumptions!$A$2 -> Connections
A3: Assumptions
B6: Business | D6: RIN categories | F6: Business categories | G6: AER categories | I6: PTRM asset category | K6: RIN category | N6: Forecast basis | P6: Growth rates | S6: Code | T6: Segment | U6: Type
B7: Powercor | D7: Replacement | F7: Replacement | G7: Replacement | I7: Subtransmission | K7: Residential | L7: Res | N7: History | P7: Historical | S7: R1 | T7: Residential | U7: Simple connection LV
B8: CitiPower | D8: Augmentation | F8: DER Augmentation | G8: Augmentation | I8: Distribution system assets | K8: Commercial/Industrial | L8: C&I | N8: Business case | P8: Growth1 | S8: R2 | T8: Residential | U8: Complex connection LV
B9: United Energy | D9: Connections | F9: Other augmentation | G9: DER capex | I9: Public lighting | K9: Subdivision | L9: Subd | N9: Other | P9: Growth2 | S9: R3 | T9: Residential | U9: Complex connection HV
F10: Connections | G10: Connections | I10: SCADA/Network control | K10: Embedded generation | L10: EmbG | P10: Growth3 | S10: CI1 | T10: Commercial/Industrial | U10: Simple connection LV
F11: SCADA | G11: Augmentation | I11: Non-network general assets - IT | K11: Other connections | L11: Other | P11: Flat | S11: CI2 | T11: Commercial/Industrial | U11: Complex connection HV (customer connected at LV, minor HV works)
F12: VBRC | G12: Replacement | I12: Non-network general assets - Other | P12: ACIF | S12: CI3 | T12: Commercial/Industrial | U12: Complex connection HV (customer connected at LV, upstream asset works)
F13: REFCL | G13: Augmentation | I13: VBRC | P13: GSP | S13: CI4 | T13: Commercial/Industrial | U13: Complex connection HV (customer connected at HV)
F14: Recurring IT | G14: ICT capex | I14: Land | P14: HIA | S14: CI5 | T14: Commercial/Industrial | U14: Complex connection sub-transmission
F15: Non-recurring IT | G15: ICT capex | I15: Accelerated depreciation assets | P15: ACIF FTI | S15: S1 | T15: Subdivision | U15: Complex connection LV
F16: Recurring DER IT | G16: DER capex | P16: Macromonitor | S16: S2 | T16: Subdivision | U16: Complex connection HV (no upstream asset works)
F17: Non-recurring DER IT | G17: DER capex | S17: S3 | T17: Subdivision | U17: Complex connection HV (with upstream asset works)
F18: Property | G18: Property capex | S18: EG1 | T18: Embedded generation | U18: Simple connection LV
F19: Fleet | G19: Fleet capex | S19: EG2 | T19: Embedded generation | U19: Complex connection HV (small capacity)
F20: Other | G20: Other non-network capex | S20: EG3 | T20: Embedded generation | U20: Complex connection HV (large capacity)
F21: Land | G21: Other non-network capex
W60: RHU | X60: Fuse/Junction Box Replacement | AB60: =W60&X60 -> RHUFuse/Junction Box Replacement
W61: RLG | X61: Sustainable Lantern Replacemen | AB61: RLGSustainable Lantern Replacemen
W62: RLJ | X62: Single Main Roads P/L replacem | AB62: RLJSingle Main Roads P/L replacem
W63: RLM | X63: Single Minor Roads P/L replace | AB63: RLMSingle Minor Roads P/L replace
W64: RMF | X64: Premise faults service replace | AB64: RMFPremise faults service replace
W65: RMJ | X65: Replace Service (alter termina | AB65: RMJReplace Service (alter termina
W66: RMK | X66: Replace Service (& customer ma | AB66: RMKReplace Service (& customer ma
W67: RML | X67: Install Disconnect Device | AB67: RMLInstall Disconnect Device
W68: RMP | X68: Service replacement (Planned) | AB68: RMPService replacement (Planned)
W69: RMU | X69: O/h services replaced with U/G | AB69: RMUO/h services replaced with U/G
W70: ROA | X70: O/H Line Repl-HV ABC | AB70: ROAO/H Line Repl-HV ABC
W71: ROF | X71: Fargo Sleeve replacement (3) | AB71: ROFFargo Sleeve replacement (3)
W72: ROH | X72: Open wire replacement | AB72: ROHOpen wire replacement
W73: ROL | X73: O/H Line Repl-LV ABC | AB73: ROLO/H Line Repl-LV ABC
W74: ROP | AB74: ROP
W75: RPA | X75: Pole Replace P/L - Main Roads | AB75: RPAPole Replace P/L - Main Roads
W76: RPB | X76: Pole Replace P/L - Minor Roads | AB76: RPBPole Replace P/L - Minor Roads
W77: RPH | X77: Pole Replacement- High Voltage | AB77: RPHPole Replacement- High Voltage
W78: RPL | X78: Pole Replacement- Low Voltage | AB78: RPLPole Replacement- Low Voltage
W79: RPS | X79: Pole Replacement- SubT | AB79: RPSPole Replacement- SubT
W80: RRH | X80: Pole Reinforcement- HV | AB80: RRHPole Reinforcement- HV
W81: RRL | X81: Pole Reinforcement- LV | AB81: RRLPole Reinforcement- LV
W82: RRS | X82: Pole Reinforcement- ST | AB82: RRSPole Reinforcement- ST
W83: RSA | X83: Subtrans Install Replacement | AB83: RSASubtrans Install Replacement
W84: RUA | X84: Dist. U/G Cable Replacement | AB84: RUADist. U/G Cable Replacement
W85: RUC | X85: Underground Cable Replacement | AB85: RUCUnderground Cable Replacement
W86: RUD | X86: Pillar to Pit | AB86: RUDPillar to Pit
W87: RUE | X87: Pillar to Pit Cust Service Alt | AB87: RUEPillar to Pit Cust Service Alt
W88: RUF | X88: Pillar to UEL STD Pillar Repla | AB88: RUFPillar to UEL STD Pillar Repla
W89: RUG | X89: Dist. U/G Cable Repl-non cabus | AB89: RUGDist. U/G Cable Repl-non cabus
W90: RUH | X90: Dist. U/G Cable Repl-HV | AB90: RUHDist. U/G Cable Repl-HV
W91: RUL | X91: Dist. U/G Cable Repl-LV | AB91: RULDist. U/G Cable Repl-LV
W92: RUP | X92: Dist. U/G Cable Replacement - | AB92: RUPDist. U/G Cable Replacement -
W93: RUS | X93: Dist. U/G Cable Repl-SubT | AB93: =W93&X93 -> RUSDist. U/G Cable Repl-SubT
W94: RXD | X94: Surge Diverter repl (set of 3) | AB94: RXDSurge Diverter repl (set of 3)
W95: RXE | X95: Surge Diverter repl - (single) | AB95: RXESurge Diverter repl - (single)
W96: RXF | X96: Fuse Unit repl (set of 3) | AB96: RXFFuse Unit repl (set of 3)
W97: RXG | X97: Sub T Insulator repl(set of 3) | AB97: RXGSub T Insulator repl(set of 3)
W98: RXH | X98: HV Xarms replacement | AB98: RXHHV Xarms replacement
W99: RXI | X99: HV Insulator repl (set of 3) | AB99: RXIHV Insulator repl (set of 3)
W100: RXJ | X100: Fuse Unit repl (single) | AB100: RXJFuse Unit repl (single)
W101: RXK | X101: Sub T Insulator repl (single) | AB101: RXKSub T Insulator repl (single)
W102: RXL | X102: LV Xarms replacement | AB102: RXLLV Xarms replacement
W103: RXM | X103: HV Insulator repl (single) | AB103: RXMHV Insulator repl (single)
W104: RXP | X104: Pole Top Rot life extension | AB104: RXPPole Top Rot life extension
W105: RXS | X105: ST Xarms replacement | AB105: RXSST Xarms replacement

Sheet Output
A1: Powercor
C2: SME Output sheet for input into AER Capex Forecast Model | I2: Key: | J2: Input | K2: Do not edit
C3: Input| Projects
I5: Total annual direct costs excl. type 2 capcons, unescalated (note: please include type 1 capital contributions and rebates where applicable) | Q5: Total annual type 1 capital contributions, direct costs, unescalated | AF5: 0 | AG5: 0
I6: =SUM(I10:I1009) -> 258124.8901 | J6: 223114.2077 | K6: 608819.911 | L6: 302244.2108 | M6: 294560.1419 | N6: 257542.4295 | O6: 351487.8759 | Q6: =SUM(Q10:Q1009) -> 165760.7653 | R6: 131325.3591 | S6: 457124.0663 | T6: 193012.4006 | U6: 186861.1866 | V6: 153492.4549 | W6: 233732.6225 | AF6: NOTE: fill in table only if you select 'DNSP defined' overhead allocation | AR6: 1 | AS6: 2 | AT6: 3 | AU6: 4 | AV6: 5 | AW6: 6 | AX6: 7 | AY6: 8 | AZ6: 9 | BA6: 10 | BB6: 11 | BC6: 12 | BD6: 13 | BE6: 14 | BF6: 15 | BG6: 16 | BH6: 17 | BI6: 18 | BJ6: 19 | BK6: 20 | BL6: 21 | BM6: 22 | BN6: 23 | BO6: 24 | BP6: 25 | BQ6: 26 | BR6: 27 | BS6: 28 | BT6: 29 | BU6: 30 | BV6: 31 | BW6: 32 | BX6: 33 | BY6: 34 | BZ6: 35 | CA6: 36 | CB6: 37 | CC6: 38 | CD6: 39 | CE6: 40 | CF6: 41 | CG6: 42 | CH6: 43 | CI6: 44 | CJ6: 45 | CK6: 46 | CL6: 47 | CM6: 48 | CN6: 49 | CO6: 50
C7: 13. Project Details | F7: 14. RIN and optional DNSP mapping categories | I7: 15. Unescalated direct costs (excluding type 2 capital contributions) ($'000s 2025-26 June) | Q7: 16. Type 1 capital contributions included in table 15 ($'000s 2025-26 June) | Y7: 17. Cost components as % of direct costs | AC7: 18. Capitalised overheads allocation | AF7: 19. Allocation of capitalised overheads - DNSP defined | AI7: 20. AER categories as % of direct costs (i.e. total costs reported in table 15, excluding capitalised overheads) | AR7: 21. PTRM asset classes as % of direct costs (i.e. total costs reported in table 15, excluding capitalised overheads)
AB8: 0 | AF8: % of total capitalised overheads allocated to project: | AQ8: 0 | AR8: Dx | AS8: Dx | AT8: Dx | AU8: Dx | AV8: Dx | AW8: Dx | AX8: Dx | AY8: Dx | AZ8: Dx | BA8: Dx | CP8: 0
C9: Project/Program Inputs | D9: Unique ID | F9: RIN categories | G9: DNSP category (free-fill) | I9: 2024-25 | J9: 2025-26 | K9: 2026-27 | L9: 2027-28 | M9: 2028-29 | N9: 2029-30 | O9: 2030-31 | Q9: 2024-25 | R9: 2025-26 | S9: 2026-27 | T9: 2027-28 | U9: 2028-29 | V9: 2029-30 | W9: 2030-31 | Y9: Internal labour | Z9: Contract labour | AA9: Non-labour | AC9: Network Overheads Applies | AD9: Corporate Overheads Applies | AF9: % of total network overheads | AG9: % of total corporate overheads | AI9: Replacement | AJ9: DER capex | AK9: Augmentation | AL9: Connections | AM9: ICT capex | AN9: Property capex | AO9: Fleet capex | AP9: Other non-network capex | AR9: Subtransmission | AS9: Distribution system assets | AT9: Public lighting | AU9: SCADA/Network control | AV9: Non-network general assets - IT | AW9: Non-network general assets - Other | AX9: VBRC | AY9: Land | AZ9: in-house software | BA9: Accelerated depreciation assets
B10: 1 | C10: HV pole replacement | D10: 1 | F10: Replacement | G10: Replacement | I10: =SUMPRODUCT((Forecast_spend!U$16:U$31)*(Forecast_spend!$F$16:$F$31=$C10))/1000 -> 0 | J10: =SUMPRODUCT((Forecast_spend!V$16:V$31)*(Forecast_spend!$F$16:$F$31=$C10))/1000 -> 0 | K10: =SUMPRODUCT((Forecast_spend!W$16:W$31)*(Forecast_spend!$F$16:$F$31=$C10))/1000 -> 0 | L10: =SUMPRODUCT((Forecast_spend!X$16:X$31)*(Forecast_spend!$F$16:$F$31=$C10))/1000 -> 0 | M10: =SUMPRODUCT((Forecast_spend!Y$16:Y$31)*(Forecast_spend!$F$16:$F$31=$C10))/1000 -> 0 | N10: =SUMPRODUCT((Forecast_spend!Z$16:Z$31)*(Forecast_spend!$F$16:$F$31=$C10))/1000 -> 0 | O10: =SUMPRODUCT((Forecast_spend!AA$16:AA$31)*(Forecast_spend!$F$16:$F$31=$C10))/1000 -> 0 | Q10: =SUMPRODUCT((Forecast_contrib!U$16:U$31)*(Forecast_contrib!$F$16:$F$31=$C10))/1000 -> 0 | R10: =SUMPRODUCT((Forecast_contrib!V$16:V$31)*(Forecast_contrib!$F$16:$F$31=$C10))/1000 -> 0 | S10: =SUMPRODUCT((Forecast_contrib!W$16:W$31)*(Forecast_contrib!$F$16:$F$31=$C10))/1000 -> 0 | T10: =SUMPRODUCT((Forecast_contrib!X$16:X$31)*(Forecast_contrib!$F$16:$F$31=$C10))/1000 -> 0 | U10: =SUMPRODUCT((Forecast_contrib!Y$16:Y$31)*(Forecast_contrib!$F$16:$F$31=$C10))/1000 -> 0 | V10: =SUMPRODUCT((Forecast_contrib!Z$16:Z$31)*(Forecast_contrib!$F$16:$F$31=$C10))/1000 -> 0 | W10: =SUMPRODUCT((Forecast_contrib!AA$16:AA$31)*(Forecast_contrib!$F$16:$F$31=$C10))/1000 -> 0 | AB10: =IF(SUM(Y10:AA10,I10:O10)=0,"",IF(SUM(Y10:AA10)=1,"",1)) ->  | AI10: 0 | AJ10: 0 | AK10: 0 | AL10: 0 | AM10: 0 | AN10: 0 | AO10: 0 | AP10: 0 | CP10: =IF(COUNT(AI10:AP10)=0,"",IF(SUM(AI10:AP10)=1,"",1)) -> 1
B11: =IFERROR(B10+1,"") -> 2 | C11: LV pole replacement | D11: 2 | F11: Replacement | G11: Replacement | I11: =SUMPRODUCT((Forecast_spend!U$16:U$31)*(Forecast_spend!$F$16:$F$31=$C11))/1000 -> 0 | J11: =SUMPRODUCT((Forecast_spend!V$16:V$31)*(Forecast_spend!$F$16:$F$31=$C11))/1000 -> 0 | K11: =SUMPRODUCT((Forecast_spend!W$16:W$31)*(Forecast_spend!$F$16:$F$31=$C11))/1000 -> 0 | L11: =SUMPRODUCT((Forecast_spend!X$16:X$31)*(Forecast_spend!$F$16:$F$31=$C11))/1000 -> 0 | M11: =SUMPRODUCT((Forecast_spend!Y$16:Y$31)*(Forecast_spend!$F$16:$F$31=$C11))/1000 -> 0 | N11: =SUMPRODUCT((Forecast_spend!Z$16:Z$31)*(Forecast_spend!$F$16:$F$31=$C11))/1000 -> 0 | O11: =SUMPRODUCT((Forecast_spend!AA$16:AA$31)*(Forecast_spend!$F$16:$F$31=$C11))/1000 -> 0 | Q11: =SUMPRODUCT((Forecast_contrib!U$16:U$31)*(Forecast_contrib!$F$16:$F$31=$C11))/1000 -> 0 | R11: =SUMPRODUCT((Forecast_contrib!V$16:V$31)*(Forecast_contrib!$F$16:$F$31=$C11))/1000 -> 0 | S11: =SUMPRODUCT((Forecast_contrib!W$16:W$31)*(Forecast_contrib!$F$16:$F$31=$C11))/1000 -> 0 | T11: =SUMPRODUCT((Forecast_contrib!X$16:X$31)*(Forecast_contrib!$F$16:$F$31=$C11))/1000 -> 0 | U11: =SUMPRODUCT((Forecast_contrib!Y$16:Y$31)*(Forecast_contrib!$F$16:$F$31=$C11))/1000 -> 0 | V11: =SUMPRODUCT((Forecast_contrib!Z$16:Z$31)*(Forecast_contrib!$F$16:$F$31=$C11))/1000 -> 0 | W11: =SUMPRODUCT((Forecast_contrib!AA$16:AA$31)*(Forecast_contrib!$F$16:$F$31=$C11))/1000 -> 0 | AI11: 0 | AJ11: 0 | AK11: 0 | AL11: 0 | AM11: 0 | AN11: 0 | AO11: 0 | AP11: 0 | CP11: 1
B12: 3 | C12: LV pole top replacement | D12: 3 | F12: Replacement | G12: Replacement | I12: =SUMPRODUCT((Forecast_spend!U$16:U$31)*(Forecast_spend!$F$16:$F$31=$C12))/1000 -> 0 | J12: =SUMPRODUCT((Forecast_spend!V$16:V$31)*(Forecast_spend!$F$16:$F$31=$C12))/1000 -> 0 | K12: =SUMPRODUCT((Forecast_spend!W$16:W$31)*(Forecast_spend!$F$16:$F$31=$C12))/1000 -> 0 | L12: =SUMPRODUCT((Forecast_spend!X$16:X$31)*(Forecast_spend!$F$16:$F$31=$C12))/1000 -> 0 | M12: =SUMPRODUCT((Forecast_spend!Y$16:Y$31)*(Forecast_spend!$F$16:$F$31=$C12))/1000 -> 0 | N12: =SUMPRODUCT((Forecast_spend!Z$16:Z$31)*(Forecast_spend!$F$16:$F$31=$C12))/1000 -> 0 | O12: =SUMPRODUCT((Forecast_spend!AA$16:AA$31)*(Forecast_spend!$F$16:$F$31=$C12))/1000 -> 0 | Q12: =SUMPRODUCT((Forecast_contrib!U$16:U$31)*(Forecast_contrib!$F$16:$F$31=$C12))/1000 -> 0 | R12: =SUMPRODUCT((Forecast_contrib!V$16:V$31)*(Forecast_contrib!$F$16:$F$31=$C12))/1000 -> 0 | S12: =SUMPRODUCT((Forecast_contrib!W$16:W$31)*(Forecast_contrib!$F$16:$F$31=$C12))/1000 -> 0 | T12: =SUMPRODUCT((Forecast_contrib!X$16:X$31)*(Forecast_contrib!$F$16:$F$31=$C12))/1000 -> 0 | U12: =SUMPRODUCT((Forecast_contrib!Y$16:Y$31)*(Forecast_contrib!$F$16:$F$31=$C12))/1000 -> 0 | V12: =SUMPRODUCT((Forecast_contrib!Z$16:Z$31)*(Forecast_contrib!$F$16:$F$31=$C12))/1000 -> 0 | W12: =SUMPRODUCT((Forecast_contrib!AA$16:AA$31)*(Forecast_contrib!$F$16:$F$31=$C12))/1000 -> 0 | AI12: 0 | AJ12: 0 | AK12: 0 | AL12: 0 | AM12: 0 | AN12: 0 | AO12: 0 | AP12: 0 | CP12: 1
B13: 4 | C13: HV pole top replacement | D13: 4 | F13: Replacement | G13: Replacement | I13: =SUMPRODUCT((Forecast_spend!U$16:U$31)*(Forecast_spend!$F$16:$F$31=$C13))/1000 -> 0 | J13: =SUMPRODUCT((Forecast_spend!V$16:V$31)*(Forecast_spend!$F$16:$F$31=$C13))/1000 -> 0 | K13: =SUMPRODUCT((Forecast_spend!W$16:W$31)*(Forecast_spend!$F$16:$F$31=$C13))/1000 -> 0 | L13: =SUMPRODUCT((Forecast_spend!X$16:X$31)*(Forecast_spend!$F$16:$F$31=$C13))/1000 -> 0 | M13: =SUMPRODUCT((Forecast_spend!Y$16:Y$31)*(Forecast_spend!$F$16:$F$31=$C13))/1000 -> 0 | N13: =SUMPRODUCT((Forecast_spend!Z$16:Z$31)*(Forecast_spend!$F$16:$F$31=$C13))/1000 -> 0 | O13: =SUMPRODUCT((Forecast_spend!AA$16:AA$31)*(Forecast_spend!$F$16:$F$31=$C13))/1000 -> 0 | Q13: =SUMPRODUCT((Forecast_contrib!U$16:U$31)*(Forecast_contrib!$F$16:$F$31=$C13))/1000 -> 0 | R13: =SUMPRODUCT((Forecast_contrib!V$16:V$31)*(Forecast_contrib!$F$16:$F$31=$C13))/1000 -> 0 | S13: =SUMPRODUCT((Forecast_contrib!W$16:W$31)*(Forecast_contrib!$F$16:$F$31=$C13))/1000 -> 0 | T13: =SUMPRODUCT((Forecast_contrib!X$16:X$31)*(Forecast_contrib!$F$16:$F$31=$C13))/1000 -> 0 | U13: =SUMPRODUCT((Forecast_contrib!Y$16:Y$31)*(Forecast_contrib!$F$16:$F$31=$C13))/1000 -> 0 | V13: =SUMPRODUCT((Forecast_contrib!Z$16:Z$31)*(Forecast_contrib!$F$16:$F$31=$C13))/1000 -> 0 | W13: =SUMPRODUCT((Forecast_contrib!AA$16:AA$31)*(Forecast_contrib!$F$16:$F$31=$C13))/1000 -> 0 | AI13: 0 | AJ13: 0 | AK13: 0 | AL13: 0 | AM13: 0 | AN13: 0 | AO13: 0 | AP13: 0 | CP13: 1
B14: 5 | C14: Unplanned line maintenance | D14: 5 | F14: Replacement | G14: Replacement | I14: =SUMPRODUCT((Forecast_spend!U$16:U$31)*(Forecast_spend!$F$16:$F$31=$C14))/1000 -> 0 | J14: =SUMPRODUCT((Forecast_spend!V$16:V$31)*(Forecast_spend!$F$16:$F$31=$C14))/1000 -> 0 | K14: =SUMPRODUCT((Forecast_spend!W$16:W$31)*(Forecast_spend!$F$16:$F$31=$C14))/1000 -> 0 | L14: =SUMPRODUCT((Forecast_spend!X$16:X$31)*(Forecast_spend!$F$16:$F$31=$C14))/1000 -> 0 | M14: =SUMPRODUCT((Forecast_spend!Y$16:Y$31)*(Forecast_spend!$F$16:$F$31=$C14))/1000 -> 0 | N14: =SUMPRODUCT((Forecast_spend!Z$16:Z$31)*(Forecast_spend!$F$16:$F$31=$C14))/1000 -> 0 | O14: =SUMPRODUCT((Forecast_spend!AA$16:AA$31)*(Forecast_spend!$F$16:$F$31=$C14))/1000 -> 0 | Q14: =SUMPRODUCT((Forecast_contrib!U$16:U$31)*(Forecast_contrib!$F$16:$F$31=$C14))/1000 -> 0 | R14: =SUMPRODUCT((Forecast_contrib!V$16:V$31)*(Forecast_contrib!$F$16:$F$31=$C14))/1000 -> 0 | S14: =SUMPRODUCT((Forecast_contrib!W$16:W$31)*(Forecast_contrib!$F$16:$F$31=$C14))/1000 -> 0 | T14: =SUMPRODUCT((Forecast_contrib!X$16:X$31)*(Forecast_contrib!$F$16:$F$31=$C14))/1000 -> 0 | U14: =SUMPRODUCT((Forecast_contrib!Y$16:Y$31)*(Forecast_contrib!$F$16:$F$31=$C14))/1000 -> 0 | V14: =SUMPRODUCT((Forecast_contrib!Z$16:Z$31)*(Forecast_contrib!$F$16:$F$31=$C14))/1000 -> 0 | W14: =SUMPRODUCT((Forecast_contrib!AA$16:AA$31)*(Forecast_contrib!$F$16:$F$31=$C14))/1000 -> 0 | AI14: 0 | AJ14: 0 | AK14: 0 | AL14: 0 | AM14: 0 | AN14: 0 | AO14: 0 | AP14: 0 | CP14: 1
B15: 6 | C15: HBRA HV wooden cross-arm replacements | D15: 6 | F15: Replacement | G15: Replacement | I15: =SUMPRODUCT((Forecast_spend!U$16:U$31)*(Forecast_spend!$F$16:$F$31=$C15))/1000 -> 0 | J15: =SUMPRODUCT((Forecast_spend!V$16:V$31)*(Forecast_spend!$F$16:$F$31=$C15))/1000 -> 0 | K15: =SUMPRODUCT((Forecast_spend!W$16:W$31)*(Forecast_spend!$F$16:$F$31=$C15))/1000 -> 0 | L15: =SUMPRODUCT((Forecast_spend!X$16:X$31)*(Forecast_spend!$F$16:$F$31=$C15))/1000 -> 0 | M15: =SUMPRODUCT((Forecast_spend!Y$16:Y$31)*(Forecast_spend!$F$16:$F$31=$C15))/1000 -> 0 | N15: =SUMPRODUCT((Forecast_spend!Z$16:Z$31)*(Forecast_spend!$F$16:$F$31=$C15))/1000 -> 0 | O15: =SUMPRODUCT((Forecast_spend!AA$16:AA$31)*(Forecast_spend!$F$16:$F$31=$C15))/1000 -> 0 | Q15: =SUMPRODUCT((Forecast_contrib!U$16:U$31)*(Forecast_contrib!$F$16:$F$31=$C15))/1000 -> 0 | R15: =SUMPRODUCT((Forecast_contrib!V$16:V$31)*(Forecast_contrib!$F$16:$F$31=$C15))/1000 -> 0 | S15: =SUMPRODUCT((Forecast_contrib!W$16:W$31)*(Forecast_contrib!$F$16:$F$31=$C15))/1000 -> 0 | T15: =SUMPRODUCT((Forecast_contrib!X$16:X$31)*(Forecast_contrib!$F$16:$F$31=$C15))/1000 -> 0 | U15: =SUMPRODUCT((Forecast_contrib!Y$16:Y$31)*(Forecast_contrib!$F$16:$F$31=$C15))/1000 -> 0 | V15: =SUMPRODUCT((Forecast_contrib!Z$16:Z$31)*(Forecast_contrib!$F$16:$F$31=$C15))/1000 -> 0 | W15: =SUMPRODUCT((Forecast_contrib!AA$16:AA$31)*(Forecast_contrib!$F$16:$F$31=$C15))/1000 -> 0 | AI15: 0 | AJ15: 0 | AK15: 0 | AL15: 0 | AM15: 0 | AN15: 0 | AO15: 0 | AP15: 0 | CP15: 1
B16: 7 | C16: Pole reinforcement | D16: 7 | F16: Replacement | G16: Replacement | I16: =SUMPRODUCT((Forecast_spend!U$16:U$31)*(Forecast_spend!$F$16:$F$31=$C16))/1000 -> 0 | J16: =SUMPRODUCT((Forecast_spend!V$16:V$31)*(Forecast_spend!$F$16:$F$31=$C16))/1000 -> 0 | K16: =SUMPRODUCT((Forecast_spend!W$16:W$31)*(Forecast_spend!$F$16:$F$31=$C16))/1000 -> 0 | L16: =SUMPRODUCT((Forecast_spend!X$16:X$31)*(Forecast_spend!$F$16:$F$31=$C16))/1000 -> 0 | M16: =SUMPRODUCT((Forecast_spend!Y$16:Y$31)*(Forecast_spend!$F$16:$F$31=$C16))/1000 -> 0 | N16: =SUMPRODUCT((Forecast_spend!Z$16:Z$31)*(Forecast_spend!$F$16:$F$31=$C16))/1000 -> 0 | O16: =SUMPRODUCT((Forecast_spend!AA$16:AA$31)*(Forecast_spend!$F$16:$F$31=$C16))/1000 -> 0 | Q16: =SUMPRODUCT((Forecast_contrib!U$16:U$31)*(Forecast_contrib!$F$16:$F$31=$C16))/1000 -> 0 | R16: =SUMPRODUCT((Forecast_contrib!V$16:V$31)*(Forecast_contrib!$F$16:$F$31=$C16))/1000 -> 0 | S16: =SUMPRODUCT((Forecast_contrib!W$16:W$31)*(Forecast_contrib!$F$16:$F$31=$C16))/1000 -> 0 | T16: =SUMPRODUCT((Forecast_contrib!X$16:X$31)*(Forecast_contrib!$F$16:$F$31=$C16))/1000 -> 0 | U16: =SUMPRODUCT((Forecast_contrib!Y$16:Y$31)*(Forecast_contrib!$F$16:$F$31=$C16))/1000 -> 0 | V16: =SUMPRODUCT((Forecast_contrib!Z$16:Z$31)*(Forecast_contrib!$F$16:$F$31=$C16))/1000 -> 0 | W16: =SUMPRODUCT((Forecast_contrib!AA$16:AA$31)*(Forecast_contrib!$F$16:$F$31=$C16))/1000 -> 0 | AI16: 0 | AJ16: 0 | AK16: 0 | AL16: 0 | AM16: 0 | AN16: 0 | AO16: 0 | AP16: 0 | CP16: 1
B17: 8 | C17: Defective conductor | D17: 8 | F17: Replacement | G17: Replacement | I17: =SUMPRODUCT((Forecast_spend!U$16:U$31)*(Forecast_spend!$F$16:$F$31=$C17))/1000 -> 0 | J17: =SUMPRODUCT((Forecast_spend!V$16:V$31)*(Forecast_spend!$F$16:$F$31=$C17))/1000 -> 0 | K17: =SUMPRODUCT((Forecast_spend!W$16:W$31)*(Forecast_spend!$F$16:$F$31=$C17))/1000 -> 0 | L17: =SUMPRODUCT((Forecast_spend!X$16:X$31)*(Forecast_spend!$F$16:$F$31=$C17))/1000 -> 0 | M17: =SUMPRODUCT((Forecast_spend!Y$16:Y$31)*(Forecast_spend!$F$16:$F$31=$C17))/1000 -> 0 | N17: =SUMPRODUCT((Forecast_spend!Z$16:Z$31)*(Forecast_spend!$F$16:$F$31=$C17))/1000 -> 0 | O17: =SUMPRODUCT((Forecast_spend!AA$16:AA$31)*(Forecast_spend!$F$16:$F$31=$C17))/1000 -> 0 | Q17: =SUMPRODUCT((Forecast_contrib!U$16:U$31)*(Forecast_contrib!$F$16:$F$31=$C17))/1000 -> 0 | R17: =SUMPRODUCT((Forecast_contrib!V$16:V$31)*(Forecast_contrib!$F$16:$F$31=$C17))/1000 -> 0 | S17: =SUMPRODUCT((Forecast_contrib!W$16:W$31)*(Forecast_contrib!$F$16:$F$31=$C17))/1000 -> 0 | T17: =SUMPRODUCT((Forecast_contrib!X$16:X$31)*(Forecast_contrib!$F$16:$F$31=$C17))/1000 -> 0 | U17: =SUMPRODUCT((Forecast_contrib!Y$16:Y$31)*(Forecast_contrib!$F$16:$F$31=$C17))/1000 -> 0 | V17: =SUMPRODUCT((Forecast_contrib!Z$16:Z$31)*(Forecast_contrib!$F$16:$F$31=$C17))/1000 -> 0 | W17: =SUMPRODUCT((Forecast_contrib!AA$16:AA$31)*(Forecast_contrib!$F$16:$F$31=$C17))/1000 -> 0 | AI17: 0 | AJ17: 0 | AK17: 0 | AL17: 0 | AM17: 0 | AN17: 0 | AO17: 0 | AP17: 0 | CP17: 1
B18: 9 | C18: Risk-based HV conductor replacement | D18: 9 | F18: Replacement | G18: Replacement | I18: =SUMPRODUCT((Forecast_spend!U$16:U$31)*(Forecast_spend!$F$16:$F$31=$C18))/1000 -> 0 | J18: =SUMPRODUCT((Forecast_spend!V$16:V$31)*(Forecast_spend!$F$16:$F$31=$C18))/1000 -> 0 | K18: =SUMPRODUCT((Forecast_spend!W$16:W$31)*(Forecast_spend!$F$16:$F$31=$C18))/1000 -> 0 | L18: =SUMPRODUCT((Forecast_spend!X$16:X$31)*(Forecast_spend!$F$16:$F$31=$C18))/1000 -> 0 | M18: =SUMPRODUCT((Forecast_spend!Y$16:Y$31)*(Forecast_spend!$F$16:$F$31=$C18))/1000 -> 0 | N18: =SUMPRODUCT((Forecast_spend!Z$16:Z$31)*(Forecast_spend!$F$16:$F$31=$C18))/1000 -> 0 | O18: =SUMPRODUCT((Forecast_spend!AA$16:AA$31)*(Forecast_spend!$F$16:$F$31=$C18))/1000 -> 0 | Q18: =SUMPRODUCT((Forecast_contrib!U$16:U$31)*(Forecast_contrib!$F$16:$F$31=$C18))/1000 -> 0 | R18: =SUMPRODUCT((Forecast_contrib!V$16:V$31)*(Forecast_contrib!$F$16:$F$31=$C18))/1000 -> 0 | S18: =SUMPRODUCT((Forecast_contrib!W$16:W$31)*(Forecast_contrib!$F$16:$F$31=$C18))/1000 -> 0 | T18: =SUMPRODUCT((Forecast_contrib!X$16:X$31)*(Forecast_contrib!$F$16:$F$31=$C18))/1000 -> 0 | U18: =SUMPRODUCT((Forecast_contrib!Y$16:Y$31)*(Forecast_contrib!$F$16:$F$31=$C18))/1000 -> 0 | V18: =SUMPRODUCT((Forecast_contrib!Z$16:Z$31)*(Forecast_contrib!$F$16:$F$31=$C18))/1000 -> 0 | W18: =SUMPRODUCT((Forecast_contrib!AA$16:AA$31)*(Forecast_contrib!$F$16:$F$31=$C18))/1000 -> 0 | AB18: =IF(SUM(Y18:AA18,I18:O18)=0,"",IF(SUM(Y18:AA18)=1,"",1)) ->  | AI18: 0 | AJ18: 0 | AK18: 0 | AL18: 0 | AM18: 0 | AN18: 0 | AO18: 0 | AP18: 0 | CP18: 1
B19: 10 | C19: Conductor clearance rectification from LIDAR | D19: 10 | F19: Replacement | G19: Replacement | I19: =SUMPRODUCT((Forecast_spend!U$16:U$31)*(Forecast_spend!$F$16:$F$31=$C19))/1000 -> 0 | J19: =SUMPRODUCT((Forecast_spend!V$16:V$31)*(Forecast_spend!$F$16:$F$31=$C19))/1000 -> 0 | K19: =SUMPRODUCT((Forecast_spend!W$16:W$31)*(Forecast_spend!$F$16:$F$31=$C19))/1000 -> 0 | L19: =SUMPRODUCT((Forecast_spend!X$16:X$31)*(Forecast_spend!$F$16:$F$31=$C19))/1000 -> 0 | M19: =SUMPRODUCT((Forecast_spend!Y$16:Y$31)*(Forecast_spend!$F$16:$F$31=$C19))/1000 -> 0 | N19: =SUMPRODUCT((Forecast_spend!Z$16:Z$31)*(Forecast_spend!$F$16:$F$31=$C19))/1000 -> 0 | O19: =SUMPRODUCT((Forecast_spend!AA$16:AA$31)*(Forecast_spend!$F$16:$F$31=$C19))/1000 -> 0 | Q19: =SUMPRODUCT((Forecast_contrib!U$16:U$31)*(Forecast_contrib!$F$16:$F$31=$C19))/1000 -> 0 | R19: =SUMPRODUCT((Forecast_contrib!V$16:V$31)*(Forecast_contrib!$F$16:$F$31=$C19))/1000 -> 0 | S19: =SUMPRODUCT((Forecast_contrib!W$16:W$31)*(Forecast_contrib!$F$16:$F$31=$C19))/1000 -> 0 | T19: =SUMPRODUCT((Forecast_contrib!X$16:X$31)*(Forecast_contrib!$F$16:$F$31=$C19))/1000 -> 0 | U19: =SUMPRODUCT((Forecast_contrib!Y$16:Y$31)*(Forecast_contrib!$F$16:$F$31=$C19))/1000 -> 0 | V19: =SUMPRODUCT((Forecast_contrib!Z$16:Z$31)*(Forecast_contrib!$F$16:$F$31=$C19))/1000 -> 0 | W19: =SUMPRODUCT((Forecast_contrib!AA$16:AA$31)*(Forecast_contrib!$F$16:$F$31=$C19))/1000 -> 0 | AB19: =IF(SUM(Y19:AA19,I19:O19)=0,"",IF(SUM(Y19:AA19)=1,"",1)) ->  | AI19: 0 | AJ19: 0 | AK19: 0 | AL19: 0 | AM19: 0 | AN19: 0 | AO19: 0 | AP19: 0 | CP19: =IF(COUNT(AI19:AP19)=0,"",IF(SUM(AI19:AP19)=1,"",1)) -> 1
B20: 11 | C20: Risk-based 66kV replacement | D20: 11 | F20: Replacement | G20: Replacement | I20: =SUMPRODUCT((Forecast_spend!U$16:U$31)*(Forecast_spend!$F$16:$F$31=$C20))/1000 -> 0 | J20: =SUMPRODUCT((Forecast_spend!V$16:V$31)*(Forecast_spend!$F$16:$F$31=$C20))/1000 -> 0 | K20: =SUMPRODUCT((Forecast_spend!W$16:W$31)*(Forecast_spend!$F$16:$F$31=$C20))/1000 -> 0 | L20: =SUMPRODUCT((Forecast_spend!X$16:X$31)*(Forecast_spend!$F$16:$F$31=$C20))/1000 -> 0 | M20: =SUMPRODUCT((Forecast_spend!Y$16:Y$31)*(Forecast_spend!$F$16:$F$31=$C20))/1000 -> 0 | N20: =SUMPRODUCT((Forecast_spend!Z$16:Z$31)*(Forecast_spend!$F$16:$F$31=$C20))/1000 -> 0 | O20: =SUMPRODUCT((Forecast_spend!AA$16:AA$31)*(Forecast_spend!$F$16:$F$31=$C20))/1000 -> 0 | Q20: =SUMPRODUCT((Forecast_contrib!U$16:U$31)*(Forecast_contrib!$F$16:$F$31=$C20))/1000 -> 0 | R20: =SUMPRODUCT((Forecast_contrib!V$16:V$31)*(Forecast_contrib!$F$16:$F$31=$C20))/1000 -> 0 | S20: =SUMPRODUCT((Forecast_contrib!W$16:W$31)*(Forecast_contrib!$F$16:$F$31=$C20))/1000 -> 0 | T20: =SUMPRODUCT((Forecast_contrib!X$16:X$31)*(Forecast_contrib!$F$16:$F$31=$C20))/1000 -> 0 | U20: =SUMPRODUCT((Forecast_contrib!Y$16:Y$31)*(Forecast_contrib!$F$16:$F$31=$C20))/1000 -> 0 | V20: =SUMPRODUCT((Forecast_contrib!Z$16:Z$31)*(Forecast_contrib!$F$16:$F$31=$C20))/1000 -> 0 | W20: =SUMPRODUCT((Forecast_contrib!AA$16:AA$31)*(Forecast_contrib!$F$16:$F$31=$C20))/1000 -> 0 | AB20: =IF(SUM(Y20:AA20,I20:O20)=0,"",IF(SUM(Y20:AA20)=1,"",1)) ->  | AI20: 0 | AJ20: 0 | AK20: 0 | AL20: 0 | AM20: 0 | AN20: 0 | AO20: 0 | AP20: 0 | CP20: =IF(COUNT(AI20:AP20)=0,"",IF(SUM(AI20:AP20)=1,"",1)) -> 1
B21: 12 | C21: Bare 22kV conductor bushfire mitigation | D21: 12 | F21: Replacement | G21: Replacement | I21: =SUMPRODUCT((Forecast_spend!U$16:U$31)*(Forecast_spend!$F$16:$F$31=$C21))/1000 -> 0 | J21: =SUMPRODUCT((Forecast_spend!V$16:V$31)*(Forecast_spend!$F$16:$F$31=$C21))/1000 -> 0 | K21: =SUMPRODUCT((Forecast_spend!W$16:W$31)*(Forecast_spend!$F$16:$F$31=$C21))/1000 -> 0 | L21: =SUMPRODUCT((Forecast_spend!X$16:X$31)*(Forecast_spend!$F$16:$F$31=$C21))/1000 -> 0 | M21: =SUMPRODUCT((Forecast_spend!Y$16:Y$31)*(Forecast_spend!$F$16:$F$31=$C21))/1000 -> 0 | N21: =SUMPRODUCT((Forecast_spend!Z$16:Z$31)*(Forecast_spend!$F$16:$F$31=$C21))/1000 -> 0 | O21: =SUMPRODUCT((Forecast_spend!AA$16:AA$31)*(Forecast_spend!$F$16:$F$31=$C21))/1000 -> 0 | Q21: =SUMPRODUCT((Forecast_contrib!U$16:U$31)*(Forecast_contrib!$F$16:$F$31=$C21))/1000 -> 0 | R21: =SUMPRODUCT((Forecast_contrib!V$16:V$31)*(Forecast_contrib!$F$16:$F$31=$C21))/1000 -> 0 | S21: =SUMPRODUCT((Forecast_contrib!W$16:W$31)*(Forecast_contrib!$F$16:$F$31=$C21))/1000 -> 0 | T21: =SUMPRODUCT((Forecast_contrib!X$16:X$31)*(Forecast_contrib!$F$16:$F$31=$C21))/1000 -> 0 | U21: =SUMPRODUCT((Forecast_contrib!Y$16:Y$31)*(Forecast_contrib!$F$16:$F$31=$C21))/1000 -> 0 | V21: =SUMPRODUCT((Forecast_contrib!Z$16:Z$31)*(Forecast_contrib!$F$16:$F$31=$C21))/1000 -> 0 | W21: =SUMPRODUCT((Forecast_contrib!AA$16:AA$31)*(Forecast_contrib!$F$16:$F$31=$C21))/1000 -> 0 | AI21: 0 | AJ21: 0 | AK21: 0 | AL21: 0 | AM21: 0 | AN21: 0 | AO21: 0 | AP21: 0 | CP21: =IF(COUNT(AI21:AP21)=0,"",IF(SUM(AI21:AP21)=1,"",1)) -> 1
B22: 13 | C22: Risk-based HV cable replacement | D22: 13 | F22: Replacement | G22: Replacement | I22: =SUMPRODUCT((Forecast_spend!U$16:U$31)*(Forecast_spend!$F$16:$F$31=$C22))/1000 -> 0 | J22: =SUMPRODUCT((Forecast_spend!V$16:V$31)*(Forecast_spend!$F$16:$F$31=$C22))/1000 -> 0 | K22: =SUMPRODUCT((Forecast_spend!W$16:W$31)*(Forecast_spend!$F$16:$F$31=$C22))/1000 -> 0 | L22: =SUMPRODUCT((Forecast_spend!X$16:X$31)*(Forecast_spend!$F$16:$F$31=$C22))/1000 -> 0 | M22: =SUMPRODUCT((Forecast_spend!Y$16:Y$31)*(Forecast_spend!$F$16:$F$31=$C22))/1000 -> 0 | N22: =SUMPRODUCT((Forecast_spend!Z$16:Z$31)*(Forecast_spend!$F$16:$F$31=$C22))/1000 -> 0 | O22: =SUMPRODUCT((Forecast_spend!AA$16:AA$31)*(Forecast_spend!$F$16:$F$31=$C22))/1000 -> 0 | Q22: =SUMPRODUCT((Forecast_contrib!U$16:U$31)*(Forecast_contrib!$F$16:$F$31=$C22))/1000 -> 0 | R22: =SUMPRODUCT((Forecast_contrib!V$16:V$31)*(Forecast_contrib!$F$16:$F$31=$C22))/1000 -> 0 | S22: =SUMPRODUCT((Forecast_contrib!W$16:W$31)*(Forecast_contrib!$F$16:$F$31=$C22))/1000 -> 0 | T22: =SUMPRODUCT((Forecast_contrib!X$16:X$31)*(Forecast_contrib!$F$16:$F$31=$C22))/1000 -> 0 | U22: =SUMPRODUCT((Forecast_contrib!Y$16:Y$31)*(Forecast_contrib!$F$16:$F$31=$C22))/1000 -> 0 | V22: =SUMPRODUCT((Forecast_contrib!Z$16:Z$31)*(Forecast_contrib!$F$16:$F$31=$C22))/1000 -> 0 | W22: =SUMPRODUCT((Forecast_contrib!AA$16:AA$31)*(Forecast_contrib!$F$16:$F$31=$C22))/1000 -> 0 | AI22: 0 | AJ22: 0 | AK22: 0 | AL22: 0 | AM22: 0 | AN22: 0 | AO22: 0 | AP22: 0 | CP22: =IF(COUNT(AI22:AP22)=0,"",IF(SUM(AI22:AP22)=1,"",1)) -> 1
B23: 14 | C23: Defective SWER ISO & CBU Earth Repair | D23: 14 | F23: Replacement | G23: Replacement | I23: =SUMPRODUCT((Forecast_spend!U$16:U$31)*(Forecast_spend!$F$16:$F$31=$C23))/1000 -> 0 | J23: =SUMPRODUCT((Forecast_spend!V$16:V$31)*(Forecast_spend!$F$16:$F$31=$C23))/1000 -> 0 | K23: =SUMPRODUCT((Forecast_spend!W$16:W$31)*(Forecast_spend!$F$16:$F$31=$C23))/1000 -> 0 | L23: =SUMPRODUCT((Forecast_spend!X$16:X$31)*(Forecast_spend!$F$16:$F$31=$C23))/1000 -> 0 | M23: =SUMPRODUCT((Forecast_spend!Y$16:Y$31)*(Forecast_spend!$F$16:$F$31=$C23))/1000 -> 0 | N23: =SUMPRODUCT((Forecast_spend!Z$16:Z$31)*(Forecast_spend!$F$16:$F$31=$C23))/1000 -> 0 | O23: =SUMPRODUCT((Forecast_spend!AA$16:AA$31)*(Forecast_spend!$F$16:$F$31=$C23))/1000 -> 0 | Q23: =SUMPRODUCT((Forecast_contrib!U$16:U$31)*(Forecast_contrib!$F$16:$F$31=$C23))/1000 -> 0 | R23: =SUMPRODUCT((Forecast_contrib!V$16:V$31)*(Forecast_contrib!$F$16:$F$31=$C23))/1000 -> 0 | S23: =SUMPRODUCT((Forecast_contrib!W$16:W$31)*(Forecast_contrib!$F$16:$F$31=$C23))/1000 -> 0 | T23: =SUMPRODUCT((Forecast_contrib!X$16:X$31)*(Forecast_contrib!$F$16:$F$31=$C23))/1000 -> 0 | U23: =SUMPRODUCT((Forecast_contrib!Y$16:Y$31)*(Forecast_contrib!$F$16:$F$31=$C23))/1000 -> 0 | V23: =SUMPRODUCT((Forecast_contrib!Z$16:Z$31)*(Forecast_contrib!$F$16:$F$31=$C23))/1000 -> 0 | W23: =SUMPRODUCT((Forecast_contrib!AA$16:AA$31)*(Forecast_contrib!$F$16:$F$31=$C23))/1000 -> 0 | AI23: 0 | AJ23: 0 | AK23: 0 | AL23: 0 | AM23: 0 | AN23: 0 | AO23: 0 | AP23: 0 | CP23: =IF(COUNT(AI23:AP23)=0,"",IF(SUM(AI23:AP23)=1,"",1)) -> 1
B24: 15 | C24: Corrective HV cable replacement | D24: 15 | F24: Replacement | G24: Replacement | I24: =SUMPRODUCT((Forecast_spend!U$16:U$31)*(Forecast_spend!$F$16:$F$31=$C24))/1000 -> 0 | J24: =SUMPRODUCT((Forecast_spend!V$16:V$31)*(Forecast_spend!$F$16:$F$31=$C24))/1000 -> 0 | K24: =SUMPRODUCT((Forecast_spend!W$16:W$31)*(Forecast_spend!$F$16:$F$31=$C24))/1000 -> 0 | L24: =SUMPRODUCT((Forecast_spend!X$16:X$31)*(Forecast_spend!$F$16:$F$31=$C24))/1000 -> 0 | M24: =SUMPRODUCT((Forecast_spend!Y$16:Y$31)*(Forecast_spend!$F$16:$F$31=$C24))/1000 -> 0 | N24: =SUMPRODUCT((Forecast_spend!Z$16:Z$31)*(Forecast_spend!$F$16:$F$31=$C24))/1000 -> 0 | O24: =SUMPRODUCT((Forecast_spend!AA$16:AA$31)*(Forecast_spend!$F$16:$F$31=$C24))/1000 -> 0 | Q24: =SUMPRODUCT((Forecast_contrib!U$16:U$31)*(Forecast_contrib!$F$16:$F$31=$C24))/1000 -> 0 | R24: =SUMPRODUCT((Forecast_contrib!V$16:V$31)*(Forecast_contrib!$F$16:$F$31=$C24))/1000 -> 0 | S24: =SUMPRODUCT((Forecast_contrib!W$16:W$31)*(Forecast_contrib!$F$16:$F$31=$C24))/1000 -> 0 | T24: =SUMPRODUCT((Forecast_contrib!X$16:X$31)*(Forecast_contrib!$F$16:$F$31=$C24))/1000 -> 0 | U24: =SUMPRODUCT((Forecast_contrib!Y$16:Y$31)*(Forecast_contrib!$F$16:$F$31=$C24))/1000 -> 0 | V24: =SUMPRODUCT((Forecast_contrib!Z$16:Z$31)*(Forecast_contrib!$F$16:$F$31=$C24))/1000 -> 0 | W24: =SUMPRODUCT((Forecast_contrib!AA$16:AA$31)*(Forecast_contrib!$F$16:$F$31=$C24))/1000 -> 0 | AI24: 0 | AJ24: 0 | AK24: 0 | AL24: 0 | AM24: 0 | AN24: 0 | AO24: 0 | AP24: 0 | CP24: 1
B25: 16 | C25: Corrective LV cable replacement | D25: 16 | F25: Replacement | G25: Replacement | I25: =SUMPRODUCT((Forecast_spend!U$16:U$31)*(Forecast_spend!$F$16:$F$31=$C25))/1000 -> 0 | J25: =SUMPRODUCT((Forecast_spend!V$16:V$31)*(Forecast_spend!$F$16:$F$31=$C25))/1000 -> 0 | K25: =SUMPRODUCT((Forecast_spend!W$16:W$31)*(Forecast_spend!$F$16:$F$31=$C25))/1000 -> 0 | L25: =SUMPRODUCT((Forecast_spend!X$16:X$31)*(Forecast_spend!$F$16:$F$31=$C25))/1000 -> 0 | M25: =SUMPRODUCT((Forecast_spend!Y$16:Y$31)*(Forecast_spend!$F$16:$F$31=$C25))/1000 -> 0 | N25: =SUMPRODUCT((Forecast_spend!Z$16:Z$31)*(Forecast_spend!$F$16:$F$31=$C25))/1000 -> 0 | O25: =SUMPRODUCT((Forecast_spend!AA$16:AA$31)*(Forecast_spend!$F$16:$F$31=$C25))/1000 -> 0 | Q25: =SUMPRODUCT((Forecast_contrib!U$16:U$31)*(Forecast_contrib!$F$16:$F$31=$C25))/1000 -> 0 | R25: =SUMPRODUCT((Forecast_contrib!V$16:V$31)*(Forecast_contrib!$F$16:$F$31=$C25))/1000 -> 0 | S25: =SUMPRODUCT((Forecast_contrib!W$16:W$31)*(Forecast_contrib!$F$16:$F$31=$C25))/1000 -> 0 | T25: =SUMPRODUCT((Forecast_contrib!X$16:X$31)*(Forecast_contrib!$F$16:$F$31=$C25))/1000 -> 0 | U25: =SUMPRODUCT((Forecast_contrib!Y$16:Y$31)*(Forecast_contrib!$F$16:$F$31=$C25))/1000 -> 0 | V25: =SUMPRODUCT((Forecast_contrib!Z$16:Z$31)*(Forecast_contrib!$F$16:$F$31=$C25))/1000 -> 0 | W25: =SUMPRODUCT((Forecast_contrib!AA$16:AA$31)*(Forecast_contrib!$F$16:$F$31=$C25))/1000 -> 0 | AI25: 0 | AJ25: 0 | AK25: 0 | AL25: 0 | AM25: 0 | AN25: 0 | AO25: 0 | AP25: 0 | CP25: 1
B26: 17 | C26: Service lines | D26: 17 | F26: Replacement | G26: Replacement | I26: =SUMPRODUCT((Forecast_spend!U$16:U$31)*(Forecast_spend!$F$16:$F$31=$C26))/1000 -> 0 | J26: =SUMPRODUCT((Forecast_spend!V$16:V$31)*(Forecast_spend!$F$16:$F$31=$C26))/1000 -> 0 | K26: =SUMPRODUCT((Forecast_spend!W$16:W$31)*(Forecast_spend!$F$16:$F$31=$C26))/1000 -> 0 | L26: =SUMPRODUCT((Forecast_spend!X$16:X$31)*(Forecast_spend!$F$16:$F$31=$C26))/1000 -> 0 | M26: =SUMPRODUCT((Forecast_spend!Y$16:Y$31)*(Forecast_spend!$F$16:$F$31=$C26))/1000 -> 0 | N26: =SUMPRODUCT((Forecast_spend!Z$16:Z$31)*(Forecast_spend!$F$16:$F$31=$C26))/1000 -> 0 | O26: =SUMPRODUCT((Forecast_spend!AA$16:AA$31)*(Forecast_spend!$F$16:$F$31=$C26))/1000 -> 0 | Q26: =SUMPRODUCT((Forecast_contrib!U$16:U$31)*(Forecast_contrib!$F$16:$F$31=$C26))/1000 -> 0 | R26: =SUMPRODUCT((Forecast_contrib!V$16:V$31)*(Forecast_contrib!$F$16:$F$31=$C26))/1000 -> 0 | S26: =SUMPRODUCT((Forecast_contrib!W$16:W$31)*(Forecast_contrib!$F$16:$F$31=$C26))/1000 -> 0 | T26: =SUMPRODUCT((Forecast_contrib!X$16:X$31)*(Forecast_contrib!$F$16:$F$31=$C26))/1000 -> 0 | U26: =SUMPRODUCT((Forecast_contrib!Y$16:Y$31)*(Forecast_contrib!$F$16:$F$31=$C26))/1000 -> 0 | V26: =SUMPRODUCT((Forecast_contrib!Z$16:Z$31)*(Forecast_contrib!$F$16:$F$31=$C26))/1000 -> 0 | W26: =SUMPRODUCT((Forecast_contrib!AA$16:AA$31)*(Forecast_contrib!$F$16:$F$31=$C26))/1000 -> 0 | AI26: 0 | AJ26: 0 | AK26: 0 | AL26: 0 | AM26: 0 | AN26: 0 | AO26: 0 | AP26: 0 | CP26: 1
